{"text_format":"1","workbook":"xlsx","n_sheets":19,"sheets":["Bell Pepper Budget","carbord wax boxes","Plant Cost","YieldVariety","Fertilizer Cost","Plastic,stakes, drip","insect, herbicides","Fungicide costs","Intro","Budget no PB","Budget PB","Input prices","Equipment","Yield and price combination","Price graph","APPENDIX 1","fumigants_ZRH","APPENDIX 2","Equipment costs"],"not_rendered":{"charts":1,"images":3,"macros":1,"external_links":0,"defined_names":0,"comments":2,"pivot_tables":0},"unopened":[],"bounds":{"document_bytes":16777216,"sheet_cells":100000,"rows_first":2000,"rows_last":500,"rows_between":2000,"halvings":0,"cell_chars":16384,"cell_head_chars":4096},"cells_cut":0,"cells_raw":0,"read":"whole","date_system":"1900"}

{"sheet":"Bell Pepper Budget","index":0,"n_rows":68,"n_cols":18,"rows_kept":68,"cut":false,"hidden":true,"merged":[]}
["Item","Unit","Price/unit","Quantity","Total",null,null,null,{"$f":"15.5/50","v":0.31},null,{"$f":"300*0.46","v":138},null,null,null,null,null,"Southeast Vegetebale handbook ","Zach"]
[null,null,null,null,null,null,null,{"$f":"+H5+G5","v":127.39999999999999},{"$f":"+H5+G5","v":127.39999999999999},null,{"$f":"91.76/0.46","v":199.47826086956522}]
["Total Income",null,null,null,null,{"$f":"500*0.13","v":65},null,{"$f":"+H2+H5","v":217.26999999999998},{"$f":"61*128","v":7808},null,7888,0.8,null,null,null,"Completed task"]
["Bell Peppers","box (1 1/9 bu)",{"$f":"+#REF!","v":{"$error":"#REF!"}},{"$f":"+YieldVariety!B33","v":941.49999999999989},{"$f":"C4*D4","v":{"$error":"#REF!"}},"Yield is from variety trials conducted in Dayton TN in 2017, prices are  average annual shipping point prices from https://cat.ams.usda.gov/app/main#/dashboards/59a5dc4473e6430000000033?embed=true&l=true&r=true&h=false&t=false&volatile=true ","Potassium nitrate qt based on the southeast vegetable handbook (K provided by 278 lbs of this fertilizer)","Calcium nitrate qt based on the southeast vegetable handbook (N provided by this fertilizer)",null,null,{"$f":"+K3/L3","v":9860},1]
["Variable Costs",null,null,null,null,"N",{"$f":"278*0.135","v":37.53},{"$f":"+G9*0.155","v":89.86999999999999},{"$f":"+#REF!*0.155","v":{"$error":"#REF!"}},null,{"$f":"6.8+9.3+13.3+20+24","v":73.400000000000006}]
["Pepper plants","plant",{"$f":"+'Plant Cost'!E3","v":0.16},{"$f":"+YieldVariety!E22","v":17424},{"$f":"C6*D6","v":2787.84},"17424 plants per acre (5 ft between rows x 12\" in row). ",null,{"$f":"127.4-G5","v":89.87},null,null,null,{"$f":"50+24.22+11.02","v":85.24},400,0.9]
["Pre-plant: 10-10-10 Fertilizer","50 lb bag",{"$f":"+('Fertilizer Cost'!D2+'Fertilizer Cost'!D4)/2","v":10.875},10,{"$f":"C7*D7","v":108.75},"* Check quantities with Annette. Quantities are calculated based on field trials",100,15.5,"Acre","Sq ft",null,{"$f":"177-L6","v":91.76},{"$f":"+M6/N6","v":444.44444444444446},1]
["Fertigation: Calcium Nitrate","50 lb bag",{"$f":"+AVERAGE('Fertilizer Cost'!D6:D8)","v":16.150000000000002},{"$f":"135/50","v":2.7},{"$f":"C8*D8","v":43.605000000000011},"* Check quantities with Annette. Quantities are calculated based on recommended rates from the Southeastern Vegetable Crop Handbook",{"$f":"+H8*G7","v":8987},89.87,1,43560,null,{"$f":"4000*0.8","v":3200}]
["Fertigation: Potassium Nitrate","50 lb bag",{"$f":"+('Fertilizer Cost'!D10+'Fertilizer Cost'!D12)/2","v":31.53},{"$f":"225/50","v":4.5},141.88499999999999,"* Check quantities with Annette. Quantities are calculated based on recommended rates from the Southeastern Vegetable Crop Handbook",{"$f":"+G8/H7","v":579.80645161290317},null,0.771349862,33600,null,{"$f":"4*4000","v":16000}]
["Plastic mulch","roll (4x4000)",{"$f":"+('Plastic,stakes, drip'!D1+'Plastic,stakes, drip'!D3)/2","v":111.5},2.1800000000000002,{"$f":"C10*D10","v":243.07000000000002},"5 ft between rows results into 2.18   4 x 4000 ft rolls of plastic to cover a whole acre. Mulch price is based on the partila budgeting analysis publication",null,null,null,null,null,{"$f":"4*L8","v":12800},{"$f":"+L9+L10","v":28800},{"$f":"4*3200","v":12800}]
["T-tape (drip tape, 750')","roll (750')",{"$f":"+(139+144)/2","v":141.5},{"$f":"8712/750","v":11.616},{"$f":"C11*D11","v":1643.664},"We used the same model suggested for the field trials (T-Tape, Model #508-08-340), 8712 ft of drip tape",null,null,"Pepper plants"]
["Water costs","ac-in",null,null,null,"Missippi State University Budget"]
["Stakes","per 100 stakes",{"$f":"+'Plastic,stakes, drip'!D25","v":57.080000000000005},{"$f":"+(D6/3)/100","v":58.08},{"$f":"C13*D13","v":3315.2064},"Assuming a stake is put every three plants, using wood stakes of 1 square inch by 4 feet",{"$f":"177.4-50","v":127.4},{"$f":"227.4-100","v":127.4}]
["Twine","per 6300 ft tube",{"$f":"+'Plastic,stakes, drip'!C37","v":7.1575000000000006},{"$f":"(8712*2*3)/6300","v":8.2971428571428572},{"$f":"+D14*C14","v":59.386800000000008},null,100,{"$f":"+G14*0.155","v":15.5},0.771349862,7888,null,null,null,null,3381.21]
["Fumigant",null,null,null,null,null,100,13.75,1,{"$f":"I15*J14/I14","v":10226.228574861663},null,null,null,null,3354.96]
["Telone C17","gal",20.3,{"$f":"+(32.4+42)/2","v":37.200000000000003},{"$f":"+D16*C16","v":755.16000000000008},null,null,null,{"$f":"+J16/#REF!","v":{"$error":"#REF!"}},12.5]
["Fungicides",null,null,null,null,null,{"$f":"146.8*0.135","v":19.818000000000001}]
["Kocide","lb",{"$f":"+'Fungicide costs'!Y8/10","v":9.1984999999999992},{"$f":"1.25*10","v":12.5},{"$f":"+D18*C18","v":114.98124999999999}]
["Manzate","lb",{"$f":"+'Fungicide costs'!Y9","v":4.2041666666666666},{"$f":"7*2","v":14},{"$f":"+D19*C19","v":58.858333333333334},"CHECK ALL APPLICATIONS MAKE SURE THEY ARE CORRECT"]
["Quadris","fl oz",{"$f":"+'Fungicide costs'!Z10","v":1.4507708333333333},10,{"$f":"+C20*D20","v":14.507708333333333},"we have prices for liquid we may need prices for solid Quadris"]
["Bravo","pt",{"$f":"+'Fungicide costs'!Z11","v":7.54647303340594},1.5,{"$f":"+D21*C21","v":11.319709550108911},"No information, we need to contact other input supplier. We have prices for Bravo Weatherstick deom Deerfield supplies"]
["Cabrio","oz",{"$f":"+'Fungicide costs'!Z12","v":2.3646875000000001},10,{"$f":"+C22*D22","v":23.646875000000001},"Price from Deerfield supplies only"]
["Priaxor","fl oz",{"$f":"+'Fungicide costs'!Z13","v":4.1233593749999997},6,{"$f":"+C23*D23","v":24.740156249999998}]
["Aprovia Top","fl oz",{"$f":"+'Fungicide costs'!Z14","v":2.49609375},24,{"$f":"+D24*C24","v":59.90625},"Prices from Deerfield supplies in gal, I'm assuming fulid oz, ask Zack if this is correct"]
["Orondis Gold 200","fl oz",{"$f":"+'Fungicide costs'!Z15","v":2.306640625},9.6,{"$f":"+D25*C25","v":22.143750000000001},"Prices from Deerfield supplies only"]
["Ridomil Gold SL ","pt",{"$f":"+'Fungicide costs'!Y16","v":101.85},1,{"$f":"+D26*C26","v":101.85},"Prices from Deerfield supplies only"]
["Ranman","fl oz",{"$f":"+'Fungicide costs'!Z17","v":7.7976562499999993},{"$f":"2.75*2","v":5.5},{"$f":"+C27*D27","v":42.887109374999994},"Prices from Deerfield supplies only"]
["Revus","fl oz",{"$f":"+'Fungicide costs'!Z18","v":2.9048828124999999},{"$f":"8*2","v":16},{"$f":"+C28*D28","v":46.478124999999999},"Prices from Deerfield supplies only"]
["Presidio","fl oz",{"$f":"+'Fungicide costs'!Z19","v":9.84375},{"$f":"4*2","v":8},{"$f":"+C29*D29","v":78.75},"Prices from Deerfield supplies only"]
["Zampro","fl oz",{"$f":"+'Fungicide costs'!Z20","v":2.6907142857142858},14,{"$f":"+C30*D30","v":37.67},"make sure the price is for liquid oz"]
["Orondis Ultra","fl oz",{"$f":"+'Fungicide costs'!Z21","v":6.2203125000000004},{"$f":"8*2","v":16},{"$f":"+C31*D31","v":99.525000000000006},"Prices from Deerfield supplies only"]
["Insecticides"]
["Mustang Maxx","fl oz",{"$f":"+'insect, herbicides'!G22/128","v":1.201953125},{"$f":"+'insect, herbicides'!B26*4.5","v":14.040000000000001},{"$f":"+D33*C33","v":16.875421875000001}]
["Coragen","fl oz",{"$f":"+'insect, herbicides'!A32/23","v":11.171739130434782},{"$f":"+'insect, herbicides'!C29","v":2.75},{"$f":"+D34*C34","v":30.72228260869565}]
["Movento","fl oz",{"$f":"+'insect, herbicides'!B40","v":8.0660156250000004},4.5,{"$f":"+D35*C35","v":36.297070312500004}]
["Orthene","lb",{"$f":"+'insect, herbicides'!I46/7.73","v":13.079560155239328},{"$f":"+'insect, herbicides'!C43","v":0.375},{"$f":"+D36*C36","v":4.904835058214748}]
["Herbicides",null,null,null,null,null,{"$f":"+(14.2*2)+(19.9*2)+(28.5*2)+(42.5*2)+(51.2*2)","v":312.60000000000002},null,"acre","units"]
["Poast ","pt",{"$f":"+'insect, herbicides'!B8/16.6535","v":15.130453057915751},{"$f":"+(0.5+2.5)/2","v":1.5},{"$f":"+D38*C38","v":22.695679586873627}]
["Sandea","oz",{"$f":"+'insect, herbicides'!A20","v":38.994999999999997},0.75,{"$f":"+D39*C39","v":29.246249999999996}]
["Hired Labor"]
["Operator labor","hour",13.26,{"$f":"+'Equipment costs'!H52","v":6.6},{"$f":"+D41*C41","v":87.515999999999991},"Check all hand labor below"]
["Transplant labor","hours",11.63,28.84,{"$f":"+C42*D42","v":335.4092},"Based on Kentucky budget"]
["Harvest labor","box",1.02,null,{"$f":"+C43*$D$4","v":960.32999999999993},"Based on Kentucky budget",{"$f":"+H43/#REF!","v":{"$error":"#REF!"}},14520,"plant staking labor (5 people)",null,null,{"$f":"+#REF!/#REF!","v":{"$error":"#REF!"}},1]
["Grade/Packing labor","box",1.63,null,{"$f":"+C44*$D$4","v":1534.6449999999998},"Based on Kentucky budget",null,null,0.771349862,4.75]
["Plastic removal","hour",11.63,12,139.56,"I used labor hour estimates from producer survey we are conducting and the 2019 AEWR from the department of labor https://www.foreignlaborcert.doleta.gov/adverse.cfm  ",1,6300,1,{"$f":"I45*J44/I44","v":6.158035716353055}]
["Plastic disposal","hour",11.63,2,{"$f":"+D46*C46","v":23.26},"I used labor hour estimates from producer survey we are conducting and the 2019 AEWR from the department of labor https://www.foreignlaborcert.doleta.gov/adverse.cfm  "]
["Other Marketing and Harvesting Costs"]
["Cardboard boxes","box",{"$f":"+'carbord wax boxes'!B6","v":1.9228571428571428},{"$f":"+D4","v":941.49999999999989},{"$f":"C48*D48","v":1810.3699999999997}]
["Bins/Stacking"]
["Diesel Fuel",null,null,null,null,null,null,null,0.771349862,6.5]
["Tractors","gal",{"$f":"+'Equipment costs'!M2","v":2.4540000000000002},{"$f":"+'Equipment costs'!Q52","v":22.299219999999995},{"$f":"+C51*D51","v":54.722285879999994}]
["Repairs and Maintenance"]
["PU","acre",{"$f":"+'Equipment costs'!K52","v":7.8699999999999983},1,{"$f":"+D53*C53","v":7.8699999999999983}]
["Implements","acre",{"$f":"+'Equipment costs'!F3+'Equipment costs'!F4+'Equipment costs'!F5+'Equipment costs'!F8+'Equipment costs'!F11+'Equipment costs'!F19+'Equipment costs'!F22+'Equipment costs'!F41+'Equipment costs'!F42+'Equipment costs'!F44+'Equipment costs'!F45+'Equipment costs'!F46+'Equipment costs'!F48+'Equipment costs'!F49+'Equipment costs'!F51","v":9.1700000000000017},1,{"$f":"+D54*C54","v":9.1700000000000017}]
["Plastic Mulch Disposal"]
["Plastic mulch disposal","fee per ton",35,0.21,{"$f":"+D56*C56","v":7.35},"Based on partial budgeting publication"]
["Operating interest","Half of specified variable expenses",null,6.5000000000000002E-2,{"$f":"+(E58*0.5*0.065)","v":501.5577284952995},"NEEDS TO BE ADDED"]
["Total Variable Cost",null,null,null,{"$f":"SUM(E6:E56)+485.77","v":15432.545492163061},null,null,null,"acre","units"]
[null,null,null,null,null,null,null,null,"Pottassium Nitrate"]
["Fixed Costs"]
["Irrigation","acre",315.5,1,{"$f":"+D61*C61","v":315.5},"Based on Mississippi State University crop budgets"]
["Power Equipment ","acre",{"$f":"+'Equipment costs'!E3+'Equipment costs'!E4+'Equipment costs'!E5+'Equipment costs'!E8+'Equipment costs'!E11+'Equipment costs'!E19+'Equipment costs'!E22+'Equipment costs'!E41+'Equipment costs'!E42+'Equipment costs'!E44+'Equipment costs'!E45+'Equipment costs'!E46+'Equipment costs'!E49+'Equipment costs'!E48+'Equipment costs'!E51","v":37.789999999999992},1,{"$f":"+C62*D62","v":37.789999999999992}]
["Implements","acre",{"$f":"+'Equipment costs'!G3+'Equipment costs'!G4+'Equipment costs'!G5+'Equipment costs'!G6+'Equipment costs'!G8+'Equipment costs'!G11+'Equipment costs'!G19+'Equipment costs'!G22+'Equipment costs'!G41+'Equipment costs'!G42+'Equipment costs'!G44+'Equipment costs'!G45+'Equipment costs'!G46+'Equipment costs'!G48+'Equipment costs'!G49+'Equipment costs'!G51","v":20.14},1,{"$f":"+D63*C63","v":20.14}]
["Land Rent ","acre",95,1,{"$f":"+D64*C64","v":95}]
["Total Fix costs",null,null,null,{"$f":"SUM(E61:E64)","v":468.42999999999995}]
[]
["Total costs",null,null,null,{"$f":"+E65+E58","v":15900.975492163061}]
[null,null,null,null,{"$f":"+E4-E67","v":{"$error":"#REF!"}}]

{"sheet":"carbord wax boxes","index":1,"n_rows":6,"n_cols":3,"rows_kept":6,"cut":false,"hidden":true,"merged":[]}
[]
["for 560",1140,"https://www.glacierv.com/SPD/item-no-883---1-1-9-bushel-vegetable-carton--cascaded-wax--560-pack--2310000-1207778056.jsp"]
["for 540",977.4,"https://rockfordpack.com/checkout/cart/"]
[null,{"$f":"+B2/560","v":2.0357142857142856}]
[null,{"$f":"+B3/540","v":1.81}]
[null,{"$f":"+(B4+B5)/2","v":1.9228571428571428}]

{"sheet":"Plant Cost","index":2,"n_rows":8,"n_cols":10,"rows_kept":8,"cut":false,"hidden":true,"merged":[]}
["Pepper plants"]
[null,null,"Plants","$","$/plant"]
["Evans Plants","GA ",1000,160,{"$f":"+D3/C3","v":0.16},null,1000,160]
[null,null,500,85,{"$f":"+D4/C4","v":0.17},null,100,{"$f":"+G4*H3/G3","v":16}]
[null,null,"additional 100 plants ",16,null,null,null,null,16,100]
[null,null,300,60,{"$f":"+D6/C6","v":0.2},null,null,null,{"$f":"+I5/J5","v":0.16},1]
["Sells Plants Company","GA ",32,8.8000000000000007,{"$f":"+D7/C7","v":0.27500000000000002}]
[null,null,null,"average ",{"$f":"+(E3+E7)/2","v":0.21750000000000003}]

{"sheet":"YieldVariety","index":3,"n_rows":35,"n_cols":5,"rows_kept":35,"cut":false,"hidden":true,"merged":[]}
["Variety","Total boxes/ A",null,"2017 Bell Pepper Variety Trial Dayton, TN"]
["Aristotle",1124,null,"6 ft spacing"]
["Mercer ",1053,null,"planst per acre",14520]
["Turnpike",990]
["PS 09941819",902]
["Green Flash",824]
["Mariner",812]
["Playmaker",767]
["Heritage",744]
["Samurai",647]
["Vanguard",544]
["Galleon",506]
["Ninja",502]
["Average",{"$f":"+AVERAGE(B2:B13)","v":784.58333333333337}]
[]
["Box","1 1/9 bu"]
[]
[]
[]
["Variety","Total boxes/ A",null,"Adjustments of yield based on  5ft spacing"]
["Aristotle",{"$f":"+($E$22*B2)/$E$3","v":1348.8},null,"5 ft spacing"]
["Mercer ",{"$f":"+($E$22*B3)/$E$3","v":1263.5999999999999},null,"plants per acre",17424]
["Turnpike",1188]
["PS 09941819",1082.4000000000001]
["Green Flash",988.8]
["Mariner",974.4]
["Playmaker",920.4]
["Heritage",892.8]
["Samurai",776.4]
["Vanguard",652.79999999999995]
["Galleon",607.20000000000005]
["Ninja",602.4]
["Average",{"$f":"+AVERAGE(B21:B32)","v":941.49999999999989}]
[]
["Box","1 1/9 bu"]

{"sheet":"Fertilizer Cost","index":4,"n_rows":29,"n_cols":7,"rows_kept":29,"cut":false,"hidden":true,"merged":[]}
[null,"Supplier","Product","Price","Units","Notes"]
["Fertlizier","Grainger","10-10-10",10,"50 lb bag",null,"*left voicemail for Gm no response. Called back--off work will return Thursday morning. *left another message *called  on Thursday GM not in "]
[null,"Blount","10-10-10",10.49,"40 lb bag","bulk: @ 75 bags 9.79 per bag"]
[null,"Deerfield","10-10-10",11.75,"50 lb bag","20-20-20 25 lb bag 35.60 (8% discount)","*Deerfield sent catalog --Early buyer program discount"]
[null,null,null,null,null,null,"*deerfield Early Buyers Program --"]
[null,"Grainger","Calcium Nitrate",15.35,"50 lb bag",null,"Chemicals and Fertilizer Ordred and Paid before March 22 2019--8% discount with cash/check/money order 5% discount with credit/debit card--"]
[null,"Blount","Calcium Nitrate",15.85,"50 lb bag","no bulk discount","Supplies--8% discount on prepaid orders from Dec. 1 2018-Jan 4 2019 5% discount from Jan. 7 2019-Jan 31 2019 (5% and 2% respectively for credit card payments)"]
[null,"Deerfield","Calcium Nitrate",17.25,"50 lb bag"]
[]
[null,"Grainger","Potassium Nitrate",32.5,"50 lb bag"]
[null,"Blount","Potassium Nitrate","N/A",null,"n/a"]
[null,"Deerfield","Potassium Nitrate",30.56,"50 lb bag"]
[]
[null,null,null,null,"Nitrogen","Phosphate","Potassium"]
["Applications",null,null,"lbs/acre","N","P2O5","K2O"]
[null,"10-10-10","10-10-10",500,50,50,50]
[null,"Calcium Nitrate","13.5_0_46",{"$f":"50/0.46","v":108.69565217391303},{"$f":"+D17*0.135","v":14.67391304347826},null,{"$f":"+D17*0.46","v":50}]
[null,"Potassium Nitrate","15.5_0_0_19",{"$f":"+F21/0.155","v":227.91023842917249},{"$f":"+D18*0.155","v":35.326086956521735}]
[null,"Total",null,null,100,100,100]
[]
[null,null,null,null,null,{"$f":"+E19-(E16+E17)","v":35.326086956521735}]
[]
[]
[null,null,null,null,"Nitrogen","Phosphate","Potassium"]
[null,null,null,"lbs/acre","N","P2O5","K2O"]
[null,"10-10-10","10-10-10",500,50,50,50]
[null,"Calcium Nitrate","13_0-44",225,{"$f":"+D27*0.13","v":29.25},null,{"$f":"+D27*0.44","v":99}]
[null,"Potassium Nitrate","15_0_0_19",135,{"$f":"+D28*0.15","v":20.25}]
[null,null,null,null,{"$f":"SUM(E26:E28)","v":99.5},{"$f":"SUM(F26:F28)","v":50},{"$f":"SUM(G26:G28)","v":149}]

{"sheet":"Plastic,stakes, drip","index":5,"n_rows":45,"n_cols":9,"rows_kept":45,"cut":false,"hidden":true,"merged":[]}
["Plastic Mulch","Grainger","Plastic Mulch",115,"4x4000 1 mil thickness"]
[null,"Blount","Plastic Mulch","N/A","4x4000 1 mil thickness"]
[null,"Deerfield","Plastic Mulch (black embossed)",108,"4x4000 1 mil thickness","106.00 (16 rolls and up) "]
[]
[null,"Grainger","Plastic Mulch",143,"4x4000 1.25 mil thickness"]
[null,"Blount","Plastic Mulch","N/A","4x4000 1.25 mil thickness"]
[null,"Deerfield","Plastic Mulch (black embossed)",135,"4x4000 1.25 mil thickness","133.00 (16 rolls and up)",null,"16 items +",110]
[]
["Drip Tape","Grainger","T-tape model #508-08-340 ",null,"750 ft","7500 ft low flow 139.00"]
[null,"Blount","T-tape model #508-08-340",null,"750 ft","508-12-340 ($144 per roll, n/a length)"]
[null,"Deerfield","T-tape model #508-08-340",null,"750 ft","*other models avaliable"]
[]
[]
[]
[]
["Stakes"]
[" http://www.irrigation-mart.com/default.aspx?page=item+detail&itemcode=STAKES-48L&catlist=102&parent=353  "]
[" Per 25 bundles (48x1x1)",0,2,15.83]
[null,2,60,13.56]
[null,56," and above",11.87,"per 100",{"$f":"+D19*4","v":54.24}]
[]
["https://www.rainfloirrigation.com/wp-content/uploads/2017/02/Page-33-1.pdf"]
[" Per 100 bundles (48x1x1)",52]
[]
[null,"average price",{"$f":"+(F20+B23)/2","v":53.120000000000005},{"$f":"+(B23+F20+65)/3","v":57.080000000000005}]
[]
["Twine"]
["http://www.irrigation-mart.com/default.aspx?page=item+detail&itemcode=TWINE-6300ST&catlist=102&parent=353"]
["6300 ST",0,18,6.89]
[null,18,324,6.32]
[null,324,971.9,5.41]
[null,972,"ABOVE",4.74]
[]
["https://www.rainfloirrigation.com/wp-content/uploads/2017/02/Page-33-1.pdf "]
["T 6300 ST",1,7]
[]
[null,"average price",{"$f":"+(D29+C35+D44+D45)/4","v":7.1575000000000006}]
[]
["Wood Stakes","Grainger","Wood Stakes",null,"1 sq. ft. by 4 ft","unsure 5-6 (25 in a bundle-- pallet at a time 756)"]
[null,"Blount","Wood Stakes",1.99,"1 sq. ft. by 5 ft","hard plastic stake: 1 sq. ft by 4 ft are 1.49"]
[null,"Deerfield","Wood Stakes","0.65 each","1 sq. ft. by 4 ft","0.60 (skid price each)"]
[]
["Twine","Grainger","Twine",null,"6300 ft. tube","grow twine 5.95 per roll (2100 ft)"]
[null,"Blount","Twine",7.99,"6300 ft. tube","tomato twine"]
[null,"Deerfield","Twine",6.75,"6000 ft. ball / 3Lb","white nylon twine "]

{"sheet":"insect, herbicides","index":6,"n_rows":48,"n_cols":10,"rows_kept":48,"cut":false,"hidden":true,"merged":[]}
[" https://vegetables.ces.ncsu.edu/wp-content/uploads/2018/03/2018-NCSU-Bell-Pepper-Fungicide-Spray-Guide.pdf?fwd=no  "]
[]
["Poast"]
["https://www.keystonepestsolutions.com/index.php?main_page=product_info&products_id=183&utm_source=google&utm_medium=cpc&adpos=1o1&scid=scplp183&sc_intid=183&gclid=EAIaIQobChMIrtzqm6ar4gIVBFYMCh2cVgKeEAQYASABEgIlZfD_BwE"]
["2.5 gal",249.95]
["https://chemicalwarehouse.com/products/poast-herbicide?gclid=EAIaIQobChMIrtzqm6ar4gIVBFYMCh2cVgKeEAQYBCABEgJAcPD_BwE"]
["2.5 gal",254]
["average",{"$f":"+(B5+B7)/2","v":251.97499999999999}]
["rate"]
["0.5-2.5 pt/ACRE"]
["https://www.uky.edu/Ag/Horticulture/masabni/PPT/herbicidespepper.pdf"]
[]
["Sandea"]
["rate "]
["https://www.uky.edu/Ag/Horticulture/masabni/PPT/herbicidespepper.pdf"]
["0.5 -1 oz"]
[" price"]
["https://www.keystonepestsolutions.com/sandea-herbicide-post-emergence-10-ounces-285"]
[389.95,"10 oz"]
[{"$f":"+A19/10","v":38.994999999999997},"1 oz"]
[]
["Grainger","Mustang Maxx Gal",199,"1 gal",null,"average",{"$f":"+(C22+C24)/2","v":153.85}]
["Blount","Mustang Maxx Gal","n/A"]
["Deerfield","Mustang Maxx Gal",108.7,"1 gal"]
["zeta-cypermethrin (Mustang Maxx) at 2.24 – 4.0 fl oz/acre or 3.2 – 4.0 fl oz/acre dependent on the types of caterpillars targeted.  "]
["Application",{"$f":"+(2.24+4)/2","v":3.12},"oz"]
[]
["Coragen"]
["application","2-3.5 fl oz/acre",{"$f":"+(2+3.5)/2","v":2.75}]
["price"]
["https://www.keystonepestsolutions.com/coragen-insecticide-1-quart-543"]
[256.95,"32 oz"]
[]
["Movento"]
["https://www.keystonepestsolutions.com/movento-insecticide-1-gallon-905"]
["Application: 4.5 fl oz/ acre"]
["price",1018.95,"gal",null,null,null,null,null,"Average",{"$f":"+(B37+B39)/2","v":1032.45}]
["https://www.pestrong.com/932-movento-sc-insecticide-spirotetramat-qt-gallon.html"]
["price",1045.95,"gal"]
["Average",{"$f":"+J37/128","v":8.0660156250000004},"oz"]
[]
["Orthene 97 PE"]
["1/4-1/2 lb/acre",null,{"$f":"+(0.25+0.5)/2","v":0.375}]
["4-8oz per acre"]
["https://www.pestrong.com/567-orthene-97-insecticide-0773-773-lb.html"]
[94.28,"7.73 lb",null,null,null,null,null,"average",{"$f":"+(A46+A48)/2","v":101.105}]
["https://www.domyown.com/orthene-97-spray-insecticide-p-3962.html"]
[107.93,"7.73 lb"]

{"sheet":"Fungicide costs","index":7,"n_rows":25,"n_cols":27,"rows_kept":25,"cut":false,"hidden":true,"merged":[]}
[null,"Knoxville TN (865-522-3148)",null,null,"Maryville farm coop ((865) 982-2761)",null,null,"Grainger county",null,null,"Deerfield supplies",null,null,"Pestrong (https://www.pestrong.com/752-agri-mycin-17-fungicide-harbour-2-lb.html)",null,null,"Ag cetral coop ((423) 507-9303)",null,null,"Keystone pest solution",null,null,"https://www.pubs.ext.vt.edu/content/dam/pubs_ext_vt_edu/446/446-047/PDF_Chemical07.pdf"]
[null,"Availability ","Units","Price","Availability ","Units","Price","Availability ","Units","Price","Availability ","Units","Price","Availability ","Units","Price","Availability ","Units","Price","Availability ","Units","Price",2007,null,"average"]
["Pic-Clor 60",null,null,null,null,null,null,null,null,null,"no",null,null,null,null,null,null,null,null,null,null,null,"1 gal",20.3]
["Telone C17",null,null,null,null,null,null,null,null,null,"no"]
["Telone C35",null,null,null,null,null,null,null,null,null,"no"]
["Agri-Mycin 17, Firewall",null,null,null,"Yes","2 lbs",35,null,null,null,"no",null,null,"Yes","2 lbs",39.950000000000003]
["Blocker",null,null,null,"No",null,null,null,null,null,"no"]
["Kocide","no",null,null,"Yes","10 lbs",101,"yes","10 lbs",95.49,"yes","10 lbs",76.5,null,null,null,null,null,null,"yes","10 lbs",94.95,null,null,{"$f":"+AVERAGE(V8,M8,J8,G8)","v":91.984999999999999}]
["Manzate","no",null,null,"Yes","2.5 gal",115,"yes","2.5 gal",85,"yes","30 lb",112.3,"yes","6 lbs",54.5,null,null,null,"yes","30 lbs",139.94999999999999,null,null,{"$f":"+((V9/30)+(M9/30))/2","v":4.2041666666666666}]
["Quadris","no",null,null,"Yes","gal",216,"yes","2.5 gal",417.99,"yes","1 gal",173.9,null,null,null,null,null,null,"yes","1 gal",199.95,null,null,{"$f":"+((G10)+(J10/2.5)+(M10))/3","v":185.69866666666667},{"$f":"+Y10/128","v":1.4507708333333333},"fl oz"]
["Bravo","no",null,null,"Yes","2.5 gal",122.85,null,null,null,"yes","2.5 gal",128.5,null,null,null,null,null,null,"yes","2.5 gal",174.95,null,null,{"$f":"+((G11/2.5)+(M11/2.5))/2","v":50.269999999999996},{"$f":"+Y11/6.66139","v":7.54647303340594},"pt"]
["Cabrio","no",null,null,"Yes","5 lbs",193,null,null,null,"yes","5 lb",185.35,null,null,null,null,null,null,"yes","5 lbs",209.95,null,null,{"$f":"+((G12/5)+(M12/5))/2","v":37.835000000000001},{"$f":"+Y12/16","v":2.3646875000000001},"oz"]
["Priaxor",null,null,null,"Yes","2.5 gal",1389,null,null,null,"no",null,null,null,null,null,null,null,null,"yes","2.5 gal",1249.95,null,null,{"$f":"+((V13/2.5)+(G13/2.5))/2","v":527.79},{"$f":"+Y13/128","v":4.1233593749999997},"fl oz"]
["Aprovia Top",null,null,null,"No",null,null,null,null,null,"yes","1 gal",319.5,null,null,null,null,null,null,null,null,null,null,null,{"$f":"+M14","v":319.5},{"$f":"+Y14/128","v":2.49609375},"fl oz"]
["Orondis Gold 200",null,null,null,"Yes","2.5 gal",677.5,null,null,null,"yes","128 oz",696.95,null,null,null,null,null,null,null,null,null,null,null,{"$f":"+(M14+(G15/2.5))/2","v":295.25},{"$f":"+Y15/128","v":2.306640625},"fl oz"]
["Ridomil Gold SL ","no",null,null,"Yes","2.5 gal",{"$f":"276.99","v":276.99},null,null,null,"yes","1 pt",93.75,null,null,null,null,null,null,"yes","1 pt",109.95,null,null,{"$f":"+(V16+M16)/2","v":101.85}]
["Ranman",null,null,null,"No",null,null,null,null,null,"yes","1 qt",239.1,null,null,null,null,null,null,"yes","1 qt",259.95,null,null,{"$f":"+(V17+M17)/2","v":249.52499999999998},{"$f":"+Y17/32","v":7.7976562499999993},"fl oz"]
["Revus",null,null,null,"Yes","2.5 gal",855,null,null,null,"yes","1 gal",401.65,null,null,null,null,null,null,"yes","1 gal",428.95,null,null,{"$f":"+((G18/2.5)+M18)/2","v":371.82499999999999},{"$f":"+Y18/128","v":2.9048828124999999},"fl oz"]
["Presidio","no",null,null,"No",null,null,null,null,null,"yes","1 qt",300.05,null,null,null,null,null,null,"yes","1 qt",329.95,null,null,{"$f":"+(V19+M19)/2","v":315},{"$f":"+Y19/32","v":9.84375},"fl oz"]
["Zampro","no",null,null,"No",null,null,"yes","140 oz",376.7,"yes","140 oz",370.45,null,null,null,null,null,null,"yes","140 oz",382.95,null,null,{"$f":"+(V20+M20+J20)/3","v":376.7},{"$f":"+Y20/140","v":2.6907142857142858}]
["Orondis Ultra",null,null,null,"No",null,null,null,null,null,"yes","1 gal",796.2,null,null,null,null,null,null,"no",null,null,null,null,{"$f":"+M21","v":796.2},{"$f":"+Y21/128","v":6.2203125000000004},"fl oz"]
["Ranman","no",null,null,"No",null,null,null,null,null,"yes","1qt",239.1,null,null,null,null,null,null,"yes","1 qt",259.95]
["Revus",null,null,null,"Yes","2.5 gal",855,"yes","2.5 gal",815.99,"yes","1 gal",401.65,null,null,null,null,null,null,"yes","1 gal",428.95]
["Presidio",null,null,null,"No",null,null,"yes","qt",285.75,"yes","1 qt",300.05,null,null,null,null,null,null,"yes","1 qt",329.95]
["Oronis Ultra",null,null,null,"No",null,null,null,null,null,"yes","1 gal",796.2]

{"sheet":"Intro","index":8,"n_rows":45,"n_cols":2,"rows_kept":45,"cut":false,"hidden":false,"merged":[[5,1,5,12],[9,1,9,12],[13,1,13,12],[4,1,4,12],[7,1,7,12],[8,1,8,12],[31,1,31,12],[11,1,11,12],[12,1,12,12],[29,1,29,12],[30,1,30,12],[42,1,42,12],[43,1,43,12],[44,1,44,12],[39,14,39,25],[40,14,40,25],[41,14,41,25]]}
[]
[]
[]
[]
[null,"Sample Budget for Large-Scale Commercial Pepper Operations "]
[null,"Version 1.0"]
[]
[null,"Margarita Velandia"]
[null,"Professor"]
[null,"Office: (865) 974-7409     Email: mvelandia@utk.edu"]
[]
[null,"Becky Bowling"]
[null,"Extension Specialist"]
[null,"Office: (865) 974-7016    Email: bowling10@utk.edu"]
[]
[]
[]
[]
[]
[]
[]
[]
[]
[]
[]
[]
[]
[]
[]
[]
[]
[]
[]
[]
[]
[]
[]
[]
[]
[]
[]
[]
[null,"Programs in agriculture and natural resources, 4-H youth development, family and consumer sciences, and resource development."]
[null,"University of Tennessee Institute of Agriculture, U.S. Department of Agriculture and country governments cooperating."]
[null,"UT Extension provide equal opportunities in programs and employment."]

{"sheet":"Budget no PB","index":9,"n_rows":574,"n_cols":7,"rows_kept":574,"cut":false,"hidden":false,"merged":[[512,2,512,6],[13,2,13,6],[0,1,0,7],[499,1,499,7]]}
[null,"2022 SAMPLE BUDGET FOR LARGE SCALE BELL PEPPER"]
[]
[null,null,"Pepper Variety:","Green (Aristotle)"]
[null,null,"Production practice:","Open field production + irrigated"]
[null,null,"Operation Size:","1 acre"]
[null,null,"Space between plants:","12 in"]
[null,null,"Space between rows:","5 ft"]
[null,null,"Yield (box (1 1/9 bu) per acre): ",{"$f":"YieldVariety!$B$21","v":1348.8}]
[null,null,"Harvesting rate (boxes/hour)",15]
[null,null,"Grading and Packing rate (boxes/hour)",10]
[null,null,"Breakeven-price ($ per 1 1/9 bu box)",{"$f":"+G73/F17","v":14.778539632824012}]
[null,null,"Breakeven-yield (1 1/9 bu boxes per acre)",{"$f":"+G73/E17","v":1037.2919821380592}]
[]
[]
[null,null,"ITEM","UNIT","$/UNIT","QUANTITY","TOTAL"]
[null,null,"GROSS RETURNS"]
[null,null,"Bell Peppers","box (1 1/9 bu)",{"$f":"+'Price graph'!$E$30","v":19.216666666666654},{"$f":"+D8","v":1348.8},{"$f":"+F17*E17","v":25919.439999999984}]
[]
[null,null,"VARIABLE COSTS"]
[null,null,"1. Pepper plants","plant",{"$f":"+AVERAGE('Input prices'!$E$3:$E$5)","v":0.17206666666666667},17424,{"$f":"+F20*E20","v":2998.0896000000002}]
[null,null,"2. Pre-plant: 10-10-10 Fertilizer","50 lb bag",{"$f":"+AVERAGE('Input prices'!$C$10:$C$14)","v":19.358499999999999},10,{"$f":"+F21*E21","v":193.58499999999998}]
[null,null,"2. Fertigation: Calcium Nitrate","50 lb bag",{"$f":"+AVERAGE('Input prices'!C$18:C$23)","v":24.951666666666668},2.7,67.369500000000002]
[null,null,"2. Fertigation: Potassium Nitrate","50 lb bag",{"$f":"+AVERAGE('Input prices'!C$27,'Input prices'!C$29)","v":35},4.5,157.5]
[null,null,"3. Plastic mulch","roll (4x4,000)",{"$f":"+AVERAGE('Input prices'!C$33:C$36)","v":166.99},2.1800000000000002,364.03820000000007]
[null,null,"4. T-tape (drip tape, 750')","roll (750')",{"$f":"+AVERAGE('Input prices'!C$40:C$41)","v":187.5},11.616,2178]
[null,null,"5. Water costs","ac-in",null,null,0]
[null,null,"6. Stakes","per 1400 stakes",{"$f":"+AVERAGE('Input prices'!C$46,'Input prices'!C$48,'Input prices'!C$49)","v":929.89333333333332},4.1485709999999996,{"$f":"+F27*E27","v":3857.7285157599995}]
[null,null,"7. Twine","per 6,300 ft tube",{"$f":"+AVERAGE('Input prices'!D$54:D$56)","v":8.0266666666666655},8.2971428571428572,{"$f":"+F28*E28","v":66.598399999999984}]
[null,null,"8. Fumigant"]
[null,null,"Telone C17","gal",20.3,37.200000000000003,{"$f":"+E30*F30","v":755.16000000000008}]
[null,null,"8. Fungicides"]
[null,null,"Kocide","lb",{"$f":"+AVERAGE('Input prices'!D$62, 'Input prices'!D$63, 'Input prices'!D$65)","v":10.675000000000002},15,{"$f":"+F32*E32","v":160.12500000000003}]
[null,null,"Manzate","lb",{"$f":"+AVERAGE('Input prices'!D$71             : 'Input prices'!D$77)","v":5.7916666666666661},14,{"$f":"+F33*E33","v":81.083333333333329}]
[null,null,"Quadris","fl oz",{"$f":"+AVERAGE('Input prices'!D$81:D$85)","v":1.5421093750000001},10,15.421093750000001]
[null,null,"Bravo","pt",{"$f":"+AVERAGE('Input prices'!D$89,'Input prices'!D$92,'Input prices'!D$94)","v":5.3241666666666667},1.5,7.9862500000000001]
[null,null,"Cabrio","oz",{"$f":"+AVERAGE('Input prices'!D$98:'Input prices'!D$103)","v":2.7222291666666667},10,27.222291666666667]
[null,null,"Priaxor","fl oz",{"$f":"+AVERAGE('Input prices'!D$107:D$109)","v":4.6614062499999998},6,27.9684375]
[null,null,"Aprovia Top","fl oz",{"$f":"+AVERAGE('Input prices'!D$114, 'Input prices'!D$115)","v":3.9763671875000002},24,95.432812500000011]
[null,null,"9. Insecticides"]
[null,null,"Mustang Maxx","fl oz",{"$f":"+AVERAGE('Input prices'!D$175:D$177)","v":1.5752604166666666},14.040000000000001,{"$f":"+F40*E40","v":22.116656250000002}]
[null,null,"Coragen","fl oz",{"$f":"+AVERAGE('Input prices'!D$181:D$185)","v":8.5665624999999999},2.75,{"$f":"+F41*E41","v":23.558046874999999}]
[null,null,"Movento","fl oz",{"$f":"+AVERAGE('Input prices'!D$190:D$192)","v":8.3010416666666664},4.5,37.354687499999997]
[null,null,"Orthene","lb",{"$f":"+AVERAGE('Input prices'!D$197,'Input prices'!D$198,'Input prices'!D$200,'Input prices'!D$202)","v":16.150833333333335},0.375,6.0565625000000001]
[null,null,"10. Herbicides"]
[null,null,"Poast ","pt",{"$f":"+AVERAGE('Input prices'!D$206:D$210)","v":14.6046},1.5,{"$f":"+F45*E45","v":21.9069}]
[null,null,"Sandea","oz",{"$f":"+AVERAGE('Input prices'!D$214:D$215)","v":34.122500000000002},0.75,{"$f":"+F46*E46","v":25.591875000000002}]
[null,null,"11. Hired Labor"]
[null,null,"Operator labor","hour",{"$f":"+'Input prices'!B$219","v":16.27},6.6899999999999995,{"$f":"+F48*E48","v":108.84629999999999}]
[null,null,"Transplant labor","hours",{"$f":"+'Input prices'!B$220","v":13.89},28.84,{"$f":"+E49*F49","v":400.58760000000001}]
[null,null,"Harvest labor","box",{"$f":"+'Input prices'!B$220/'Budget no PB'!D$9","v":0.92600000000000005},{"$f":"+F$17","v":1348.8},{"$f":"+F50*E50","v":1248.9888000000001}]
[null,null,"Grade/Packing labor","box",{"$f":"+'Input prices'!B$220/'Budget no PB'!D$10","v":1.389},{"$f":"+F$17","v":1348.8},{"$f":"+F51*E51","v":1873.4831999999999}]
[null,null,"Plastic removal","hour",{"$f":"+'Input prices'!B$220","v":13.89},12,{"$f":"+F52*E52","v":166.68}]
[null,null,"Plastic disposal","hour",{"$f":"+'Input prices'!B$220","v":13.89},2,{"$f":"+E53*F53","v":27.78}]
[null,null,"12. Other Marketing and Harvesting Costs"]
[null,null,"Cardboard boxes","box",{"$f":"+AVERAGE('Input prices'!D$224:D226)","v":2.8314285714285714},{"$f":"+F$17","v":1348.8},{"$f":"+F55*E55","v":3819.0308571428568}]
[null,null,"13. Diesel Fuel"]
[null,null,"Tractors","gal",{"$f":"+'Input prices'!B$230","v":4.99},{"$f":"+Equipment!G$16","v":21.492985971943888},{"$f":"+F57*E57","v":107.25}]
[null,null,"14. Repairs and Maintenance"]
[null,null,"Tractor 2WD 75 HP","acre",{"$f":"+Equipment!G$17","v":7.9022399999999999},1,{"$f":"+F59*E59","v":7.9022399999999999}]
[null,null,"Implements","acre",{"$f":"+Equipment!G$18","v":6.6199999999999992},1,{"$f":"+F60*E60","v":6.6199999999999992}]
[null,null,"15. Plastic Mulch Disposal"]
[null,null,"Plastic mulch disposal","fee per ton",{"$f":"+'Input prices'!B$234","v":35},0.14000000000000001,{"$f":"+F62*E62","v":4.9000000000000004}]
[null,null,"16. Operating interest","Interest rate ",4.3499999999999997E-2,null,{"$f":"+SUM(G20:G62)*0.5*E63","v":412.42267697516837}]
[null,null,"TOTAL VARIABLE  COSTS",null,null,null,{"$f":"SUM(G20:G62)+G63","v":19374.384836753026}]
[]
[null,null,"FIXED COSTS"]
[null,null,"17. Irrigation","acre",315.5,1,{"$f":"+F67*E67","v":315.5}]
[null,null,"18. Power Equipment ","acre",{"$f":"+Equipment!G$19","v":39.259420000000006},1,{"$f":"+F68*E68","v":39.259420000000006}]
[null,null,"18. Implements","acre",{"$f":"+Equipment!G$20","v":17.149999999999999},1,17.149999999999999]
[null,null,"19. Land Rent ","acre",{"$f":"+'Input prices'!B$239","v":187},1,187]
[null,null,"TOTAL FIXED COSTS",null,null,null,{"$f":"SUM(G67:G70)","v":558.90941999999995}]
[]
[null,null,"TOTAL COSTS",null,null,null,{"$f":"+G64+G71","v":19933.294256753026}]
[]
[]
[]
[]
[]
[]
[]
[]
[]
[]
[]
[]
[]
[]
[]
[]
[]
[]
[]
[]
[]
[]
[]
[]
[]
[]
[]
[]
[]
[]
[]
[]
[]
[]
[]
[]
[]
[]
[]
[]
[]
[]
[]
[]
[]
[]
[]
[]
[]
[]
[]
[]
[]
[]
[]
[]
[]
[]
[]
[]
[]
[]
[]
[]
[]
[]
[]
[]
[]
[]
[]
[]
[]
[]
[]
[]
[]
[]
[]
[]
[]
[]
[]
[]
[]
[]
[]
[]
[]
[]
[]
[]
[]
[]
[]
[]
[]
[]
[]
[]
[]
[]
[]
[]
[]
[]
[]
[]
[]
[]
[]
[]
[]
[]
[]
[]
[]
[]
[]
[]
[]
[]
[]
[]
[]
[]
[]
[]
[]
[]
[]
[]
[]
[]
[]
[]
[]
[]
[]
[]
[]
[]
[]
[]
[]
[]
[]
[]
[]
[]
[]
[]
[]
[]
[]
[]
[]
[]
[]
[]
[]
[]
[]
[]
[]
[]
[]
[]
[]
[]
[]
[]
[]
[]
[]
[]
[]
[]
[]
[]
[]
[]
[]
[]
[]
[]
[]
[]
[]
[]
[]
[]
[]
[]
[]
[]
[]
[]
[]
[]
[]
[]
[]
[]
[]
[]
[]
[]
[]
[]
[]
[]
[]
[]
[]
[]
[]
[]
[]
[]
[]
[]
[]
[]
[]
[]
[]
[]
[]
[]
[]
[]
[]
[]
[]
[]
[]
[]
[]
[]
[]
[]
[]
[]
[]
[]
[]
[]
[]
[]
[]
[]
[]
[]
[]
[]
[]
[]
[]
[]
[]
[]
[]
[]
[]
[]
[]
[]
[]
[]
[]
[]
[]
[]
[]
[]
[]
[]
[]
[]
[]
[]
[]
[]
[]
[]
[]
[]
[]
[]
[]
[]
[]
[]
[]
[]
[]
[]
[]
[]
[]
[]
[]
[]
[]
[]
[]
[]
[]
[]
[]
[]
[]
[]
[]
[]
[]
[]
[]
[]
[]
[]
[]
[]
[]
[]
[]
[]
[]
[]
[]
[]
[]
[]
[]
[]
[]
[]
[]
[]
[]
[]
[]
[]
[]
[]
[]
[]
[]
[]
[]
[]
[]
[]
[]
[]
[]
[]
[]
[]
[]
[]
[]
[]
[]
[]
[]
[]
[]
[]
[]
[]
[]
[]
[]
[]
[]
[]
[]
[]
[]
[]
[]
[]
[]
[]
[]
[]
[]
[]
[]
[]
[]
[]
[]
[]
[]
[]
[]
[]
[]
[]
[]
[]
[]
[]
[]
[]
[]
[]
[]
[]
[]
[]
[]
[]
[]
[]
[]
[]
[]
[]
[]
[]
[]
[]
[null,"2022 SAMPLE BUDGET FOR LARGE SCALE BELL PEPPER"]
[]
[null,null,"Pepper Variety:","Green (Aristotle)"]
[null,null,"Production practice:","Open field production + irrigated"]
[null,null,"Operation Size:","1 acre"]
[null,null,"Space between plants:","12 in"]
[null,null,"Space between rows:","5 ft"]
[null,null,"Yield: ",{"$f":"YieldVariety!$B$21","v":1348.8}]
[null,null,"Harvesting rate (boxes/hour)",15]
[null,null,"Grading and Packing rate (boxes/hour)",10]
[null,null,"Breakeven-price ($ per 1 1/9 bu box)",{"$f":"+G572/F516","v":14.778539632824012}]
[null,null,"Breakeven-yield (1 1/9 bu boxes per acre)",{"$f":"+G572/E516","v":1037.2919821380592}]
[]
[]
[null,null,"ITEM","UNIT","$/UNIT","QUANTITY","TOTAL"]
[null,null,"GROSS RETURNS"]
[null,null,"Bell Peppers","box (1 1/9 bu)",{"$f":"+'Price graph'!$E$30","v":19.216666666666654},{"$f":"+D$8","v":1348.8},{"$f":"+F516*E516","v":25919.439999999984}]
[]
[null,null,"VARIABLE COSTS"]
[null,null,"1. Pepper plants","plant",{"$f":"+AVERAGE('Input prices'!$E$3:$E$5)","v":0.17206666666666667},17424,{"$f":"+F519*E519","v":2998.0896000000002}]
[null,null,"2. Pre-plant: 10-10-10 Fertilizer","50 lb bag",{"$f":"+AVERAGE('Input prices'!$C$10:$C$14)","v":19.358499999999999},10,{"$f":"+F520*E520","v":193.58499999999998}]
[null,null,"2. Fertigation: Calcium Nitrate","50 lb bag",{"$f":"+AVERAGE('Input prices'!C$18:C$23)","v":24.951666666666668},2.7,67.369500000000002]
[null,null,"2. Fertigation: Potassium Nitrate","50 lb bag",{"$f":"+AVERAGE('Input prices'!C$27,'Input prices'!C$29)","v":35},4.5,157.5]
[null,null,"3. Plastic mulch","roll (4x4,000)",{"$f":"+AVERAGE('Input prices'!C$33:C$36)","v":166.99},2.1800000000000002,364.03820000000007]
[null,null,"4. T-tape (drip tape, 750')","roll (750')",{"$f":"+AVERAGE('Input prices'!C$40:C$41)","v":187.5},11.616,2178]
[null,null,"5. Water costs","ac-in",null,null,0]
[null,null,"6. Stakes","per 1400 stakes",{"$f":"+AVERAGE('Input prices'!C$46,'Input prices'!C$48,'Input prices'!C$49)","v":929.89333333333332},4.1485709999999996,{"$f":"+F526*E526","v":3857.7285157599995}]
[null,null,"7. Twine","per 6,300 ft tube",{"$f":"+AVERAGE('Input prices'!D$54:D$56)","v":8.0266666666666655},8.2971428571428572,{"$f":"+F527*E527","v":66.598399999999984}]
[null,null,"8. Fumigant"]
[null,null,"Telone C17","gal",20.3,37.200000000000003,{"$f":"+E529*F529","v":755.16000000000008}]
[null,null,"8. Fungicides"]
[null,null,"Kocide","lb",{"$f":"+AVERAGE('Input prices'!D$62, 'Input prices'!D$63, 'Input prices'!D$65)","v":10.675000000000002},15,{"$f":"+F531*E531","v":160.12500000000003}]
[null,null,"Manzate","lb",{"$f":"+AVERAGE('Input prices'!D$71             : 'Input prices'!D$77)","v":5.7916666666666661},14,{"$f":"+F532*E532","v":81.083333333333329}]
[null,null,"Quadris","fl oz",{"$f":"+AVERAGE('Input prices'!D$81:D$85)","v":1.5421093750000001},10,15.421093750000001]
[null,null,"Bravo","pt",{"$f":"+AVERAGE('Input prices'!D$89,'Input prices'!D$92,'Input prices'!D$94)","v":5.3241666666666667},1.5,7.9862500000000001]
[null,null,"Cabrio","oz",{"$f":"+AVERAGE('Input prices'!D$98:'Input prices'!D$103)","v":2.7222291666666667},10,27.222291666666667]
[null,null,"Priaxor","fl oz",{"$f":"+AVERAGE('Input prices'!D$107:D$109)","v":4.6614062499999998},6,27.9684375]
[null,null,"Aprovia Top","fl oz",{"$f":"+AVERAGE('Input prices'!D$114, 'Input prices'!D$115)","v":3.9763671875000002},24,95.432812500000011]
[null,null,"9. Insecticides"]
[null,null,"Mustang Maxx","fl oz",{"$f":"+AVERAGE('Input prices'!D$175:D$177)","v":1.5752604166666666},14.040000000000001,{"$f":"+F539*E539","v":22.116656250000002}]
[null,null,"Coragen","fl oz",{"$f":"+AVERAGE('Input prices'!D$181:D$185)","v":8.5665624999999999},2.75,{"$f":"+F540*E540","v":23.558046874999999}]
[null,null,"Movento","fl oz",{"$f":"+AVERAGE('Input prices'!D$190:D$192)","v":8.3010416666666664},4.5,37.354687499999997]
[null,null,"Orthene","lb",{"$f":"+AVERAGE('Input prices'!D$197,'Input prices'!D$198,'Input prices'!D$200,'Input prices'!D$202)","v":16.150833333333335},0.375,6.0565625000000001]
[null,null,"10. Herbicides"]
[null,null,"Poast ","pt",{"$f":"+AVERAGE('Input prices'!D$206:D$210)","v":14.6046},1.5,{"$f":"+F544*E544","v":21.9069}]
[null,null,"Sandea","oz",{"$f":"+AVERAGE('Input prices'!D$214:D$215)","v":34.122500000000002},0.75,{"$f":"+F545*E545","v":25.591875000000002}]
[null,null,"11. Hired Labor"]
[null,null,"Operator labor","hour",{"$f":"+'Input prices'!B$219","v":16.27},6.6899999999999995,{"$f":"+F547*E547","v":108.84629999999999}]
[null,null,"Transplant labor","hours",{"$f":"+'Input prices'!B$220","v":13.89},28.84,{"$f":"+E548*F548","v":400.58760000000001}]
[null,null,"Harvest labor","box",{"$f":"+'Input prices'!B$220/'Budget no PB'!D$9","v":0.92600000000000005},{"$f":"+F$17","v":1348.8},{"$f":"+F549*E549","v":1248.9888000000001}]
[null,null,"Grade/Packing labor","box",{"$f":"+'Input prices'!B$220/'Budget no PB'!D$10","v":1.389},{"$f":"+F$17","v":1348.8},{"$f":"+F550*E550","v":1873.4831999999999}]
[null,null,"Plastic removal","hour",{"$f":"+'Input prices'!B$220","v":13.89},12,{"$f":"+F551*E551","v":166.68}]
[null,null,"Plastic disposal","hour",{"$f":"+'Input prices'!B$220","v":13.89},2,{"$f":"+E552*F552","v":27.78}]
[null,null,"12. Other Marketing and Harvesting Costs"]
[null,null,"Cardboard boxes","box",{"$f":"+AVERAGE('Input prices'!D$224:D725)","v":2.8314285714285714},{"$f":"+F$17","v":1348.8},{"$f":"+F554*E554","v":3819.0308571428568}]
[null,null,"13. Diesel Fuel"]
[null,null,"Tractors","gal",{"$f":"+'Input prices'!B$230","v":4.99},{"$f":"+Equipment!G$16","v":21.492985971943888},{"$f":"+F556*E556","v":107.25}]
[null,null,"14. Repairs and Maintenance"]
[null,null,"Tractor 2WD 75 HP","acre",{"$f":"+Equipment!G$17","v":7.9022399999999999},1,{"$f":"+F558*E558","v":7.9022399999999999}]
[null,null,"Implements","acre",{"$f":"+Equipment!G$18","v":6.6199999999999992},1,{"$f":"+F559*E559","v":6.6199999999999992}]
[null,null,"15. Plastic Mulch Disposal"]
[null,null,"Plastic mulch disposal","fee per ton",{"$f":"+'Input prices'!B$234","v":35},0.14000000000000001,{"$f":"+F561*E561","v":4.9000000000000004}]
[null,null,"16. Operating interest","Interest rate ",4.3499999999999997E-2,null,{"$f":"+SUM(G519:G561)*0.5*E562","v":412.42267697516837}]
[null,null,"TOTAL VARIABLE  COSTS",null,null,null,{"$f":"SUM(G519:G561)+G562","v":19374.384836753026}]
[]
[null,null,"FIXED COSTS"]
[null,null,"17. Irrigation","acre",315.5,1,{"$f":"+F566*E566","v":315.5}]
[null,null,"18. Power Equipment ","acre",{"$f":"+Equipment!G$19","v":39.259420000000006},1,{"$f":"+F567*E567","v":39.259420000000006}]
[null,null,"18. Implements","acre",{"$f":"+Equipment!G$20","v":17.149999999999999},1,17.149999999999999]
[null,null,"19. Land Rent ","acre",{"$f":"+'Input prices'!B$239","v":187},1,187]
[null,null,"TOTAL FIXED COSTS",null,null,null,{"$f":"SUM(G566:G569)","v":558.90941999999995}]
[]
[null,null,"TOTAL COSTS",null,null,null,{"$f":"+G563+G570","v":19933.294256753026}]
[]
[null,null,"TOTAL COSTS",null,null,null,{"$f":"+G565+G572","v":19933.294256753026}]

{"sheet":"Budget PB","index":10,"n_rows":580,"n_cols":9,"rows_kept":580,"cut":false,"hidden":false,"merged":[[15,2,15,6],[0,1,0,7],[498,1,498,7],[513,2,513,6]]}
[null,"2022 SAMPLE BUDGET FOR LARGE SCALE BELL PEPPER"]
[]
[null,null,"Pepper Variety:","Green (Aristotle)"]
[null,null,"Production practice:","Open field production + irrigated"]
[null,null,"Operation Size:","1 acre"]
[null,null,"Space between plants:","12 in"]
[null,null,"Space between rows:","5 ft",null,null,null,null,0]
[null,null,"Yield (box (1 1/9 bu) per acre): ",{"$f":"+YieldVariety!B$21","v":1348.8},null,null,null,null,0.1]
[null,null,"Assumption related to yield losses due to Phytophthora Blight",0.1,null,null,null,null,0.2]
[null,null,"Harvesting rate (boxes/hour)",15,null,null,null,null,0.3]
[null,null,"Grading and Packing rate (boxes/hour)",10,null,null,null,null,0.4]
[null,null,"Breakeven-price ($ per 1 1/9 bu box)",{"$f":"+G$82/F$19","v":16.233110605844104},null,null,null,null,0.5]
[null,null,"Breakeven-yield (1 1/9 bu boxes per acre)",{"$f":"+G$82/E$19","v":1025.4482719850625}]
[null,null,"Net returns Difference PB vs. No PB scenarios",{"$f":"+(G19-G82)-('Budget no PB'!G17-'Budget no PB'!G73)","v":-2364.3473698932467}]
[]
[]
[null,null,"ITEM","UNIT","$/UNIT","QUANTITY","TOTAL"]
[null,null,"GROSS RETURNS"]
[null,null,"Bell Peppers","box (1 1/9 bu)",{"$f":"+'Price graph'!E$30","v":19.216666666666654},{"$f":"D$8*(1-D$9)","v":1213.92},{"$f":"+F19*E19","v":23327.495999999985}]
[]
[null,null,"VARIABLE COSTS"]
[null,null,"1. Pepper plants","plant",{"$f":"+'Budget no PB'!$E$20","v":0.17206666666666667},17424,{"$f":"+F22*E22","v":2998.0896000000002}]
[null,null,"2. Pre-plant: 10-10-10 Fertilizer","50 lb bag",{"$f":"+'Budget no PB'!E$21","v":19.358499999999999},10,{"$f":"+F23*E23","v":193.58499999999998}]
[null,null,"2. Fertigation: Calcium Nitrate","50 lb bag",{"$f":"+'Budget no PB'!E$22","v":24.951666666666668},2.7,67.369500000000002]
[null,null,"2. Fertigation: Potassium Nitrate","50 lb bag",{"$f":"+'Budget no PB'!E$23","v":35},4.5,157.5]
[null,null,"3. Plastic mulch","roll (4x4,000)",{"$f":"+'Budget no PB'!E$24","v":166.99},2.1800000000000002,364.03820000000007]
[null,null,"4. T-tape (drip tape, 750')","roll (750')",{"$f":"+'Budget no PB'!E$25","v":187.5},11.616,2178]
[null,null,"5. Water costs","ac-in",null,null,0]
[null,null,"6. Stakes","per 1400 stakes",{"$f":"+'Budget no PB'!E$27","v":929.89333333333332},4.1485709999999996,{"$f":"+F29*E29","v":3857.7285157599995}]
[null,null,"7. Twine","per 6,300 ft tube",{"$f":"+'Budget no PB'!E$28","v":8.0266666666666655},8.2971428571428572,{"$f":"+F30*E30","v":66.598399999999984}]
[null,null,"8. Fumigant"]
[null,null,"Telone C17","gal",{"$f":"+'Budget no PB'!E$30","v":20.3},37.200000000000003,{"$f":"+F32*E32","v":755.16000000000008}]
[null,null,"8. Fungicides"]
[null,null,"Kocide","lb",{"$f":"+'Budget no PB'!E$32","v":10.675000000000002},15,{"$f":"+F34*E34","v":160.12500000000003}]
[null,null,"Manzate","lb",{"$f":"+'Budget no PB'!E$33","v":5.7916666666666661},14,{"$f":"+F35*E35","v":81.083333333333329}]
[null,null,"Quadris","fl oz",{"$f":"+'Budget no PB'!E$34","v":1.5421093750000001},10,15.421093750000001]
[null,null,"Bravo","pt",{"$f":"+'Budget no PB'!E$35","v":5.3241666666666667},1.5,7.9862500000000001]
[null,null,"Cabrio","oz",{"$f":"+'Budget no PB'!E$36","v":2.7222291666666667},10,27.222291666666667]
[null,null,"Priaxor","fl oz",{"$f":"+'Budget no PB'!E$37","v":4.6614062499999998},6,27.9684375]
[null,null,"Aprovia Top","fl oz",{"$f":"+'Budget no PB'!E$38","v":3.9763671875000002},24,95.432812500000011]
[null,null,"Orondis Gold 200","fl oz",{"$f":"+AVERAGE('Input prices'!D$120)","v":2.34375},9.6,22.5]
[null,null,"Ridomil Gold SL ","pt",{"$f":"+AVERAGE('Input prices'!D$126,'Input prices'!D$127,'Input prices'!D$128, 'Input prices'!D$130,'Input prices'!D$131,'Input prices'!D$132)","v":117.10833333333333},1,117.10833333333333]
[null,null,"Ranman","fl oz",{"$f":"+AVERAGE('Input prices'!D$136:D$142)","v":8.1026227678571434},5.5,44.564425223214286]
[null,null,"Revus","fl oz",{"$f":"+AVERAGE('Input prices'!D$146,'Input prices'!D$147,'Input prices'!D$149)","v":3.4893229166666671},16,55.829166666666673]
[null,null,"Presidio","fl oz",{"$f":"+AVERAGE('Input prices'!D$153:D$157)","v":10.43425},8,83.474000000000004]
[null,null,"Zampro","fl oz",{"$f":"+AVERAGE('Input prices'!D$161:D$163)","v":2.8092857142857142},14,39.33]
[null,null,"Orondis Ultra","fl oz",6.2203125000000004,16,99.525000000000006]
[null,null,"9. Insecticides"]
[null,null,"Mustang Maxx","fl oz",{"$f":"+'Budget no PB'!E$40","v":1.5752604166666666},14.040000000000001,{"$f":"+F49*E49","v":22.116656250000002}]
[null,null,"Coragen","fl oz",{"$f":"+'Budget no PB'!E$41","v":8.5665624999999999},2.75,{"$f":"+F50*E50","v":23.558046874999999}]
[null,null,"Movento","fl oz",{"$f":"+'Budget no PB'!E$42","v":8.3010416666666664},4.5,37.354687499999997]
[null,null,"Orthene","lb",{"$f":"+'Budget no PB'!E$43","v":16.150833333333335},0.375,6.0565625000000001]
[null,null,"10. Herbicides"]
[null,null,"Poast ","pt",{"$f":"+'Budget no PB'!E$45","v":14.6046},1.5,{"$f":"+F54*E54","v":21.9069}]
[null,null,"Sandea","oz",{"$f":"+'Budget no PB'!E$46","v":34.122500000000002},0.75,{"$f":"+F55*E55","v":25.591875000000002}]
[null,null,"11. Hired Labor"]
[null,null,"Operator labor","hour",{"$f":"+'Input prices'!B$219","v":16.27},6.6,{"$f":"+F57*E57","v":107.38199999999999}]
[null,null,"Transplant labor","hours",{"$f":"+'Input prices'!B$220","v":13.89},28.84,{"$f":"+F58*E58","v":400.58760000000001}]
[null,null,"Harvest labor","box",{"$f":"+'Input prices'!B$220/'Budget PB'!D$10","v":0.92600000000000005},{"$f":"+F$19","v":1213.92},{"$f":"+E59*F59","v":1124.0899200000001}]
[null,null,"Grade/Packing labor","box",{"$f":"+'Input prices'!B$220/'Budget PB'!D$11","v":1.389},{"$f":"+F$19","v":1213.92},{"$f":"+E60*F60","v":1686.1348800000001}]
[null,null,"Plastic removal","hour",{"$f":"+'Input prices'!B$220","v":13.89},12,{"$f":"+F61*E61","v":166.68}]
[null,null,"Plastic disposal","hour",{"$f":"+'Input prices'!B$220","v":13.89},2,27.78]
[null,null,"12. Other Marketing and Harvesting Costs"]
[null,null,"Cardboard boxes","box",{"$f":"+AVERAGE('Input prices'!D$224:D$226)","v":2.8314285714285714},{"$f":"+F$19","v":1213.92},{"$f":"+F64*E64","v":3437.1277714285716}]
[null,null,"13. Diesel Fuel"]
[null,null,"Tractors","gal",{"$f":"+'Input prices'!B$230","v":4.99},{"$f":"+Equipment!F$16","v":22.745490981963925},{"$f":"+F66*E66","v":113.5}]
[null,null,"14. Repairs and Maintenance"]
[null,null,"Tractor 2WD 75 HP","acre",{"$f":"+Equipment!F$17","v":8.3022399999999994},1,{"$f":"+F68*E68","v":8.3022399999999994}]
[null,null,"Implements","acre",{"$f":"+Equipment!F$18","v":7.37},1,{"$f":"+F69*E69","v":7.37}]
[null,null,"15. Plastic Mulch Disposal"]
[null,null,"Plastic mulch disposal","fee per ton",{"$f":"+'Input prices'!B$234","v":35},0.14000000000000001,{"$f":"+F71*E71","v":4.9000000000000004}]
[null,null,"16. Operating interest","Interest rate ",4.3499999999999997E-2,null,{"$f":"SUM(G22:G71)*0.5*E72","v":407.50970735948755}]
[null,null,"TOTAL VARIABLE  COSTS",null,null,null,{"$f":"SUM(G22:G71)+G72","v":19143.588206646273}]
[]
[null,null,"FIXED COSTS"]
[null,null,"17. Irrigation","acre",315.5,1,{"$f":"+F76*E76","v":315.5}]
[null,null,"18. Power Equipment ","acre",{"$f":"+Equipment!F$19","v":41.60942},1,{"$f":"+F77*E77","v":41.60942}]
[null,null,"18. Implements","acre",{"$f":"+Equipment!F$20","v":18},1,{"$f":"+F78*E78","v":18}]
[null,null,"19. Land Rent ","acre",{"$f":"+'Input prices'!B$239","v":187},1,187]
[null,null,"TOTAL FIXED COSTS",null,null,null,{"$f":"SUM(G76:G79)","v":562.10942}]
[]
[null,null,"TOTAL COSTS",null,null,null,{"$f":"+G73+G80","v":19705.697626646273}]
[]
[]
[]
[]
[]
[]
[]
[]
[]
[]
[]
[]
[]
[]
[]
[]
[]
[]
[]
[]
[]
[]
[]
[]
[]
[]
[]
[]
[]
[]
[]
[]
[]
[]
[]
[]
[]
[]
[]
[]
[]
[]
[]
[]
[]
[]
[]
[]
[]
[]
[]
[]
[]
[]
[]
[]
[]
[]
[]
[]
[]
[]
[]
[]
[]
[]
[]
[]
[]
[]
[]
[]
[]
[]
[]
[]
[]
[]
[]
[]
[]
[]
[]
[]
[]
[]
[]
[]
[]
[]
[]
[]
[]
[]
[]
[]
[]
[]
[]
[]
[]
[]
[]
[]
[]
[]
[]
[]
[]
[]
[]
[]
[]
[]
[]
[]
[]
[]
[]
[]
[]
[]
[]
[]
[]
[]
[]
[]
[]
[]
[]
[]
[]
[]
[]
[]
[]
[]
[]
[]
[]
[]
[]
[]
[]
[]
[]
[]
[]
[]
[]
[]
[]
[]
[]
[]
[]
[]
[]
[]
[]
[]
[]
[]
[]
[]
[]
[]
[]
[]
[]
[]
[]
[]
[]
[]
[]
[]
[]
[]
[]
[]
[]
[]
[]
[]
[]
[]
[]
[]
[]
[]
[]
[]
[]
[]
[]
[]
[]
[]
[]
[]
[]
[]
[]
[]
[]
[]
[]
[]
[]
[]
[]
[]
[]
[]
[]
[]
[]
[]
[]
[]
[]
[]
[]
[]
[]
[]
[]
[]
[]
[]
[]
[]
[]
[]
[]
[]
[]
[]
[]
[]
[]
[]
[]
[]
[]
[]
[]
[]
[]
[]
[]
[]
[]
[]
[]
[]
[]
[]
[]
[]
[]
[]
[]
[]
[]
[]
[]
[]
[]
[]
[]
[]
[]
[]
[]
[]
[]
[]
[]
[]
[]
[]
[]
[]
[]
[]
[]
[]
[]
[]
[]
[]
[]
[]
[]
[]
[]
[]
[]
[]
[]
[]
[]
[]
[]
[]
[]
[]
[]
[]
[]
[]
[]
[]
[]
[]
[]
[]
[]
[]
[]
[]
[]
[]
[]
[]
[]
[]
[]
[]
[]
[]
[]
[]
[]
[]
[]
[]
[]
[]
[]
[]
[]
[]
[]
[]
[]
[]
[]
[]
[]
[]
[]
[]
[]
[]
[]
[]
[]
[]
[]
[]
[]
[]
[]
[]
[]
[]
[]
[]
[]
[]
[]
[]
[]
[]
[]
[]
[]
[]
[]
[]
[]
[]
[]
[]
[]
[]
[]
[]
[]
[]
[]
[]
[]
[]
[]
[]
[]
[]
[]
[]
[]
[]
[]
[]
[]
[]
[]
[]
[]
[]
[]
[]
[null,"2022 SAMPLE BUDGET FOR LARGE SCALE BELL PEPPER"]
[]
[null,null,"Pepper Variety:","Green (Aristotle)"]
[null,null,"Production practice:","Open field production + irrigated"]
[null,null,"Operation Size:","1 acre"]
[null,null,"Space between plants:","12 in"]
[null,null,"Space between rows:","5 ft"]
[null,null,"Yield:",{"$f":"+YieldVariety!B$21","v":1348.8}]
[null,null,"Assumption related to yield losses due to Phytophthora Blight",0.1]
[null,null,"Harvesting rate (boxes/hour)",15]
[null,null,"Grading and Packing rate (boxes/hour)",10]
[null,null,"Breakeven-price ($ per 1 1/9 bu box)",{"$f":"+G$82/F$19","v":16.233110605844104}]
[null,null,"Breakeven-yield (1 1/9 bu boxes per acre)",{"$f":"+G$82/E$19","v":1025.4482719850625}]
[null,null,"Net returns Difference PB vs. No PB scenarios",{"$f":"+(G517-G580)-('Budget no PB'!G517-'Budget no PB'!G573)","v":3621.7983733537112}]
[]
[]
[null,null,"ITEM","UNIT","$/UNIT","QUANTITY","TOTAL"]
[null,null,"GROSS RETURNS"]
[null,null,"Bell Peppers","box (1 1/9 bu)",{"$f":"+'Price graph'!E$30","v":19.216666666666654},{"$f":"+'Budget no PB'!F$17*(1-D$9)","v":1213.92},{"$f":"+F517*E517","v":23327.495999999985}]
[]
[null,null,"VARIABLE COSTS"]
[null,null,"1. Pepper plants","plant",{"$f":"+'Budget no PB'!$E$20","v":0.17206666666666667},17424,{"$f":"+F520*E520","v":2998.0896000000002}]
[null,null,"2. Pre-plant: 10-10-10 Fertilizer","50 lb bag",{"$f":"+'Budget no PB'!E$21","v":19.358499999999999},10,{"$f":"+F521*E521","v":193.58499999999998}]
[null,null,"2. Fertigation: Calcium Nitrate","50 lb bag",{"$f":"+'Budget no PB'!E$22","v":24.951666666666668},2.7,67.369500000000002]
[null,null,"2. Fertigation: Potassium Nitrate","50 lb bag",{"$f":"+'Budget no PB'!E$23","v":35},4.5,157.5]
[null,null,"3. Plastic mulch","roll (4x4,000)",{"$f":"+'Budget no PB'!E$24","v":166.99},2.1800000000000002,364.03820000000007]
[null,null,"4. T-tape (drip tape, 750')","roll (750')",{"$f":"+'Budget no PB'!E$25","v":187.5},11.616,2178]
[null,null,"5. Water costs","ac-in",null,null,0]
[null,null,"6. Stakes","per 1400 stakes",{"$f":"+'Budget no PB'!E$27","v":929.89333333333332},4.1485709999999996,{"$f":"+F527*E527","v":3857.7285157599995}]
[null,null,"7. Twine","per 6,300 ft tube",{"$f":"+'Budget no PB'!E$28","v":8.0266666666666655},8.2971428571428572,{"$f":"+F528*E528","v":66.598399999999984}]
[null,null,"8. Fumigant"]
[null,null,"Telone C17","gal",{"$f":"+'Budget no PB'!E$30","v":20.3},37.200000000000003,{"$f":"+F530*E530","v":755.16000000000008}]
[null,null,"8. Fungicides"]
[null,null,"Kocide","lb",{"$f":"+'Budget no PB'!E$32","v":10.675000000000002},15,{"$f":"+F532*E532","v":160.12500000000003}]
[null,null,"Manzate","lb",{"$f":"+'Budget no PB'!E$33","v":5.7916666666666661},14,{"$f":"+F533*E533","v":81.083333333333329}]
[null,null,"Quadris","fl oz",{"$f":"+'Budget no PB'!E$34","v":1.5421093750000001},10,15.421093750000001]
[null,null,"Bravo","pt",{"$f":"+'Budget no PB'!E$35","v":5.3241666666666667},1.5,7.9862500000000001]
[null,null,"Cabrio","oz",{"$f":"+'Budget no PB'!E$36","v":2.7222291666666667},10,27.222291666666667]
[null,null,"Priaxor","fl oz",{"$f":"+'Budget no PB'!E$37","v":4.6614062499999998},6,27.9684375]
[null,null,"Aprovia Top","fl oz",{"$f":"+'Budget no PB'!E$38","v":3.9763671875000002},24,95.432812500000011]
[null,null,"Orondis Gold 200","fl oz",{"$f":"+AVERAGE('Input prices'!D$120)","v":2.34375},9.6,22.5]
[null,null,"Ridomil Gold SL ","pt",{"$f":"+AVERAGE('Input prices'!D$126,'Input prices'!D$127,'Input prices'!D$128, 'Input prices'!D$130,'Input prices'!D$131,'Input prices'!D$132)","v":117.10833333333333},1,117.10833333333333]
[null,null,"Ranman","fl oz",{"$f":"+AVERAGE('Input prices'!D$136:D$142)","v":8.1026227678571434},5.5,44.564425223214286]
[null,null,"Revus","fl oz",{"$f":"+AVERAGE('Input prices'!D$146,'Input prices'!D$147,'Input prices'!D$149)","v":3.4893229166666671},16,55.829166666666673]
[null,null,"Presidio","fl oz",{"$f":"+AVERAGE('Input prices'!D$153:D$157)","v":10.43425},8,83.474000000000004]
[null,null,"Zampro","fl oz",{"$f":"+AVERAGE('Input prices'!D$161:D$163)","v":2.8092857142857142},14,39.33]
[null,null,"Orondis Ultra","fl oz",6.2203125000000004,16,99.525000000000006]
[null,null,"9. Insecticides"]
[null,null,"Mustang Maxx","fl oz",{"$f":"+'Budget no PB'!E$40","v":1.5752604166666666},14.040000000000001,{"$f":"+F547*E547","v":22.116656250000002}]
[null,null,"Coragen","fl oz",{"$f":"+'Budget no PB'!E$41","v":8.5665624999999999},2.75,{"$f":"+F548*E548","v":23.558046874999999}]
[null,null,"Movento","fl oz",{"$f":"+'Budget no PB'!E$42","v":8.3010416666666664},4.5,37.354687499999997]
[null,null,"Orthene","lb",{"$f":"+'Budget no PB'!E$43","v":16.150833333333335},0.375,6.0565625000000001]
[null,null,"10. Herbicides"]
[null,null,"Poast ","pt",{"$f":"+'Budget no PB'!E$45","v":14.6046},1.5,{"$f":"+F552*E552","v":21.9069}]
[null,null,"Sandea","oz",{"$f":"+'Budget no PB'!E$46","v":34.122500000000002},0.75,{"$f":"+F553*E553","v":25.591875000000002}]
[null,null,"11. Hired Labor"]
[null,null,"Operator labor","hour",{"$f":"+'Input prices'!B$219","v":16.27},6.6,{"$f":"+F555*E555","v":107.38199999999999}]
[null,null,"Transplant labor","hours",{"$f":"+'Input prices'!B$220","v":13.89},28.84,{"$f":"+F556*E556","v":400.58760000000001}]
[null,null,"Harvest labor","box",{"$f":"+'Input prices'!B$220/'Budget PB'!D$10","v":0.92600000000000005},{"$f":"+F$19","v":1213.92},{"$f":"+E557*F557","v":1124.0899200000001}]
[null,null,"Grade/Packing labor","box",{"$f":"+'Input prices'!B$220/'Budget PB'!D$11","v":1.389},{"$f":"+F$19","v":1213.92},{"$f":"+E558*F558","v":1686.1348800000001}]
[null,null,"Plastic removal","hour",{"$f":"+'Input prices'!B$220","v":13.89},12,{"$f":"+F559*E559","v":166.68}]
[null,null,"Plastic disposal","hour",{"$f":"+'Input prices'!B$220","v":13.89},2,27.78]
[null,null,"12. Other Marketing and Harvesting Costs"]
[null,null,"Cardboard boxes","box",{"$f":"+AVERAGE('Input prices'!D$224:D$226)","v":2.8314285714285714},{"$f":"+F$19","v":1213.92},{"$f":"+F562*E562","v":3437.1277714285716}]
[null,null,"13. Diesel Fuel"]
[null,null,"Tractors","gal",{"$f":"+'Input prices'!B$230","v":4.99},{"$f":"+Equipment!F$16","v":22.745490981963925},{"$f":"+F564*E564","v":113.5}]
[null,null,"14. Repairs and Maintenance"]
[null,null,"Tractor 2WD 75 HP","acre",{"$f":"+Equipment!F$17","v":8.3022399999999994},1,{"$f":"+F566*E566","v":8.3022399999999994}]
[null,null,"Implements","acre",{"$f":"+Equipment!F$18","v":7.37},1,{"$f":"+F567*E567","v":7.37}]
[null,null,"15. Plastic Mulch Disposal"]
[null,null,"Plastic mulch disposal","fee per ton",{"$f":"+'Input prices'!B$234","v":35},0.14000000000000001,{"$f":"+F569*E569","v":4.9000000000000004}]
[null,null,"16. Operating interest","Interest rate ",4.3499999999999997E-2,null,{"$f":"SUM(G520:G569)*0.5*E570","v":407.50970735948755}]
[null,null,"TOTAL VARIABLE  COSTS",null,null,null,{"$f":"SUM(G520:G569)+G570","v":19143.588206646273}]
[]
[null,null,"FIXED COSTS"]
[null,null,"17. Irrigation","acre",315.5,1,{"$f":"+F574*E574","v":315.5}]
[null,null,"18. Power Equipment ","acre",{"$f":"+Equipment!F$19","v":41.60942},1,{"$f":"+F575*E575","v":41.60942}]
[null,null,"18. Implements","acre",{"$f":"+Equipment!F$20","v":18},1,{"$f":"+F576*E576","v":18}]
[null,null,"19. Land Rent ","acre",{"$f":"+'Input prices'!B$239","v":187},1,187]
[null,null,"TOTAL FIXED COSTS",null,null,null,{"$f":"SUM(G574:G577)","v":562.10942}]
[]
[null,null,"TOTAL COSTS",null,null,null,{"$f":"+G571+G578","v":19705.697626646273}]

{"sheet":"Input prices","index":11,"n_rows":239,"n_cols":7,"rows_kept":239,"cut":false,"hidden":true,"merged":[[217,2,217,4],[218,2,218,4],[219,2,219,4]]}
["Pepper Plants (Aristotle or similar green pepper varieties)"]
["Suppliers","Variety","Unit (No. plants)","Price","Price per plant","Minmum order","Website"]
["Evansvegetableplants","Same price regardless of variety",1000,195,{"$f":"+D3/C3","v":0.19500000000000001},300,"https://www.evansvegetableplants.com/store"]
["Aaron's Creek Farms Wholesale Plant Nursery",null,500,{"$f":"+E4*C4","v":105.6},0.2112,280,"http://www.acfplugs.com/%5Cfiles%5CPlug%20Catalog.pdf"]
["First Step Farm of WNC, Inc. Donations",null,1000,110,{"$f":"+D5/C5","v":0.11},1000,"https://firststepfarmwnc.org/Men_s_Facility.html"]
[]
["FERTILIZERS"]
["Plant Starter (10-10-10)"]
["Suppliers","Unit (lb)","Price","Price per lb","Minmum order (lb)","Website"]
["Ag Central Farmer Coop Maryville ",40,{"$f":"+(15.49*B11)/B10","v":19.362500000000001},{"$f":"+C10/B10","v":0.48406250000000001},"40 lb","https://www.ourcoop.com/locations/agcentral-maryville"]
["Knox Farmer Coop",50,18.989999999999998,{"$f":"+C11/B11","v":0.37979999999999997},"50 lb","https://www.ourcoop.com/locations/knox-farmers-knoxville"]
["Jefferson County Co-op 10-10-10",50,20.5,{"$f":"+C12/B12","v":0.41}]
["Grainger County Co-op 10-10-10",50,17.989999999999998,{"$f":"+C13/B13","v":0.35979999999999995}]
["Seed World ",50,19.95,{"$f":"+C14/B14","v":0.39899999999999997},"50 lb ","https://www.seedworldusa.com/products/growers-all-purpose-10-10-10-fertilizer-50-lbs "]
[]
["Calcium Nitrate"]
["Suppliers","Unit (lb)","Price","Price per lb","Minmum order (lb)","Website"]
["Ag Central Farmer Coop Maryville ",50,21.25,{"$f":"+C18/B18","v":0.42499999999999999},"50 lb"]
["Jefferson County Co-op",50,25,{"$f":"C19/B19","v":0.5}]
["Grainger County Co-op",50,26,{"$f":"C20/B20","v":0.52}]
["Irrigation Mart",50,23.96,{"$f":"+C21/B21","v":0.47920000000000001},"50 lb","https://www.irrigation-mart.com/items/FERT-CANITRATE"]
["Nolts Produce Supplies",50,24.5,{"$f":"+C22/B22","v":0.49},"50 lb"]
["Ag Care",50,29,{"$f":"+C23/B23","v":0.57999999999999996},"50 lb ","https://www.agcareproducts.com/products/calcium-nitrate-tropicote-notgg?_pos=1&_sid=da78aed0a&_ss=r "]
[]
["Potassium Nitrate"]
["Suppliers","Unit (lb)","Price","Price per lb","Minmum order (lb)","Website"]
["Jefferson County Co-op",50,37.5,{"$f":"C27/B27","v":0.75}]
["Grainger County Co-op",50,53,{"$f":"C28/B28","v":1.06}]
["Ag Central Farmer Coop Maryville ",50,32.5,{"$f":"+C29/B29","v":0.65},"50 lb"]
[]
["BLACK PLASTIC"]
["Suppliers","Unit (roll 4000 feet by 4 feet)","Price","Price per 100 ft","Minimum order ","Website"]
["Rainflo irrigation",1,132,{"$f":"+(C33*100)/4000","v":3.3},"4 x 4000 - price vary by roll size","https://www.rainfloirrigation.com/growing-supplies/plastic-mulch/embossed-plastic"]
["Berry Hill Irrigation",1,154,{"$f":"+(C34*100)/4000","v":3.85},"4 x 600 - price vary by role size","http://www.johnnyseeds.com/p-9198-black-mulch-4-x-4000-embossed.aspx"]
["Grainger County Co-op",1,200,{"$f":"+(C35*100)/4000","v":5}]
["Irrigation Mart",1,181.96,{"$f":"+(C36*100)/4000","v":4.5490000000000004},"4 x 2400 - price vary by role size","https://www.irrigation-mart.com/categories/PLASTICULTURE-SUPPLIES/MULCH-FILM/BLACK-NON-DEGRADABLE-MULCH-FILM"]
[]
["DRIP LINE","T-tape model #508-08-340 "]
["Suppliers","Unit (roll)","Price","Price per foot","Website"]
["Rain flo",750,190,0.25333333333333335,"https://www.rainfloirrigation.com/irrigation/drip-tape/t-tape "]
["Grainger County Co-op",750,185,{"$f":"185/750","v":0.24666666666666667}]
[]
[]
["WOOD STAKES"]
["Suppliers","Unit (stakes 5 ft)","Price","Price per stake","Website"]
["Nolts produce supplies",1400,{"$f":"1400*0.87","v":1218},{"$f":"+C46/B46","v":0.87},"https://www.noltsproducesupplies.net/NPScatalog.pdf"]
["Ag Care",1,1.25,{"$f":"+C47/B47","v":1.25}]
["Morgan County Seeds",1400,940,{"$f":"+C48/B48","v":0.67142857142857137},"https://www.morgancountyseeds.com/product/60oak-tomato-stakes/"]
["Irrigation Mart",1400,{"$f":"56*11.28","v":631.67999999999995},{"$f":"+C49/B49","v":0.45119999999999999},"https://www.irrigation-mart.com/item-search?q=stakes"]
["Knoxville/Maryville 60\" to 72 \")",1,1.99,{"$f":"+C50/B50","v":1.99}]
[]
["TWINE/STRING"]
["Suppliers","Unit (box/tube)","Price","Price per box/tube","Website"]
["Knox/Marville","3 lb box (6300 ft)",8.99,{"$f":"+C54","v":8.99}]
["Ag Care","3 lb box (6300 ft)",7.59,{"$f":"+C55","v":7.59},"https://www.agcareproducts.com/products/3-6300-box-tomato-twine?_pos=3&_sid=da73d3935&_ss=r "]
["Nolts produce supplies","3 lb box (6300 ft)",7.5,7.5,"https://www.noltsproducesupplies.net/NPScatalog.pdf "]
[]
["FUNGICIDES"]
[]
["Kocide"]
["Suppliers","Unit (lb)","Price","Price per lb","Website"]
["Maryville",10,101.9,{"$f":"+C62/B62","v":10.190000000000001}]
["Knoxville coop",4,42.39,10.5975]
["Grainger County Co-op",4,25,6.25]
["Keystone Pest Solutio",4,44.95,11.237500000000001,"https://www.keystonepestsolutions.com/kocide-3000-fungicide-4-pounds-387"]
["Martin's produce supplies",4,32.729999999999997,8.1824999999999992,"https://martinsproducesupplies.com/product/kocide-3000-fungicide/"]
["Ag Care",4,32,8,"https://www.agcareproducts.com/products/kocide-3000-o-4?_pos=2&_sid=edbe67230&_ss=r"]
[]
["Manzate"]
["Suppliers","Unit (lb)","Price","Price per lb","Website"]
["Maryville",6,35.799999999999997,{"$f":"+C71/B71","v":5.9666666666666659}]
["Grainger County Co-op",6,35,5.833333333333333]
["Grainger County Co-op",30,140,{"$f":"+C73/B73","v":4.666666666666667}]
["Keystone Pest Solution",6,34.950000000000003,5.8250000000000002,"https://www.keystonepestsolutions.com/manzate-pro-stick-mancozeb-fungicide-6-pounds-144"]
["Martin's produce supplies",6,24.55,4.0916666666666668,"https://martinsproducesupplies.com/product/manzate-pro-stick-fungicide/"]
["Militello Farm Supply Inc",6,45.95,7.6583333333333341]
["Ag Care",6,39,6.5,"https://www.agcareproducts.com/products/manzate-6-bags?_pos=2&_sid=3ddd6bb78&_ss=r"]
[]
["Quadris"]
["Suppliers","Unit (gal, fl oz)","Price","Price per fl oz","Website"]
["Jefferson County Co-op","2.5gal",430,{"$f":"+C81/(128*2.5)","v":1.34375}]
["Grainger County Co-op (Tetrobrand)","2.5 gal",540,{"$f":"+C82/(128*2.5)","v":1.6875}]
["Keystone Pest Solution","gal",224.95,{"$f":"+C83/128","v":1.7574218749999999},"https://www.keystonepestsolutions.com/quadris-fungicide-1-gallon-same-ai-as-acadia-2sc-212"]
["Ag Care","gal",199,{"$f":"+C84/128","v":1.5546875},"https://www.agcareproducts.com/products/quadris-1-gal?_pos=1&_sid=077e24b05&_ss=r"]
["Martin's produce supplies","gal",175,1.3671875,"https://martinsproducesupplies.com/product/quadris-fungicide-1-gal/"]
[]
["Bravo"]
["Suppliers","Unit","Price","Price per pt","Website"]
["Maryville","2.5 gal",105.5,{"$f":"+C89/20","v":5.2750000000000004}]
["Jefferson County Co-op",2.5,140,{"$f":"+C90/20","v":7}]
["Grainger County Co-op",2.5,250,12.5]
["Keystone pest solution","2.5 gal",118.95,{"$f":"+C92/20","v":5.9474999999999998},"https://www.keystonepestsolutions.com/search/results?search_in_description=1&site_url_advance_search=https%3A%2F%2Fwww.keystonepestsolutions.com&keyword=bravo"]
["Martin's produce supplies","2.5 gal",83.52,4.1760000000000002,"https://martinsproducesupplies.com/product/bravo-weatherstick-fungicide/"]
["Ag Care","2.5 gal",95,4.75,"https://www.agcareproducts.com/products/bravo-2-5-chlorothalonil?_pos=2&_sid=a333562c1&_ss=r"]
[]
["Cabrio"]
["Suppliers","Unit (lb, oz)","Price","Price per oz","Website"]
["Knoxville","5 lb",201.7,{"$f":"+C98/80","v":2.5212499999999998}]
["Jefferson County Co-op",5,240,{"$f":"+C99/80","v":3}]
["Grainger County Co-op","5lb",250,{"$f":"+C100/80","v":3.125}]
["Ag Care","5 lb",194,{"$f":"+C101/80","v":2.4249999999999998},"https://www.agcareproducts.com/products/5085-cabrio-fungicide-5?_pos=1&_sid=b9b9ce41f&_ss=r"]
["Martin's produce supplies","5 lb",196.02,2.45025]
["Keystone Pest Solution","5 lb",224.95,2.8118749999999997,"https://www.keystonepestsolutions.com/cabrio-fungicide-5-pounds-256"]
[]
["Priaxor"]
["Suppliers","Unit (fl oz, gal)","Price","Price per fl oz","Website"]
["Keystone Pest Solution","2.5 gal",1529.95,{"$f":"+C107/320","v":4.7810937500000001},"https://www.keystonepestsolutions.com/priaxor-xemium-fungicide-2-5-gallons-669"]
["Ag Care","2.5 gal",1220,{"$f":"+C108/320","v":3.8125},"https://www.agcareproducts.com/products/10269-priaxor-25-gal?_pos=1&_sid=a8aff7e98&_ss=r"]
["Jefferson County Co-op",2.5,1725,{"$f":"C109/(B109*128)","v":5.390625}]
[]
[]
["Aprovia top"]
["Suppliers","Unit (fl oz, gal)","Price","Price perfl oz","Website"]
["Keystone Pest Solution","1 gal",699.95,{"$f":"+C114/128","v":5.4683593750000004},"https://www.keystonepestsolutions.com/aprovia-fungicide-1-gallon-1110"]
["Grainger County Co-op",1,318,{"$f":"318/128","v":2.484375}]
[]
[]
["Orondis Gold 200"]
["Suppliers","Unit (fl oz, gal)","Price","Price per fl oz, gal","Website"]
["Grainger County Co-op",1,300,{"$f":"300/128","v":2.34375}]
[]
[]
[]
["Ridomil Gold SL"]
["Suppliers","Unit (lb, pt)","Price","Price per lb, pt","Website"]
["AgCare","pt",118,{"$f":"+C126","v":118},"https://www.agcareproducts.com/products/ridomil-gold-sl-pint?_pos=3&_sid=6d9a26c9d&_ss=r"]
["Keystone pest solution","pt",109.95,{"$f":"+C127","v":109.95},"https://www.keystonepestsolutions.com/ridomil-gold-sl-fungicide-1-pint-350"]
["Militello Farm Supply Inc","pt",109.95,109.95]
["Martin's produce supplies","pt",90.91,90.91,"https://martinsproducesupplies.com/product/ridomol-gold-fungicide/"]
["Jefferson County Co-op","1 pt",121,121]
["Grainger County Co-op","1pt",125,125]
["Grainger County Co-op","1gal",950,{"$f":"950/8","v":118.75}]
[]
["Ranman"]
["Suppliers","Unit (fl oz, gal)","Price","Price per fl oz","Website"]
["Keystone Pest Solution","gal",949.95,{"$f":"+C136/128","v":7.4214843750000004},"https://www.keystonepestsolutions.com/ranman-fungicide-1-gallon-1105"]
["Ag Care","qt",268,{"$f":"+C137/32","v":8.375},"https://www.agcareproducts.com/products/ranman-1-quart?_pos=1&_sid=3fcbab408&_ss=r"]
["Militello Farm Supply Inc","qt",294.95,{"$f":"+C138/32","v":9.2171874999999996}]
["Martin's Produc solution","qt",229.55,{"$f":"+C139/32","v":7.1734375000000004},"https://martinsproducesupplies.com/product/ranman-fungicide/"]
["Jefferson County Co-op (Ranman 400 SC Orgo)",1,1065,{"$f":"C140/(B140*128)","v":8.3203125}]
["Grainger County Co-op",0.25,275,{"$f":"C141/(B141*128)","v":8.59375}]
["Grainger County Co-op",1,975,{"$f":"C142/(B142*128)","v":7.6171875}]
[]
["Revus"]
["Suppliers","Unit (fl oz, gal)","Price","Price per fl oz","Website"]
["Keystone Pest Solution","gal",484.95,{"$f":"+C146/128","v":3.7886718749999999},"https://www.keystonepestsolutions.com/revus-fungicide-1-gallon-534"]
["Militello Farm Supply","gal",444.95,{"$f":"+C147/128","v":3.4761718749999999},"https://www.militellofarmsupply.com/shop/revus-fungicide/"]
["Jefferson County Co-op",2.5,875,{"$f":"C148/(B148*128)","v":2.734375}]
["Grainger County Co-op",2.5,1025,{"$f":"C149/(B149*128)","v":3.203125}]
[]
["Presidio"]
["Suppliers","Unit (fl oz, gal)","Price","Price per fl oz","Website"]
["Ag Care","qt",318,{"$f":"+C153/32","v":9.9375},"https://www.agcareproducts.com/products/presidio-1-qt?_pos=1&_sid=5c3d13b05&_ss=r"]
["Keystone Pest Solution","qt",374.95,{"$f":"+C154/32","v":11.7171875},"https://www.keystonepestsolutions.com/presidio-fungicide-1-quart-239"]
["Jefferson County Co-op","32 fl oz",306.3,{"$f":"C155/32","v":9.5718750000000004}]
["Grainger County Co-op","33 fl oz",335,{"$f":"C156/32","v":10.46875}]
["Martin's produce supplies","qt",335.23,10.475937500000001,"https://martinsproducesupplies.com/product/presidio-fungicide/"]
[]
["Zampro"]
["Suppliers","Unit (fl oz, gal)","Price","Price per fl oz","Website"]
["Grainger County Co-op",140,360,{"$f":"360/140","v":2.5714285714285716}]
["Keystone Pest solutions","140fl oz",399.95,{"$f":"+C162/140","v":2.856785714285714},"https://www.keystonepestsolutions.com/zampro-fungicide-140-ounces-899"]
["Militello Farm Supply","140 fl oz",419.95,{"$f":"+C163/140","v":2.9996428571428573},"https://www.militellofarmsupply.com/shop/zampro-fungicide/"]
["Martin's produce supplies","176 fl oz",365.91,{"$f":"+C164/176","v":2.079034090909091},"https://martinsproducesupplies.com/product/zampro-fungicide/"]
[]
["Orondis Ultra"]
["Suppliers","Unit (fl oz, gal)","Price","Price per fl oz, gal","Website"]
[]
[]
[]
[]
["Mustang Maxx"]
["Suppliers","Unit (gal)","Price","Price per fl oz","Website"]
["ag care","gal",159,{"$f":"+C174/128","v":1.2421875},"https://www.agcareproducts.com/products/5379-rup-mustang-maxx-1-gal?_pos=1&_sid=ee171770d&_ss=r"]
["Keyston pest solutions","gal",179.95,{"$f":"+C175/128","v":1.4058593749999999},"https://www.keystonepestsolutions.com/mustang-maxx-insecticide-1-gallon-661"]
["Knoxville","gal",204.95,1.6011718749999999]
["Grainger County Co-op",1,220,{"$f":"C177/128","v":1.71875}]
[]
["Coragen"]
["Suppliers","Unit (fl oz, gal)","Price","Price per fl oz","Website"]
["Jefferson County Co-op","0.25gal",335,{"$f":"C181/(128*0.25)","v":10.46875}]
["Grainger County Co-op","1gal",1160,{"$f":"C182/128","v":9.0625}]
["Ag Care","32 oz",255,{"$f":"+C183/32","v":7.96875},"https://www.agcareproducts.com/products/5352-coragen-quart?_pos=1&_sid=f15ca1455&_ss=r"]
["Keystone Pestsolutios","qt (32 oz)",263.95,{"$f":"+C184/32","v":8.2484374999999996},"https://www.keystonepestsolutions.com/coragen-insecticide-1-quart-543"]
["Martin's produce supplies","1 qt",226.7,{"$f":"+C185/32","v":7.0843749999999996}]
["Knoxville","gal",850,{"$f":"+C186/128","v":6.640625}]
[]
["Movento"]
["Suppliers","Unit (fl oz, gal)","Price","Price per fl oz, gal","Website"]
["Keyston supplies","qt",279.95,{"$f":"+C190/32","v":8.7484374999999996},"https://www.keystonepestsolutions.com/movento-insecticide-1-quart-904"]
["Militello farm supply inc","qt",279.95,{"$f":"+C191/32","v":8.7484374999999996}]
["Grainger County Co-op",0.25,237,{"$f":"+C192/32","v":7.40625}]
[]
["Orthene (Acephate replaces orthene ask Zach about application rate)"]
["Suppliers","Unit (gal)","Price","Price per lb","Website"]
["Martin's produce supplies","lb",9.44,{"$f":"+C196","v":9.44},"https://martinsproducesupplies.com/product/acephate-97up-insecticide/"]
["Keystone pest solutions","lb",15.95,{"$f":"+C197","v":15.95},"https://www.keystonepestsolutions.com/acephate-97up-insecticide-1-pound-replaces-orthene-97-insecticide-305"]
["Ag Care","lb",14,14,"https://www.agcareproducts.com/products/acephate-97up-1-bag?_pos=1&_sid=73b282b11&_ss=r"]
["Jefferson County Co-op",10,69.5,{"$f":"+C199/B199","v":6.95}]
["Grainger County Co-op","12 OZ",12,{"$f":"(C200*16)/(12)","v":16}]
["Knoxville "]
["Maryville","12 oz",13.99,{"$f":"(13.99*16)/12","v":18.653333333333332}]
[]
["Poast"]
["Suppliers","Unit (ga)","Price","Price per pt","Website"]
["Grainger County Co-op",2.5,315,{"$f":"C206/20","v":15.75}]
["Knoxvville ",2.5,257.5,{"$f":"+C207/20","v":12.875}]
["Maryville ",2.5,311.39999999999998,{"$f":"+C208/20","v":15.569999999999999}]
["Martin's Produce supplies",2.5,248.61,{"$f":"+C209/20","v":12.4305},"https://martinsproducesupplies.com/product/poast-herbicide-2-5-gal/"]
["Keyston pest soluion",2.5,327.95,{"$f":"+C210/20","v":16.397500000000001},"https://www.keystonepestsolutions.com/poast-herbicide-2-5-gallons-183"]
[]
["Sandea"]
["Suppliers","Unit (10 oz)","Price","Price per oz","Website"]
["Keystone Pest Solutions","10 oz",369.95,{"$f":"+C214/10","v":36.994999999999997},"https://www.keystonepestsolutions.com/sandea-herbicide-post-emergence-10-ounces-285"]
["Martin's produce supplies","10 oz",312.5,{"$f":"+C215/10","v":31.25},"https://martinsproducesupplies.com/product/sandea-herbicide-10-oz/"]
[]
[]
["Labor","$/ hour","Source"]
["Operator",16.27,"https://www.bls.gov/oes/current/oes_tn.htm#45-0000"]
["Hand labor",13.89,"https://www.dol.gov/agencies/eta/foreign-labor/wages/adverse-effect-wage-rates"]
[]
["Cardboard Boxes"]
["Suppliers","Unit (# boxes)","Price","Price per box","Website"]
["Gracier Valley",560,1772,{"$f":"+C224/B224","v":3.1642857142857141},"https://www.glacierv.com/SPD/item-no-883---1-1-9-bushel-vegetable-carton--cascaded-wax--560-pack--2310000-1207778056.jsp"]
["Rockford package supply",540,1275.48,{"$f":"+C225/B225","v":2.3620000000000001},"https://rockfordpack.com/1-1-9-bushel-vegetable-carton-pepper-print.html"]
["Globe Bag Go",540,1602.72,{"$f":"+C226/B226","v":2.968},"https://globebag.com/product/1-19-bushel-waxed-vegetable-box/"]
[]
["Gas Prices"]
[null,"Price per gallon","Source"]
["Diesel",4.99,"https://www.eia.gov/dnav/pet/PET_PRI_GND_DCUS_R20_W.htm"]
["Gas",3.6,"https://www.eia.gov/dnav/pet/PET_PRI_GND_DCUS_R20_W.htm"]
[]
["Landfill tipping fees","$/ton"]
["Kingsport and averager based on 2019 fruit and vegetable farmers",35,"https://www.kingsporttn.gov/city-services/public-works/sanitation/landfill/"]
["Sumner couny",60,"https://www.resourceauthorityinsumner.org/"]
["Willimason county",75,"https://www.williamsoncounty-tn.gov/155/Landfill"]
[]
["Land Rent","$/acre","Source"]
["Average for the state of Tennessee 2021",187,"https://quickstats.nass.usda.gov/results/58B27A06-F574-315B-A854-9BF568F17652#7878272B-A9F3-3BC2-960D-5F03B7DF4826"]

{"sheet":"Equipment","index":12,"n_rows":20,"n_cols":30,"rows_kept":20,"cut":false,"hidden":true,"merged":[[9,1,9,2],[10,1,10,2],[11,1,11,2],[3,1,3,2],[6,1,6,2],[5,1,5,2],[7,1,7,2],[8,1,8,2]]}
[]
[]
[]
[null,"Description ",null,"Size","Power Unit","Purchase Price","Annual Use","Useful Life","Perf Rate","Labor","Fuel ","R & M (IMP)","R & M (PU)","Total Direct","Fixed (IMP)","Fixed (PU)","Total Cost",null,"Unit Type","Size","#","Purchase Price","Annual Use","Useful Life","Fuel Use (gal)/hr","Labor","Fuel","R & M","Total Direct","Fixed"]
[null,"BS, Lay/Tape Bpepper",null,"6'","2 WD 75hp",{"$f":"+(4625+4500)/2","v":4562.5},54,16,1.0780000000000001,17.54,21.8,2.73,1.45,{"$f":"SUM(J5,K5,L5,M5)","v":43.52},7.11,8.1300000000000008,{"$f":"+SUM(N5:P5)","v":58.760000000000005},null,"Tractor (60-89hp) RB","2 WD 75hp",8,43100,600,8,3.86,{"$f":"+'Input prices'!B219","v":16.27},{"$f":"+Y5*'Input prices'!B230","v":19.261400000000002},1.35,{"$f":"SUM(Z5:AB5)","v":36.881400000000006},7.54]
[null,"Fertilizer Cyclone Spin",null,"750 lb","2 WD 75hp",1500,50,8,8.4000000000000005E-2,{"$f":"+I6*'Input prices'!B219","v":1.3666800000000001},1.7,0.09,0.11,{"$f":"SUM(J6,K6,L6,M6)","v":3.2666799999999996},0.32,0.63,{"$f":"+SUM(N6:P6)","v":4.2166799999999993}]
[null,"Disk Harrow",null,"10ft","2 WD 75hp",10698,180,10,0.19800000000000001,3.22,4,0.27,0.56000000000000005,{"$f":"SUM(J7,K7,L7,M7)","v":8.0500000000000007},1.1499999999999999,1.49,{"$f":"+SUM(N7:P7)","v":10.690000000000001}]
[null,"Mulch Lifter",null,"1 row","2 WD 75hp",2198,29,30,0.58899999999999997,9.58,11.91,0.15,0.79,{"$f":"SUM(J8,K8, L8,M8)","v":22.43},2.2599999999999998,3.8226100000000001,{"$f":"+SUM(N8:P8)","v":28.512609999999999}]
[null,"Rotary Cutter",null,"7ft","2 WD 75hp",{"$f":"+(5098+5199)/2","v":5148.5},185,10,0.16900000000000001,2.75,3.42,0.14000000000000001,0.16224,{"$f":"SUM(J9,K9,L9,M9)","v":6.4722399999999993},0.42,1.0968100000000001,{"$f":"+SUM(N9:P9)","v":7.9890499999999989}]
[null,"Spray (Broadcast)",null,"27'","2 WD 75hp",5350,200,8,6.2E-2,1.41,1.25,0.15,0.08,{"$f":"SUM(J10,K10,L10,M10)","v":2.89},0.17,0.47,{"$f":"+SUM(N10:P10)","v":3.5300000000000002}]
[null,"Sprayer - Utility",null,"4ft","4*4",597,200,5,0.25,4.3550000000000004,0.42915000000000003,0.02,0.24,{"$f":"SUM(J11,K11,L11, M11)","v":5.0441500000000001},0.17,1.6225000000000001,6.8366500000000006]
[null,"Trailer Utility",null,"10ft","2 WD 75hp",1248,200,15,0.6,9.76,12.14,0.1,0.81,{"$f":"SUM(J12,K12,L12,M12)","v":22.81},0.28999999999999998,4.53,27.63]
[]
[]
[null,null,null,null,null,"PB","No PB"]
[null,null,null,null,"Diesel fuel (gal)",{"$f":"+((K$8+K$9+K$6+K$5)+(K$7*3)+(K$12*3)+(K$10*21))/'Input prices'!B$230","v":22.745490981963925},{"$f":"+((K$8+K$9+K$6+K$5)+(K$7*3)+(K$12*3)+(K$10*16))/'Input prices'!B$230","v":21.492985971943888}]
[null,null,null,null,"R&M PU",{"$f":"+(M6+M8+M9+M5)+(M7*3)+(M10*21)+(M12*3)","v":8.3022399999999994},{"$f":"+(M5+M6+M8+M9)+(M7*3)+(M12*3)+(M10*16)","v":7.9022399999999999}]
[null,null,null,null,"R&M Implements",{"$f":"+(L6+L5+L8+L9)+(L7*3)+(L10*21)+(L12*3)","v":7.37},{"$f":"+(L5+L6+L8+L9)+(L7*3)+(L12*3)+(L10*16)","v":6.6199999999999992}]
[null,null,null,null,"Fixed cost PU",{"$f":"+(P5+P6+P8+P9)+(P7*3)+(P12*3)+(P10*21)","v":41.60942},{"$f":"+(P5+P6+P8+P9)+(P7*3)+(P12*3)+(P10*16)","v":39.259420000000006}]
[null,null,null,null,"Fixed cost implement",{"$f":"+(O5+O6+O8+O9)+(O7*3)+(O12*3)+(O10*21)","v":18},{"$f":"+(O5+O6+O8+O9)+(O7*3)+(O12*3)+(O10*16)","v":17.149999999999999}]

{"sheet":"Yield and price combination","index":13,"n_rows":15,"n_cols":13,"rows_kept":15,"cut":false,"hidden":true,"merged":[[1,1,1,12]]}
[]
[null,"Breakeven Price ($/box)"]
["Bell Pepper",null,11.61,12.058490000000001,12.581575000000001,13.191843,13.913069999999999,14.77854,15.83634,17.158580000000001,18.858619999999998,21.125319999999999,24.298719999999999]
["Percent","Yield"]
[50,{"$f":"+B10*0.5","v":674.4},-8560.117975810168,-8254.8083286101682,-7902.0398046101673,-7490.4750654101681,-7004.0795766101674,-6420.4066086101684,-5707.0262886101682,-4815.3076326101673,-3668.8006566101685,-2140.1381766101695,0]
[60,{"$f":"+B10*0.6","v":809.28},-7703.9788284787392,-7337.6072518387391,-6914.2850230387394,-6420.4073359987397,-5836.7327494387409,-5136.32518783874,-4280.2688038387405,-3210.206416638739,-1834.3980454387402,0,2568.1660825612598]
[70,{"$f":"+B10*0.7","v":944.15999999999985},-6847.8396811473085,-6420.4061750673081,-5926.5302414673079,-5350.3396065873094,-4669.3859222673091,-3852.2437670673098,-2853.5113190673092,-1605.105200667309,0,2140.1320377326883,5136.3293817326885]
[80,{"$f":"+B10*0.8","v":1079.04},-5991.7005338158833,-5503.2050982958826,-4938.7754598958818,-4280.2718771758828,-3502.0390950958845,-2568.1623462958833,-1426.7538342958833,0,1834.4071769041147,4280.2671449041154,7704.4926809041172]
[90,{"$f":"+B10*0.9","v":1213.92},-5135.5613864844508,-4586.0040215244499,-3951.0206783244485,-3210.2041477644489,-2334.692267924449,-1284.0809255244494,0,1605.0972312755512,3668.8097880755486,6420.4022520755498,10272.655980075549]
[100,1348.8,-4279.4222391530275,-3668.8029447530262,-2963.265896753026,-2140.1364183530277,-1167.3454407530262,0,1426.7611352469721,3210.198447246974,5503.2123992469715,8560.5373592469696,12840.819279246971]
[110,{"$f":"+B10*1.1","v":1483.68},-3423.283091821595,-2751.6018679815934,-1975.5111151815909,-1070.068688941592,0,1284.0819160184074,2853.5186200184071,4815.2996632184077,7337.6150104184053,10700.672466418404,15408.982578418403]
[120,{"$f":"+B10*1.2","v":1618.56},-2567.1439444901698,-1834.4007912101697,-987.75633361017026,0,1167.3482135898266,2568.1633367898285,4280.2761047898275,6420.4008791898304,9172.0176215898282,12840.807573589824,17977.145877589828]
[130,{"$f":"+B10*1.3","v":1753.44},-1711.0047971587373,-917.1997144387351,0,1070.0667698812649,2334.6950407612603,3852.2447575612605,5707.0335895612625,8025.5020951612642,11006.420232761262,14980.942680761258,20545.30917676126]
[140,{"$f":"+B10*1.4","v":1888.3199999999997},-855,0,987.75322953268915,2140.1344992926861,3502.0418679326867,5136.3261783326852,7133.7910743326865,9630.6033111326869,12840.822843932681,17121.077787932682,23113.472475932682]
[150,{"$f":"+B10*1.5","v":2023.1999999999998},0,917.20243910412319,1975.5080111041207,3210.2022287041218,4669.3886951041168,6420.4075991041173,8560.5485591041179,11235.704527104121,14675.225455104119,19261.212895104116,25681.635775104114]

{"sheet":"Price graph","index":14,"n_rows":33,"n_cols":5,"rows_kept":33,"cut":false,"hidden":true,"merged":[]}
["Date","Shipping Point Averages - Weekly"]
["2022-01-01",8.85]
["2022-01-08",13.35]
["2022-01-15",18.350000000000001]
["2022-01-22",14.6833333333333]
["2022-01-29",14.6833333333333]
["2022-02-05",14.6833333333333]
["2022-02-12",11.6833333333333]
["2022-02-19",9.85]
["2022-02-26",12.016666666666699]
["2022-03-05",16.683333333333302]
["2022-03-12",23.683333333333302]
["2022-03-19",23.683333333333302]
["2022-03-26",23.683333333333302]
["2022-04-02",23.683333333333302]
["2022-04-09",29.683333333333302]
["2022-04-16",33.016666666666701]
["2022-04-23",30.35]
["2022-04-30",25.683333333333302]
["2022-05-07",21.683333333333302]
["2022-05-14",22.016666666666701]
["2022-05-21",22.641666666666701]
["2022-05-28",20.808333333333302]
["2022-06-04",16.7]
["2022-06-11",12.6]
["2022-06-18",11.266666666666699]
["2022-06-25",12.9333333333333]
["2022-07-02",17.16]
["2022-07-09",21.24]
["2022-07-16",25.3333333333333,null,"Average",{"$f":"+AVERAGE(B2:B33)","v":19.216666666666654}]
["2022-07-23",24.5]
["2022-07-30",20.75]
["2022-08-06",17]

{"sheet":"APPENDIX 1","index":15,"n_rows":27,"n_cols":5,"rows_kept":27,"cut":false,"hidden":true,"merged":[]}
["Week (post-transplanting spray #)","Product (active ingredient)","Target disease","Rate per acre","Notes"]
["Pre-plant","Fumigants - various - see note","Nematodes, soilborne pathogens, weeds","Various - see fumigant tab","Depending on nematode and weed pressure, growers may or may not choose to fumigate soil prior to planting. If they do, the best overall products for nematode, soilborne pathogen, and weed suppression are products containing 1,3-dichloropropene + chloropicrin (InLine, Pic-Clor 60, Telone C17, Telone C35) or dimethyl disulphide (Paladin). See fumigant tab fo rmore information on rates."]
["Pre-plant","Agri-Mycin 17, Firewall","Bacterial spot (Xanthomonas euvesicatoria)","1 lb/100 gallon","Diffucult to estimate this on a per acre basis. Also, growers may make anywhere from 0 to 3 applications in the greenhouse before transplanting, depending on bacterial spot severity. "]
["0 (at planting)","Blocker (PCNB)","Southern blight (Sclerotium rolfsii)","4.5-7.5 pt/100 gal; use 0.5 pt solution per plant","Should be able to calculate per acre rate based on # of plants per acre."]
[1,"fixed copper (various)","Bacterial spot (Xanthomonas euvesicatoria)","Kocide as an example (1.25 lbs per acre)","There are several copper products available with varying rates and costs. (Champ, Champion, Cuprofix Ultra, Kocide, MasterCop, Nordox, Nu-Cop)"]
[2,"fixed copper (various)","Bacterial spot (Xanthomonas euvesicatoria)","Kocide as an example (1.25 lbs per acre)","There are several copper products available with varying rates and costs. (Champ, Champion, Cuprofix Ultra, Kocide, MasterCop, Nordox, Nu-Cop)"]
[3,"fixed copper (various)","Bacterial spot (Xanthomonas euvesicatoria)","Kocide as an example (1.25 lbs per acre)","There are several copper products available with varying rates and costs. (Champ, Champion, Cuprofix Ultra, Kocide, MasterCop, Nordox, Nu-Cop)"]
[null,"mancozeb (various)","Anthracnose fruit rot (Colletotrichum spp.)","Manzate as an example (2 lbs/acre)"]
[null,"Aprovia Top (difenoconazole + benzovindiflupyr)","Anthracnose fruit rot (Colletotrichum spp.)","12 oz/acre"]
[4,"fixed copper (various)","Bacterial spot (Xanthomonas euvesicatoria)","Kocide as an example (1.25 lbs per acre)","There are several copper products available with varying rates and costs. (Champ, Champion, Cuprofix Ultra, Kocide, MasterCop, Nordox, Nu-Cop)"]
[null,"mancozeb (various)","Anthracnose fruit rot (Colletotrichum spp.)","Manzate as an example (2 lbs/acre)"]
[5,"fixed copper (various)","Bacterial spot (Xanthomonas euvesicatoria)","Kocide as an example (1.25 lbs per acre)","There are several copper products available with varying rates and costs. (Champ, Champion, Cuprofix Ultra, Kocide, MasterCop, Nordox, Nu-Cop)"]
[null,"mancozeb (various)","Anthracnose fruit rot (Colletotrichum spp.)","Manzate as an example (2 lbs/acre)"]
[null,"Cabrio (pyraclostrobin)","Anthracnose fruit rot (Colletotrichum spp.)","10 oz/acre"]
[6,"fixed copper (various)","Bacterial spot (Xanthomonas euvesicatoria)","Kocide as an example (1.25 lbs per acre)","There are several copper products available with varying rates and costs. (Champ, Champion, Cuprofix Ultra, Kocide, MasterCop, Nordox, Nu-Cop)"]
[null,"mancozeb (various)","Anthracnose fruit rot (Colletotrichum spp.)","Manzate as an example (2 lbs/acre)"]
[7,"fixed copper (various)","Bacterial spot (Xanthomonas euvesicatoria)","Kocide as an example (1.25 lbs per acre)","There are several copper products available with varying rates and costs. (Champ, Champion, Cuprofix Ultra, Kocide, MasterCop, Nordox, Nu-Cop)"]
[null,"mancozeb (various)","Anthracnose fruit rot (Colletotrichum spp.)","Manzate as an example (2 lbs/acre)"]
[null,"Priaxor (fluxapyroxad + pyraclostrobin)","Anthracnose fruit rot (Colletotrichum spp.)","6 oz/acre"]
[8,"fixed copper (various)","Bacterial spot (Xanthomonas euvesicatoria)","Kocide as an example (1.25 lbs per acre)","There are several copper products available with varying rates and costs. (Champ, Champion, Cuprofix Ultra, Kocide, MasterCop, Nordox, Nu-Cop)"]
[null,"mancozeb (various)","Anthracnose fruit rot (Colletotrichum spp.)","Manzate as an example (2 lbs/acre)"]
[9,"fixed copper (various)","Bacterial spot (Xanthomonas euvesicatoria)","Kocide as an example (1.25 lbs per acre)","There are several copper products available with varying rates and costs. (Champ, Champion, Cuprofix Ultra, Kocide, MasterCop, Nordox, Nu-Cop)"]
[null,"mancozeb (various)","Anthracnose fruit rot (Colletotrichum spp.)","Manzate as an example (2 lbs/acre)"]
[null,"azoxystrobin (various)","Anthracnose fruit rot (Colletotrichum spp.)","Quadris as an example (10 oz per acre)"]
[10,"fixed copper (various)","Bacterial spot (Xanthomonas euvesicatoria)","Kocide as an example (1.25 lbs per acre)","There are several copper products available with varying rates and costs. (Champ, Champion, Cuprofix Ultra, Kocide, MasterCop, Nordox, Nu-Cop)"]
[null,"Chlorothalonil","Anthracnose fruit rot (Colletotrichum spp.)","Bravo as an example (1.5 pt per acre)"]
[null,"Aprovia Top (difenoconazole + benzovindiflupyr)","Anthracnose fruit rot (Colletotrichum spp.)","12 oz/acre"]

{"sheet":"fumigants_ZRH","index":16,"n_rows":5,"n_cols":3,"rows_kept":5,"cut":false,"hidden":true,"merged":[]}
["Product","Rate (gal per treated acre)"]
["InLine","29-56.7",{"$f":"+(29+56.7)/2","v":42.85}]
["Pic-Clor 60",48.6]
["Telone C17","32.4-42",{"$f":"+(32.4+42)/2","v":37.200000000000003}]
["Telone C35","39-50",{"$f":"+(39+50)/2","v":44.5}]

{"sheet":"APPENDIX 2","index":17,"n_rows":38,"n_cols":5,"rows_kept":38,"cut":false,"hidden":true,"merged":[]}
["Week (post-transplanting spray #)","Product (active ingredient)","Target disease","Rate per acre","Notes"]
["Pre-plant","Fumigants - various - see note","Nematodes, soilborne pathogens, weeds","Various - see fumigant tab","Depending on nematode and weed pressure, growers may or may not choose to fumigate soil prior to planting. If they do, the best overall products for nematode, soilborne pathogen, and weed suppression are products containing 1,3-dichloropropene + chloropicrin (InLine, Pic-Clor 60, Telone C17, Telone C35) or dimethyl disulphide (Paladin). See fumigant tab fo rmore information on rates."]
["Pre-plant","Agri-Mycin 17, Firewall","Bacterial spot (Xanthomonas euvesicatoria)","1 lb/100 gallon","Diffucult to estimate this on a per acre basis. Also, growers may make anywhere from 0 to 3 applications in the greenhouse before transplanting, depending on bacterial spot severity. "]
["0 (at planting)","Blocker (PCNB)","Southern blight (Sclerotium rolfsii)","4.5-7.5 pt/100 gal; use 0.5 pt solution per plant","Should be able to calculate per acre rate based on # of plants per acre."]
[null,"Orondis Gold 200 (oxathiapiprolin)","Phytophthora blight (Phytophthora capsici)","9.6 fl oz per acre"]
[1,"fixed copper (various)","Bacterial spot (Xanthomonas euvesicatoria)","Kocide as an example (1.25 lbs per acre)","There are several copper products available with varying rates and costs. (Champ, Champion, Cuprofix Ultra, Kocide, MasterCop, Nordox, Nu-Cop)"]
[null,"Ridomil Gold SL (mefenoxam)","Phytophthora blight (Phytophthora capsici)","1 pt per acre"]
[2,"fixed copper (various)","Bacterial spot (Xanthomonas euvesicatoria)","Kocide as an example (1.25 lbs per acre)","There are several copper products available with varying rates and costs. (Champ, Champion, Cuprofix Ultra, Kocide, MasterCop, Nordox, Nu-Cop)"]
[null,"Ranman (cyazofamid)","Phytophthora blight (Phytophthora capsici)","2.75 fl oz per acre"]
[3,"fixed copper (various)","Bacterial spot (Xanthomonas euvesicatoria)","Kocide as an example (1.25 lbs per acre)","There are several copper products available with varying rates and costs. (Champ, Champion, Cuprofix Ultra, Kocide, MasterCop, Nordox, Nu-Cop)"]
[null,"mancozeb (various)","Anthracnose fruit rot (Colletotrichum spp.)","Manzate as an example (2 lbs/acre)"]
[null,"Aprovia Top (difenoconazole + benzovindiflupyr)","Anthracnose fruit rot (Colletotrichum spp.)","12 oz/acre"]
[null,"Revus (mandipropamid)","Phytophthora blight (Phytophthora capsici)","8 fl oz per acre"]
[4,"fixed copper (various)","Bacterial spot (Xanthomonas euvesicatoria)","Kocide as an example (1.25 lbs per acre)","There are several copper products available with varying rates and costs. (Champ, Champion, Cuprofix Ultra, Kocide, MasterCop, Nordox, Nu-Cop)"]
[null,"mancozeb (various)","Anthracnose fruit rot (Colletotrichum spp.)","Manzate as an example (2 lbs/acre)"]
[null,"Presidio (fluopicolide)","Phytophthora blight (Phytophthora capsici)","4 fl oz per acre"]
[5,"fixed copper (various)","Bacterial spot (Xanthomonas euvesicatoria)","Kocide as an example (1.25 lbs per acre)","There are several copper products available with varying rates and costs. (Champ, Champion, Cuprofix Ultra, Kocide, MasterCop, Nordox, Nu-Cop)"]
[null,"mancozeb (various)","Anthracnose fruit rot (Colletotrichum spp.)","Manzate as an example (2 lbs/acre)"]
[null,"Cabrio (pyraclostrobin)","Anthracnose fruit rot (Colletotrichum spp.)","10 oz/acre"]
[null,"Zampro (ametoctradin + dimethomorph)","Phytophthora blight (Phytophthora capsici)","14 fl oz per acre"]
[6,"fixed copper (various)","Bacterial spot (Xanthomonas euvesicatoria)","Kocide as an example (1.25 lbs per acre)","There are several copper products available with varying rates and costs. (Champ, Champion, Cuprofix Ultra, Kocide, MasterCop, Nordox, Nu-Cop)"]
[null,"mancozeb (various)","Anthracnose fruit rot (Colletotrichum spp.)","Manzate as an example (2 lbs/acre)"]
[null,"Orondis Ultra (oxathiapiprolin + mandipropamid)","Phytophthora blight (Phytophthora capsici)","8 fl oz per acre"]
[7,"fixed copper (various)","Bacterial spot (Xanthomonas euvesicatoria)","Kocide as an example (1.25 lbs per acre)","There are several copper products available with varying rates and costs. (Champ, Champion, Cuprofix Ultra, Kocide, MasterCop, Nordox, Nu-Cop)"]
[null,"mancozeb (various)","Anthracnose fruit rot (Colletotrichum spp.)","Manzate as an example (2 lbs/acre)"]
[null,"Priaxor (fluxapyroxad + pyraclostrobin)","Anthracnose fruit rot (Colletotrichum spp.)","6 oz/acre"]
[null,"Ranman (cyazofamid)","Phytophthora blight (Phytophthora capsici)","2.75 fl oz per acre"]
[8,"fixed copper (various)","Bacterial spot (Xanthomonas euvesicatoria)","Kocide as an example (1.25 lbs per acre)","There are several copper products available with varying rates and costs. (Champ, Champion, Cuprofix Ultra, Kocide, MasterCop, Nordox, Nu-Cop)"]
[null,"mancozeb (various)","Anthracnose fruit rot (Colletotrichum spp.)","Manzate as an example (2 lbs/acre)"]
[null,"Revus (mandipropamid)","Phytophthora blight (Phytophthora capsici)","8 fl oz per acre"]
[9,"fixed copper (various)","Bacterial spot (Xanthomonas euvesicatoria)","Kocide as an example (1.25 lbs per acre)","There are several copper products available with varying rates and costs. (Champ, Champion, Cuprofix Ultra, Kocide, MasterCop, Nordox, Nu-Cop)"]
[null,"mancozeb (various)","Anthracnose fruit rot (Colletotrichum spp.)","Manzate as an example (2 lbs/acre)"]
[null,"azoxystrobin (various)","Anthracnose fruit rot (Colletotrichum spp.)","Quadris as an example (10 oz per acre)"]
[null,"Presidio (fluopicolide)","Phytophthora blight (Phytophthora capsici)","4 fl oz per acre"]
[10,"fixed copper (various)","Bacterial spot (Xanthomonas euvesicatoria)","Kocide as an example (1.25 lbs per acre)","There are several copper products available with varying rates and costs. (Champ, Champion, Cuprofix Ultra, Kocide, MasterCop, Nordox, Nu-Cop)"]
[null,"Chlorothalonil","Anthracnose fruit rot (Colletotrichum spp.)","Bravo as an example (1.5 pt per acre)"]
[null,"Aprovia Top (difenoconazole + benzovindiflupyr)","Anthracnose fruit rot (Colletotrichum spp.)","12 oz/acre"]
[null,"Orondis Ultra (oxathiapiprolin + mandipropamid)","Phytophthora blight (Phytophthora capsici)","8 fl oz per acre"]

{"sheet":"Equipment costs","index":18,"n_rows":52,"n_cols":16384,"rows_kept":52,"cut":false,"hidden":true,"merged":[]}
[null,"Power unti specifications","Times over","Power unit",null,"Equipment cost",null,"ALLOC LABOR",null,null,"R&M","Diesel fuel","Diesel prices","Source","PR","Fuel use","gal"]
[null,null,null,"direct","fixed","direct ","fixed","hours","operator cost","cost",null,null,{"$f":"+((2.826+2.89+3.003+3.017)/4)-0.48","v":2.4540000000000002},"2019 prices https://www.eia.gov/dnav/pet/hist/LeafHandler.ashx?n=PET&s=EMD_EPD2D_PTE_R20_DPG&f=W",null,3.86]
["Disk Harrow (10')","2WD 75 HP",2,{"$f":"1.59*2","v":3.18},{"$f":"1.23*2","v":2.46},{"$f":"0.56*2","v":1.1200000000000001},{"$f":"1.18*2","v":2.36},{"$f":"0.19*2","v":0.38},13.26,{"$f":"+H3*I3","v":5.0388000000000002},{"$f":"0.2+2","v":2.2000000000000002},{"$f":"+$M$2*O3*$P$2","v":1.8755431200000001},null,null,0.19800000000000001,null,{"$f":"+O3*$P$2","v":0.76427999999999996}]
["Fert-Cyclone spin","2WD 75 HP",1,0.67,0.52,0.08,0.3,0.08,13.26,{"$f":"+I4*H4","v":1.0608},0.08,{"$f":"+$M$2*O4*$P$2","v":0.79568496000000011},null,null,8.4000000000000005E-2,null,{"$f":"+O4*$P$2","v":0.32424000000000003}]
["Plastic layer/tape 5 ft space","2WD 75 HP",1,10.33,8.06,2.74,7.78,1.29,13.26,{"$f":"+H5*I5","v":17.105399999999999},1.33,{"$f":"+$M$2*O5*$P$2","v":12.257337360000001},null,null,1.294,null,4.9948399999999999]
["Spray Broadcast (27')","2WD 75 HP",1,0.54,0.57999999999999996,0.16,0.19,0.09,13.26,{"$f":"+I6*H6","v":1.1934},0.09,{"$f":"+$M$2*O6*$P$2","v":0.58729127999999997},null,null,6.2E-2,null,0.23931999999999998]
["Basic","application week",null,null,null,null,null,null,null,null,null,null,null,null,null,null,0]
["Pic-Clor 60",0,null,0.54,0.57999999999999996,0.16,0.19,0.09,13.26,{"$f":"+I8*H8","v":1.1934},0.09,{"$f":"+$M$2*O8*$P$2","v":0.58729127999999997},null,null,6.2E-2,null,0.23931999999999998,null,null,null,null,null,null,null,null,null,null,null,null,null,null,null,null,null,null,null,null,null,null,null,null,null,null,null,null,null,null,null,null,null,null,null,null,null,null,null,null,null,null,null,null,null,null,null,null,null,null,null,null,null,null,"Pic-Clor 60","Pic-Clor 60","Pic-Clor 60","Pic-Clor 60","Pic-Clor 60","Pic-Clor 60","Pic-Clor 60","Pic-Clor 60","Pic-Clor 60","Pic-Clor 60","Pic-Clor 60","Pic-Clor 60","Pic-Clor 60","Pic-Clor 60","Pic-Clor 60","Pic-Clor 60","Pic-Clor 60","Pic-Clor 60","Pic-Clor 60","Pic-Clor 60","Pic-Clor 60","Pic-Clor 60","Pic-Clor 60","Pic-Clor 60","Pic-Clor 60","Pic-Clor 60","Pic-Clor 60","Pic-Clor 60","Pic-Clor 60","Pic-Clor 60","Pic-Clor 60","Pic-Clor 60","Pic-Clor 60","Pic-Clor 60","Pic-Clor 60","Pic-Clor 60","Pic-Clor 60","Pic-Clor 60","Pic-Clor 60","Pic-Clor 60","Pic-Clor 60","Pic-Clor 60","Pic-Clor 60","Pic-Clor 60","Pic-Clor 60","Pic-Clor 60","Pic-Clor 60","Pic-Clor 60","Pic-Clor 60","Pic-Clor 60","Pic-Clor 60","Pic-Clor 60","Pic-Clor 60","Pic-Clor 60","Pic-Clor 60","Pic-Clor 60","Pic-Clor 60","Pic-Clor 60","Pic-Clor 60","Pic-Clor 60","Pic-Clor 60","Pic-Clor 60","Pic-Clor 60","Pic-Clor 60","Pic-Clor 60","Pic-Clor 60","Pic-Clor 60","Pic-Clor 60","Pic-Clor 60","Pic-Clor 60","Pic-Clor 60","Pic-Clor 60","Pic-Clor 60","Pic-Clor 60","Pic-Clor 60","Pic-Clor 60","Pic-Clor 60","Pic-Clor 60","Pic-Clor 60","Pic-Clor 60","Pic-Clor 60","Pic-Clor 60","Pic-Clor 60","Pic-Clor 60","Pic-Clor 60","Pic-Clor 60","Pic-Clor 60","Pic-Clor 60","Pic-Clor 60","Pic-Clor 60","Pic-Clor 60","Pic-Clor 60","Pic-Clor 60","Pic-Clor 60","Pic-Clor 60","Pic-Clor 60","Pic-Clor 60","Pic-Clor 60","Pic-Clor 60","Pic-Clor 60","Pic-Clor 60","Pic-Clor 60","Pic-Clor 60","Pic-Clor 60","Pic-Clor 60","Pic-Clor 60","Pic-Clor 60","Pic-Clor 60","Pic-Clor 60","Pic-Clor 60","Pic-Clor 60","Pic-Clor 60","Pic-Clor 60","Pic-Clor 60","Pic-Clor 60","Pic-Clor 60","Pic-Clor 60","Pic-Clor 60","Pic-Clor 60","Pic-Clor 60","Pic-Clor 60","Pic-Clor 60","Pic-Clor 60","Pic-Clor 60","Pic-Clor 60","Pic-Clor 60","Pic-Clor 60","Pic-Clor 60","Pic-Clor 60","Pic-Clor 60","Pic-Clor 60","Pic-Clor 60","Pic-Clor 60","Pic-Clor 60","Pic-Clor 60","Pic-Clor 60","Pic-Clor 60","Pic-Clor 60","Pic-Clor 60","Pic-Clor 60","Pic-Clor 60","Pic-Clor 60","Pic-Clor 60","Pic-Clor 60","Pic-Clor 60","Pic-Clor 60","Pic-Clor 60","Pic-Clor 60","Pic-Clor 60","Pic-Clor 60","Pic-Clor 60","Pic-Clor 60","Pic-Clor 60","Pic-Clor 60","Pic-Clor 60","Pic-Clor 60","Pic-Clor 60","Pic-Clor 60","Pic-Clor 60","Pic-Clor 60","Pic-Clor 60","Pic-Clor 60","Pic-Clor 60","Pic-Clor 60","Pic-Clor 60","Pic-Clor 60","Pic-Clor 60","Pic-Clor 60","Pic-Clor 60","Pic-Clor 60","Pic-Clor 60","Pic-Clor 60","Pic-Clor 60","Pic-Clor 60","Pic-Clor 60","Pic-Clor 60","Pic-Clor 60","Pic-Clor 60","Pic-Clor 60","Pic-Clor 60","Pic-Clor 60","Pic-Clor 60","Pic-Clor 60","Pic-Clor 60","Pic-Clor 60","Pic-Clor 60","Pic-Clor 60","Pic-Clor 60","Pic-Clor 60","Pic-Clor 60","Pic-Clor 60","Pic-Clor 60","Pic-Clor 60","Pic-Clor 60","Pic-Clor 60","Pic-Clor 60","Pic-Clor 60","Pic-Clor 60","Pic-Clor 60","Pic-Clor 60","Pic-Clor 60","Pic-Clor 60","Pic-Clor 60","Pic-Clor 60","Pic-Clor 60","Pic-Clor 60","Pic-Clor 60","Pic-Clor 60","Pic-Clor 60","Pic-Clor 60","Pic-Clor 60","Pic-Clor 60","Pic-Clor 60","Pic-Clor 60","Pic-Clor 60","Pic-Clor 60","Pic-Clor 60","Pic-Clor 60","Pic-Clor 60","Pic-Clor 60","Pic-Clor 60","Pic-Clor 60","Pic-Clor 60","Pic-Clor 60","Pic-Clor 60","Pic-Clor 60","Pic-Clor 60","Pic-Clor 60","Pic-Clor 60","Pic-Clor 60","Pic-Clor 60","Pic-Clor 60","Pic-Clor 60","Pic-Clor 60","Pic-Clor 60","Pic-Clor 60","Pic-Clor 60","Pic-Clor 60","Pic-Clor 60","Pic-Clor 60","Pic-Clor 60","Pic-Clor 60","Pic-Clor 60","Pic-Clor 60","Pic-Clor 60","Pic-Clor 60","Pic-Clor 60","Pic-Clor 60","Pic-Clor 60","Pic-Clor 60","Pic-Clor 60","Pic-Clor 60","Pic-Clor 60","Pic-Clor 60","Pic-Clor 60","Pic-Clor 60","Pic-Clor 60","Pic-Clor 60","Pic-Clor 60","Pic-Clor 60","Pic-Clor 60","Pic-Clor 60","Pic-Clor 60","Pic-Clor 60","Pic-Clor 60","Pic-Clor 60","Pic-Clor 60","Pic-Clor 60","Pic-Clor 60","Pic-Clor 60","Pic-Clor 60","Pic-Clor 60","Pic-Clor 60","Pic-Clor 60","Pic-Clor 60","Pic-Clor 60","Pic-Clor 60","Pic-Clor 60","Pic-Clor 60","Pic-Clor 60","Pic-Clor 60","Pic-Clor 60","Pic-Clor 60","Pic-Clor 60","Pic-Clor 60","Pic-Clor 60","Pic-Clor 60","Pic-Clor 60","Pic-Clor 60","Pic-Clor 60","Pic-Clor 60","Pic-Clor 60","Pic-Clor 60","Pic-Clor 60","Pic-Clor 60","Pic-Clor 60","Pic-Clor 60","Pic-Clor 60","Pic-Clor 60","Pic-Clor 60","Pic-Clor 60","Pic-Clor 60","Pic-Clor 60","Pic-Clor 60","Pic-Clor 60","Pic-Clor 60","Pic-Clor 60","Pic-Clor 60","Pic-Clor 60","Pic-Clor 60","Pic-Clor 60","Pic-Clor 60","Pic-Clor 60","Pic-Clor 60","Pic-Clor 60","Pic-Clor 60","Pic-Clor 60","Pic-Clor 60","Pic-Clor 60","Pic-Clor 60","Pic-Clor 60","Pic-Clor 60","Pic-Clor 60","Pic-Clor 60","Pic-Clor 60","Pic-Clor 60","Pic-Clor 60","Pic-Clor 60","Pic-Clor 60","Pic-Clor 60","Pic-Clor 60","Pic-Clor 60","Pic-Clor 60","Pic-Clor 60","Pic-Clor 60","Pic-Clor 60","Pic-Clor 60","Pic-Clor 60","Pic-Clor 60","Pic-Clor 60","Pic-Clor 60","Pic-Clor 60","Pic-Clor 60","Pic-Clor 60","Pic-Clor 60","Pic-Clor 60","Pic-Clor 60","Pic-Clor 60","Pic-Clor 60","Pic-Clor 60","Pic-Clor 60","Pic-Clor 60","Pic-Clor 60","Pic-Clor 60","Pic-Clor 60","Pic-Clor 60","Pic-Clor 60","Pic-Clor 60","Pic-Clor 60","Pic-Clor 60","Pic-Clor 60","Pic-Clor 60","Pic-Clor 60","Pic-Clor 60","Pic-Clor 60","Pic-Clor 60","Pic-Clor 60","Pic-Clor 60","Pic-Clor 60","Pic-Clor 60","Pic-Clor 60","Pic-Clor 60","Pic-Clor 60","Pic-Clor 60","Pic-Clor 60","Pic-Clor 60","Pic-Clor 60","Pic-Clor 60","Pic-Clor 60","Pic-Clor 60","Pic-Clor 60","Pic-Clor 60","Pic-Clor 60","Pic-Clor 60","Pic-Clor 60","Pic-Clor 60","Pic-Clor 60","Pic-Clor 60","Pic-Clor 60","Pic-Clor 60","Pic-Clor 60","Pic-Clor 60","Pic-Clor 60","Pic-Clor 60","Pic-Clor 60","Pic-Clor 60","Pic-Clor 60","Pic-Clor 60","Pic-Clor 60","Pic-Clor 60","Pic-Clor 60","Pic-Clor 60","Pic-Clor 60","Pic-Clor 60","Pic-Clor 60","Pic-Clor 60","Pic-Clor 60","Pic-Clor 60","Pic-Clor 60","Pic-Clor 60","Pic-Clor 60","Pic-Clor 60","Pic-Clor 60","Pic-Clor 60","Pic-Clor 60","Pic-Clor 60","Pic-Clor 60","Pic-Clor 60","Pic-Clor 60","Pic-Clor 60","Pic-Clor 60","Pic-Clor 60","Pic-Clor 60","Pic-Clor 60","Pic-Clor 60","Pic-Clor 60","Pic-Clor 60","Pic-Clor 60","Pic-Clor 60","Pic-Clor 60","Pic-Clor 60","Pic-Clor 60","Pic-Clor 60","Pic-Clor 60","Pic-Clor 60","Pic-Clor 60","Pic-Clor 60","Pic-Clor 60","Pic-Clor 60","Pic-Clor 60","Pic-Clor 60","Pic-Clor 60","Pic-Clor 60","Pic-Clor 60","Pic-Clor 60","Pic-Clor 60","Pic-Clor 60","Pic-Clor 60","Pic-Clor 60","Pic-Clor 60","Pic-Clor 60","Pic-Clor 60","Pic-Clor 60","Pic-Clor 60","Pic-Clor 60","Pic-Clor 60","Pic-Clor 60","Pic-Clor 60","Pic-Clor 60","Pic-Clor 60","Pic-Clor 60","Pic-Clor 60","Pic-Clor 60","Pic-Clor 60","Pic-Clor 60","Pic-Clor 60","Pic-Clor 60","Pic-Clor 60","Pic-Clor 60","Pic-Clor 60","Pic-Clor 60","Pic-Clor 60","Pic-Clor 60","Pic-Clor 60","Pic-Clor 60","Pic-Clor 60","Pic-Clor 60","Pic-Clor 60","Pic-Clor 60","Pic-Clor 60","Pic-Clor 60","Pic-Clor 60","Pic-Clor 60","Pic-Clor 60","Pic-Clor 60","Pic-Clor 60","Pic-Clor 60","Pic-Clor 60","Pic-Clor 60","Pic-Clor 60","Pic-Clor 60","Pic-Clor 60","Pic-Clor 60","Pic-Clor 60","Pic-Clor 60","Pic-Clor 60","Pic-Clor 60","Pic-Clor 60","Pic-Clor 60","Pic-Clor 60","Pic-Clor 60","Pic-Clor 60","Pic-Clor 60","Pic-Clor 60","Pic-Clor 60","Pic-Clor 60","Pic-Clor 60","Pic-Clor 60","Pic-Clor 60","Pic-Clor 60","Pic-Clor 60","Pic-Clor 60","Pic-Clor 60","Pic-Clor 60","Pic-Clor 60","Pic-Clor 60","Pic-Clor 60","Pic-Clor 60","Pic-Clor 60","Pic-Clor 60","Pic-Clor 60","Pic-Clor 60","Pic-Clor 60","Pic-Clor 60","Pic-Clor 60","Pic-Clor 60","Pic-Clor 60","Pic-Clor 60","Pic-Clor 60","Pic-Clor 60","Pic-Clor 60","Pic-Clor 60","Pic-Clor 60","Pic-Clor 60","Pic-Clor 60","Pic-Clor 60","Pic-Clor 60","Pic-Clor 60","Pic-Clor 60","Pic-Clor 60","Pic-Clor 60","Pic-Clor 60","Pic-Clor 60","Pic-Clor 60","Pic-Clor 60","Pic-Clor 60","Pic-Clor 60","Pic-Clor 60","Pic-Clor 60","Pic-Clor 60","Pic-Clor 60","Pic-Clor 60","Pic-Clor 60","Pic-Clor 60","Pic-Clor 60","Pic-Clor 60","Pic-Clor 60","Pic-Clor 60","Pic-Clor 60","Pic-Clor 60","Pic-Clor 60","Pic-Clor 60","Pic-Clor 60","Pic-Clor 60","Pic-Clor 60","Pic-Clor 60","Pic-Clor 60","Pic-Clor 60","Pic-Clor 60","Pic-Clor 60","Pic-Clor 60","Pic-Clor 60","Pic-Clor 60","Pic-Clor 60","Pic-Clor 60","Pic-Clor 60","Pic-Clor 60","Pic-Clor 60","Pic-Clor 60","Pic-Clor 60","Pic-Clor 60","Pic-Clor 60","Pic-Clor 60","Pic-Clor 60","Pic-Clor 60","Pic-Clor 60","Pic-Clor 60","Pic-Clor 60","Pic-Clor 60","Pic-Clor 60","Pic-Clor 60","Pic-Clor 60","Pic-Clor 60","Pic-Clor 60","Pic-Clor 60","Pic-Clor 60","Pic-Clor 60","Pic-Clor 60","Pic-Clor 60","Pic-Clor 60","Pic-Clor 60","Pic-Clor 60","Pic-Clor 60","Pic-Clor 60","Pic-Clor 60","Pic-Clor 60","Pic-Clor 60","Pic-Clor 60","Pic-Clor 60","Pic-Clor 60","Pic-Clor 60","Pic-Clor 60","Pic-Clor 60","Pic-Clor 60","Pic-Clor 60","Pic-Clor 60","Pic-Clor 60","Pic-Clor 60","Pic-Clor 60","Pic-Clor 60","Pic-Clor 60","Pic-Clor 60","Pic-Clor 60","Pic-Clor 60","Pic-Clor 60","Pic-Clor 60","Pic-Clor 60","Pic-Clor 60","Pic-Clor 60","Pic-Clor 60","Pic-Clor 60","Pic-Clor 60","Pic-Clor 60","Pic-Clor 60","Pic-Clor 60","Pic-Clor 60","Pic-Clor 60","Pic-Clor 60","Pic-Clor 60","Pic-Clor 60","Pic-Clor 60","Pic-Clor 60","Pic-Clor 60","Pic-Clor 60","Pic-Clor 60","Pic-Clor 60","Pic-Clor 60","Pic-Clor 60","Pic-Clor 60","Pic-Clor 60","Pic-Clor 60","Pic-Clor 60","Pic-Clor 60","Pic-Clor 60","Pic-Clor 60","Pic-Clor 60","Pic-Clor 60","Pic-Clor 60","Pic-Clor 60","Pic-Clor 60","Pic-Clor 60","Pic-Clor 60","Pic-Clor 60","Pic-Clor 60","Pic-Clor 60","Pic-Clor 60","Pic-Clor 60","Pic-Clor 60","Pic-Clor 60","Pic-Clor 60","Pic-Clor 60","Pic-Clor 60","Pic-Clor 60","Pic-Clor 60","Pic-Clor 60","Pic-Clor 60","Pic-Clor 60","Pic-Clor 60","Pic-Clor 60","Pic-Clor 60","Pic-Clor 60","Pic-Clor 60","Pic-Clor 60","Pic-Clor 60","Pic-Clor 60","Pic-Clor 60","Pic-Clor 60","Pic-Clor 60","Pic-Clor 60","Pic-Clor 60","Pic-Clor 60","Pic-Clor 60","Pic-Clor 60","Pic-Clor 60","Pic-Clor 60","Pic-Clor 60","Pic-Clor 60","Pic-Clor 60","Pic-Clor 60","Pic-Clor 60","Pic-Clor 60","Pic-Clor 60","Pic-Clor 60","Pic-Clor 60","Pic-Clor 60","Pic-Clor 60","Pic-Clor 60","Pic-Clor 60","Pic-Clor 60","Pic-Clor 60","Pic-Clor 60","Pic-Clor 60","Pic-Clor 60","Pic-Clor 60","Pic-Clor 60","Pic-Clor 60","Pic-Clor 60","Pic-Clor 60","Pic-Clor 60","Pic-Clor 60","Pic-Clor 60","Pic-Clor 60","Pic-Clor 60","Pic-Clor 60","Pic-Clor 60","Pic-Clor 60","Pic-Clor 60","Pic-Clor 60","Pic-Clor 60","Pic-Clor 60","Pic-Clor 60","Pic-Clor 60","Pic-Clor 60","Pic-Clor 60","Pic-Clor 60","Pic-Clor 60","Pic-Clor 60","Pic-Clor 60","Pic-Clor 60","Pic-Clor 60","Pic-Clor 60","Pic-Clor 60","Pic-Clor 60","Pic-Clor 60","Pic-Clor 60","Pic-Clor 60","Pic-Clor 60","Pic-Clor 60","Pic-Clor 60","Pic-Clor 60","Pic-Clor 60","Pic-Clor 60","Pic-Clor 60","Pic-Clor 60","Pic-Clor 60","Pic-Clor 60","Pic-Clor 60","Pic-Clor 60","Pic-Clor 60","Pic-Clor 60","Pic-Clor 60","Pic-Clor 60","Pic-Clor 60","Pic-Clor 60","Pic-Clor 60","Pic-Clor 60","Pic-Clor 60","Pic-Clor 60","Pic-Clor 60","Pic-Clor 60","Pic-Clor 60","Pic-Clor 60","Pic-Clor 60","Pic-Clor 60","Pic-Clor 60","Pic-Clor 60","Pic-Clor 60","Pic-Clor 60","Pic-Clor 60","Pic-Clor 60","Pic-Clor 60","Pic-Clor 60","Pic-Clor 60","Pic-Clor 60","Pic-Clor 60","Pic-Clor 60","Pic-Clor 60","Pic-Clor 60","Pic-Clor 60","Pic-Clor 60","Pic-Clor 60","Pic-Clor 60","Pic-Clor 60","Pic-Clor 60","Pic-Clor 60","Pic-Clor 60","Pic-Clor 60","Pic-Clor 60","Pic-Clor 60","Pic-Clor 60","Pic-Clor 60","Pic-Clor 60","Pic-Clor 60","Pic-Clor 60","Pic-Clor 60","Pic-Clor 60","Pic-Clor 60","Pic-Clor 60","Pic-Clor 60","Pic-Clor 60","Pic-Clor 60","Pic-Clor 60","Pic-Clor 60","Pic-Clor 60","Pic-Clor 60","Pic-Clor 60","Pic-Clor 60","Pic-Clor 60","Pic-Clor 60","Pic-Clor 60","Pic-Clor 60","Pic-Clor 60","Pic-Clor 60","Pic-Clor 60","Pic-Clor 60","Pic-Clor 60","Pic-Clor 60","Pic-Clor 60","Pic-Clor 60","Pic-Clor 60","Pic-Clor 60","Pic-Clor 60","Pic-Clor 60","Pic-Clor 60","Pic-Clor 60","Pic-Clor 60","Pic-Clor 60","Pic-Clor 60","Pic-Clor 60","Pic-Clor 60","Pic-Clor 60","Pic-Clor 60","Pic-Clor 60","Pic-Clor 60","Pic-Clor 60","Pic-Clor 60","Pic-Clor 60","Pic-Clor 60","Pic-Clor 60","Pic-Clor 60","Pic-Clor 60","Pic-Clor 60","Pic-Clor 60","Pic-Clor 60","Pic-Clor 60","Pic-Clor 60","Pic-Clor 60","Pic-Clor 60","Pic-Clor 60","Pic-Clor 60","Pic-Clor 60","Pic-Clor 60","Pic-Clor 60","Pic-Clor 60","Pic-Clor 60","Pic-Clor 60","Pic-Clor 60","Pic-Clor 60","Pic-Clor 60","Pic-Clor 60","Pic-Clor 60","Pic-Clor 60","Pic-Clor 60","Pic-Clor 60","Pic-Clor 60","Pic-Clor 60","Pic-Clor 60","Pic-Clor 60","Pic-Clor 60","Pic-Clor 60","Pic-Clor 60","Pic-Clor 60","Pic-Clor 60","Pic-Clor 60","Pic-Clor 60","Pic-Clor 60","Pic-Clor 60","Pic-Clor 60","Pic-Clor 60","Pic-Clor 60","Pic-Clor 60","Pic-Clor 60","Pic-Clor 60","Pic-Clor 60","Pic-Clor 60","Pic-Clor 60","Pic-Clor 60","Pic-Clor 60","Pic-Clor 60","Pic-Clor 60","Pic-Clor 60","Pic-Clor 60","Pic-Clor 60","Pic-Clor 60","Pic-Clor 60","Pic-Clor 60","Pic-Clor 60","Pic-Clor 60","Pic-Clor 60","Pic-Clor 60","Pic-Clor 60","Pic-Clor 60","Pic-Clor 60","Pic-Clor 60","Pic-Clor 60","Pic-Clor 60","Pic-Clor 60","Pic-Clor 60","Pic-Clor 60","Pic-Clor 60","Pic-Clor 60","Pic-Clor 60","Pic-Clor 60","Pic-Clor 60","Pic-Clor 60","Pic-Clor 60","Pic-Clor 60","Pic-Clor 60","Pic-Clor 60","Pic-Clor 60","Pic-Clor 60","Pic-Clor 60","Pic-Clor 60","Pic-Clor 60","Pic-Clor 60","Pic-Clor 60","Pic-Clor 60","Pic-Clor 60","Pic-Clor 60","Pic-Clor 60","Pic-Clor 60","Pic-Clor 60","Pic-Clor 60","Pic-Clor 60","Pic-Clor 60","Pic-Clor 60","Pic-Clor 60","Pic-Clor 60","Pic-Clor 60","Pic-Clor 60","Pic-Clor 60","Pic-Clor 60","Pic-Clor 60","Pic-Clor 60","Pic-Clor 60","Pic-Clor 60","Pic-Clor 60","Pic-Clor 60","Pic-Clor 60","Pic-Clor 60","Pic-Clor 60","Pic-Clor 60","Pic-Clor 60","Pic-Clor 60","Pic-Clor 60","Pic-Clor 60","Pic-Clor 60","Pic-Clor 60","Pic-Clor 60","Pic-Clor 60","Pic-Clor 60","Pic-Clor 60","Pic-Clor 60","Pic-Clor 60","Pic-Clor 60","Pic-Clor 60","Pic-Clor 60","Pic-Clor 60","Pic-Clor 60","Pic-Clor 60","Pic-Clor 60","Pic-Clor 60","Pic-Clor 60","Pic-Clor 60","Pic-Clor 60","Pic-Clor 60","Pic-Clor 60","Pic-Clor 60","Pic-Clor 60","Pic-Clor 60","Pic-Clor 60","Pic-Clor 60","Pic-Clor 60","Pic-Clor 60","Pic-Clor 60","Pic-Clor 60","Pic-Clor 60","Pic-Clor 60","Pic-Clor 60","Pic-Clor 60","Pic-Clor 60","Pic-Clor 60","Pic-Clor 60","Pic-Clor 60","Pic-Clor 60","Pic-Clor 60","Pic-Clor 60","Pic-Clor 60","Pic-Clor 60","Pic-Clor 60","Pic-Clor 60","Pic-Clor 60","Pic-Clor 60","Pic-Clor 60","Pic-Clor 60","Pic-Clor 60","Pic-Clor 60","Pic-Clor 60","Pic-Clor 60","Pic-Clor 60","Pic-Clor 60","Pic-Clor 60","Pic-Clor 60","Pic-Clor 60","Pic-Clor 60","Pic-Clor 60","Pic-Clor 60","Pic-Clor 60","Pic-Clor 60","Pic-Clor 60","Pic-Clor 60","Pic-Clor 60","Pic-Clor 60","Pic-Clor 60","Pic-Clor 60","Pic-Clor 60","Pic-Clor 60","Pic-Clor 60","Pic-Clor 60","Pic-Clor 60","Pic-Clor 60","Pic-Clor 60","Pic-Clor 60","Pic-Clor 60","Pic-Clor 60","Pic-Clor 60","Pic-Clor 60","Pic-Clor 60","Pic-Clor 60","Pic-Clor 60","Pic-Clor 60","Pic-Clor 60","Pic-Clor 60","Pic-Clor 60","Pic-Clor 60","Pic-Clor 60","Pic-Clor 60","Pic-Clor 60","Pic-Clor 60","Pic-Clor 60","Pic-Clor 60","Pic-Clor 60","Pic-Clor 60","Pic-Clor 60","Pic-Clor 60","Pic-Clor 60","Pic-Clor 60","Pic-Clor 60","Pic-Clor 60","Pic-Clor 60","Pic-Clor 60","Pic-Clor 60","Pic-Clor 60","Pic-Clor 60","Pic-Clor 60","Pic-Clor 60","Pic-Clor 60","Pic-Clor 60","Pic-Clor 60","Pic-Clor 60","Pic-Clor 60","Pic-Clor 60","Pic-Clor 60","Pic-Clor 60","Pic-Clor 60","Pic-Clor 60","Pic-Clor 60","Pic-Clor 60","Pic-Clor 60","Pic-Clor 60","Pic-Clor 60","Pic-Clor 60","Pic-Clor 60","Pic-Clor 60","Pic-Clor 60","Pic-Clor 60","Pic-Clor 60","Pic-Clor 60","Pic-Clor 60","Pic-Clor 60","Pic-Clor 60","Pic-Clor 60","Pic-Clor 60","Pic-Clor 60","Pic-Clor 60","Pic-Clor 60","Pic-Clor 60","Pic-Clor 60","Pic-Clor 60","Pic-Clor 60","Pic-Clor 60","Pic-Clor 60","Pic-Clor 60","Pic-Clor 60","Pic-Clor 60","Pic-Clor 60","Pic-Clor 60","Pic-Clor 60","Pic-Clor 60","Pic-Clor 60","Pic-Clor 60","Pic-Clor 60","Pic-Clor 60","Pic-Clor 60","Pic-Clor 60","Pic-Clor 60","Pic-Clor 60","Pic-Clor 60","Pic-Clor 60","Pic-Clor 60","Pic-Clor 60","Pic-Clor 60","Pic-Clor 60","Pic-Clor 60","Pic-Clor 60","Pic-Clor 60","Pic-Clor 60","Pic-Clor 60","Pic-Clor 60","Pic-Clor 60","Pic-Clor 60","Pic-Clor 60","Pic-Clor 60","Pic-Clor 60","Pic-Clor 60","Pic-Clor 60","Pic-Clor 60","Pic-Clor 60","Pic-Clor 60","Pic-Clor 60","Pic-Clor 60","Pic-Clor 60","Pic-Clor 60","Pic-Clor 60","Pic-Clor 60","Pic-Clor 60","Pic-Clor 60","Pic-Clor 60","Pic-Clor 60","Pic-Clor 60","Pic-Clor 60","Pic-Clor 60","Pic-Clor 60","Pic-Clor 60","Pic-Clor 60","Pic-Clor 60","Pic-Clor 60","Pic-Clor 60","Pic-Clor 60","Pic-Clor 60","Pic-Clor 60","Pic-Clor 60","Pic-Clor 60","Pic-Clor 60","Pic-Clor 60","Pic-Clor 60","Pic-Clor 60","Pic-Clor 60","Pic-Clor 60","Pic-Clor 60","Pic-Clor 60","Pic-Clor 60","Pic-Clor 60","Pic-Clor 60","Pic-Clor 60","Pic-Clor 60","Pic-Clor 60","Pic-Clor 60","Pic-Clor 60","Pic-Clor 60","Pic-Clor 60","Pic-Clor 60","Pic-Clor 60","Pic-Clor 60","Pic-Clor 60","Pic-Clor 60","Pic-Clor 60","Pic-Clor 60","Pic-Clor 60","Pic-Clor 60","Pic-Clor 60","Pic-Clor 60","Pic-Clor 60","Pic-Clor 60","Pic-Clor 60","Pic-Clor 60","Pic-Clor 60","Pic-Clor 60","Pic-Clor 60","Pic-Clor 60","Pic-Clor 60","Pic-Clor 60","Pic-Clor 60","Pic-Clor 60","Pic-Clor 60","Pic-Clor 60","Pic-Clor 60","Pic-Clor 60","Pic-Clor 60","Pic-Clor 60","Pic-Clor 60","Pic-Clor 60","Pic-Clor 60","Pic-Clor 60","Pic-Clor 60","Pic-Clor 60","Pic-Clor 60","Pic-Clor 60","Pic-Clor 60","Pic-Clor 60","Pic-Clor 60","Pic-Clor 60","Pic-Clor 60","Pic-Clor 60","Pic-Clor 60","Pic-Clor 60","Pic-Clor 60","Pic-Clor 60","Pic-Clor 60","Pic-Clor 60","Pic-Clor 60","Pic-Clor 60","Pic-Clor 60","Pic-Clor 60","Pic-Clor 60","Pic-Clor 60","Pic-Clor 60","Pic-Clor 60","Pic-Clor 60","Pic-Clor 60","Pic-Clor 60","Pic-Clor 60","Pic-Clor 60","Pic-Clor 60","Pic-Clor 60","Pic-Clor 60","Pic-Clor 60","Pic-Clor 60","Pic-Clor 60","Pic-Clor 60","Pic-Clor 60","Pic-Clor 60","Pic-Clor 60","Pic-Clor 60","Pic-Clor 60","Pic-Clor 60","Pic-Clor 60","Pic-Clor 60","Pic-Clor 60","Pic-Clor 60","Pic-Clor 60","Pic-Clor 60","Pic-Clor 60","Pic-Clor 60","Pic-Clor 60","Pic-Clor 60","Pic-Clor 60","Pic-Clor 60","Pic-Clor 60","Pic-Clor 60","Pic-Clor 60","Pic-Clor 60","Pic-Clor 60","Pic-Clor 60","Pic-Clor 60","Pic-Clor 60","Pic-Clor 60","Pic-Clor 60","Pic-Clor 60","Pic-Clor 60","Pic-Clor 60","Pic-Clor 60","Pic-Clor 60","Pic-Clor 60","Pic-Clor 60","Pic-Clor 60","Pic-Clor 60","Pic-Clor 60","Pic-Clor 60","Pic-Clor 60","Pic-Clor 60","Pic-Clor 60","Pic-Clor 60","Pic-Clor 60","Pic-Clor 60","Pic-Clor 60","Pic-Clor 60","Pic-Clor 60","Pic-Clor 60","Pic-Clor 60","Pic-Clor 60","Pic-Clor 60","Pic-Clor 60","Pic-Clor 60","Pic-Clor 60","Pic-Clor 60","Pic-Clor 60","Pic-Clor 60","Pic-Clor 60","Pic-Clor 60","Pic-Clor 60","Pic-Clor 60","Pic-Clor 60","Pic-Clor 60","Pic-Clor 60","Pic-Clor 60","Pic-Clor 60","Pic-Clor 60","Pic-Clor 60","Pic-Clor 60","Pic-Clor 60","Pic-Clor 60","Pic-Clor 60","Pic-Clor 60","Pic-Clor 60","Pic-Clor 60","Pic-Clor 60","Pic-Clor 60","Pic-Clor 60","Pic-Clor 60","Pic-Clor 60","Pic-Clor 60","Pic-Clor 60","Pic-Clor 60","Pic-Clor 60","Pic-Clor 60","Pic-Clor 60","Pic-Clor 60","Pic-Clor 60","Pic-Clor 60","Pic-Clor 60","Pic-Clor 60","Pic-Clor 60","Pic-Clor 60","Pic-Clor 60","Pic-Clor 60","Pic-Clor 60","Pic-Clor 60","Pic-Clor 60","Pic-Clor 60","Pic-Clor 60","Pic-Clor 60","Pic-Clor 60","Pic-Clor 60","Pic-Clor 60","Pic-Clor 60","Pic-Clor 60","Pic-Clor 60","Pic-Clor 60","Pic-Clor 60","Pic-Clor 60","Pic-Clor 60","Pic-Clor 60","Pic-Clor 60","Pic-Clor 60","Pic-Clor 60","Pic-Clor 60","Pic-Clor 60","Pic-Clor 60","Pic-Clor 60","Pic-Clor 60","Pic-Clor 60","Pic-Clor 60","Pic-Clor 60","Pic-Clor 60","Pic-Clor 60","Pic-Clor 60","Pic-Clor 60","Pic-Clor 60","Pic-Clor 60","Pic-Clor 60","Pic-Clor 60","Pic-Clor 60","Pic-Clor 60","Pic-Clor 60","Pic-Clor 60","Pic-Clor 60","Pic-Clor 60","Pic-Clor 60","Pic-Clor 60","Pic-Clor 60","Pic-Clor 60","Pic-Clor 60","Pic-Clor 60","Pic-Clor 60","Pic-Clor 60","Pic-Clor 60","Pic-Clor 60","Pic-Clor 60","Pic-Clor 60","Pic-Clor 60","Pic-Clor 60","Pic-Clor 60","Pic-Clor 60","Pic-Clor 60","Pic-Clor 60","Pic-Clor 60","Pic-Clor 60","Pic-Clor 60","Pic-Clor 60","Pic-Clor 60","Pic-Clor 60","Pic-Clor 60","Pic-Clor 60","Pic-Clor 60","Pic-Clor 60","Pic-Clor 60","Pic-Clor 60","Pic-Clor 60","Pic-Clor 60","Pic-Clor 60","Pic-Clor 60","Pic-Clor 60","Pic-Clor 60","Pic-Clor 60","Pic-Clor 60","Pic-Clor 60","Pic-Clor 60","Pic-Clor 60","Pic-Clor 60","Pic-Clor 60","Pic-Clor 60","Pic-Clor 60","Pic-Clor 60","Pic-Clor 60","Pic-Clor 60","Pic-Clor 60","Pic-Clor 60","Pic-Clor 60","Pic-Clor 60","Pic-Clor 60","Pic-Clor 60","Pic-Clor 60","Pic-Clor 60","Pic-Clor 60","Pic-Clor 60","Pic-Clor 60","Pic-Clor 60","Pic-Clor 60","Pic-Clor 60","Pic-Clor 60","Pic-Clor 60","Pic-Clor 60","Pic-Clor 60","Pic-Clor 60","Pic-Clor 60","Pic-Clor 60","Pic-Clor 60","Pic-Clor 60","Pic-Clor 60","Pic-Clor 60","Pic-Clor 60","Pic-Clor 60","Pic-Clor 60","Pic-Clor 60","Pic-Clor 60","Pic-Clor 60","Pic-Clor 60","Pic-Clor 60","Pic-Clor 60","Pic-Clor 60","Pic-Clor 60","Pic-Clor 60","Pic-Clor 60","Pic-Clor 60","Pic-Clor 60","Pic-Clor 60","Pic-Clor 60","Pic-Clor 60","Pic-Clor 60","Pic-Clor 60","Pic-Clor 60","Pic-Clor 60","Pic-Clor 60","Pic-Clor 60","Pic-Clor 60","Pic-Clor 60","Pic-Clor 60","Pic-Clor 60","Pic-Clor 60","Pic-Clor 60","Pic-Clor 60","Pic-Clor 60","Pic-Clor 60","Pic-Clor 60","Pic-Clor 60","Pic-Clor 60","Pic-Clor 60","Pic-Clor 60","Pic-Clor 60","Pic-Clor 60","Pic-Clor 60","Pic-Clor 60","Pic-Clor 60","Pic-Clor 60","Pic-Clor 60","Pic-Clor 60","Pic-Clor 60","Pic-Clor 60","Pic-Clor 60","Pic-Clor 60","Pic-Clor 60","Pic-Clor 60","Pic-Clor 60","Pic-Clor 60","Pic-Clor 60","Pic-Clor 60","Pic-Clor 60","Pic-Clor 60","Pic-Clor 60","Pic-Clor 60","Pic-Clor 60","Pic-Clor 60","Pic-Clor 60","Pic-Clor 60","Pic-Clor 60","Pic-Clor 60","Pic-Clor 60","Pic-Clor 60","Pic-Clor 60","Pic-Clor 60","Pic-Clor 60","Pic-Clor 60","Pic-Clor 60","Pic-Clor 60","Pic-Clor 60","Pic-Clor 60","Pic-Clor 60","Pic-Clor 60","Pic-Clor 60","Pic-Clor 60","Pic-Clor 60","Pic-Clor 60","Pic-Clor 60","Pic-Clor 60","Pic-Clor 60","Pic-Clor 60","Pic-Clor 60","Pic-Clor 60","Pic-Clor 60","Pic-Clor 60","Pic-Clor 60","Pic-Clor 60","Pic-Clor 60","Pic-Clor 60","Pic-Clor 60","Pic-Clor 60","Pic-Clor 60","Pic-Clor 60","Pic-Clor 60","Pic-Clor 60","Pic-Clor 60","Pic-Clor 60","Pic-Clor 60","Pic-Clor 60","Pic-Clor 60","Pic-Clor 60","Pic-Clor 60","Pic-Clor 60","Pic-Clor 60","Pic-Clor 60","Pic-Clor 60","Pic-Clor 60","Pic-Clor 60","Pic-Clor 60","Pic-Clor 60","Pic-Clor 60","Pic-Clor 60","Pic-Clor 60","Pic-Clor 60","Pic-Clor 60","Pic-Clor 60","Pic-Clor 60","Pic-Clor 60","Pic-Clor 60","Pic-Clor 60","Pic-Clor 60","Pic-Clor 60","Pic-Clor 60","Pic-Clor 60","Pic-Clor 60","Pic-Clor 60","Pic-Clor 60","Pic-Clor 60","Pic-Clor 60","Pic-Clor 60","Pic-Clor 60","Pic-Clor 60","Pic-Clor 60","Pic-Clor 60","Pic-Clor 60","Pic-Clor 60","Pic-Clor 60","Pic-Clor 60","Pic-Clor 60","Pic-Clor 60","Pic-Clor 60","Pic-Clor 60","Pic-Clor 60","Pic-Clor 60","Pic-Clor 60","Pic-Clor 60","Pic-Clor 60","Pic-Clor 60","Pic-Clor 60","Pic-Clor 60","Pic-Clor 60","Pic-Clor 60","Pic-Clor 60","Pic-Clor 60","Pic-Clor 60","Pic-Clor 60","Pic-Clor 60","Pic-Clor 60","Pic-Clor 60","Pic-Clor 60","Pic-Clor 60","Pic-Clor 60","Pic-Clor 60","Pic-Clor 60","Pic-Clor 60","Pic-Clor 60","Pic-Clor 60","Pic-Clor 60","Pic-Clor 60","Pic-Clor 60","Pic-Clor 60","Pic-Clor 60","Pic-Clor 60","Pic-Clor 60","Pic-Clor 60","Pic-Clor 60","Pic-Clor 60","Pic-Clor 60","Pic-Clor 60","Pic-Clor 60","Pic-Clor 60","Pic-Clor 60","Pic-Clor 60","Pic-Clor 60","Pic-Clor 60","Pic-Clor 60","Pic-Clor 60","Pic-Clor 60","Pic-Clor 60","Pic-Clor 60","Pic-Clor 60","Pic-Clor 60","Pic-Clor 60","Pic-Clor 60","Pic-Clor 60","Pic-Clor 60","Pic-Clor 60","Pic-Clor 60","Pic-Clor 60","Pic-Clor 60","Pic-Clor 60","Pic-Clor 60","Pic-Clor 60","Pic-Clor 60","Pic-Clor 60","Pic-Clor 60","Pic-Clor 60","Pic-Clor 60","Pic-Clor 60","Pic-Clor 60","Pic-Clor 60","Pic-Clor 60","Pic-Clor 60","Pic-Clor 60","Pic-Clor 60","Pic-Clor 60","Pic-Clor 60","Pic-Clor 60","Pic-Clor 60","Pic-Clor 60","Pic-Clor 60","Pic-Clor 60","Pic-Clor 60","Pic-Clor 60","Pic-Clor 60","Pic-Clor 60","Pic-Clor 60","Pic-Clor 60","Pic-Clor 60","Pic-Clor 60","Pic-Clor 60","Pic-Clor 60","Pic-Clor 60","Pic-Clor 60","Pic-Clor 60","Pic-Clor 60","Pic-Clor 60","Pic-Clor 60","Pic-Clor 60","Pic-Clor 60","Pic-Clor 60","Pic-Clor 60","Pic-Clor 60","Pic-Clor 60","Pic-Clor 60","Pic-Clor 60","Pic-Clor 60","Pic-Clor 60","Pic-Clor 60","Pic-Clor 60","Pic-Clor 60","Pic-Clor 60","Pic-Clor 60","Pic-Clor 60","Pic-Clor 60","Pic-Clor 60","Pic-Clor 60","Pic-Clor 60","Pic-Clor 60","Pic-Clor 60","Pic-Clor 60","Pic-Clor 60","Pic-Clor 60","Pic-Clor 60","Pic-Clor 60","Pic-Clor 60","Pic-Clor 60","Pic-Clor 60","Pic-Clor 60","Pic-Clor 60","Pic-Clor 60","Pic-Clor 60","Pic-Clor 60","Pic-Clor 60","Pic-Clor 60","Pic-Clor 60","Pic-Clor 60","Pic-Clor 60","Pic-Clor 60","Pic-Clor 60","Pic-Clor 60","Pic-Clor 60","Pic-Clor 60","Pic-Clor 60","Pic-Clor 60","Pic-Clor 60","Pic-Clor 60","Pic-Clor 60","Pic-Clor 60","Pic-Clor 60","Pic-Clor 60","Pic-Clor 60","Pic-Clor 60","Pic-Clor 60","Pic-Clor 60","Pic-Clor 60","Pic-Clor 60","Pic-Clor 60","Pic-Clor 60","Pic-Clor 60","Pic-Clor 60","Pic-Clor 60","Pic-Clor 60","Pic-Clor 60","Pic-Clor 60","Pic-Clor 60","Pic-Clor 60","Pic-Clor 60","Pic-Clor 60","Pic-Clor 60","Pic-Clor 60","Pic-Clor 60","Pic-Clor 60","Pic-Clor 60","Pic-Clor 60","Pic-Clor 60","Pic-Clor 60","Pic-Clor 60","Pic-Clor 60","Pic-Clor 60","Pic-Clor 60","Pic-Clor 60","Pic-Clor 60","Pic-Clor 60","Pic-Clor 60","Pic-Clor 60","Pic-Clor 60","Pic-Clor 60","Pic-Clor 60","Pic-Clor 60","Pic-Clor 60","Pic-Clor 60","Pic-Clor 60","Pic-Clor 60","Pic-Clor 60","Pic-Clor 60","Pic-Clor 60","Pic-Clor 60","Pic-Clor 60","Pic-Clor 60","Pic-Clor 60","Pic-Clor 60","Pic-Clor 60","Pic-Clor 60","Pic-Clor 60","Pic-Clor 60","Pic-Clor 60","Pic-Clor 60","Pic-Clor 60","Pic-Clor 60","Pic-Clor 60","Pic-Clor 60","Pic-Clor 60","Pic-Clor 60","Pic-Clor 60","Pic-Clor 60","Pic-Clor 60","Pic-Clor 60","Pic-Clor 60","Pic-Clor 60","Pic-Clor 60","Pic-Clor 60","Pic-Clor 60","Pic-Clor 60","Pic-Clor 60","Pic-Clor 60","Pic-Clor 60","Pic-Clor 60","Pic-Clor 60","Pic-Clor 60","Pic-Clor 60","Pic-Clor 60","Pic-Clor 60","Pic-Clor 60","Pic-Clor 60","Pic-Clor 60","Pic-Clor 60","Pic-Clor 60","Pic-Clor 60","Pic-Clor 60","Pic-Clor 60","Pic-Clor 60","Pic-Clor 60","Pic-Clor 60","Pic-Clor 60","Pic-Clor 60","Pic-Clor 60","Pic-Clor 60","Pic-Clor 60","Pic-Clor 60","Pic-Clor 60","Pic-Clor 60","Pic-Clor 60","Pic-Clor 60","Pic-Clor 60","Pic-Clor 60","Pic-Clor 60","Pic-Clor 60","Pic-Clor 60","Pic-Clor 60","Pic-Clor 60","Pic-Clor 60","Pic-Clor 60","Pic-Clor 60","Pic-Clor 60","Pic-Clor 60","Pic-Clor 60","Pic-Clor 60","Pic-Clor 60","Pic-Clor 60","Pic-Clor 60","Pic-Clor 60","Pic-Clor 60","Pic-Clor 60","Pic-Clor 60","Pic-Clor 60","Pic-Clor 60","Pic-Clor 60","Pic-Clor 60","Pic-Clor 60","Pic-Clor 60","Pic-Clor 60","Pic-Clor 60","Pic-Clor 60","Pic-Clor 60","Pic-Clor 60","Pic-Clor 60","Pic-Clor 60","Pic-Clor 60","Pic-Clor 60","Pic-Clor 60","Pic-Clor 60","Pic-Clor 60","Pic-Clor 60","Pic-Clor 60","Pic-Clor 60","Pic-Clor 60","Pic-Clor 60","Pic-Clor 60","Pic-Clor 60","Pic-Clor 60","Pic-Clor 60","Pic-Clor 60","Pic-Clor 60","Pic-Clor 60","Pic-Clor 60","Pic-Clor 60","Pic-Clor 60","Pic-Clor 60","Pic-Clor 60","Pic-Clor 60","Pic-Clor 60","Pic-Clor 60","Pic-Clor 60","Pic-Clor 60","Pic-Clor 60","Pic-Clor 60","Pic-Clor 60","Pic-Clor 60","Pic-Clor 60","Pic-Clor 60","Pic-Clor 60","Pic-Clor 60","Pic-Clor 60","Pic-Clor 60","Pic-Clor 60","Pic-Clor 60","Pic-Clor 60","Pic-Clor 60","Pic-Clor 60","Pic-Clor 60","Pic-Clor 60","Pic-Clor 60","Pic-Clor 60","Pic-Clor 60","Pic-Clor 60","Pic-Clor 60","Pic-Clor 60","Pic-Clor 60","Pic-Clor 60","Pic-Clor 60","Pic-Clor 60","Pic-Clor 60","Pic-Clor 60","Pic-Clor 60","Pic-Clor 60","Pic-Clor 60","Pic-Clor 60","Pic-Clor 60","Pic-Clor 60","Pic-Clor 60","Pic-Clor 60","Pic-Clor 60","Pic-Clor 60","Pic-Clor 60","Pic-Clor 60","Pic-Clor 60","Pic-Clor 60","Pic-Clor 60","Pic-Clor 60","Pic-Clor 60","Pic-Clor 60","Pic-Clor 60","Pic-Clor 60","Pic-Clor 60","Pic-Clor 60","Pic-Clor 60","Pic-Clor 60","Pic-Clor 60","Pic-Clor 60","Pic-Clor 60","Pic-Clor 60","Pic-Clor 60","Pic-Clor 60","Pic-Clor 60","Pic-Clor 60","Pic-Clor 60","Pic-Clor 60","Pic-Clor 60","Pic-Clor 60","Pic-Clor 60","Pic-Clor 60","Pic-Clor 60","Pic-Clor 60","Pic-Clor 60","Pic-Clor 60","Pic-Clor 60","Pic-Clor 60","Pic-Clor 60","Pic-Clor 60","Pic-Clor 60","Pic-Clor 60","Pic-Clor 60","Pic-Clor 60","Pic-Clor 60","Pic-Clor 60","Pic-Clor 60","Pic-Clor 60","Pic-Clor 60","Pic-Clor 60","Pic-Clor 60","Pic-Clor 60","Pic-Clor 60","Pic-Clor 60","Pic-Clor 60","Pic-Clor 60","Pic-Clor 60","Pic-Clor 60","Pic-Clor 60","Pic-Clor 60","Pic-Clor 60","Pic-Clor 60","Pic-Clor 60","Pic-Clor 60","Pic-Clor 60","Pic-Clor 60","Pic-Clor 60","Pic-Clor 60","Pic-Clor 60","Pic-Clor 60","Pic-Clor 60","Pic-Clor 60","Pic-Clor 60","Pic-Clor 60","Pic-Clor 60","Pic-Clor 60","Pic-Clor 60","Pic-Clor 60","Pic-Clor 60","Pic-Clor 60","Pic-Clor 60","Pic-Clor 60","Pic-Clor 60","Pic-Clor 60","Pic-Clor 60","Pic-Clor 60","Pic-Clor 60","Pic-Clor 60","Pic-Clor 60","Pic-Clor 60","Pic-Clor 60","Pic-Clor 60","Pic-Clor 60","Pic-Clor 60","Pic-Clor 60","Pic-Clor 60","Pic-Clor 60","Pic-Clor 60","Pic-Clor 60","Pic-Clor 60","Pic-Clor 60","Pic-Clor 60","Pic-Clor 60","Pic-Clor 60","Pic-Clor 60","Pic-Clor 60","Pic-Clor 60","Pic-Clor 60","Pic-Clor 60","Pic-Clor 60","Pic-Clor 60","Pic-Clor 60","Pic-Clor 60","Pic-Clor 60","Pic-Clor 60","Pic-Clor 60","Pic-Clor 60","Pic-Clor 60","Pic-Clor 60","Pic-Clor 60","Pic-Clor 60","Pic-Clor 60","Pic-Clor 60","Pic-Clor 60","Pic-Clor 60","Pic-Clor 60","Pic-Clor 60","Pic-Clor 60","Pic-Clor 60","Pic-Clor 60","Pic-Clor 60","Pic-Clor 60","Pic-Clor 60","Pic-Clor 60","Pic-Clor 60","Pic-Clor 60","Pic-Clor 60","Pic-Clor 60","Pic-Clor 60","Pic-Clor 60","Pic-Clor 60","Pic-Clor 60","Pic-Clor 60","Pic-Clor 60","Pic-Clor 60","Pic-Clor 60","Pic-Clor 60","Pic-Clor 60","Pic-Clor 60","Pic-Clor 60","Pic-Clor 60","Pic-Clor 60","Pic-Clor 60","Pic-Clor 60","Pic-Clor 60","Pic-Clor 60","Pic-Clor 60","Pic-Clor 60","Pic-Clor 60","Pic-Clor 60","Pic-Clor 60","Pic-Clor 60","Pic-Clor 60","Pic-Clor 60","Pic-Clor 60","Pic-Clor 60","Pic-Clor 60","Pic-Clor 60","Pic-Clor 60","Pic-Clor 60","Pic-Clor 60","Pic-Clor 60","Pic-Clor 60","Pic-Clor 60","Pic-Clor 60","Pic-Clor 60","Pic-Clor 60","Pic-Clor 60","Pic-Clor 60","Pic-Clor 60","Pic-Clor 60","Pic-Clor 60","Pic-Clor 60","Pic-Clor 60","Pic-Clor 60","Pic-Clor 60","Pic-Clor 60","Pic-Clor 60","Pic-Clor 60","Pic-Clor 60","Pic-Clor 60","Pic-Clor 60","Pic-Clor 60","Pic-Clor 60","Pic-Clor 60","Pic-Clor 60","Pic-Clor 60","Pic-Clor 60","Pic-Clor 60","Pic-Clor 60","Pic-Clor 60","Pic-Clor 60","Pic-Clor 60","Pic-Clor 60","Pic-Clor 60","Pic-Clor 60","Pic-Clor 60","Pic-Clor 60","Pic-Clor 60","Pic-Clor 60","Pic-Clor 60","Pic-Clor 60","Pic-Clor 60","Pic-Clor 60","Pic-Clor 60","Pic-Clor 60","Pic-Clor 60","Pic-Clor 60","Pic-Clor 60","Pic-Clor 60","Pic-Clor 60","Pic-Clor 60","Pic-Clor 60","Pic-Clor 60","Pic-Clor 60","Pic-Clor 60","Pic-Clor 60","Pic-Clor 60","Pic-Clor 60","Pic-Clor 60","Pic-Clor 60","Pic-Clor 60","Pic-Clor 60","Pic-Clor 60","Pic-Clor 60","Pic-Clor 60","Pic-Clor 60","Pic-Clor 60","Pic-Clor 60","Pic-Clor 60","Pic-Clor 60","Pic-Clor 60","Pic-Clor 60","Pic-Clor 60","Pic-Clor 60","Pic-Clor 60","Pic-Clor 60","Pic-Clor 60","Pic-Clor 60","Pic-Clor 60","Pic-Clor 60","Pic-Clor 60","Pic-Clor 60","Pic-Clor 60","Pic-Clor 60","Pic-Clor 60","Pic-Clor 60","Pic-Clor 60","Pic-Clor 60","Pic-Clor 60","Pic-Clor 60","Pic-Clor 60","Pic-Clor 60","Pic-Clor 60","Pic-Clor 60","Pic-Clor 60","Pic-Clor 60","Pic-Clor 60","Pic-Clor 60","Pic-Clor 60","Pic-Clor 60","Pic-Clor 60","Pic-Clor 60","Pic-Clor 60","Pic-Clor 60","Pic-Clor 60","Pic-Clor 60","Pic-Clor 60","Pic-Clor 60","Pic-Clor 60","Pic-Clor 60","Pic-Clor 60","Pic-Clor 60","Pic-Clor 60","Pic-Clor 60","Pic-Clor 60","Pic-Clor 60","Pic-Clor 60","Pic-Clor 60","Pic-Clor 60","Pic-Clor 60","Pic-Clor 60","Pic-Clor 60","Pic-Clor 60","Pic-Clor 60","Pic-Clor 60","Pic-Clor 60","Pic-Clor 60","Pic-Clor 60","Pic-Clor 60","Pic-Clor 60","Pic-Clor 60","Pic-Clor 60","Pic-Clor 60","Pic-Clor 60","Pic-Clor 60","Pic-Clor 60","Pic-Clor 60","Pic-Clor 60","Pic-Clor 60","Pic-Clor 60","Pic-Clor 60","Pic-Clor 60","Pic-Clor 60","Pic-Clor 60","Pic-Clor 60","Pic-Clor 60","Pic-Clor 60","Pic-Clor 60","Pic-Clor 60","Pic-Clor 60","Pic-Clor 60","Pic-Clor 60","Pic-Clor 60","Pic-Clor 60","Pic-Clor 60","Pic-Clor 60","Pic-Clor 60","Pic-Clor 60","Pic-Clor 60","Pic-Clor 60","Pic-Clor 60","Pic-Clor 60","Pic-Clor 60","Pic-Clor 60","Pic-Clor 60","Pic-Clor 60","Pic-Clor 60","Pic-Clor 60","Pic-Clor 60","Pic-Clor 60","Pic-Clor 60","Pic-Clor 60","Pic-Clor 60","Pic-Clor 60","Pic-Clor 60","Pic-Clor 60","Pic-Clor 60","Pic-Clor 60","Pic-Clor 60","Pic-Clor 60","Pic-Clor 60","Pic-Clor 60","Pic-Clor 60","Pic-Clor 60","Pic-Clor 60","Pic-Clor 60","Pic-Clor 60","Pic-Clor 60","Pic-Clor 60","Pic-Clor 60","Pic-Clor 60","Pic-Clor 60","Pic-Clor 60","Pic-Clor 60","Pic-Clor 60","Pic-Clor 60","Pic-Clor 60","Pic-Clor 60","Pic-Clor 60","Pic-Clor 60","Pic-Clor 60","Pic-Clor 60","Pic-Clor 60","Pic-Clor 60","Pic-Clor 60","Pic-Clor 60","Pic-Clor 60","Pic-Clor 60","Pic-Clor 60","Pic-Clor 60","Pic-Clor 60","Pic-Clor 60","Pic-Clor 60","Pic-Clor 60","Pic-Clor 60","Pic-Clor 60","Pic-Clor 60","Pic-Clor 60","Pic-Clor 60","Pic-Clor 60","Pic-Clor 60","Pic-Clor 60","Pic-Clor 60","Pic-Clor 60","Pic-Clor 60","Pic-Clor 60","Pic-Clor 60","Pic-Clor 60","Pic-Clor 60","Pic-Clor 60","Pic-Clor 60","Pic-Clor 60","Pic-Clor 60","Pic-Clor 60","Pic-Clor 60","Pic-Clor 60","Pic-Clor 60","Pic-Clor 60","Pic-Clor 60","Pic-Clor 60","Pic-Clor 60","Pic-Clor 60","Pic-Clor 60","Pic-Clor 60","Pic-Clor 60","Pic-Clor 60","Pic-Clor 60","Pic-Clor 60","Pic-Clor 60","Pic-Clor 60","Pic-Clor 60","Pic-Clor 60","Pic-Clor 60","Pic-Clor 60","Pic-Clor 60","Pic-Clor 60","Pic-Clor 60","Pic-Clor 60","Pic-Clor 60","Pic-Clor 60","Pic-Clor 60","Pic-Clor 60","Pic-Clor 60","Pic-Clor 60","Pic-Clor 60","Pic-Clor 60","Pic-Clor 60","Pic-Clor 60","Pic-Clor 60","Pic-Clor 60","Pic-Clor 60","Pic-Clor 60","Pic-Clor 60","Pic-Clor 60","Pic-Clor 60","Pic-Clor 60","Pic-Clor 60","Pic-Clor 60","Pic-Clor 60","Pic-Clor 60","Pic-Clor 60","Pic-Clor 60","Pic-Clor 60","Pic-Clor 60","Pic-Clor 60","Pic-Clor 60","Pic-Clor 60","Pic-Clor 60","Pic-Clor 60","Pic-Clor 60","Pic-Clor 60","Pic-Clor 60","Pic-Clor 60","Pic-Clor 60","Pic-Clor 60","Pic-Clor 60","Pic-Clor 60","Pic-Clor 60","Pic-Clor 60","Pic-Clor 60","Pic-Clor 60","Pic-Clor 60","Pic-Clor 60","Pic-Clor 60","Pic-Clor 60","Pic-Clor 60","Pic-Clor 60","Pic-Clor 60","Pic-Clor 60","Pic-Clor 60","Pic-Clor 60","Pic-Clor 60","Pic-Clor 60","Pic-Clor 60","Pic-Clor 60","Pic-Clor 60","Pic-Clor 60","Pic-Clor 60","Pic-Clor 60","Pic-Clor 60","Pic-Clor 60","Pic-Clor 60","Pic-Clor 60","Pic-Clor 60","Pic-Clor 60","Pic-Clor 60","Pic-Clor 60","Pic-Clor 60","Pic-Clor 60","Pic-Clor 60","Pic-Clor 60","Pic-Clor 60","Pic-Clor 60","Pic-Clor 60","Pic-Clor 60","Pic-Clor 60","Pic-Clor 60","Pic-Clor 60","Pic-Clor 60","Pic-Clor 60","Pic-Clor 60","Pic-Clor 60","Pic-Clor 60","Pic-Clor 60","Pic-Clor 60","Pic-Clor 60","Pic-Clor 60","Pic-Clor 60","Pic-Clor 60","Pic-Clor 60","Pic-Clor 60","Pic-Clor 60","Pic-Clor 60","Pic-Clor 60","Pic-Clor 60","Pic-Clor 60","Pic-Clor 60","Pic-Clor 60","Pic-Clor 60","Pic-Clor 60","Pic-Clor 60","Pic-Clor 60","Pic-Clor 60","Pic-Clor 60","Pic-Clor 60","Pic-Clor 60","Pic-Clor 60","Pic-Clor 60","Pic-Clor 60","Pic-Clor 60","Pic-Clor 60","Pic-Clor 60","Pic-Clor 60","Pic-Clor 60","Pic-Clor 60","Pic-Clor 60","Pic-Clor 60","Pic-Clor 60","Pic-Clor 60","Pic-Clor 60","Pic-Clor 60","Pic-Clor 60","Pic-Clor 60","Pic-Clor 60","Pic-Clor 60","Pic-Clor 60","Pic-Clor 60","Pic-Clor 60","Pic-Clor 60","Pic-Clor 60","Pic-Clor 60","Pic-Clor 60","Pic-Clor 60","Pic-Clor 60","Pic-Clor 60","Pic-Clor 60","Pic-Clor 60","Pic-Clor 60","Pic-Clor 60","Pic-Clor 60","Pic-Clor 60","Pic-Clor 60","Pic-Clor 60","Pic-Clor 60","Pic-Clor 60","Pic-Clor 60","Pic-Clor 60","Pic-Clor 60","Pic-Clor 60","Pic-Clor 60","Pic-Clor 60","Pic-Clor 60","Pic-Clor 60","Pic-Clor 60","Pic-Clor 60","Pic-Clor 60","Pic-Clor 60","Pic-Clor 60","Pic-Clor 60","Pic-Clor 60","Pic-Clor 60","Pic-Clor 60","Pic-Clor 60","Pic-Clor 60","Pic-Clor 60","Pic-Clor 60","Pic-Clor 60","Pic-Clor 60","Pic-Clor 60","Pic-Clor 60","Pic-Clor 60","Pic-Clor 60","Pic-Clor 60","Pic-Clor 60","Pic-Clor 60","Pic-Clor 60","Pic-Clor 60","Pic-Clor 60","Pic-Clor 60","Pic-Clor 60","Pic-Clor 60","Pic-Clor 60","Pic-Clor 60","Pic-Clor 60","Pic-Clor 60","Pic-Clor 60","Pic-Clor 60","Pic-Clor 60","Pic-Clor 60","Pic-Clor 60","Pic-Clor 60","Pic-Clor 60","Pic-Clor 60","Pic-Clor 60","Pic-Clor 60","Pic-Clor 60","Pic-Clor 60","Pic-Clor 60","Pic-Clor 60","Pic-Clor 60","Pic-Clor 60","Pic-Clor 60","Pic-Clor 60","Pic-Clor 60","Pic-Clor 60","Pic-Clor 60","Pic-Clor 60","Pic-Clor 60","Pic-Clor 60","Pic-Clor 60","Pic-Clor 60","Pic-Clor 60","Pic-Clor 60","Pic-Clor 60","Pic-Clor 60","Pic-Clor 60","Pic-Clor 60","Pic-Clor 60","Pic-Clor 60","Pic-Clor 60","Pic-Clor 60","Pic-Clor 60","Pic-Clor 60","Pic-Clor 60","Pic-Clor 60","Pic-Clor 60","Pic-Clor 60","Pic-Clor 60","Pic-Clor 60","Pic-Clor 60","Pic-Clor 60","Pic-Clor 60","Pic-Clor 60","Pic-Clor 60","Pic-Clor 60","Pic-Clor 60","Pic-Clor 60","Pic-Clor 60","Pic-Clor 60","Pic-Clor 60","Pic-Clor 60","Pic-Clor 60","Pic-Clor 60","Pic-Clor 60","Pic-Clor 60","Pic-Clor 60","Pic-Clor 60","Pic-Clor 60","Pic-Clor 60","Pic-Clor 60","Pic-Clor 60","Pic-Clor 60","Pic-Clor 60","Pic-Clor 60","Pic-Clor 60","Pic-Clor 60","Pic-Clor 60","Pic-Clor 60","Pic-Clor 60","Pic-Clor 60","Pic-Clor 60","Pic-Clor 60","Pic-Clor 60","Pic-Clor 60","Pic-Clor 60","Pic-Clor 60","Pic-Clor 60","Pic-Clor 60","Pic-Clor 60","Pic-Clor 60","Pic-Clor 60","Pic-Clor 60","Pic-Clor 60","Pic-Clor 60","Pic-Clor 60","Pic-Clor 60","Pic-Clor 60","Pic-Clor 60","Pic-Clor 60","Pic-Clor 60","Pic-Clor 60","Pic-Clor 60","Pic-Clor 60","Pic-Clor 60","Pic-Clor 60","Pic-Clor 60","Pic-Clor 60","Pic-Clor 60","Pic-Clor 60","Pic-Clor 60","Pic-Clor 60","Pic-Clor 60","Pic-Clor 60","Pic-Clor 60","Pic-Clor 60","Pic-Clor 60","Pic-Clor 60","Pic-Clor 60","Pic-Clor 60","Pic-Clor 60","Pic-Clor 60","Pic-Clor 60","Pic-Clor 60","Pic-Clor 60","Pic-Clor 60","Pic-Clor 60","Pic-Clor 60","Pic-Clor 60","Pic-Clor 60","Pic-Clor 60","Pic-Clor 60","Pic-Clor 60","Pic-Clor 60","Pic-Clor 60","Pic-Clor 60","Pic-Clor 60","Pic-Clor 60","Pic-Clor 60","Pic-Clor 60","Pic-Clor 60","Pic-Clor 60","Pic-Clor 60","Pic-Clor 60","Pic-Clor 60","Pic-Clor 60","Pic-Clor 60","Pic-Clor 60","Pic-Clor 60","Pic-Clor 60","Pic-Clor 60","Pic-Clor 60","Pic-Clor 60","Pic-Clor 60","Pic-Clor 60","Pic-Clor 60","Pic-Clor 60","Pic-Clor 60","Pic-Clor 60","Pic-Clor 60","Pic-Clor 60","Pic-Clor 60","Pic-Clor 60","Pic-Clor 60","Pic-Clor 60","Pic-Clor 60","Pic-Clor 60","Pic-Clor 60","Pic-Clor 60","Pic-Clor 60","Pic-Clor 60","Pic-Clor 60","Pic-Clor 60","Pic-Clor 60","Pic-Clor 60","Pic-Clor 60","Pic-Clor 60","Pic-Clor 60","Pic-Clor 60","Pic-Clor 60","Pic-Clor 60","Pic-Clor 60","Pic-Clor 60","Pic-Clor 60","Pic-Clor 60","Pic-Clor 60","Pic-Clor 60","Pic-Clor 60","Pic-Clor 60","Pic-Clor 60","Pic-Clor 60","Pic-Clor 60","Pic-Clor 60","Pic-Clor 60","Pic-Clor 60","Pic-Clor 60","Pic-Clor 60","Pic-Clor 60","Pic-Clor 60","Pic-Clor 60","Pic-Clor 60","Pic-Clor 60","Pic-Clor 60","Pic-Clor 60","Pic-Clor 60","Pic-Clor 60","Pic-Clor 60","Pic-Clor 60","Pic-Clor 60","Pic-Clor 60","Pic-Clor 60","Pic-Clor 60","Pic-Clor 60","Pic-Clor 60","Pic-Clor 60","Pic-Clor 60","Pic-Clor 60","Pic-Clor 60","Pic-Clor 60","Pic-Clor 60","Pic-Clor 60","Pic-Clor 60","Pic-Clor 60","Pic-Clor 60","Pic-Clor 60","Pic-Clor 60","Pic-Clor 60","Pic-Clor 60","Pic-Clor 60","Pic-Clor 60","Pic-Clor 60","Pic-Clor 60","Pic-Clor 60","Pic-Clor 60","Pic-Clor 60","Pic-Clor 60","Pic-Clor 60","Pic-Clor 60","Pic-Clor 60","Pic-Clor 60","Pic-Clor 60","Pic-Clor 60","Pic-Clor 60","Pic-Clor 60","Pic-Clor 60","Pic-Clor 60","Pic-Clor 60","Pic-Clor 60","Pic-Clor 60","Pic-Clor 60","Pic-Clor 60","Pic-Clor 60","Pic-Clor 60","Pic-Clor 60","Pic-Clor 60","Pic-Clor 60","Pic-Clor 60","Pic-Clor 60","Pic-Clor 60","Pic-Clor 60","Pic-Clor 60","Pic-Clor 60","Pic-Clor 60","Pic-Clor 60","Pic-Clor 60","Pic-Clor 60","Pic-Clor 60","Pic-Clor 60","Pic-Clor 60","Pic-Clor 60","Pic-Clor 60","Pic-Clor 60","Pic-Clor 60","Pic-Clor 60","Pic-Clor 60","Pic-Clor 60","Pic-Clor 60","Pic-Clor 60","Pic-Clor 60","Pic-Clor 60","Pic-Clor 60","Pic-Clor 60","Pic-Clor 60","Pic-Clor 60","Pic-Clor 60","Pic-Clor 60","Pic-Clor 60","Pic-Clor 60","Pic-Clor 60","Pic-Clor 60","Pic-Clor 60","Pic-Clor 60","Pic-Clor 60","Pic-Clor 60","Pic-Clor 60","Pic-Clor 60","Pic-Clor 60","Pic-Clor 60","Pic-Clor 60","Pic-Clor 60","Pic-Clor 60","Pic-Clor 60","Pic-Clor 60","Pic-Clor 60","Pic-Clor 60","Pic-Clor 60","Pic-Clor 60","Pic-Clor 60","Pic-Clor 60","Pic-Clor 60","Pic-Clor 60","Pic-Clor 60","Pic-Clor 60","Pic-Clor 60","Pic-Clor 60","Pic-Clor 60","Pic-Clor 60","Pic-Clor 60","Pic-Clor 60","Pic-Clor 60","Pic-Clor 60","Pic-Clor 60","Pic-Clor 60","Pic-Clor 60","Pic-Clor 60","Pic-Clor 60","Pic-Clor 60","Pic-Clor 60","Pic-Clor 60","Pic-Clor 60","Pic-Clor 60","Pic-Clor 60","Pic-Clor 60","Pic-Clor 60","Pic-Clor 60","Pic-Clor 60","Pic-Clor 60","Pic-Clor 60","Pic-Clor 60","Pic-Clor 60","Pic-Clor 60","Pic-Clor 60","Pic-Clor 60","Pic-Clor 60","Pic-Clor 60","Pic-Clor 60","Pic-Clor 60","Pic-Clor 60","Pic-Clor 60","Pic-Clor 60","Pic-Clor 60","Pic-Clor 60","Pic-Clor 60","Pic-Clor 60","Pic-Clor 60","Pic-Clor 60","Pic-Clor 60","Pic-Clor 60","Pic-Clor 60","Pic-Clor 60","Pic-Clor 60","Pic-Clor 60","Pic-Clor 60","Pic-Clor 60","Pic-Clor 60","Pic-Clor 60","Pic-Clor 60","Pic-Clor 60","Pic-Clor 60","Pic-Clor 60","Pic-Clor 60","Pic-Clor 60","Pic-Clor 60","Pic-Clor 60","Pic-Clor 60","Pic-Clor 60","Pic-Clor 60","Pic-Clor 60","Pic-Clor 60","Pic-Clor 60","Pic-Clor 60","Pic-Clor 60","Pic-Clor 60","Pic-Clor 60","Pic-Clor 60","Pic-Clor 60","Pic-Clor 60","Pic-Clor 60","Pic-Clor 60","Pic-Clor 60","Pic-Clor 60","Pic-Clor 60","Pic-Clor 60","Pic-Clor 60","Pic-Clor 60","Pic-Clor 60","Pic-Clor 60","Pic-Clor 60","Pic-Clor 60","Pic-Clor 60","Pic-Clor 60","Pic-Clor 60","Pic-Clor 60","Pic-Clor 60","Pic-Clor 60","Pic-Clor 60","Pic-Clor 60","Pic-Clor 60","Pic-Clor 60","Pic-Clor 60","Pic-Clor 60","Pic-Clor 60","Pic-Clor 60","Pic-Clor 60","Pic-Clor 60","Pic-Clor 60","Pic-Clor 60","Pic-Clor 60","Pic-Clor 60","Pic-Clor 60","Pic-Clor 60","Pic-Clor 60","Pic-Clor 60","Pic-Clor 60","Pic-Clor 60","Pic-Clor 60","Pic-Clor 60","Pic-Clor 60","Pic-Clor 60","Pic-Clor 60","Pic-Clor 60","Pic-Clor 60","Pic-Clor 60","Pic-Clor 60","Pic-Clor 60","Pic-Clor 60","Pic-Clor 60","Pic-Clor 60","Pic-Clor 60","Pic-Clor 60","Pic-Clor 60","Pic-Clor 60","Pic-Clor 60","Pic-Clor 60","Pic-Clor 60","Pic-Clor 60","Pic-Clor 60","Pic-Clor 60","Pic-Clor 60","Pic-Clor 60","Pic-Clor 60","Pic-Clor 60","Pic-Clor 60","Pic-Clor 60","Pic-Clor 60","Pic-Clor 60","Pic-Clor 60","Pic-Clor 60","Pic-Clor 60","Pic-Clor 60","Pic-Clor 60","Pic-Clor 60","Pic-Clor 60","Pic-Clor 60","Pic-Clor 60","Pic-Clor 60","Pic-Clor 60","Pic-Clor 60","Pic-Clor 60","Pic-Clor 60","Pic-Clor 60","Pic-Clor 60","Pic-Clor 60","Pic-Clor 60","Pic-Clor 60","Pic-Clor 60","Pic-Clor 60","Pic-Clor 60","Pic-Clor 60","Pic-Clor 60","Pic-Clor 60","Pic-Clor 60","Pic-Clor 60","Pic-Clor 60","Pic-Clor 60","Pic-Clor 60","Pic-Clor 60","Pic-Clor 60","Pic-Clor 60","Pic-Clor 60","Pic-Clor 60","Pic-Clor 60","Pic-Clor 60","Pic-Clor 60","Pic-Clor 60","Pic-Clor 60","Pic-Clor 60","Pic-Clor 60","Pic-Clor 60","Pic-Clor 60","Pic-Clor 60","Pic-Clor 60","Pic-Clor 60","Pic-Clor 60","Pic-Clor 60","Pic-Clor 60","Pic-Clor 60","Pic-Clor 60","Pic-Clor 60","Pic-Clor 60","Pic-Clor 60","Pic-Clor 60","Pic-Clor 60","Pic-Clor 60","Pic-Clor 60","Pic-Clor 60","Pic-Clor 60","Pic-Clor 60","Pic-Clor 60","Pic-Clor 60","Pic-Clor 60","Pic-Clor 60","Pic-Clor 60","Pic-Clor 60","Pic-Clor 60","Pic-Clor 60","Pic-Clor 60","Pic-Clor 60","Pic-Clor 60","Pic-Clor 60","Pic-Clor 60","Pic-Clor 60","Pic-Clor 60","Pic-Clor 60","Pic-Clor 60","Pic-Clor 60","Pic-Clor 60","Pic-Clor 60","Pic-Clor 60","Pic-Clor 60","Pic-Clor 60","Pic-Clor 60","Pic-Clor 60","Pic-Clor 60","Pic-Clor 60","Pic-Clor 60","Pic-Clor 60","Pic-Clor 60","Pic-Clor 60","Pic-Clor 60","Pic-Clor 60","Pic-Clor 60","Pic-Clor 60","Pic-Clor 60","Pic-Clor 60","Pic-Clor 60","Pic-Clor 60","Pic-Clor 60","Pic-Clor 60","Pic-Clor 60","Pic-Clor 60","Pic-Clor 60","Pic-Clor 60","Pic-Clor 60","Pic-Clor 60","Pic-Clor 60","Pic-Clor 60","Pic-Clor 60","Pic-Clor 60","Pic-Clor 60","Pic-Clor 60","Pic-Clor 60","Pic-Clor 60","Pic-Clor 60","Pic-Clor 60","Pic-Clor 60","Pic-Clor 60","Pic-Clor 60","Pic-Clor 60","Pic-Clor 60","Pic-Clor 60","Pic-Clor 60","Pic-Clor 60","Pic-Clor 60","Pic-Clor 60","Pic-Clor 60","Pic-Clor 60","Pic-Clor 60","Pic-Clor 60","Pic-Clor 60","Pic-Clor 60","Pic-Clor 60","Pic-Clor 60","Pic-Clor 60","Pic-Clor 60","Pic-Clor 60","Pic-Clor 60","Pic-Clor 60","Pic-Clor 60","Pic-Clor 60","Pic-Clor 60","Pic-Clor 60","Pic-Clor 60","Pic-Clor 60","Pic-Clor 60","Pic-Clor 60","Pic-Clor 60","Pic-Clor 60","Pic-Clor 60","Pic-Clor 60","Pic-Clor 60","Pic-Clor 60","Pic-Clor 60","Pic-Clor 60","Pic-Clor 60","Pic-Clor 60","Pic-Clor 60","Pic-Clor 60","Pic-Clor 60","Pic-Clor 60","Pic-Clor 60","Pic-Clor 60","Pic-Clor 60","Pic-Clor 60","Pic-Clor 60","Pic-Clor 60","Pic-Clor 60","Pic-Clor 60","Pic-Clor 60","Pic-Clor 60","Pic-Clor 60","Pic-Clor 60","Pic-Clor 60","Pic-Clor 60","Pic-Clor 60","Pic-Clor 60","Pic-Clor 60","Pic-Clor 60","Pic-Clor 60","Pic-Clor 60","Pic-Clor 60","Pic-Clor 60","Pic-Clor 60","Pic-Clor 60","Pic-Clor 60","Pic-Clor 60","Pic-Clor 60","Pic-Clor 60","Pic-Clor 60","Pic-Clor 60","Pic-Clor 60","Pic-Clor 60","Pic-Clor 60","Pic-Clor 60","Pic-Clor 60","Pic-Clor 60","Pic-Clor 60","Pic-Clor 60","Pic-Clor 60","Pic-Clor 60","Pic-Clor 60","Pic-Clor 60","Pic-Clor 60","Pic-Clor 60","Pic-Clor 60","Pic-Clor 60","Pic-Clor 60","Pic-Clor 60","Pic-Clor 60","Pic-Clor 60","Pic-Clor 60","Pic-Clor 60","Pic-Clor 60","Pic-Clor 60","Pic-Clor 60","Pic-Clor 60","Pic-Clor 60","Pic-Clor 60","Pic-Clor 60","Pic-Clor 60","Pic-Clor 60","Pic-Clor 60","Pic-Clor 60","Pic-Clor 60","Pic-Clor 60","Pic-Clor 60","Pic-Clor 60","Pic-Clor 60","Pic-Clor 60","Pic-Clor 60","Pic-Clor 60","Pic-Clor 60","Pic-Clor 60","Pic-Clor 60","Pic-Clor 60","Pic-Clor 60","Pic-Clor 60","Pic-Clor 60","Pic-Clor 60","Pic-Clor 60","Pic-Clor 60","Pic-Clor 60","Pic-Clor 60","Pic-Clor 60","Pic-Clor 60","Pic-Clor 60","Pic-Clor 60","Pic-Clor 60","Pic-Clor 60","Pic-Clor 60","Pic-Clor 60","Pic-Clor 60","Pic-Clor 60","Pic-Clor 60","Pic-Clor 60","Pic-Clor 60","Pic-Clor 60","Pic-Clor 60","Pic-Clor 60","Pic-Clor 60","Pic-Clor 60","Pic-Clor 60","Pic-Clor 60","Pic-Clor 60","Pic-Clor 60","Pic-Clor 60","Pic-Clor 60","Pic-Clor 60","Pic-Clor 60","Pic-Clor 60","Pic-Clor 60","Pic-Clor 60","Pic-Clor 60","Pic-Clor 60","Pic-Clor 60","Pic-Clor 60","Pic-Clor 60","Pic-Clor 60","Pic-Clor 60","Pic-Clor 60","Pic-Clor 60","Pic-Clor 60","Pic-Clor 60","Pic-Clor 60","Pic-Clor 60","Pic-Clor 60","Pic-Clor 60","Pic-Clor 60","Pic-Clor 60","Pic-Clor 60","Pic-Clor 60","Pic-Clor 60","Pic-Clor 60","Pic-Clor 60","Pic-Clor 60","Pic-Clor 60","Pic-Clor 60","Pic-Clor 60","Pic-Clor 60","Pic-Clor 60","Pic-Clor 60","Pic-Clor 60","Pic-Clor 60","Pic-Clor 60","Pic-Clor 60","Pic-Clor 60","Pic-Clor 60","Pic-Clor 60","Pic-Clor 60","Pic-Clor 60","Pic-Clor 60","Pic-Clor 60","Pic-Clor 60","Pic-Clor 60","Pic-Clor 60","Pic-Clor 60","Pic-Clor 60","Pic-Clor 60","Pic-Clor 60","Pic-Clor 60","Pic-Clor 60","Pic-Clor 60","Pic-Clor 60","Pic-Clor 60","Pic-Clor 60","Pic-Clor 60","Pic-Clor 60","Pic-Clor 60","Pic-Clor 60","Pic-Clor 60","Pic-Clor 60","Pic-Clor 60","Pic-Clor 60","Pic-Clor 60","Pic-Clor 60","Pic-Clor 60","Pic-Clor 60","Pic-Clor 60","Pic-Clor 60","Pic-Clor 60","Pic-Clor 60","Pic-Clor 60","Pic-Clor 60","Pic-Clor 60","Pic-Clor 60","Pic-Clor 60","Pic-Clor 60","Pic-Clor 60","Pic-Clor 60","Pic-Clor 60","Pic-Clor 60","Pic-Clor 60","Pic-Clor 60","Pic-Clor 60","Pic-Clor 60","Pic-Clor 60","Pic-Clor 60","Pic-Clor 60","Pic-Clor 60","Pic-Clor 60","Pic-Clor 60","Pic-Clor 60","Pic-Clor 60","Pic-Clor 60","Pic-Clor 60","Pic-Clor 60","Pic-Clor 60","Pic-Clor 60","Pic-Clor 60","Pic-Clor 60","Pic-Clor 60","Pic-Clor 60","Pic-Clor 60","Pic-Clor 60","Pic-Clor 60","Pic-Clor 60","Pic-Clor 60","Pic-Clor 60","Pic-Clor 60","Pic-Clor 60","Pic-Clor 60","Pic-Clor 60","Pic-Clor 60","Pic-Clor 60","Pic-Clor 60","Pic-Clor 60","Pic-Clor 60","Pic-Clor 60","Pic-Clor 60","Pic-Clor 60","Pic-Clor 60","Pic-Clor 60","Pic-Clor 60","Pic-Clor 60","Pic-Clor 60","Pic-Clor 60","Pic-Clor 60","Pic-Clor 60","Pic-Clor 60","Pic-Clor 60","Pic-Clor 60","Pic-Clor 60","Pic-Clor 60","Pic-Clor 60","Pic-Clor 60","Pic-Clor 60","Pic-Clor 60","Pic-Clor 60","Pic-Clor 60","Pic-Clor 60","Pic-Clor 60","Pic-Clor 60","Pic-Clor 60","Pic-Clor 60","Pic-Clor 60","Pic-Clor 60","Pic-Clor 60","Pic-Clor 60","Pic-Clor 60","Pic-Clor 60","Pic-Clor 60","Pic-Clor 60","Pic-Clor 60","Pic-Clor 60","Pic-Clor 60","Pic-Clor 60","Pic-Clor 60","Pic-Clor 60","Pic-Clor 60","Pic-Clor 60","Pic-Clor 60","Pic-Clor 60","Pic-Clor 60","Pic-Clor 60","Pic-Clor 60","Pic-Clor 60","Pic-Clor 60","Pic-Clor 60","Pic-Clor 60","Pic-Clor 60","Pic-Clor 60","Pic-Clor 60","Pic-Clor 60","Pic-Clor 60","Pic-Clor 60","Pic-Clor 60","Pic-Clor 60","Pic-Clor 60","Pic-Clor 60","Pic-Clor 60","Pic-Clor 60","Pic-Clor 60","Pic-Clor 60","Pic-Clor 60","Pic-Clor 60","Pic-Clor 60","Pic-Clor 60","Pic-Clor 60","Pic-Clor 60","Pic-Clor 60","Pic-Clor 60","Pic-Clor 60","Pic-Clor 60","Pic-Clor 60","Pic-Clor 60","Pic-Clor 60","Pic-Clor 60","Pic-Clor 60","Pic-Clor 60","Pic-Clor 60","Pic-Clor 60","Pic-Clor 60","Pic-Clor 60","Pic-Clor 60","Pic-Clor 60","Pic-Clor 60","Pic-Clor 60","Pic-Clor 60","Pic-Clor 60","Pic-Clor 60","Pic-Clor 60","Pic-Clor 60","Pic-Clor 60","Pic-Clor 60","Pic-Clor 60","Pic-Clor 60","Pic-Clor 60","Pic-Clor 60","Pic-Clor 60","Pic-Clor 60","Pic-Clor 60","Pic-Clor 60","Pic-Clor 60","Pic-Clor 60","Pic-Clor 60","Pic-Clor 60","Pic-Clor 60","Pic-Clor 60","Pic-Clor 60","Pic-Clor 60","Pic-Clor 60","Pic-Clor 60","Pic-Clor 60","Pic-Clor 60","Pic-Clor 60","Pic-Clor 60","Pic-Clor 60","Pic-Clor 60","Pic-Clor 60","Pic-Clor 60","Pic-Clor 60","Pic-Clor 60","Pic-Clor 60","Pic-Clor 60","Pic-Clor 60","Pic-Clor 60","Pic-Clor 60","Pic-Clor 60","Pic-Clor 60","Pic-Clor 60","Pic-Clor 60","Pic-Clor 60","Pic-Clor 60","Pic-Clor 60","Pic-Clor 60","Pic-Clor 60","Pic-Clor 60","Pic-Clor 60","Pic-Clor 60","Pic-Clor 60","Pic-Clor 60","Pic-Clor 60","Pic-Clor 60","Pic-Clor 60","Pic-Clor 60","Pic-Clor 60","Pic-Clor 60","Pic-Clor 60","Pic-Clor 60","Pic-Clor 60","Pic-Clor 60","Pic-Clor 60","Pic-Clor 60","Pic-Clor 60","Pic-Clor 60","Pic-Clor 60","Pic-Clor 60","Pic-Clor 60","Pic-Clor 60","Pic-Clor 60","Pic-Clor 60","Pic-Clor 60","Pic-Clor 60","Pic-Clor 60","Pic-Clor 60","Pic-Clor 60","Pic-Clor 60","Pic-Clor 60","Pic-Clor 60","Pic-Clor 60","Pic-Clor 60","Pic-Clor 60","Pic-Clor 60","Pic-Clor 60","Pic-Clor 60","Pic-Clor 60","Pic-Clor 60","Pic-Clor 60","Pic-Clor 60","Pic-Clor 60","Pic-Clor 60","Pic-Clor 60","Pic-Clor 60","Pic-Clor 60","Pic-Clor 60","Pic-Clor 60","Pic-Clor 60","Pic-Clor 60","Pic-Clor 60","Pic-Clor 60","Pic-Clor 60","Pic-Clor 60","Pic-Clor 60","Pic-Clor 60","Pic-Clor 60","Pic-Clor 60","Pic-Clor 60","Pic-Clor 60","Pic-Clor 60","Pic-Clor 60","Pic-Clor 60","Pic-Clor 60","Pic-Clor 60","Pic-Clor 60","Pic-Clor 60","Pic-Clor 60","Pic-Clor 60","Pic-Clor 60","Pic-Clor 60","Pic-Clor 60","Pic-Clor 60","Pic-Clor 60","Pic-Clor 60","Pic-Clor 60","Pic-Clor 60","Pic-Clor 60","Pic-Clor 60","Pic-Clor 60","Pic-Clor 60","Pic-Clor 60","Pic-Clor 60","Pic-Clor 60","Pic-Clor 60","Pic-Clor 60","Pic-Clor 60","Pic-Clor 60","Pic-Clor 60","Pic-Clor 60","Pic-Clor 60","Pic-Clor 60","Pic-Clor 60","Pic-Clor 60","Pic-Clor 60","Pic-Clor 60","Pic-Clor 60","Pic-Clor 60","Pic-Clor 60","Pic-Clor 60","Pic-Clor 60","Pic-Clor 60","Pic-Clor 60","Pic-Clor 60","Pic-Clor 60","Pic-Clor 60","Pic-Clor 60","Pic-Clor 60","Pic-Clor 60","Pic-Clor 60","Pic-Clor 60","Pic-Clor 60","Pic-Clor 60","Pic-Clor 60","Pic-Clor 60","Pic-Clor 60","Pic-Clor 60","Pic-Clor 60","Pic-Clor 60","Pic-Clor 60","Pic-Clor 60","Pic-Clor 60","Pic-Clor 60","Pic-Clor 60","Pic-Clor 60","Pic-Clor 60","Pic-Clor 60","Pic-Clor 60","Pic-Clor 60","Pic-Clor 60","Pic-Clor 60","Pic-Clor 60","Pic-Clor 60","Pic-Clor 60","Pic-Clor 60","Pic-Clor 60","Pic-Clor 60","Pic-Clor 60","Pic-Clor 60","Pic-Clor 60","Pic-Clor 60","Pic-Clor 60","Pic-Clor 60","Pic-Clor 60","Pic-Clor 60","Pic-Clor 60","Pic-Clor 60","Pic-Clor 60","Pic-Clor 60","Pic-Clor 60","Pic-Clor 60","Pic-Clor 60","Pic-Clor 60","Pic-Clor 60","Pic-Clor 60","Pic-Clor 60","Pic-Clor 60","Pic-Clor 60","Pic-Clor 60","Pic-Clor 60","Pic-Clor 60","Pic-Clor 60","Pic-Clor 60","Pic-Clor 60","Pic-Clor 60","Pic-Clor 60","Pic-Clor 60","Pic-Clor 60","Pic-Clor 60","Pic-Clor 60","Pic-Clor 60","Pic-Clor 60","Pic-Clor 60","Pic-Clor 60","Pic-Clor 60","Pic-Clor 60","Pic-Clor 60","Pic-Clor 60","Pic-Clor 60","Pic-Clor 60","Pic-Clor 60","Pic-Clor 60","Pic-Clor 60","Pic-Clor 60","Pic-Clor 60","Pic-Clor 60","Pic-Clor 60","Pic-Clor 60","Pic-Clor 60","Pic-Clor 60","Pic-Clor 60","Pic-Clor 60","Pic-Clor 60","Pic-Clor 60","Pic-Clor 60","Pic-Clor 60","Pic-Clor 60","Pic-Clor 60","Pic-Clor 60","Pic-Clor 60","Pic-Clor 60","Pic-Clor 60","Pic-Clor 60","Pic-Clor 60","Pic-Clor 60","Pic-Clor 60","Pic-Clor 60","Pic-Clor 60","Pic-Clor 60","Pic-Clor 60","Pic-Clor 60","Pic-Clor 60","Pic-Clor 60","Pic-Clor 60","Pic-Clor 60","Pic-Clor 60","Pic-Clor 60","Pic-Clor 60","Pic-Clor 60","Pic-Clor 60","Pic-Clor 60","Pic-Clor 60","Pic-Clor 60","Pic-Clor 60","Pic-Clor 60","Pic-Clor 60","Pic-Clor 60","Pic-Clor 60","Pic-Clor 60","Pic-Clor 60","Pic-Clor 60","Pic-Clor 60","Pic-Clor 60","Pic-Clor 60","Pic-Clor 60","Pic-Clor 60","Pic-Clor 60","Pic-Clor 60","Pic-Clor 60","Pic-Clor 60","Pic-Clor 60","Pic-Clor 60","Pic-Clor 60","Pic-Clor 60","Pic-Clor 60","Pic-Clor 60","Pic-Clor 60","Pic-Clor 60","Pic-Clor 60","Pic-Clor 60","Pic-Clor 60","Pic-Clor 60","Pic-Clor 60","Pic-Clor 60","Pic-Clor 60","Pic-Clor 60","Pic-Clor 60","Pic-Clor 60","Pic-Clor 60","Pic-Clor 60","Pic-Clor 60","Pic-Clor 60","Pic-Clor 60","Pic-Clor 60","Pic-Clor 60","Pic-Clor 60","Pic-Clor 60","Pic-Clor 60","Pic-Clor 60","Pic-Clor 60","Pic-Clor 60","Pic-Clor 60","Pic-Clor 60","Pic-Clor 60","Pic-Clor 60","Pic-Clor 60","Pic-Clor 60","Pic-Clor 60","Pic-Clor 60","Pic-Clor 60","Pic-Clor 60","Pic-Clor 60","Pic-Clor 60","Pic-Clor 60","Pic-Clor 60","Pic-Clor 60","Pic-Clor 60","Pic-Clor 60","Pic-Clor 60","Pic-Clor 60","Pic-Clor 60","Pic-Clor 60","Pic-Clor 60","Pic-Clor 60","Pic-Clor 60","Pic-Clor 60","Pic-Clor 60","Pic-Clor 60","Pic-Clor 60","Pic-Clor 60","Pic-Clor 60","Pic-Clor 60","Pic-Clor 60","Pic-Clor 60","Pic-Clor 60","Pic-Clor 60","Pic-Clor 60","Pic-Clor 60","Pic-Clor 60","Pic-Clor 60","Pic-Clor 60","Pic-Clor 60","Pic-Clor 60","Pic-Clor 60","Pic-Clor 60","Pic-Clor 60","Pic-Clor 60","Pic-Clor 60","Pic-Clor 60","Pic-Clor 60","Pic-Clor 60","Pic-Clor 60","Pic-Clor 60","Pic-Clor 60","Pic-Clor 60","Pic-Clor 60","Pic-Clor 60","Pic-Clor 60","Pic-Clor 60","Pic-Clor 60","Pic-Clor 60","Pic-Clor 60","Pic-Clor 60","Pic-Clor 60","Pic-Clor 60","Pic-Clor 60","Pic-Clor 60","Pic-Clor 60","Pic-Clor 60","Pic-Clor 60","Pic-Clor 60","Pic-Clor 60","Pic-Clor 60","Pic-Clor 60","Pic-Clor 60","Pic-Clor 60","Pic-Clor 60","Pic-Clor 60","Pic-Clor 60","Pic-Clor 60","Pic-Clor 60","Pic-Clor 60","Pic-Clor 60","Pic-Clor 60","Pic-Clor 60","Pic-Clor 60","Pic-Clor 60","Pic-Clor 60","Pic-Clor 60","Pic-Clor 60","Pic-Clor 60","Pic-Clor 60","Pic-Clor 60","Pic-Clor 60","Pic-Clor 60","Pic-Clor 60","Pic-Clor 60","Pic-Clor 60","Pic-Clor 60","Pic-Clor 60","Pic-Clor 60","Pic-Clor 60","Pic-Clor 60","Pic-Clor 60","Pic-Clor 60","Pic-Clor 60","Pic-Clor 60","Pic-Clor 60","Pic-Clor 60","Pic-Clor 60","Pic-Clor 60","Pic-Clor 60","Pic-Clor 60","Pic-Clor 60","Pic-Clor 60","Pic-Clor 60","Pic-Clor 60","Pic-Clor 60","Pic-Clor 60","Pic-Clor 60","Pic-Clor 60","Pic-Clor 60","Pic-Clor 60","Pic-Clor 60","Pic-Clor 60","Pic-Clor 60","Pic-Clor 60","Pic-Clor 60","Pic-Clor 60","Pic-Clor 60","Pic-Clor 60","Pic-Clor 60","Pic-Clor 60","Pic-Clor 60","Pic-Clor 60","Pic-Clor 60","Pic-Clor 60","Pic-Clor 60","Pic-Clor 60","Pic-Clor 60","Pic-Clor 60","Pic-Clor 60","Pic-Clor 60","Pic-Clor 60","Pic-Clor 60","Pic-Clor 60","Pic-Clor 60","Pic-Clor 60","Pic-Clor 60","Pic-Clor 60","Pic-Clor 60","Pic-Clor 60","Pic-Clor 60","Pic-Clor 60","Pic-Clor 60","Pic-Clor 60","Pic-Clor 60","Pic-Clor 60","Pic-Clor 60","Pic-Clor 60","Pic-Clor 60","Pic-Clor 60","Pic-Clor 60","Pic-Clor 60","Pic-Clor 60","Pic-Clor 60","Pic-Clor 60","Pic-Clor 60","Pic-Clor 60","Pic-Clor 60","Pic-Clor 60","Pic-Clor 60","Pic-Clor 60","Pic-Clor 60","Pic-Clor 60","Pic-Clor 60","Pic-Clor 60","Pic-Clor 60","Pic-Clor 60","Pic-Clor 60","Pic-Clor 60","Pic-Clor 60","Pic-Clor 60","Pic-Clor 60","Pic-Clor 60","Pic-Clor 60","Pic-Clor 60","Pic-Clor 60","Pic-Clor 60","Pic-Clor 60","Pic-Clor 60","Pic-Clor 60","Pic-Clor 60","Pic-Clor 60","Pic-Clor 60","Pic-Clor 60","Pic-Clor 60","Pic-Clor 60","Pic-Clor 60","Pic-Clor 60","Pic-Clor 60","Pic-Clor 60","Pic-Clor 60","Pic-Clor 60","Pic-Clor 60","Pic-Clor 60","Pic-Clor 60","Pic-Clor 60","Pic-Clor 60","Pic-Clor 60","Pic-Clor 60","Pic-Clor 60","Pic-Clor 60","Pic-Clor 60","Pic-Clor 60","Pic-Clor 60","Pic-Clor 60","Pic-Clor 60","Pic-Clor 60","Pic-Clor 60","Pic-Clor 60","Pic-Clor 60","Pic-Clor 60","Pic-Clor 60","Pic-Clor 60","Pic-Clor 60","Pic-Clor 60","Pic-Clor 60","Pic-Clor 60","Pic-Clor 60","Pic-Clor 60","Pic-Clor 60","Pic-Clor 60","Pic-Clor 60","Pic-Clor 60","Pic-Clor 60","Pic-Clor 60","Pic-Clor 60","Pic-Clor 60","Pic-Clor 60","Pic-Clor 60","Pic-Clor 60","Pic-Clor 60","Pic-Clor 60","Pic-Clor 60","Pic-Clor 60","Pic-Clor 60","Pic-Clor 60","Pic-Clor 60","Pic-Clor 60","Pic-Clor 60","Pic-Clor 60","Pic-Clor 60","Pic-Clor 60","Pic-Clor 60","Pic-Clor 60","Pic-Clor 60","Pic-Clor 60","Pic-Clor 60","Pic-Clor 60","Pic-Clor 60","Pic-Clor 60","Pic-Clor 60","Pic-Clor 60","Pic-Clor 60","Pic-Clor 60","Pic-Clor 60","Pic-Clor 60","Pic-Clor 60","Pic-Clor 60","Pic-Clor 60","Pic-Clor 60","Pic-Clor 60","Pic-Clor 60","Pic-Clor 60","Pic-Clor 60","Pic-Clor 60","Pic-Clor 60","Pic-Clor 60","Pic-Clor 60","Pic-Clor 60","Pic-Clor 60","Pic-Clor 60","Pic-Clor 60","Pic-Clor 60","Pic-Clor 60","Pic-Clor 60","Pic-Clor 60","Pic-Clor 60","Pic-Clor 60","Pic-Clor 60","Pic-Clor 60","Pic-Clor 60","Pic-Clor 60","Pic-Clor 60","Pic-Clor 60","Pic-Clor 60","Pic-Clor 60","Pic-Clor 60","Pic-Clor 60","Pic-Clor 60","Pic-Clor 60","Pic-Clor 60","Pic-Clor 60","Pic-Clor 60","Pic-Clor 60","Pic-Clor 60","Pic-Clor 60","Pic-Clor 60","Pic-Clor 60","Pic-Clor 60","Pic-Clor 60","Pic-Clor 60","Pic-Clor 60","Pic-Clor 60","Pic-Clor 60","Pic-Clor 60","Pic-Clor 60","Pic-Clor 60","Pic-Clor 60","Pic-Clor 60","Pic-Clor 60","Pic-Clor 60","Pic-Clor 60","Pic-Clor 60","Pic-Clor 60","Pic-Clor 60","Pic-Clor 60","Pic-Clor 60","Pic-Clor 60","Pic-Clor 60","Pic-Clor 60","Pic-Clor 60","Pic-Clor 60","Pic-Clor 60","Pic-Clor 60","Pic-Clor 60","Pic-Clor 60","Pic-Clor 60","Pic-Clor 60","Pic-Clor 60","Pic-Clor 60","Pic-Clor 60","Pic-Clor 60","Pic-Clor 60","Pic-Clor 60","Pic-Clor 60","Pic-Clor 60","Pic-Clor 60","Pic-Clor 60","Pic-Clor 60","Pic-Clor 60","Pic-Clor 60","Pic-Clor 60","Pic-Clor 60","Pic-Clor 60","Pic-Clor 60","Pic-Clor 60","Pic-Clor 60","Pic-Clor 60","Pic-Clor 60","Pic-Clor 60","Pic-Clor 60","Pic-Clor 60","Pic-Clor 60","Pic-Clor 60","Pic-Clor 60","Pic-Clor 60","Pic-Clor 60","Pic-Clor 60","Pic-Clor 60","Pic-Clor 60","Pic-Clor 60","Pic-Clor 60","Pic-Clor 60","Pic-Clor 60","Pic-Clor 60","Pic-Clor 60","Pic-Clor 60","Pic-Clor 60","Pic-Clor 60","Pic-Clor 60","Pic-Clor 60","Pic-Clor 60","Pic-Clor 60","Pic-Clor 60","Pic-Clor 60","Pic-Clor 60","Pic-Clor 60","Pic-Clor 60","Pic-Clor 60","Pic-Clor 60","Pic-Clor 60","Pic-Clor 60","Pic-Clor 60","Pic-Clor 60","Pic-Clor 60","Pic-Clor 60","Pic-Clor 60","Pic-Clor 60","Pic-Clor 60","Pic-Clor 60","Pic-Clor 60","Pic-Clor 60","Pic-Clor 60","Pic-Clor 60","Pic-Clor 60","Pic-Clor 60","Pic-Clor 60","Pic-Clor 60","Pic-Clor 60","Pic-Clor 60","Pic-Clor 60","Pic-Clor 60","Pic-Clor 60","Pic-Clor 60","Pic-Clor 60","Pic-Clor 60","Pic-Clor 60","Pic-Clor 60","Pic-Clor 60","Pic-Clor 60","Pic-Clor 60","Pic-Clor 60","Pic-Clor 60","Pic-Clor 60","Pic-Clor 60","Pic-Clor 60","Pic-Clor 60","Pic-Clor 60","Pic-Clor 60","Pic-Clor 60","Pic-Clor 60","Pic-Clor 60","Pic-Clor 60","Pic-Clor 60","Pic-Clor 60","Pic-Clor 60","Pic-Clor 60","Pic-Clor 60","Pic-Clor 60","Pic-Clor 60","Pic-Clor 60","Pic-Clor 60","Pic-Clor 60","Pic-Clor 60","Pic-Clor 60","Pic-Clor 60","Pic-Clor 60","Pic-Clor 60","Pic-Clor 60","Pic-Clor 60","Pic-Clor 60","Pic-Clor 60","Pic-Clor 60","Pic-Clor 60","Pic-Clor 60","Pic-Clor 60","Pic-Clor 60","Pic-Clor 60","Pic-Clor 60","Pic-Clor 60","Pic-Clor 60","Pic-Clor 60","Pic-Clor 60","Pic-Clor 60","Pic-Clor 60","Pic-Clor 60","Pic-Clor 60","Pic-Clor 60","Pic-Clor 60","Pic-Clor 60","Pic-Clor 60","Pic-Clor 60","Pic-Clor 60","Pic-Clor 60","Pic-Clor 60","Pic-Clor 60","Pic-Clor 60","Pic-Clor 60","Pic-Clor 60","Pic-Clor 60","Pic-Clor 60","Pic-Clor 60","Pic-Clor 60","Pic-Clor 60","Pic-Clor 60","Pic-Clor 60","Pic-Clor 60","Pic-Clor 60","Pic-Clor 60","Pic-Clor 60","Pic-Clor 60","Pic-Clor 60","Pic-Clor 60","Pic-Clor 60","Pic-Clor 60","Pic-Clor 60","Pic-Clor 60","Pic-Clor 60","Pic-Clor 60","Pic-Clor 60","Pic-Clor 60","Pic-Clor 60","Pic-Clor 60","Pic-Clor 60","Pic-Clor 60","Pic-Clor 60","Pic-Clor 60","Pic-Clor 60","Pic-Clor 60","Pic-Clor 60","Pic-Clor 60","Pic-Clor 60","Pic-Clor 60","Pic-Clor 60","Pic-Clor 60","Pic-Clor 60","Pic-Clor 60","Pic-Clor 60","Pic-Clor 60","Pic-Clor 60","Pic-Clor 60","Pic-Clor 60","Pic-Clor 60","Pic-Clor 60","Pic-Clor 60","Pic-Clor 60","Pic-Clor 60","Pic-Clor 60","Pic-Clor 60","Pic-Clor 60","Pic-Clor 60","Pic-Clor 60","Pic-Clor 60","Pic-Clor 60","Pic-Clor 60","Pic-Clor 60","Pic-Clor 60","Pic-Clor 60","Pic-Clor 60","Pic-Clor 60","Pic-Clor 60","Pic-Clor 60","Pic-Clor 60","Pic-Clor 60","Pic-Clor 60","Pic-Clor 60","Pic-Clor 60","Pic-Clor 60","Pic-Clor 60","Pic-Clor 60","Pic-Clor 60","Pic-Clor 60","Pic-Clor 60","Pic-Clor 60","Pic-Clor 60","Pic-Clor 60","Pic-Clor 60","Pic-Clor 60","Pic-Clor 60","Pic-Clor 60","Pic-Clor 60","Pic-Clor 60","Pic-Clor 60","Pic-Clor 60","Pic-Clor 60","Pic-Clor 60","Pic-Clor 60","Pic-Clor 60","Pic-Clor 60","Pic-Clor 60","Pic-Clor 60","Pic-Clor 60","Pic-Clor 60","Pic-Clor 60","Pic-Clor 60","Pic-Clor 60","Pic-Clor 60","Pic-Clor 60","Pic-Clor 60","Pic-Clor 60","Pic-Clor 60","Pic-Clor 60","Pic-Clor 60","Pic-Clor 60","Pic-Clor 60","Pic-Clor 60","Pic-Clor 60","Pic-Clor 60","Pic-Clor 60","Pic-Clor 60","Pic-Clor 60","Pic-Clor 60","Pic-Clor 60","Pic-Clor 60","Pic-Clor 60","Pic-Clor 60","Pic-Clor 60","Pic-Clor 60","Pic-Clor 60","Pic-Clor 60","Pic-Clor 60","Pic-Clor 60","Pic-Clor 60","Pic-Clor 60","Pic-Clor 60","Pic-Clor 60","Pic-Clor 60","Pic-Clor 60","Pic-Clor 60","Pic-Clor 60","Pic-Clor 60","Pic-Clor 60","Pic-Clor 60","Pic-Clor 60","Pic-Clor 60","Pic-Clor 60","Pic-Clor 60","Pic-Clor 60","Pic-Clor 60","Pic-Clor 60","Pic-Clor 60","Pic-Clor 60","Pic-Clor 60","Pic-Clor 60","Pic-Clor 60","Pic-Clor 60","Pic-Clor 60","Pic-Clor 60","Pic-Clor 60","Pic-Clor 60","Pic-Clor 60","Pic-Clor 60","Pic-Clor 60","Pic-Clor 60","Pic-Clor 60","Pic-Clor 60","Pic-Clor 60","Pic-Clor 60","Pic-Clor 60","Pic-Clor 60","Pic-Clor 60","Pic-Clor 60","Pic-Clor 60","Pic-Clor 60","Pic-Clor 60","Pic-Clor 60","Pic-Clor 60","Pic-Clor 60","Pic-Clor 60","Pic-Clor 60","Pic-Clor 60","Pic-Clor 60","Pic-Clor 60","Pic-Clor 60","Pic-Clor 60","Pic-Clor 60","Pic-Clor 60","Pic-Clor 60","Pic-Clor 60","Pic-Clor 60","Pic-Clor 60","Pic-Clor 60","Pic-Clor 60","Pic-Clor 60","Pic-Clor 60","Pic-Clor 60","Pic-Clor 60","Pic-Clor 60","Pic-Clor 60","Pic-Clor 60","Pic-Clor 60","Pic-Clor 60","Pic-Clor 60","Pic-Clor 60","Pic-Clor 60","Pic-Clor 60","Pic-Clor 60","Pic-Clor 60","Pic-Clor 60","Pic-Clor 60","Pic-Clor 60","Pic-Clor 60","Pic-Clor 60","Pic-Clor 60","Pic-Clor 60","Pic-Clor 60","Pic-Clor 60","Pic-Clor 60","Pic-Clor 60","Pic-Clor 60","Pic-Clor 60","Pic-Clor 60","Pic-Clor 60","Pic-Clor 60","Pic-Clor 60","Pic-Clor 60","Pic-Clor 60","Pic-Clor 60","Pic-Clor 60","Pic-Clor 60","Pic-Clor 60","Pic-Clor 60","Pic-Clor 60","Pic-Clor 60","Pic-Clor 60","Pic-Clor 60","Pic-Clor 60","Pic-Clor 60","Pic-Clor 60","Pic-Clor 60","Pic-Clor 60","Pic-Clor 60","Pic-Clor 60","Pic-Clor 60","Pic-Clor 60","Pic-Clor 60","Pic-Clor 60","Pic-Clor 60","Pic-Clor 60","Pic-Clor 60","Pic-Clor 60","Pic-Clor 60","Pic-Clor 60","Pic-Clor 60","Pic-Clor 60","Pic-Clor 60","Pic-Clor 60","Pic-Clor 60","Pic-Clor 60","Pic-Clor 60","Pic-Clor 60","Pic-Clor 60","Pic-Clor 60","Pic-Clor 60","Pic-Clor 60","Pic-Clor 60","Pic-Clor 60","Pic-Clor 60","Pic-Clor 60","Pic-Clor 60","Pic-Clor 60","Pic-Clor 60","Pic-Clor 60","Pic-Clor 60","Pic-Clor 60","Pic-Clor 60","Pic-Clor 60","Pic-Clor 60","Pic-Clor 60","Pic-Clor 60","Pic-Clor 60","Pic-Clor 60","Pic-Clor 60","Pic-Clor 60","Pic-Clor 60","Pic-Clor 60","Pic-Clor 60","Pic-Clor 60","Pic-Clor 60","Pic-Clor 60","Pic-Clor 60","Pic-Clor 60","Pic-Clor 60","Pic-Clor 60","Pic-Clor 60","Pic-Clor 60","Pic-Clor 60","Pic-Clor 60","Pic-Clor 60","Pic-Clor 60","Pic-Clor 60","Pic-Clor 60","Pic-Clor 60","Pic-Clor 60","Pic-Clor 60","Pic-Clor 60","Pic-Clor 60","Pic-Clor 60","Pic-Clor 60","Pic-Clor 60","Pic-Clor 60","Pic-Clor 60","Pic-Clor 60","Pic-Clor 60","Pic-Clor 60","Pic-Clor 60","Pic-Clor 60","Pic-Clor 60","Pic-Clor 60","Pic-Clor 60","Pic-Clor 60","Pic-Clor 60","Pic-Clor 60","Pic-Clor 60","Pic-Clor 60","Pic-Clor 60","Pic-Clor 60","Pic-Clor 60","Pic-Clor 60","Pic-Clor 60","Pic-Clor 60","Pic-Clor 60","Pic-Clor 60","Pic-Clor 60","Pic-Clor 60","Pic-Clor 60","Pic-Clor 60","Pic-Clor 60","Pic-Clor 60","Pic-Clor 60","Pic-Clor 60","Pic-Clor 60","Pic-Clor 60","Pic-Clor 60","Pic-Clor 60","Pic-Clor 60","Pic-Clor 60","Pic-Clor 60","Pic-Clor 60","Pic-Clor 60","Pic-Clor 60","Pic-Clor 60","Pic-Clor 60","Pic-Clor 60","Pic-Clor 60","Pic-Clor 60","Pic-Clor 60","Pic-Clor 60","Pic-Clor 60","Pic-Clor 60","Pic-Clor 60","Pic-Clor 60","Pic-Clor 60","Pic-Clor 60","Pic-Clor 60","Pic-Clor 60","Pic-Clor 60","Pic-Clor 60","Pic-Clor 60","Pic-Clor 60","Pic-Clor 60","Pic-Clor 60","Pic-Clor 60","Pic-Clor 60","Pic-Clor 60","Pic-Clor 60","Pic-Clor 60","Pic-Clor 60","Pic-Clor 60","Pic-Clor 60","Pic-Clor 60","Pic-Clor 60","Pic-Clor 60","Pic-Clor 60","Pic-Clor 60","Pic-Clor 60","Pic-Clor 60","Pic-Clor 60","Pic-Clor 60","Pic-Clor 60","Pic-Clor 60","Pic-Clor 60","Pic-Clor 60","Pic-Clor 60","Pic-Clor 60","Pic-Clor 60","Pic-Clor 60","Pic-Clor 60","Pic-Clor 60","Pic-Clor 60","Pic-Clor 60","Pic-Clor 60","Pic-Clor 60","Pic-Clor 60","Pic-Clor 60","Pic-Clor 60","Pic-Clor 60","Pic-Clor 60","Pic-Clor 60","Pic-Clor 60","Pic-Clor 60","Pic-Clor 60","Pic-Clor 60","Pic-Clor 60","Pic-Clor 60","Pic-Clor 60","Pic-Clor 60","Pic-Clor 60","Pic-Clor 60","Pic-Clor 60","Pic-Clor 60","Pic-Clor 60","Pic-Clor 60","Pic-Clor 60","Pic-Clor 60","Pic-Clor 60","Pic-Clor 60","Pic-Clor 60","Pic-Clor 60","Pic-Clor 60","Pic-Clor 60","Pic-Clor 60","Pic-Clor 60","Pic-Clor 60","Pic-Clor 60","Pic-Clor 60","Pic-Clor 60","Pic-Clor 60","Pic-Clor 60","Pic-Clor 60","Pic-Clor 60","Pic-Clor 60","Pic-Clor 60","Pic-Clor 60","Pic-Clor 60","Pic-Clor 60","Pic-Clor 60","Pic-Clor 60","Pic-Clor 60","Pic-Clor 60","Pic-Clor 60","Pic-Clor 60","Pic-Clor 60","Pic-Clor 60","Pic-Clor 60","Pic-Clor 60","Pic-Clor 60","Pic-Clor 60","Pic-Clor 60","Pic-Clor 60","Pic-Clor 60","Pic-Clor 60","Pic-Clor 60","Pic-Clor 60","Pic-Clor 60","Pic-Clor 60","Pic-Clor 60","Pic-Clor 60","Pic-Clor 60","Pic-Clor 60","Pic-Clor 60","Pic-Clor 60","Pic-Clor 60","Pic-Clor 60","Pic-Clor 60","Pic-Clor 60","Pic-Clor 60","Pic-Clor 60","Pic-Clor 60","Pic-Clor 60","Pic-Clor 60","Pic-Clor 60","Pic-Clor 60","Pic-Clor 60","Pic-Clor 60","Pic-Clor 60","Pic-Clor 60","Pic-Clor 60","Pic-Clor 60","Pic-Clor 60","Pic-Clor 60","Pic-Clor 60","Pic-Clor 60","Pic-Clor 60","Pic-Clor 60","Pic-Clor 60","Pic-Clor 60","Pic-Clor 60","Pic-Clor 60","Pic-Clor 60","Pic-Clor 60","Pic-Clor 60","Pic-Clor 60","Pic-Clor 60","Pic-Clor 60","Pic-Clor 60","Pic-Clor 60","Pic-Clor 60","Pic-Clor 60","Pic-Clor 60","Pic-Clor 60","Pic-Clor 60","Pic-Clor 60","Pic-Clor 60","Pic-Clor 60","Pic-Clor 60","Pic-Clor 60","Pic-Clor 60","Pic-Clor 60","Pic-Clor 60","Pic-Clor 60","Pic-Clor 60","Pic-Clor 60","Pic-Clor 60","Pic-Clor 60","Pic-Clor 60","Pic-Clor 60","Pic-Clor 60","Pic-Clor 60","Pic-Clor 60","Pic-Clor 60","Pic-Clor 60","Pic-Clor 60","Pic-Clor 60","Pic-Clor 60","Pic-Clor 60","Pic-Clor 60","Pic-Clor 60","Pic-Clor 60","Pic-Clor 60","Pic-Clor 60","Pic-Clor 60","Pic-Clor 60","Pic-Clor 60","Pic-Clor 60","Pic-Clor 60","Pic-Clor 60","Pic-Clor 60","Pic-Clor 60","Pic-Clor 60","Pic-Clor 60","Pic-Clor 60","Pic-Clor 60","Pic-Clor 60","Pic-Clor 60","Pic-Clor 60","Pic-Clor 60","Pic-Clor 60","Pic-Clor 60","Pic-Clor 60","Pic-Clor 60","Pic-Clor 60","Pic-Clor 60","Pic-Clor 60","Pic-Clor 60","Pic-Clor 60","Pic-Clor 60","Pic-Clor 60","Pic-Clor 60","Pic-Clor 60","Pic-Clor 60","Pic-Clor 60","Pic-Clor 60","Pic-Clor 60","Pic-Clor 60","Pic-Clor 60","Pic-Clor 60","Pic-Clor 60","Pic-Clor 60","Pic-Clor 60","Pic-Clor 60","Pic-Clor 60","Pic-Clor 60","Pic-Clor 60","Pic-Clor 60","Pic-Clor 60","Pic-Clor 60","Pic-Clor 60","Pic-Clor 60","Pic-Clor 60","Pic-Clor 60","Pic-Clor 60","Pic-Clor 60","Pic-Clor 60","Pic-Clor 60","Pic-Clor 60","Pic-Clor 60","Pic-Clor 60","Pic-Clor 60","Pic-Clor 60","Pic-Clor 60","Pic-Clor 60","Pic-Clor 60","Pic-Clor 60","Pic-Clor 60","Pic-Clor 60","Pic-Clor 60","Pic-Clor 60","Pic-Clor 60","Pic-Clor 60","Pic-Clor 60","Pic-Clor 60","Pic-Clor 60","Pic-Clor 60","Pic-Clor 60","Pic-Clor 60","Pic-Clor 60","Pic-Clor 60","Pic-Clor 60","Pic-Clor 60","Pic-Clor 60","Pic-Clor 60","Pic-Clor 60","Pic-Clor 60","Pic-Clor 60","Pic-Clor 60","Pic-Clor 60","Pic-Clor 60","Pic-Clor 60","Pic-Clor 60","Pic-Clor 60","Pic-Clor 60","Pic-Clor 60","Pic-Clor 60","Pic-Clor 60","Pic-Clor 60","Pic-Clor 60","Pic-Clor 60","Pic-Clor 60","Pic-Clor 60","Pic-Clor 60","Pic-Clor 60","Pic-Clor 60","Pic-Clor 60","Pic-Clor 60","Pic-Clor 60","Pic-Clor 60","Pic-Clor 60","Pic-Clor 60","Pic-Clor 60","Pic-Clor 60","Pic-Clor 60","Pic-Clor 60","Pic-Clor 60","Pic-Clor 60","Pic-Clor 60","Pic-Clor 60","Pic-Clor 60","Pic-Clor 60","Pic-Clor 60","Pic-Clor 60","Pic-Clor 60","Pic-Clor 60","Pic-Clor 60","Pic-Clor 60","Pic-Clor 60","Pic-Clor 60","Pic-Clor 60","Pic-Clor 60","Pic-Clor 60","Pic-Clor 60","Pic-Clor 60","Pic-Clor 60","Pic-Clor 60","Pic-Clor 60","Pic-Clor 60","Pic-Clor 60","Pic-Clor 60","Pic-Clor 60","Pic-Clor 60","Pic-Clor 60","Pic-Clor 60","Pic-Clor 60","Pic-Clor 60","Pic-Clor 60","Pic-Clor 60","Pic-Clor 60","Pic-Clor 60","Pic-Clor 60","Pic-Clor 60","Pic-Clor 60","Pic-Clor 60","Pic-Clor 60","Pic-Clor 60","Pic-Clor 60","Pic-Clor 60","Pic-Clor 60","Pic-Clor 60","Pic-Clor 60","Pic-Clor 60","Pic-Clor 60","Pic-Clor 60","Pic-Clor 60","Pic-Clor 60","Pic-Clor 60","Pic-Clor 60","Pic-Clor 60","Pic-Clor 60","Pic-Clor 60","Pic-Clor 60","Pic-Clor 60","Pic-Clor 60","Pic-Clor 60","Pic-Clor 60","Pic-Clor 60","Pic-Clor 60","Pic-Clor 60","Pic-Clor 60","Pic-Clor 60","Pic-Clor 60","Pic-Clor 60","Pic-Clor 60","Pic-Clor 60","Pic-Clor 60","Pic-Clor 60","Pic-Clor 60","Pic-Clor 60","Pic-Clor 60","Pic-Clor 60","Pic-Clor 60","Pic-Clor 60","Pic-Clor 60","Pic-Clor 60","Pic-Clor 60","Pic-Clor 60","Pic-Clor 60","Pic-Clor 60","Pic-Clor 60","Pic-Clor 60","Pic-Clor 60","Pic-Clor 60","Pic-Clor 60","Pic-Clor 60","Pic-Clor 60","Pic-Clor 60","Pic-Clor 60","Pic-Clor 60","Pic-Clor 60","Pic-Clor 60","Pic-Clor 60","Pic-Clor 60","Pic-Clor 60","Pic-Clor 60","Pic-Clor 60","Pic-Clor 60","Pic-Clor 60","Pic-Clor 60","Pic-Clor 60","Pic-Clor 60","Pic-Clor 60","Pic-Clor 60","Pic-Clor 60","Pic-Clor 60","Pic-Clor 60","Pic-Clor 60","Pic-Clor 60","Pic-Clor 60","Pic-Clor 60","Pic-Clor 60","Pic-Clor 60","Pic-Clor 60","Pic-Clor 60","Pic-Clor 60","Pic-Clor 60","Pic-Clor 60","Pic-Clor 60","Pic-Clor 60","Pic-Clor 60","Pic-Clor 60","Pic-Clor 60","Pic-Clor 60","Pic-Clor 60","Pic-Clor 60","Pic-Clor 60","Pic-Clor 60","Pic-Clor 60","Pic-Clor 60","Pic-Clor 60","Pic-Clor 60","Pic-Clor 60","Pic-Clor 60","Pic-Clor 60","Pic-Clor 60","Pic-Clor 60","Pic-Clor 60","Pic-Clor 60","Pic-Clor 60","Pic-Clor 60","Pic-Clor 60","Pic-Clor 60","Pic-Clor 60","Pic-Clor 60","Pic-Clor 60","Pic-Clor 60","Pic-Clor 60","Pic-Clor 60","Pic-Clor 60","Pic-Clor 60","Pic-Clor 60","Pic-Clor 60","Pic-Clor 60","Pic-Clor 60","Pic-Clor 60","Pic-Clor 60","Pic-Clor 60","Pic-Clor 60","Pic-Clor 60","Pic-Clor 60","Pic-Clor 60","Pic-Clor 60","Pic-Clor 60","Pic-Clor 60","Pic-Clor 60","Pic-Clor 60","Pic-Clor 60","Pic-Clor 60","Pic-Clor 60","Pic-Clor 60","Pic-Clor 60","Pic-Clor 60","Pic-Clor 60","Pic-Clor 60","Pic-Clor 60","Pic-Clor 60","Pic-Clor 60","Pic-Clor 60","Pic-Clor 60","Pic-Clor 60","Pic-Clor 60","Pic-Clor 60","Pic-Clor 60","Pic-Clor 60","Pic-Clor 60","Pic-Clor 60","Pic-Clor 60","Pic-Clor 60","Pic-Clor 60","Pic-Clor 60","Pic-Clor 60","Pic-Clor 60","Pic-Clor 60","Pic-Clor 60","Pic-Clor 60","Pic-Clor 60","Pic-Clor 60","Pic-Clor 60","Pic-Clor 60","Pic-Clor 60","Pic-Clor 60","Pic-Clor 60","Pic-Clor 60","Pic-Clor 60","Pic-Clor 60","Pic-Clor 60","Pic-Clor 60","Pic-Clor 60","Pic-Clor 60","Pic-Clor 60","Pic-Clor 60","Pic-Clor 60","Pic-Clor 60","Pic-Clor 60","Pic-Clor 60","Pic-Clor 60","Pic-Clor 60","Pic-Clor 60","Pic-Clor 60","Pic-Clor 60","Pic-Clor 60","Pic-Clor 60","Pic-Clor 60","Pic-Clor 60","Pic-Clor 60","Pic-Clor 60","Pic-Clor 60","Pic-Clor 60","Pic-Clor 60","Pic-Clor 60","Pic-Clor 60","Pic-Clor 60","Pic-Clor 60","Pic-Clor 60","Pic-Clor 60","Pic-Clor 60","Pic-Clor 60","Pic-Clor 60","Pic-Clor 60","Pic-Clor 60","Pic-Clor 60","Pic-Clor 60","Pic-Clor 60","Pic-Clor 60","Pic-Clor 60","Pic-Clor 60","Pic-Clor 60","Pic-Clor 60","Pic-Clor 60","Pic-Clor 60","Pic-Clor 60","Pic-Clor 60","Pic-Clor 60","Pic-Clor 60","Pic-Clor 60","Pic-Clor 60","Pic-Clor 60","Pic-Clor 60","Pic-Clor 60","Pic-Clor 60","Pic-Clor 60","Pic-Clor 60","Pic-Clor 60","Pic-Clor 60","Pic-Clor 60","Pic-Clor 60","Pic-Clor 60","Pic-Clor 60","Pic-Clor 60","Pic-Clor 60","Pic-Clor 60","Pic-Clor 60","Pic-Clor 60","Pic-Clor 60","Pic-Clor 60","Pic-Clor 60","Pic-Clor 60","Pic-Clor 60","Pic-Clor 60","Pic-Clor 60","Pic-Clor 60","Pic-Clor 60","Pic-Clor 60","Pic-Clor 60","Pic-Clor 60","Pic-Clor 60","Pic-Clor 60","Pic-Clor 60","Pic-Clor 60","Pic-Clor 60","Pic-Clor 60","Pic-Clor 60","Pic-Clor 60","Pic-Clor 60","Pic-Clor 60","Pic-Clor 60","Pic-Clor 60","Pic-Clor 60","Pic-Clor 60","Pic-Clor 60","Pic-Clor 60","Pic-Clor 60","Pic-Clor 60","Pic-Clor 60","Pic-Clor 60","Pic-Clor 60","Pic-Clor 60","Pic-Clor 60","Pic-Clor 60","Pic-Clor 60","Pic-Clor 60","Pic-Clor 60","Pic-Clor 60","Pic-Clor 60","Pic-Clor 60","Pic-Clor 60","Pic-Clor 60","Pic-Clor 60","Pic-Clor 60","Pic-Clor 60","Pic-Clor 60","Pic-Clor 60","Pic-Clor 60","Pic-Clor 60","Pic-Clor 60","Pic-Clor 60","Pic-Clor 60","Pic-Clor 60","Pic-Clor 60","Pic-Clor 60","Pic-Clor 60","Pic-Clor 60","Pic-Clor 60","Pic-Clor 60","Pic-Clor 60","Pic-Clor 60","Pic-Clor 60","Pic-Clor 60","Pic-Clor 60","Pic-Clor 60","Pic-Clor 60","Pic-Clor 60","Pic-Clor 60","Pic-Clor 60","Pic-Clor 60","Pic-Clor 60","Pic-Clor 60","Pic-Clor 60","Pic-Clor 60","Pic-Clor 60","Pic-Clor 60","Pic-Clor 60","Pic-Clor 60","Pic-Clor 60","Pic-Clor 60","Pic-Clor 60","Pic-Clor 60","Pic-Clor 60","Pic-Clor 60","Pic-Clor 60","Pic-Clor 60","Pic-Clor 60","Pic-Clor 60","Pic-Clor 60","Pic-Clor 60","Pic-Clor 60","Pic-Clor 60","Pic-Clor 60","Pic-Clor 60","Pic-Clor 60","Pic-Clor 60","Pic-Clor 60","Pic-Clor 60","Pic-Clor 60","Pic-Clor 60","Pic-Clor 60","Pic-Clor 60","Pic-Clor 60","Pic-Clor 60","Pic-Clor 60","Pic-Clor 60","Pic-Clor 60","Pic-Clor 60","Pic-Clor 60","Pic-Clor 60","Pic-Clor 60","Pic-Clor 60","Pic-Clor 60","Pic-Clor 60","Pic-Clor 60","Pic-Clor 60","Pic-Clor 60","Pic-Clor 60","Pic-Clor 60","Pic-Clor 60","Pic-Clor 60","Pic-Clor 60","Pic-Clor 60","Pic-Clor 60","Pic-Clor 60","Pic-Clor 60","Pic-Clor 60","Pic-Clor 60","Pic-Clor 60","Pic-Clor 60","Pic-Clor 60","Pic-Clor 60","Pic-Clor 60","Pic-Clor 60","Pic-Clor 60","Pic-Clor 60","Pic-Clor 60","Pic-Clor 60","Pic-Clor 60","Pic-Clor 60","Pic-Clor 60","Pic-Clor 60","Pic-Clor 60","Pic-Clor 60","Pic-Clor 60","Pic-Clor 60","Pic-Clor 60","Pic-Clor 60","Pic-Clor 60","Pic-Clor 60","Pic-Clor 60","Pic-Clor 60","Pic-Clor 60","Pic-Clor 60","Pic-Clor 60","Pic-Clor 60","Pic-Clor 60","Pic-Clor 60","Pic-Clor 60","Pic-Clor 60","Pic-Clor 60","Pic-Clor 60","Pic-Clor 60","Pic-Clor 60","Pic-Clor 60","Pic-Clor 60","Pic-Clor 60","Pic-Clor 60","Pic-Clor 60","Pic-Clor 60","Pic-Clor 60","Pic-Clor 60","Pic-Clor 60","Pic-Clor 60","Pic-Clor 60","Pic-Clor 60","Pic-Clor 60","Pic-Clor 60","Pic-Clor 60","Pic-Clor 60","Pic-Clor 60","Pic-Clor 60","Pic-Clor 60","Pic-Clor 60","Pic-Clor 60","Pic-Clor 60","Pic-Clor 60","Pic-Clor 60","Pic-Clor 60","Pic-Clor 60","Pic-Clor 60","Pic-Clor 60","Pic-Clor 60","Pic-Clor 60","Pic-Clor 60","Pic-Clor 60","Pic-Clor 60","Pic-Clor 60","Pic-Clor 60","Pic-Clor 60","Pic-Clor 60","Pic-Clor 60","Pic-Clor 60","Pic-Clor 60","Pic-Clor 60","Pic-Clor 60","Pic-Clor 60","Pic-Clor 60","Pic-Clor 60","Pic-Clor 60","Pic-Clor 60","Pic-Clor 60","Pic-Clor 60","Pic-Clor 60","Pic-Clor 60","Pic-Clor 60","Pic-Clor 60","Pic-Clor 60","Pic-Clor 60","Pic-Clor 60","Pic-Clor 60","Pic-Clor 60","Pic-Clor 60","Pic-Clor 60","Pic-Clor 60","Pic-Clor 60","Pic-Clor 60","Pic-Clor 60","Pic-Clor 60","Pic-Clor 60","Pic-Clor 60","Pic-Clor 60","Pic-Clor 60","Pic-Clor 60","Pic-Clor 60","Pic-Clor 60","Pic-Clor 60","Pic-Clor 60","Pic-Clor 60","Pic-Clor 60","Pic-Clor 60","Pic-Clor 60","Pic-Clor 60","Pic-Clor 60","Pic-Clor 60","Pic-Clor 60","Pic-Clor 60","Pic-Clor 60","Pic-Clor 60","Pic-Clor 60","Pic-Clor 60","Pic-Clor 60","Pic-Clor 60","Pic-Clor 60","Pic-Clor 60","Pic-Clor 60","Pic-Clor 60","Pic-Clor 60","Pic-Clor 60","Pic-Clor 60","Pic-Clor 60","Pic-Clor 60","Pic-Clor 60","Pic-Clor 60","Pic-Clor 60","Pic-Clor 60","Pic-Clor 60","Pic-Clor 60","Pic-Clor 60","Pic-Clor 60","Pic-Clor 60","Pic-Clor 60","Pic-Clor 60","Pic-Clor 60","Pic-Clor 60","Pic-Clor 60","Pic-Clor 60","Pic-Clor 60","Pic-Clor 60","Pic-Clor 60","Pic-Clor 60","Pic-Clor 60","Pic-Clor 60","Pic-Clor 60","Pic-Clor 60","Pic-Clor 60","Pic-Clor 60","Pic-Clor 60","Pic-Clor 60","Pic-Clor 60","Pic-Clor 60","Pic-Clor 60","Pic-Clor 60","Pic-Clor 60","Pic-Clor 60","Pic-Clor 60","Pic-Clor 60","Pic-Clor 60","Pic-Clor 60","Pic-Clor 60","Pic-Clor 60","Pic-Clor 60","Pic-Clor 60","Pic-Clor 60","Pic-Clor 60","Pic-Clor 60","Pic-Clor 60","Pic-Clor 60","Pic-Clor 60","Pic-Clor 60","Pic-Clor 60","Pic-Clor 60","Pic-Clor 60","Pic-Clor 60","Pic-Clor 60","Pic-Clor 60","Pic-Clor 60","Pic-Clor 60","Pic-Clor 60","Pic-Clor 60","Pic-Clor 60","Pic-Clor 60","Pic-Clor 60","Pic-Clor 60","Pic-Clor 60","Pic-Clor 60","Pic-Clor 60","Pic-Clor 60","Pic-Clor 60","Pic-Clor 60","Pic-Clor 60","Pic-Clor 60","Pic-Clor 60","Pic-Clor 60","Pic-Clor 60","Pic-Clor 60","Pic-Clor 60","Pic-Clor 60","Pic-Clor 60","Pic-Clor 60","Pic-Clor 60","Pic-Clor 60","Pic-Clor 60","Pic-Clor 60","Pic-Clor 60","Pic-Clor 60","Pic-Clor 60","Pic-Clor 60","Pic-Clor 60","Pic-Clor 60","Pic-Clor 60","Pic-Clor 60","Pic-Clor 60","Pic-Clor 60","Pic-Clor 60","Pic-Clor 60","Pic-Clor 60","Pic-Clor 60","Pic-Clor 60","Pic-Clor 60","Pic-Clor 60","Pic-Clor 60","Pic-Clor 60","Pic-Clor 60","Pic-Clor 60","Pic-Clor 60","Pic-Clor 60","Pic-Clor 60","Pic-Clor 60","Pic-Clor 60","Pic-Clor 60","Pic-Clor 60","Pic-Clor 60","Pic-Clor 60","Pic-Clor 60","Pic-Clor 60","Pic-Clor 60","Pic-Clor 60","Pic-Clor 60","Pic-Clor 60","Pic-Clor 60","Pic-Clor 60","Pic-Clor 60","Pic-Clor 60","Pic-Clor 60","Pic-Clor 60","Pic-Clor 60","Pic-Clor 60","Pic-Clor 60","Pic-Clor 60","Pic-Clor 60","Pic-Clor 60","Pic-Clor 60","Pic-Clor 60","Pic-Clor 60","Pic-Clor 60","Pic-Clor 60","Pic-Clor 60","Pic-Clor 60","Pic-Clor 60","Pic-Clor 60","Pic-Clor 60","Pic-Clor 60","Pic-Clor 60","Pic-Clor 60","Pic-Clor 60","Pic-Clor 60","Pic-Clor 60","Pic-Clor 60","Pic-Clor 60","Pic-Clor 60","Pic-Clor 60","Pic-Clor 60","Pic-Clor 60","Pic-Clor 60","Pic-Clor 60","Pic-Clor 60","Pic-Clor 60","Pic-Clor 60","Pic-Clor 60","Pic-Clor 60","Pic-Clor 60","Pic-Clor 60","Pic-Clor 60","Pic-Clor 60","Pic-Clor 60","Pic-Clor 60","Pic-Clor 60","Pic-Clor 60","Pic-Clor 60","Pic-Clor 60","Pic-Clor 60","Pic-Clor 60","Pic-Clor 60","Pic-Clor 60","Pic-Clor 60","Pic-Clor 60","Pic-Clor 60","Pic-Clor 60","Pic-Clor 60","Pic-Clor 60","Pic-Clor 60","Pic-Clor 60","Pic-Clor 60","Pic-Clor 60","Pic-Clor 60","Pic-Clor 60","Pic-Clor 60","Pic-Clor 60","Pic-Clor 60","Pic-Clor 60","Pic-Clor 60","Pic-Clor 60","Pic-Clor 60","Pic-Clor 60","Pic-Clor 60","Pic-Clor 60","Pic-Clor 60","Pic-Clor 60","Pic-Clor 60","Pic-Clor 60","Pic-Clor 60","Pic-Clor 60","Pic-Clor 60","Pic-Clor 60","Pic-Clor 60","Pic-Clor 60","Pic-Clor 60","Pic-Clor 60","Pic-Clor 60","Pic-Clor 60","Pic-Clor 60","Pic-Clor 60","Pic-Clor 60","Pic-Clor 60","Pic-Clor 60","Pic-Clor 60","Pic-Clor 60","Pic-Clor 60","Pic-Clor 60","Pic-Clor 60","Pic-Clor 60","Pic-Clor 60","Pic-Clor 60","Pic-Clor 60","Pic-Clor 60","Pic-Clor 60","Pic-Clor 60","Pic-Clor 60","Pic-Clor 60","Pic-Clor 60","Pic-Clor 60","Pic-Clor 60","Pic-Clor 60","Pic-Clor 60","Pic-Clor 60","Pic-Clor 60","Pic-Clor 60","Pic-Clor 60","Pic-Clor 60","Pic-Clor 60","Pic-Clor 60","Pic-Clor 60","Pic-Clor 60","Pic-Clor 60","Pic-Clor 60","Pic-Clor 60","Pic-Clor 60","Pic-Clor 60","Pic-Clor 60","Pic-Clor 60","Pic-Clor 60","Pic-Clor 60","Pic-Clor 60","Pic-Clor 60","Pic-Clor 60","Pic-Clor 60","Pic-Clor 60","Pic-Clor 60","Pic-Clor 60","Pic-Clor 60","Pic-Clor 60","Pic-Clor 60","Pic-Clor 60","Pic-Clor 60","Pic-Clor 60","Pic-Clor 60","Pic-Clor 60","Pic-Clor 60","Pic-Clor 60","Pic-Clor 60","Pic-Clor 60","Pic-Clor 60","Pic-Clor 60","Pic-Clor 60","Pic-Clor 60","Pic-Clor 60","Pic-Clor 60","Pic-Clor 60","Pic-Clor 60","Pic-Clor 60","Pic-Clor 60","Pic-Clor 60","Pic-Clor 60","Pic-Clor 60","Pic-Clor 60","Pic-Clor 60","Pic-Clor 60","Pic-Clor 60","Pic-Clor 60","Pic-Clor 60","Pic-Clor 60","Pic-Clor 60","Pic-Clor 60","Pic-Clor 60","Pic-Clor 60","Pic-Clor 60","Pic-Clor 60","Pic-Clor 60","Pic-Clor 60","Pic-Clor 60","Pic-Clor 60","Pic-Clor 60","Pic-Clor 60","Pic-Clor 60","Pic-Clor 60","Pic-Clor 60","Pic-Clor 60","Pic-Clor 60","Pic-Clor 60","Pic-Clor 60","Pic-Clor 60","Pic-Clor 60","Pic-Clor 60","Pic-Clor 60","Pic-Clor 60","Pic-Clor 60","Pic-Clor 60","Pic-Clor 60","Pic-Clor 60","Pic-Clor 60","Pic-Clor 60","Pic-Clor 60","Pic-Clor 60","Pic-Clor 60","Pic-Clor 60","Pic-Clor 60","Pic-Clor 60","Pic-Clor 60","Pic-Clor 60","Pic-Clor 60","Pic-Clor 60","Pic-Clor 60","Pic-Clor 60","Pic-Clor 60","Pic-Clor 60","Pic-Clor 60","Pic-Clor 60","Pic-Clor 60","Pic-Clor 60","Pic-Clor 60","Pic-Clor 60","Pic-Clor 60","Pic-Clor 60","Pic-Clor 60","Pic-Clor 60","Pic-Clor 60","Pic-Clor 60","Pic-Clor 60","Pic-Clor 60","Pic-Clor 60","Pic-Clor 60","Pic-Clor 60","Pic-Clor 60","Pic-Clor 60","Pic-Clor 60","Pic-Clor 60","Pic-Clor 60","Pic-Clor 60","Pic-Clor 60","Pic-Clor 60","Pic-Clor 60","Pic-Clor 60","Pic-Clor 60","Pic-Clor 60","Pic-Clor 60","Pic-Clor 60","Pic-Clor 60","Pic-Clor 60","Pic-Clor 60","Pic-Clor 60","Pic-Clor 60","Pic-Clor 60","Pic-Clor 60","Pic-Clor 60","Pic-Clor 60","Pic-Clor 60","Pic-Clor 60","Pic-Clor 60","Pic-Clor 60","Pic-Clor 60","Pic-Clor 60","Pic-Clor 60","Pic-Clor 60","Pic-Clor 60","Pic-Clor 60","Pic-Clor 60","Pic-Clor 60","Pic-Clor 60","Pic-Clor 60","Pic-Clor 60","Pic-Clor 60","Pic-Clor 60","Pic-Clor 60","Pic-Clor 60","Pic-Clor 60","Pic-Clor 60","Pic-Clor 60","Pic-Clor 60","Pic-Clor 60","Pic-Clor 60","Pic-Clor 60","Pic-Clor 60","Pic-Clor 60","Pic-Clor 60","Pic-Clor 60","Pic-Clor 60","Pic-Clor 60","Pic-Clor 60","Pic-Clor 60","Pic-Clor 60","Pic-Clor 60","Pic-Clor 60","Pic-Clor 60","Pic-Clor 60","Pic-Clor 60","Pic-Clor 60","Pic-Clor 60","Pic-Clor 60","Pic-Clor 60","Pic-Clor 60","Pic-Clor 60","Pic-Clor 60","Pic-Clor 60","Pic-Clor 60","Pic-Clor 60","Pic-Clor 60","Pic-Clor 60","Pic-Clor 60","Pic-Clor 60","Pic-Clor 60","Pic-Clor 60","Pic-Clor 60","Pic-Clor 60","Pic-Clor 60","Pic-Clor 60","Pic-Clor 60","Pic-Clor 60","Pic-Clor 60","Pic-Clor 60","Pic-Clor 60","Pic-Clor 60","Pic-Clor 60","Pic-Clor 60","Pic-Clor 60","Pic-Clor 60","Pic-Clor 60","Pic-Clor 60","Pic-Clor 60","Pic-Clor 60","Pic-Clor 60","Pic-Clor 60","Pic-Clor 60","Pic-Clor 60","Pic-Clor 60","Pic-Clor 60","Pic-Clor 60","Pic-Clor 60","Pic-Clor 60","Pic-Clor 60","Pic-Clor 60","Pic-Clor 60","Pic-Clor 60","Pic-Clor 60","Pic-Clor 60","Pic-Clor 60","Pic-Clor 60","Pic-Clor 60","Pic-Clor 60","Pic-Clor 60","Pic-Clor 60","Pic-Clor 60","Pic-Clor 60","Pic-Clor 60","Pic-Clor 60","Pic-Clor 60","Pic-Clor 60","Pic-Clor 60","Pic-Clor 60","Pic-Clor 60","Pic-Clor 60","Pic-Clor 60","Pic-Clor 60","Pic-Clor 60","Pic-Clor 60","Pic-Clor 60","Pic-Clor 60","Pic-Clor 60","Pic-Clor 60","Pic-Clor 60","Pic-Clor 60","Pic-Clor 60","Pic-Clor 60","Pic-Clor 60","Pic-Clor 60","Pic-Clor 60","Pic-Clor 60","Pic-Clor 60","Pic-Clor 60","Pic-Clor 60","Pic-Clor 60","Pic-Clor 60","Pic-Clor 60","Pic-Clor 60","Pic-Clor 60","Pic-Clor 60","Pic-Clor 60","Pic-Clor 60","Pic-Clor 60","Pic-Clor 60","Pic-Clor 60","Pic-Clor 60","Pic-Clor 60","Pic-Clor 60","Pic-Clor 60","Pic-Clor 60","Pic-Clor 60","Pic-Clor 60","Pic-Clor 60","Pic-Clor 60","Pic-Clor 60","Pic-Clor 60","Pic-Clor 60","Pic-Clor 60","Pic-Clor 60","Pic-Clor 60","Pic-Clor 60","Pic-Clor 60","Pic-Clor 60","Pic-Clor 60","Pic-Clor 60","Pic-Clor 60","Pic-Clor 60","Pic-Clor 60","Pic-Clor 60","Pic-Clor 60","Pic-Clor 60","Pic-Clor 60","Pic-Clor 60","Pic-Clor 60","Pic-Clor 60","Pic-Clor 60","Pic-Clor 60","Pic-Clor 60","Pic-Clor 60","Pic-Clor 60","Pic-Clor 60","Pic-Clor 60","Pic-Clor 60","Pic-Clor 60","Pic-Clor 60","Pic-Clor 60","Pic-Clor 60","Pic-Clor 60","Pic-Clor 60","Pic-Clor 60","Pic-Clor 60","Pic-Clor 60","Pic-Clor 60","Pic-Clor 60","Pic-Clor 60","Pic-Clor 60","Pic-Clor 60","Pic-Clor 60","Pic-Clor 60","Pic-Clor 60","Pic-Clor 60","Pic-Clor 60","Pic-Clor 60","Pic-Clor 60","Pic-Clor 60","Pic-Clor 60","Pic-Clor 60","Pic-Clor 60","Pic-Clor 60","Pic-Clor 60","Pic-Clor 60","Pic-Clor 60","Pic-Clor 60","Pic-Clor 60","Pic-Clor 60","Pic-Clor 60","Pic-Clor 60","Pic-Clor 60","Pic-Clor 60","Pic-Clor 60","Pic-Clor 60","Pic-Clor 60","Pic-Clor 60","Pic-Clor 60","Pic-Clor 60","Pic-Clor 60","Pic-Clor 60","Pic-Clor 60","Pic-Clor 60","Pic-Clor 60","Pic-Clor 60","Pic-Clor 60","Pic-Clor 60","Pic-Clor 60","Pic-Clor 60","Pic-Clor 60","Pic-Clor 60","Pic-Clor 60","Pic-Clor 60","Pic-Clor 60","Pic-Clor 60","Pic-Clor 60","Pic-Clor 60","Pic-Clor 60","Pic-Clor 60","Pic-Clor 60","Pic-Clor 60","Pic-Clor 60","Pic-Clor 60","Pic-Clor 60","Pic-Clor 60","Pic-Clor 60","Pic-Clor 60","Pic-Clor 60","Pic-Clor 60","Pic-Clor 60","Pic-Clor 60","Pic-Clor 60","Pic-Clor 60","Pic-Clor 60","Pic-Clor 60","Pic-Clor 60","Pic-Clor 60","Pic-Clor 60","Pic-Clor 60","Pic-Clor 60","Pic-Clor 60","Pic-Clor 60","Pic-Clor 60","Pic-Clor 60","Pic-Clor 60","Pic-Clor 60","Pic-Clor 60","Pic-Clor 60","Pic-Clor 60","Pic-Clor 60","Pic-Clor 60","Pic-Clor 60","Pic-Clor 60","Pic-Clor 60","Pic-Clor 60","Pic-Clor 60","Pic-Clor 60","Pic-Clor 60","Pic-Clor 60","Pic-Clor 60","Pic-Clor 60","Pic-Clor 60","Pic-Clor 60","Pic-Clor 60","Pic-Clor 60","Pic-Clor 60","Pic-Clor 60","Pic-Clor 60","Pic-Clor 60","Pic-Clor 60","Pic-Clor 60","Pic-Clor 60","Pic-Clor 60","Pic-Clor 60","Pic-Clor 60","Pic-Clor 60","Pic-Clor 60","Pic-Clor 60","Pic-Clor 60","Pic-Clor 60","Pic-Clor 60","Pic-Clor 60","Pic-Clor 60","Pic-Clor 60","Pic-Clor 60","Pic-Clor 60","Pic-Clor 60","Pic-Clor 60","Pic-Clor 60","Pic-Clor 60","Pic-Clor 60","Pic-Clor 60","Pic-Clor 60","Pic-Clor 60","Pic-Clor 60","Pic-Clor 60","Pic-Clor 60","Pic-Clor 60","Pic-Clor 60","Pic-Clor 60","Pic-Clor 60","Pic-Clor 60","Pic-Clor 60","Pic-Clor 60","Pic-Clor 60","Pic-Clor 60","Pic-Clor 60","Pic-Clor 60","Pic-Clor 60","Pic-Clor 60","Pic-Clor 60","Pic-Clor 60","Pic-Clor 60","Pic-Clor 60","Pic-Clor 60","Pic-Clor 60","Pic-Clor 60","Pic-Clor 60","Pic-Clor 60","Pic-Clor 60","Pic-Clor 60","Pic-Clor 60","Pic-Clor 60","Pic-Clor 60","Pic-Clor 60","Pic-Clor 60","Pic-Clor 60","Pic-Clor 60","Pic-Clor 60","Pic-Clor 60","Pic-Clor 60","Pic-Clor 60","Pic-Clor 60","Pic-Clor 60","Pic-Clor 60","Pic-Clor 60","Pic-Clor 60","Pic-Clor 60","Pic-Clor 60","Pic-Clor 60","Pic-Clor 60","Pic-Clor 60","Pic-Clor 60","Pic-Clor 60","Pic-Clor 60","Pic-Clor 60","Pic-Clor 60","Pic-Clor 60","Pic-Clor 60","Pic-Clor 60","Pic-Clor 60","Pic-Clor 60","Pic-Clor 60","Pic-Clor 60","Pic-Clor 60","Pic-Clor 60","Pic-Clor 60","Pic-Clor 60","Pic-Clor 60","Pic-Clor 60","Pic-Clor 60","Pic-Clor 60","Pic-Clor 60","Pic-Clor 60","Pic-Clor 60","Pic-Clor 60","Pic-Clor 60","Pic-Clor 60","Pic-Clor 60","Pic-Clor 60","Pic-Clor 60","Pic-Clor 60","Pic-Clor 60","Pic-Clor 60","Pic-Clor 60","Pic-Clor 60","Pic-Clor 60","Pic-Clor 60","Pic-Clor 60","Pic-Clor 60","Pic-Clor 60","Pic-Clor 60","Pic-Clor 60","Pic-Clor 60","Pic-Clor 60","Pic-Clor 60","Pic-Clor 60","Pic-Clor 60","Pic-Clor 60","Pic-Clor 60","Pic-Clor 60","Pic-Clor 60","Pic-Clor 60","Pic-Clor 60","Pic-Clor 60","Pic-Clor 60","Pic-Clor 60","Pic-Clor 60","Pic-Clor 60","Pic-Clor 60","Pic-Clor 60","Pic-Clor 60","Pic-Clor 60","Pic-Clor 60","Pic-Clor 60","Pic-Clor 60","Pic-Clor 60","Pic-Clor 60","Pic-Clor 60","Pic-Clor 60","Pic-Clor 60","Pic-Clor 60","Pic-Clor 60","Pic-Clor 60","Pic-Clor 60","Pic-Clor 60","Pic-Clor 60","Pic-Clor 60","Pic-Clor 60","Pic-Clor 60","Pic-Clor 60","Pic-Clor 60","Pic-Clor 60","Pic-Clor 60","Pic-Clor 60","Pic-Clor 60","Pic-Clor 60","Pic-Clor 60","Pic-Clor 60","Pic-Clor 60","Pic-Clor 60","Pic-Clor 60","Pic-Clor 60","Pic-Clor 60","Pic-Clor 60","Pic-Clor 60","Pic-Clor 60","Pic-Clor 60","Pic-Clor 60","Pic-Clor 60","Pic-Clor 60","Pic-Clor 60","Pic-Clor 60","Pic-Clor 60","Pic-Clor 60","Pic-Clor 60","Pic-Clor 60","Pic-Clor 60","Pic-Clor 60","Pic-Clor 60","Pic-Clor 60","Pic-Clor 60","Pic-Clor 60","Pic-Clor 60","Pic-Clor 60","Pic-Clor 60","Pic-Clor 60","Pic-Clor 60","Pic-Clor 60","Pic-Clor 60","Pic-Clor 60","Pic-Clor 60","Pic-Clor 60","Pic-Clor 60","Pic-Clor 60","Pic-Clor 60","Pic-Clor 60","Pic-Clor 60","Pic-Clor 60","Pic-Clor 60","Pic-Clor 60","Pic-Clor 60","Pic-Clor 60","Pic-Clor 60","Pic-Clor 60","Pic-Clor 60","Pic-Clor 60","Pic-Clor 60","Pic-Clor 60","Pic-Clor 60","Pic-Clor 60","Pic-Clor 60","Pic-Clor 60","Pic-Clor 60","Pic-Clor 60","Pic-Clor 60","Pic-Clor 60","Pic-Clor 60","Pic-Clor 60","Pic-Clor 60","Pic-Clor 60","Pic-Clor 60","Pic-Clor 60","Pic-Clor 60","Pic-Clor 60","Pic-Clor 60","Pic-Clor 60","Pic-Clor 60","Pic-Clor 60","Pic-Clor 60","Pic-Clor 60","Pic-Clor 60","Pic-Clor 60","Pic-Clor 60","Pic-Clor 60","Pic-Clor 60","Pic-Clor 60","Pic-Clor 60","Pic-Clor 60","Pic-Clor 60","Pic-Clor 60","Pic-Clor 60","Pic-Clor 60","Pic-Clor 60","Pic-Clor 60","Pic-Clor 60","Pic-Clor 60","Pic-Clor 60","Pic-Clor 60","Pic-Clor 60","Pic-Clor 60","Pic-Clor 60","Pic-Clor 60","Pic-Clor 60","Pic-Clor 60","Pic-Clor 60","Pic-Clor 60","Pic-Clor 60","Pic-Clor 60","Pic-Clor 60","Pic-Clor 60","Pic-Clor 60","Pic-Clor 60","Pic-Clor 60","Pic-Clor 60","Pic-Clor 60","Pic-Clor 60","Pic-Clor 60","Pic-Clor 60","Pic-Clor 60","Pic-Clor 60","Pic-Clor 60","Pic-Clor 60","Pic-Clor 60","Pic-Clor 60","Pic-Clor 60","Pic-Clor 60","Pic-Clor 60","Pic-Clor 60","Pic-Clor 60","Pic-Clor 60","Pic-Clor 60","Pic-Clor 60","Pic-Clor 60","Pic-Clor 60","Pic-Clor 60","Pic-Clor 60","Pic-Clor 60","Pic-Clor 60","Pic-Clor 60","Pic-Clor 60","Pic-Clor 60","Pic-Clor 60","Pic-Clor 60","Pic-Clor 60","Pic-Clor 60","Pic-Clor 60","Pic-Clor 60","Pic-Clor 60","Pic-Clor 60","Pic-Clor 60","Pic-Clor 60","Pic-Clor 60","Pic-Clor 60","Pic-Clor 60","Pic-Clor 60","Pic-Clor 60","Pic-Clor 60","Pic-Clor 60","Pic-Clor 60","Pic-Clor 60","Pic-Clor 60","Pic-Clor 60","Pic-Clor 60","Pic-Clor 60","Pic-Clor 60","Pic-Clor 60","Pic-Clor 60","Pic-Clor 60","Pic-Clor 60","Pic-Clor 60","Pic-Clor 60","Pic-Clor 60","Pic-Clor 60","Pic-Clor 60","Pic-Clor 60","Pic-Clor 60","Pic-Clor 60","Pic-Clor 60","Pic-Clor 60","Pic-Clor 60","Pic-Clor 60","Pic-Clor 60","Pic-Clor 60","Pic-Clor 60","Pic-Clor 60","Pic-Clor 60","Pic-Clor 60","Pic-Clor 60","Pic-Clor 60","Pic-Clor 60","Pic-Clor 60","Pic-Clor 60","Pic-Clor 60","Pic-Clor 60","Pic-Clor 60","Pic-Clor 60","Pic-Clor 60","Pic-Clor 60","Pic-Clor 60","Pic-Clor 60","Pic-Clor 60","Pic-Clor 60","Pic-Clor 60","Pic-Clor 60","Pic-Clor 60","Pic-Clor 60","Pic-Clor 60","Pic-Clor 60","Pic-Clor 60","Pic-Clor 60","Pic-Clor 60","Pic-Clor 60","Pic-Clor 60","Pic-Clor 60","Pic-Clor 60","Pic-Clor 60","Pic-Clor 60","Pic-Clor 60","Pic-Clor 60","Pic-Clor 60","Pic-Clor 60","Pic-Clor 60","Pic-Clor 60","Pic-Clor 60","Pic-Clor 60","Pic-Clor 60","Pic-Clor 60","Pic-Clor 60","Pic-Clor 60","Pic-Clor 60","Pic-Clor 60","Pic-Clor 60","Pic-Clor 60","Pic-Clor 60","Pic-Clor 60","Pic-Clor 60","Pic-Clor 60","Pic-Clor 60","Pic-Clor 60","Pic-Clor 60","Pic-Clor 60","Pic-Clor 60","Pic-Clor 60","Pic-Clor 60","Pic-Clor 60","Pic-Clor 60","Pic-Clor 60","Pic-Clor 60","Pic-Clor 60","Pic-Clor 60","Pic-Clor 60","Pic-Clor 60","Pic-Clor 60","Pic-Clor 60","Pic-Clor 60","Pic-Clor 60","Pic-Clor 60","Pic-Clor 60","Pic-Clor 60","Pic-Clor 60","Pic-Clor 60","Pic-Clor 60","Pic-Clor 60","Pic-Clor 60","Pic-Clor 60","Pic-Clor 60","Pic-Clor 60","Pic-Clor 60","Pic-Clor 60","Pic-Clor 60","Pic-Clor 60","Pic-Clor 60","Pic-Clor 60","Pic-Clor 60","Pic-Clor 60","Pic-Clor 60","Pic-Clor 60","Pic-Clor 60","Pic-Clor 60","Pic-Clor 60","Pic-Clor 60","Pic-Clor 60","Pic-Clor 60","Pic-Clor 60","Pic-Clor 60","Pic-Clor 60","Pic-Clor 60","Pic-Clor 60","Pic-Clor 60","Pic-Clor 60","Pic-Clor 60","Pic-Clor 60","Pic-Clor 60","Pic-Clor 60","Pic-Clor 60","Pic-Clor 60","Pic-Clor 60","Pic-Clor 60","Pic-Clor 60","Pic-Clor 60","Pic-Clor 60","Pic-Clor 60","Pic-Clor 60","Pic-Clor 60","Pic-Clor 60","Pic-Clor 60","Pic-Clor 60","Pic-Clor 60","Pic-Clor 60","Pic-Clor 60","Pic-Clor 60","Pic-Clor 60","Pic-Clor 60","Pic-Clor 60","Pic-Clor 60","Pic-Clor 60","Pic-Clor 60","Pic-Clor 60","Pic-Clor 60","Pic-Clor 60","Pic-Clor 60","Pic-Clor 60","Pic-Clor 60","Pic-Clor 60","Pic-Clor 60","Pic-Clor 60","Pic-Clor 60","Pic-Clor 60","Pic-Clor 60","Pic-Clor 60","Pic-Clor 60","Pic-Clor 60","Pic-Clor 60","Pic-Clor 60","Pic-Clor 60","Pic-Clor 60","Pic-Clor 60","Pic-Clor 60","Pic-Clor 60","Pic-Clor 60","Pic-Clor 60","Pic-Clor 60","Pic-Clor 60","Pic-Clor 60","Pic-Clor 60","Pic-Clor 60","Pic-Clor 60","Pic-Clor 60","Pic-Clor 60","Pic-Clor 60","Pic-Clor 60","Pic-Clor 60","Pic-Clor 60","Pic-Clor 60","Pic-Clor 60","Pic-Clor 60","Pic-Clor 60","Pic-Clor 60","Pic-Clor 60","Pic-Clor 60","Pic-Clor 60","Pic-Clor 60","Pic-Clor 60","Pic-Clor 60","Pic-Clor 60","Pic-Clor 60","Pic-Clor 60","Pic-Clor 60","Pic-Clor 60","Pic-Clor 60","Pic-Clor 60","Pic-Clor 60","Pic-Clor 60","Pic-Clor 60","Pic-Clor 60","Pic-Clor 60","Pic-Clor 60","Pic-Clor 60","Pic-Clor 60","Pic-Clor 60","Pic-Clor 60","Pic-Clor 60","Pic-Clor 60","Pic-Clor 60","Pic-Clor 60","Pic-Clor 60","Pic-Clor 60","Pic-Clor 60","Pic-Clor 60","Pic-Clor 60","Pic-Clor 60","Pic-Clor 60","Pic-Clor 60","Pic-Clor 60","Pic-Clor 60","Pic-Clor 60","Pic-Clor 60","Pic-Clor 60","Pic-Clor 60","Pic-Clor 60","Pic-Clor 60","Pic-Clor 60","Pic-Clor 60","Pic-Clor 60","Pic-Clor 60","Pic-Clor 60","Pic-Clor 60","Pic-Clor 60","Pic-Clor 60","Pic-Clor 60","Pic-Clor 60","Pic-Clor 60","Pic-Clor 60","Pic-Clor 60","Pic-Clor 60","Pic-Clor 60","Pic-Clor 60","Pic-Clor 60","Pic-Clor 60","Pic-Clor 60","Pic-Clor 60","Pic-Clor 60","Pic-Clor 60","Pic-Clor 60","Pic-Clor 60","Pic-Clor 60","Pic-Clor 60","Pic-Clor 60","Pic-Clor 60","Pic-Clor 60","Pic-Clor 60","Pic-Clor 60","Pic-Clor 60","Pic-Clor 60","Pic-Clor 60","Pic-Clor 60","Pic-Clor 60","Pic-Clor 60","Pic-Clor 60","Pic-Clor 60","Pic-Clor 60","Pic-Clor 60","Pic-Clor 60","Pic-Clor 60","Pic-Clor 60","Pic-Clor 60","Pic-Clor 60","Pic-Clor 60","Pic-Clor 60","Pic-Clor 60","Pic-Clor 60","Pic-Clor 60","Pic-Clor 60","Pic-Clor 60","Pic-Clor 60","Pic-Clor 60","Pic-Clor 60","Pic-Clor 60","Pic-Clor 60","Pic-Clor 60","Pic-Clor 60","Pic-Clor 60","Pic-Clor 60","Pic-Clor 60","Pic-Clor 60","Pic-Clor 60","Pic-Clor 60","Pic-Clor 60","Pic-Clor 60","Pic-Clor 60","Pic-Clor 60","Pic-Clor 60","Pic-Clor 60","Pic-Clor 60","Pic-Clor 60","Pic-Clor 60","Pic-Clor 60","Pic-Clor 60","Pic-Clor 60","Pic-Clor 60","Pic-Clor 60","Pic-Clor 60","Pic-Clor 60","Pic-Clor 60","Pic-Clor 60","Pic-Clor 60","Pic-Clor 60","Pic-Clor 60","Pic-Clor 60","Pic-Clor 60","Pic-Clor 60","Pic-Clor 60","Pic-Clor 60","Pic-Clor 60","Pic-Clor 60","Pic-Clor 60","Pic-Clor 60","Pic-Clor 60","Pic-Clor 60","Pic-Clor 60","Pic-Clor 60","Pic-Clor 60","Pic-Clor 60","Pic-Clor 60","Pic-Clor 60","Pic-Clor 60","Pic-Clor 60","Pic-Clor 60","Pic-Clor 60","Pic-Clor 60","Pic-Clor 60","Pic-Clor 60","Pic-Clor 60","Pic-Clor 60","Pic-Clor 60","Pic-Clor 60","Pic-Clor 60","Pic-Clor 60","Pic-Clor 60","Pic-Clor 60","Pic-Clor 60","Pic-Clor 60","Pic-Clor 60","Pic-Clor 60","Pic-Clor 60","Pic-Clor 60","Pic-Clor 60","Pic-Clor 60","Pic-Clor 60","Pic-Clor 60","Pic-Clor 60","Pic-Clor 60","Pic-Clor 60","Pic-Clor 60","Pic-Clor 60","Pic-Clor 60","Pic-Clor 60","Pic-Clor 60","Pic-Clor 60","Pic-Clor 60","Pic-Clor 60","Pic-Clor 60","Pic-Clor 60","Pic-Clor 60","Pic-Clor 60","Pic-Clor 60","Pic-Clor 60","Pic-Clor 60","Pic-Clor 60","Pic-Clor 60","Pic-Clor 60","Pic-Clor 60","Pic-Clor 60","Pic-Clor 60","Pic-Clor 60","Pic-Clor 60","Pic-Clor 60","Pic-Clor 60","Pic-Clor 60","Pic-Clor 60","Pic-Clor 60","Pic-Clor 60","Pic-Clor 60","Pic-Clor 60","Pic-Clor 60","Pic-Clor 60","Pic-Clor 60","Pic-Clor 60","Pic-Clor 60","Pic-Clor 60","Pic-Clor 60","Pic-Clor 60","Pic-Clor 60","Pic-Clor 60","Pic-Clor 60","Pic-Clor 60","Pic-Clor 60","Pic-Clor 60","Pic-Clor 60","Pic-Clor 60","Pic-Clor 60","Pic-Clor 60","Pic-Clor 60","Pic-Clor 60","Pic-Clor 60","Pic-Clor 60","Pic-Clor 60","Pic-Clor 60","Pic-Clor 60","Pic-Clor 60","Pic-Clor 60","Pic-Clor 60","Pic-Clor 60","Pic-Clor 60","Pic-Clor 60","Pic-Clor 60","Pic-Clor 60","Pic-Clor 60","Pic-Clor 60","Pic-Clor 60","Pic-Clor 60","Pic-Clor 60","Pic-Clor 60","Pic-Clor 60","Pic-Clor 60","Pic-Clor 60","Pic-Clor 60","Pic-Clor 60","Pic-Clor 60","Pic-Clor 60","Pic-Clor 60","Pic-Clor 60","Pic-Clor 60","Pic-Clor 60","Pic-Clor 60","Pic-Clor 60","Pic-Clor 60","Pic-Clor 60","Pic-Clor 60","Pic-Clor 60","Pic-Clor 60","Pic-Clor 60","Pic-Clor 60","Pic-Clor 60","Pic-Clor 60","Pic-Clor 60","Pic-Clor 60","Pic-Clor 60","Pic-Clor 60","Pic-Clor 60","Pic-Clor 60","Pic-Clor 60","Pic-Clor 60","Pic-Clor 60","Pic-Clor 60","Pic-Clor 60","Pic-Clor 60","Pic-Clor 60","Pic-Clor 60","Pic-Clor 60","Pic-Clor 60","Pic-Clor 60","Pic-Clor 60","Pic-Clor 60","Pic-Clor 60","Pic-Clor 60","Pic-Clor 60","Pic-Clor 60","Pic-Clor 60","Pic-Clor 60","Pic-Clor 60","Pic-Clor 60","Pic-Clor 60","Pic-Clor 60","Pic-Clor 60","Pic-Clor 60","Pic-Clor 60","Pic-Clor 60","Pic-Clor 60","Pic-Clor 60","Pic-Clor 60","Pic-Clor 60","Pic-Clor 60","Pic-Clor 60","Pic-Clor 60","Pic-Clor 60","Pic-Clor 60","Pic-Clor 60","Pic-Clor 60","Pic-Clor 60","Pic-Clor 60","Pic-Clor 60","Pic-Clor 60","Pic-Clor 60","Pic-Clor 60","Pic-Clor 60","Pic-Clor 60","Pic-Clor 60","Pic-Clor 60","Pic-Clor 60","Pic-Clor 60","Pic-Clor 60","Pic-Clor 60","Pic-Clor 60","Pic-Clor 60","Pic-Clor 60","Pic-Clor 60","Pic-Clor 60","Pic-Clor 60","Pic-Clor 60","Pic-Clor 60","Pic-Clor 60","Pic-Clor 60","Pic-Clor 60","Pic-Clor 60","Pic-Clor 60","Pic-Clor 60","Pic-Clor 60","Pic-Clor 60","Pic-Clor 60","Pic-Clor 60","Pic-Clor 60","Pic-Clor 60","Pic-Clor 60","Pic-Clor 60","Pic-Clor 60","Pic-Clor 60","Pic-Clor 60","Pic-Clor 60","Pic-Clor 60","Pic-Clor 60","Pic-Clor 60","Pic-Clor 60","Pic-Clor 60","Pic-Clor 60","Pic-Clor 60","Pic-Clor 60","Pic-Clor 60","Pic-Clor 60","Pic-Clor 60","Pic-Clor 60","Pic-Clor 60","Pic-Clor 60","Pic-Clor 60","Pic-Clor 60","Pic-Clor 60","Pic-Clor 60","Pic-Clor 60","Pic-Clor 60","Pic-Clor 60","Pic-Clor 60","Pic-Clor 60","Pic-Clor 60","Pic-Clor 60","Pic-Clor 60","Pic-Clor 60","Pic-Clor 60","Pic-Clor 60","Pic-Clor 60","Pic-Clor 60","Pic-Clor 60","Pic-Clor 60","Pic-Clor 60","Pic-Clor 60","Pic-Clor 60","Pic-Clor 60","Pic-Clor 60","Pic-Clor 60","Pic-Clor 60","Pic-Clor 60","Pic-Clor 60","Pic-Clor 60","Pic-Clor 60","Pic-Clor 60","Pic-Clor 60","Pic-Clor 60","Pic-Clor 60","Pic-Clor 60","Pic-Clor 60","Pic-Clor 60","Pic-Clor 60","Pic-Clor 60","Pic-Clor 60","Pic-Clor 60","Pic-Clor 60","Pic-Clor 60","Pic-Clor 60","Pic-Clor 60","Pic-Clor 60","Pic-Clor 60","Pic-Clor 60","Pic-Clor 60","Pic-Clor 60","Pic-Clor 60","Pic-Clor 60","Pic-Clor 60","Pic-Clor 60","Pic-Clor 60","Pic-Clor 60","Pic-Clor 60","Pic-Clor 60","Pic-Clor 60","Pic-Clor 60","Pic-Clor 60","Pic-Clor 60","Pic-Clor 60","Pic-Clor 60","Pic-Clor 60","Pic-Clor 60","Pic-Clor 60","Pic-Clor 60","Pic-Clor 60","Pic-Clor 60","Pic-Clor 60","Pic-Clor 60","Pic-Clor 60","Pic-Clor 60","Pic-Clor 60","Pic-Clor 60","Pic-Clor 60","Pic-Clor 60","Pic-Clor 60","Pic-Clor 60","Pic-Clor 60","Pic-Clor 60","Pic-Clor 60","Pic-Clor 60","Pic-Clor 60","Pic-Clor 60","Pic-Clor 60","Pic-Clor 60","Pic-Clor 60","Pic-Clor 60","Pic-Clor 60","Pic-Clor 60","Pic-Clor 60","Pic-Clor 60","Pic-Clor 60","Pic-Clor 60","Pic-Clor 60","Pic-Clor 60","Pic-Clor 60","Pic-Clor 60","Pic-Clor 60","Pic-Clor 60","Pic-Clor 60","Pic-Clor 60","Pic-Clor 60","Pic-Clor 60","Pic-Clor 60","Pic-Clor 60","Pic-Clor 60","Pic-Clor 60","Pic-Clor 60","Pic-Clor 60","Pic-Clor 60","Pic-Clor 60","Pic-Clor 60","Pic-Clor 60","Pic-Clor 60","Pic-Clor 60","Pic-Clor 60","Pic-Clor 60","Pic-Clor 60","Pic-Clor 60","Pic-Clor 60","Pic-Clor 60","Pic-Clor 60","Pic-Clor 60","Pic-Clor 60","Pic-Clor 60","Pic-Clor 60","Pic-Clor 60","Pic-Clor 60","Pic-Clor 60","Pic-Clor 60","Pic-Clor 60","Pic-Clor 60","Pic-Clor 60","Pic-Clor 60","Pic-Clor 60","Pic-Clor 60","Pic-Clor 60","Pic-Clor 60","Pic-Clor 60","Pic-Clor 60","Pic-Clor 60","Pic-Clor 60","Pic-Clor 60","Pic-Clor 60","Pic-Clor 60","Pic-Clor 60","Pic-Clor 60","Pic-Clor 60","Pic-Clor 60","Pic-Clor 60","Pic-Clor 60","Pic-Clor 60","Pic-Clor 60","Pic-Clor 60","Pic-Clor 60","Pic-Clor 60","Pic-Clor 60","Pic-Clor 60","Pic-Clor 60","Pic-Clor 60","Pic-Clor 60","Pic-Clor 60","Pic-Clor 60","Pic-Clor 60","Pic-Clor 60","Pic-Clor 60","Pic-Clor 60","Pic-Clor 60","Pic-Clor 60","Pic-Clor 60","Pic-Clor 60","Pic-Clor 60","Pic-Clor 60","Pic-Clor 60","Pic-Clor 60","Pic-Clor 60","Pic-Clor 60","Pic-Clor 60","Pic-Clor 60","Pic-Clor 60","Pic-Clor 60","Pic-Clor 60","Pic-Clor 60","Pic-Clor 60","Pic-Clor 60","Pic-Clor 60","Pic-Clor 60","Pic-Clor 60","Pic-Clor 60","Pic-Clor 60","Pic-Clor 60","Pic-Clor 60","Pic-Clor 60","Pic-Clor 60","Pic-Clor 60","Pic-Clor 60","Pic-Clor 60","Pic-Clor 60","Pic-Clor 60","Pic-Clor 60","Pic-Clor 60","Pic-Clor 60","Pic-Clor 60","Pic-Clor 60","Pic-Clor 60","Pic-Clor 60","Pic-Clor 60","Pic-Clor 60","Pic-Clor 60","Pic-Clor 60","Pic-Clor 60","Pic-Clor 60","Pic-Clor 60","Pic-Clor 60","Pic-Clor 60","Pic-Clor 60","Pic-Clor 60","Pic-Clor 60","Pic-Clor 60","Pic-Clor 60","Pic-Clor 60","Pic-Clor 60","Pic-Clor 60","Pic-Clor 60","Pic-Clor 60","Pic-Clor 60","Pic-Clor 60","Pic-Clor 60","Pic-Clor 60","Pic-Clor 60","Pic-Clor 60","Pic-Clor 60","Pic-Clor 60","Pic-Clor 60","Pic-Clor 60","Pic-Clor 60","Pic-Clor 60","Pic-Clor 60","Pic-Clor 60","Pic-Clor 60","Pic-Clor 60","Pic-Clor 60","Pic-Clor 60","Pic-Clor 60","Pic-Clor 60","Pic-Clor 60","Pic-Clor 60","Pic-Clor 60","Pic-Clor 60","Pic-Clor 60","Pic-Clor 60","Pic-Clor 60","Pic-Clor 60","Pic-Clor 60","Pic-Clor 60","Pic-Clor 60","Pic-Clor 60","Pic-Clor 60","Pic-Clor 60","Pic-Clor 60","Pic-Clor 60","Pic-Clor 60","Pic-Clor 60","Pic-Clor 60","Pic-Clor 60","Pic-Clor 60","Pic-Clor 60","Pic-Clor 60","Pic-Clor 60","Pic-Clor 60","Pic-Clor 60","Pic-Clor 60","Pic-Clor 60","Pic-Clor 60","Pic-Clor 60","Pic-Clor 60","Pic-Clor 60","Pic-Clor 60","Pic-Clor 60","Pic-Clor 60","Pic-Clor 60","Pic-Clor 60","Pic-Clor 60","Pic-Clor 60","Pic-Clor 60","Pic-Clor 60","Pic-Clor 60","Pic-Clor 60","Pic-Clor 60","Pic-Clor 60","Pic-Clor 60","Pic-Clor 60","Pic-Clor 60","Pic-Clor 60","Pic-Clor 60","Pic-Clor 60","Pic-Clor 60","Pic-Clor 60","Pic-Clor 60","Pic-Clor 60","Pic-Clor 60","Pic-Clor 60","Pic-Clor 60","Pic-Clor 60","Pic-Clor 60","Pic-Clor 60","Pic-Clor 60","Pic-Clor 60","Pic-Clor 60","Pic-Clor 60","Pic-Clor 60","Pic-Clor 60","Pic-Clor 60","Pic-Clor 60","Pic-Clor 60","Pic-Clor 60","Pic-Clor 60","Pic-Clor 60","Pic-Clor 60","Pic-Clor 60","Pic-Clor 60","Pic-Clor 60","Pic-Clor 60","Pic-Clor 60","Pic-Clor 60","Pic-Clor 60","Pic-Clor 60","Pic-Clor 60","Pic-Clor 60","Pic-Clor 60","Pic-Clor 60","Pic-Clor 60","Pic-Clor 60","Pic-Clor 60","Pic-Clor 60","Pic-Clor 60","Pic-Clor 60","Pic-Clor 60","Pic-Clor 60","Pic-Clor 60","Pic-Clor 60","Pic-Clor 60","Pic-Clor 60","Pic-Clor 60","Pic-Clor 60","Pic-Clor 60","Pic-Clor 60","Pic-Clor 60","Pic-Clor 60","Pic-Clor 60","Pic-Clor 60","Pic-Clor 60","Pic-Clor 60","Pic-Clor 60","Pic-Clor 60","Pic-Clor 60","Pic-Clor 60","Pic-Clor 60","Pic-Clor 60","Pic-Clor 60","Pic-Clor 60","Pic-Clor 60","Pic-Clor 60","Pic-Clor 60","Pic-Clor 60","Pic-Clor 60","Pic-Clor 60","Pic-Clor 60","Pic-Clor 60","Pic-Clor 60","Pic-Clor 60","Pic-Clor 60","Pic-Clor 60","Pic-Clor 60","Pic-Clor 60","Pic-Clor 60","Pic-Clor 60","Pic-Clor 60","Pic-Clor 60","Pic-Clor 60","Pic-Clor 60","Pic-Clor 60","Pic-Clor 60","Pic-Clor 60","Pic-Clor 60","Pic-Clor 60","Pic-Clor 60","Pic-Clor 60","Pic-Clor 60","Pic-Clor 60","Pic-Clor 60","Pic-Clor 60","Pic-Clor 60","Pic-Clor 60","Pic-Clor 60","Pic-Clor 60","Pic-Clor 60","Pic-Clor 60","Pic-Clor 60","Pic-Clor 60","Pic-Clor 60","Pic-Clor 60","Pic-Clor 60","Pic-Clor 60","Pic-Clor 60","Pic-Clor 60","Pic-Clor 60","Pic-Clor 60","Pic-Clor 60","Pic-Clor 60","Pic-Clor 60","Pic-Clor 60","Pic-Clor 60","Pic-Clor 60","Pic-Clor 60","Pic-Clor 60","Pic-Clor 60","Pic-Clor 60","Pic-Clor 60","Pic-Clor 60","Pic-Clor 60","Pic-Clor 60","Pic-Clor 60","Pic-Clor 60","Pic-Clor 60","Pic-Clor 60","Pic-Clor 60","Pic-Clor 60","Pic-Clor 60","Pic-Clor 60","Pic-Clor 60","Pic-Clor 60","Pic-Clor 60","Pic-Clor 60","Pic-Clor 60","Pic-Clor 60","Pic-Clor 60","Pic-Clor 60","Pic-Clor 60","Pic-Clor 60","Pic-Clor 60","Pic-Clor 60","Pic-Clor 60","Pic-Clor 60","Pic-Clor 60","Pic-Clor 60","Pic-Clor 60","Pic-Clor 60","Pic-Clor 60","Pic-Clor 60","Pic-Clor 60","Pic-Clor 60","Pic-Clor 60","Pic-Clor 60","Pic-Clor 60","Pic-Clor 60","Pic-Clor 60","Pic-Clor 60","Pic-Clor 60","Pic-Clor 60","Pic-Clor 60","Pic-Clor 60","Pic-Clor 60","Pic-Clor 60","Pic-Clor 60","Pic-Clor 60","Pic-Clor 60","Pic-Clor 60","Pic-Clor 60","Pic-Clor 60","Pic-Clor 60","Pic-Clor 60","Pic-Clor 60","Pic-Clor 60","Pic-Clor 60","Pic-Clor 60","Pic-Clor 60","Pic-Clor 60","Pic-Clor 60","Pic-Clor 60","Pic-Clor 60","Pic-Clor 60","Pic-Clor 60","Pic-Clor 60","Pic-Clor 60","Pic-Clor 60","Pic-Clor 60","Pic-Clor 60","Pic-Clor 60","Pic-Clor 60","Pic-Clor 60","Pic-Clor 60","Pic-Clor 60","Pic-Clor 60","Pic-Clor 60","Pic-Clor 60","Pic-Clor 60","Pic-Clor 60","Pic-Clor 60","Pic-Clor 60","Pic-Clor 60","Pic-Clor 60","Pic-Clor 60","Pic-Clor 60","Pic-Clor 60","Pic-Clor 60","Pic-Clor 60","Pic-Clor 60","Pic-Clor 60","Pic-Clor 60","Pic-Clor 60","Pic-Clor 60","Pic-Clor 60","Pic-Clor 60","Pic-Clor 60","Pic-Clor 60","Pic-Clor 60","Pic-Clor 60","Pic-Clor 60","Pic-Clor 60","Pic-Clor 60","Pic-Clor 60","Pic-Clor 60","Pic-Clor 60","Pic-Clor 60","Pic-Clor 60","Pic-Clor 60","Pic-Clor 60","Pic-Clor 60","Pic-Clor 60","Pic-Clor 60","Pic-Clor 60","Pic-Clor 60","Pic-Clor 60","Pic-Clor 60","Pic-Clor 60","Pic-Clor 60","Pic-Clor 60","Pic-Clor 60","Pic-Clor 60","Pic-Clor 60","Pic-Clor 60","Pic-Clor 60","Pic-Clor 60","Pic-Clor 60","Pic-Clor 60","Pic-Clor 60","Pic-Clor 60","Pic-Clor 60","Pic-Clor 60","Pic-Clor 60","Pic-Clor 60","Pic-Clor 60","Pic-Clor 60","Pic-Clor 60","Pic-Clor 60","Pic-Clor 60","Pic-Clor 60","Pic-Clor 60","Pic-Clor 60","Pic-Clor 60","Pic-Clor 60","Pic-Clor 60","Pic-Clor 60","Pic-Clor 60","Pic-Clor 60","Pic-Clor 60","Pic-Clor 60","Pic-Clor 60","Pic-Clor 60","Pic-Clor 60","Pic-Clor 60","Pic-Clor 60","Pic-Clor 60","Pic-Clor 60","Pic-Clor 60","Pic-Clor 60","Pic-Clor 60","Pic-Clor 60","Pic-Clor 60","Pic-Clor 60","Pic-Clor 60","Pic-Clor 60","Pic-Clor 60","Pic-Clor 60","Pic-Clor 60","Pic-Clor 60","Pic-Clor 60","Pic-Clor 60","Pic-Clor 60","Pic-Clor 60","Pic-Clor 60","Pic-Clor 60","Pic-Clor 60","Pic-Clor 60","Pic-Clor 60","Pic-Clor 60","Pic-Clor 60","Pic-Clor 60","Pic-Clor 60","Pic-Clor 60","Pic-Clor 60","Pic-Clor 60","Pic-Clor 60","Pic-Clor 60","Pic-Clor 60","Pic-Clor 60","Pic-Clor 60","Pic-Clor 60","Pic-Clor 60","Pic-Clor 60","Pic-Clor 60","Pic-Clor 60","Pic-Clor 60","Pic-Clor 60","Pic-Clor 60","Pic-Clor 60","Pic-Clor 60","Pic-Clor 60","Pic-Clor 60","Pic-Clor 60","Pic-Clor 60","Pic-Clor 60","Pic-Clor 60","Pic-Clor 60","Pic-Clor 60","Pic-Clor 60","Pic-Clor 60","Pic-Clor 60","Pic-Clor 60","Pic-Clor 60","Pic-Clor 60","Pic-Clor 60","Pic-Clor 60","Pic-Clor 60","Pic-Clor 60","Pic-Clor 60","Pic-Clor 60","Pic-Clor 60","Pic-Clor 60","Pic-Clor 60","Pic-Clor 60","Pic-Clor 60","Pic-Clor 60","Pic-Clor 60","Pic-Clor 60","Pic-Clor 60","Pic-Clor 60","Pic-Clor 60","Pic-Clor 60","Pic-Clor 60","Pic-Clor 60","Pic-Clor 60","Pic-Clor 60","Pic-Clor 60","Pic-Clor 60","Pic-Clor 60","Pic-Clor 60","Pic-Clor 60","Pic-Clor 60","Pic-Clor 60","Pic-Clor 60","Pic-Clor 60","Pic-Clor 60","Pic-Clor 60","Pic-Clor 60","Pic-Clor 60","Pic-Clor 60","Pic-Clor 60","Pic-Clor 60","Pic-Clor 60","Pic-Clor 60","Pic-Clor 60","Pic-Clor 60","Pic-Clor 60","Pic-Clor 60","Pic-Clor 60","Pic-Clor 60","Pic-Clor 60","Pic-Clor 60","Pic-Clor 60","Pic-Clor 60","Pic-Clor 60","Pic-Clor 60","Pic-Clor 60","Pic-Clor 60","Pic-Clor 60","Pic-Clor 60","Pic-Clor 60","Pic-Clor 60","Pic-Clor 60","Pic-Clor 60","Pic-Clor 60","Pic-Clor 60","Pic-Clor 60","Pic-Clor 60","Pic-Clor 60","Pic-Clor 60","Pic-Clor 60","Pic-Clor 60","Pic-Clor 60","Pic-Clor 60","Pic-Clor 60","Pic-Clor 60","Pic-Clor 60","Pic-Clor 60","Pic-Clor 60","Pic-Clor 60","Pic-Clor 60","Pic-Clor 60","Pic-Clor 60","Pic-Clor 60","Pic-Clor 60","Pic-Clor 60","Pic-Clor 60","Pic-Clor 60","Pic-Clor 60","Pic-Clor 60","Pic-Clor 60","Pic-Clor 60","Pic-Clor 60","Pic-Clor 60","Pic-Clor 60","Pic-Clor 60","Pic-Clor 60","Pic-Clor 60","Pic-Clor 60","Pic-Clor 60","Pic-Clor 60","Pic-Clor 60","Pic-Clor 60","Pic-Clor 60","Pic-Clor 60","Pic-Clor 60","Pic-Clor 60","Pic-Clor 60","Pic-Clor 60","Pic-Clor 60","Pic-Clor 60","Pic-Clor 60","Pic-Clor 60","Pic-Clor 60","Pic-Clor 60","Pic-Clor 60","Pic-Clor 60","Pic-Clor 60","Pic-Clor 60","Pic-Clor 60","Pic-Clor 60","Pic-Clor 60","Pic-Clor 60","Pic-Clor 60","Pic-Clor 60","Pic-Clor 60","Pic-Clor 60","Pic-Clor 60","Pic-Clor 60","Pic-Clor 60","Pic-Clor 60","Pic-Clor 60","Pic-Clor 60","Pic-Clor 60","Pic-Clor 60","Pic-Clor 60","Pic-Clor 60","Pic-Clor 60","Pic-Clor 60","Pic-Clor 60","Pic-Clor 60","Pic-Clor 60","Pic-Clor 60","Pic-Clor 60","Pic-Clor 60","Pic-Clor 60","Pic-Clor 60","Pic-Clor 60","Pic-Clor 60","Pic-Clor 60","Pic-Clor 60","Pic-Clor 60","Pic-Clor 60","Pic-Clor 60","Pic-Clor 60","Pic-Clor 60","Pic-Clor 60","Pic-Clor 60","Pic-Clor 60","Pic-Clor 60","Pic-Clor 60","Pic-Clor 60","Pic-Clor 60","Pic-Clor 60","Pic-Clor 60","Pic-Clor 60","Pic-Clor 60","Pic-Clor 60","Pic-Clor 60","Pic-Clor 60","Pic-Clor 60","Pic-Clor 60","Pic-Clor 60","Pic-Clor 60","Pic-Clor 60","Pic-Clor 60","Pic-Clor 60","Pic-Clor 60","Pic-Clor 60","Pic-Clor 60","Pic-Clor 60","Pic-Clor 60","Pic-Clor 60","Pic-Clor 60","Pic-Clor 60","Pic-Clor 60","Pic-Clor 60","Pic-Clor 60","Pic-Clor 60","Pic-Clor 60","Pic-Clor 60","Pic-Clor 60","Pic-Clor 60","Pic-Clor 60","Pic-Clor 60","Pic-Clor 60","Pic-Clor 60","Pic-Clor 60","Pic-Clor 60","Pic-Clor 60","Pic-Clor 60","Pic-Clor 60","Pic-Clor 60","Pic-Clor 60","Pic-Clor 60","Pic-Clor 60","Pic-Clor 60","Pic-Clor 60","Pic-Clor 60","Pic-Clor 60","Pic-Clor 60","Pic-Clor 60","Pic-Clor 60","Pic-Clor 60","Pic-Clor 60","Pic-Clor 60","Pic-Clor 60","Pic-Clor 60","Pic-Clor 60","Pic-Clor 60","Pic-Clor 60","Pic-Clor 60","Pic-Clor 60","Pic-Clor 60","Pic-Clor 60","Pic-Clor 60","Pic-Clor 60","Pic-Clor 60","Pic-Clor 60","Pic-Clor 60","Pic-Clor 60","Pic-Clor 60","Pic-Clor 60","Pic-Clor 60","Pic-Clor 60","Pic-Clor 60","Pic-Clor 60","Pic-Clor 60","Pic-Clor 60","Pic-Clor 60","Pic-Clor 60","Pic-Clor 60","Pic-Clor 60","Pic-Clor 60","Pic-Clor 60","Pic-Clor 60","Pic-Clor 60","Pic-Clor 60","Pic-Clor 60","Pic-Clor 60","Pic-Clor 60","Pic-Clor 60","Pic-Clor 60","Pic-Clor 60","Pic-Clor 60","Pic-Clor 60","Pic-Clor 60","Pic-Clor 60","Pic-Clor 60","Pic-Clor 60","Pic-Clor 60","Pic-Clor 60","Pic-Clor 60","Pic-Clor 60","Pic-Clor 60","Pic-Clor 60","Pic-Clor 60","Pic-Clor 60","Pic-Clor 60","Pic-Clor 60","Pic-Clor 60","Pic-Clor 60","Pic-Clor 60","Pic-Clor 60","Pic-Clor 60","Pic-Clor 60","Pic-Clor 60","Pic-Clor 60","Pic-Clor 60","Pic-Clor 60","Pic-Clor 60","Pic-Clor 60","Pic-Clor 60","Pic-Clor 60","Pic-Clor 60","Pic-Clor 60","Pic-Clor 60","Pic-Clor 60","Pic-Clor 60","Pic-Clor 60","Pic-Clor 60","Pic-Clor 60","Pic-Clor 60","Pic-Clor 60","Pic-Clor 60","Pic-Clor 60","Pic-Clor 60","Pic-Clor 60","Pic-Clor 60","Pic-Clor 60","Pic-Clor 60","Pic-Clor 60","Pic-Clor 60","Pic-Clor 60","Pic-Clor 60","Pic-Clor 60","Pic-Clor 60","Pic-Clor 60","Pic-Clor 60","Pic-Clor 60","Pic-Clor 60","Pic-Clor 60","Pic-Clor 60","Pic-Clor 60","Pic-Clor 60","Pic-Clor 60","Pic-Clor 60","Pic-Clor 60","Pic-Clor 60","Pic-Clor 60","Pic-Clor 60","Pic-Clor 60","Pic-Clor 60","Pic-Clor 60","Pic-Clor 60","Pic-Clor 60","Pic-Clor 60","Pic-Clor 60","Pic-Clor 60","Pic-Clor 60","Pic-Clor 60","Pic-Clor 60","Pic-Clor 60","Pic-Clor 60","Pic-Clor 60","Pic-Clor 60","Pic-Clor 60","Pic-Clor 60","Pic-Clor 60","Pic-Clor 60","Pic-Clor 60","Pic-Clor 60","Pic-Clor 60","Pic-Clor 60","Pic-Clor 60","Pic-Clor 60","Pic-Clor 60","Pic-Clor 60","Pic-Clor 60","Pic-Clor 60","Pic-Clor 60","Pic-Clor 60","Pic-Clor 60","Pic-Clor 60","Pic-Clor 60","Pic-Clor 60","Pic-Clor 60","Pic-Clor 60","Pic-Clor 60","Pic-Clor 60","Pic-Clor 60","Pic-Clor 60","Pic-Clor 60","Pic-Clor 60","Pic-Clor 60","Pic-Clor 60","Pic-Clor 60","Pic-Clor 60","Pic-Clor 60","Pic-Clor 60","Pic-Clor 60","Pic-Clor 60","Pic-Clor 60","Pic-Clor 60","Pic-Clor 60","Pic-Clor 60","Pic-Clor 60","Pic-Clor 60","Pic-Clor 60","Pic-Clor 60","Pic-Clor 60","Pic-Clor 60","Pic-Clor 60","Pic-Clor 60","Pic-Clor 60","Pic-Clor 60","Pic-Clor 60","Pic-Clor 60","Pic-Clor 60","Pic-Clor 60","Pic-Clor 60","Pic-Clor 60","Pic-Clor 60","Pic-Clor 60","Pic-Clor 60","Pic-Clor 60","Pic-Clor 60","Pic-Clor 60","Pic-Clor 60","Pic-Clor 60","Pic-Clor 60","Pic-Clor 60","Pic-Clor 60","Pic-Clor 60","Pic-Clor 60","Pic-Clor 60","Pic-Clor 60","Pic-Clor 60","Pic-Clor 60","Pic-Clor 60","Pic-Clor 60","Pic-Clor 60","Pic-Clor 60","Pic-Clor 60","Pic-Clor 60","Pic-Clor 60","Pic-Clor 60","Pic-Clor 60","Pic-Clor 60","Pic-Clor 60","Pic-Clor 60","Pic-Clor 60","Pic-Clor 60","Pic-Clor 60","Pic-Clor 60","Pic-Clor 60","Pic-Clor 60","Pic-Clor 60","Pic-Clor 60","Pic-Clor 60","Pic-Clor 60","Pic-Clor 60","Pic-Clor 60","Pic-Clor 60","Pic-Clor 60","Pic-Clor 60","Pic-Clor 60","Pic-Clor 60","Pic-Clor 60","Pic-Clor 60","Pic-Clor 60","Pic-Clor 60","Pic-Clor 60","Pic-Clor 60","Pic-Clor 60","Pic-Clor 60","Pic-Clor 60","Pic-Clor 60","Pic-Clor 60","Pic-Clor 60","Pic-Clor 60","Pic-Clor 60","Pic-Clor 60","Pic-Clor 60","Pic-Clor 60","Pic-Clor 60","Pic-Clor 60","Pic-Clor 60","Pic-Clor 60","Pic-Clor 60","Pic-Clor 60","Pic-Clor 60","Pic-Clor 60","Pic-Clor 60","Pic-Clor 60","Pic-Clor 60","Pic-Clor 60","Pic-Clor 60","Pic-Clor 60","Pic-Clor 60","Pic-Clor 60","Pic-Clor 60","Pic-Clor 60","Pic-Clor 60","Pic-Clor 60","Pic-Clor 60","Pic-Clor 60","Pic-Clor 60","Pic-Clor 60","Pic-Clor 60","Pic-Clor 60","Pic-Clor 60","Pic-Clor 60","Pic-Clor 60","Pic-Clor 60","Pic-Clor 60","Pic-Clor 60","Pic-Clor 60","Pic-Clor 60","Pic-Clor 60","Pic-Clor 60","Pic-Clor 60","Pic-Clor 60","Pic-Clor 60","Pic-Clor 60","Pic-Clor 60","Pic-Clor 60","Pic-Clor 60","Pic-Clor 60","Pic-Clor 60","Pic-Clor 60","Pic-Clor 60","Pic-Clor 60","Pic-Clor 60","Pic-Clor 60","Pic-Clor 60","Pic-Clor 60","Pic-Clor 60","Pic-Clor 60","Pic-Clor 60","Pic-Clor 60","Pic-Clor 60","Pic-Clor 60","Pic-Clor 60","Pic-Clor 60","Pic-Clor 60","Pic-Clor 60","Pic-Clor 60","Pic-Clor 60","Pic-Clor 60","Pic-Clor 60","Pic-Clor 60","Pic-Clor 60","Pic-Clor 60","Pic-Clor 60","Pic-Clor 60","Pic-Clor 60","Pic-Clor 60","Pic-Clor 60","Pic-Clor 60","Pic-Clor 60","Pic-Clor 60","Pic-Clor 60","Pic-Clor 60","Pic-Clor 60","Pic-Clor 60","Pic-Clor 60","Pic-Clor 60","Pic-Clor 60","Pic-Clor 60","Pic-Clor 60","Pic-Clor 60","Pic-Clor 60","Pic-Clor 60","Pic-Clor 60","Pic-Clor 60","Pic-Clor 60","Pic-Clor 60","Pic-Clor 60","Pic-Clor 60","Pic-Clor 60","Pic-Clor 60","Pic-Clor 60","Pic-Clor 60","Pic-Clor 60","Pic-Clor 60","Pic-Clor 60","Pic-Clor 60","Pic-Clor 60","Pic-Clor 60","Pic-Clor 60","Pic-Clor 60","Pic-Clor 60","Pic-Clor 60","Pic-Clor 60","Pic-Clor 60","Pic-Clor 60","Pic-Clor 60","Pic-Clor 60","Pic-Clor 60","Pic-Clor 60","Pic-Clor 60","Pic-Clor 60","Pic-Clor 60","Pic-Clor 60","Pic-Clor 60","Pic-Clor 60","Pic-Clor 60","Pic-Clor 60","Pic-Clor 60","Pic-Clor 60","Pic-Clor 60","Pic-Clor 60","Pic-Clor 60","Pic-Clor 60","Pic-Clor 60","Pic-Clor 60","Pic-Clor 60","Pic-Clor 60","Pic-Clor 60","Pic-Clor 60","Pic-Clor 60","Pic-Clor 60","Pic-Clor 60","Pic-Clor 60","Pic-Clor 60","Pic-Clor 60","Pic-Clor 60","Pic-Clor 60","Pic-Clor 60","Pic-Clor 60","Pic-Clor 60","Pic-Clor 60","Pic-Clor 60","Pic-Clor 60","Pic-Clor 60","Pic-Clor 60","Pic-Clor 60","Pic-Clor 60","Pic-Clor 60","Pic-Clor 60","Pic-Clor 60","Pic-Clor 60","Pic-Clor 60","Pic-Clor 60","Pic-Clor 60","Pic-Clor 60","Pic-Clor 60","Pic-Clor 60","Pic-Clor 60","Pic-Clor 60","Pic-Clor 60","Pic-Clor 60","Pic-Clor 60","Pic-Clor 60","Pic-Clor 60","Pic-Clor 60","Pic-Clor 60","Pic-Clor 60","Pic-Clor 60","Pic-Clor 60","Pic-Clor 60","Pic-Clor 60","Pic-Clor 60","Pic-Clor 60","Pic-Clor 60","Pic-Clor 60","Pic-Clor 60","Pic-Clor 60","Pic-Clor 60","Pic-Clor 60","Pic-Clor 60","Pic-Clor 60","Pic-Clor 60","Pic-Clor 60","Pic-Clor 60","Pic-Clor 60","Pic-Clor 60","Pic-Clor 60","Pic-Clor 60","Pic-Clor 60","Pic-Clor 60","Pic-Clor 60","Pic-Clor 60","Pic-Clor 60","Pic-Clor 60","Pic-Clor 60","Pic-Clor 60","Pic-Clor 60","Pic-Clor 60","Pic-Clor 60","Pic-Clor 60","Pic-Clor 60","Pic-Clor 60","Pic-Clor 60","Pic-Clor 60","Pic-Clor 60","Pic-Clor 60","Pic-Clor 60","Pic-Clor 60","Pic-Clor 60","Pic-Clor 60","Pic-Clor 60","Pic-Clor 60","Pic-Clor 60","Pic-Clor 60","Pic-Clor 60","Pic-Clor 60","Pic-Clor 60","Pic-Clor 60","Pic-Clor 60","Pic-Clor 60","Pic-Clor 60","Pic-Clor 60","Pic-Clor 60","Pic-Clor 60","Pic-Clor 60","Pic-Clor 60","Pic-Clor 60","Pic-Clor 60","Pic-Clor 60","Pic-Clor 60","Pic-Clor 60","Pic-Clor 60","Pic-Clor 60","Pic-Clor 60","Pic-Clor 60","Pic-Clor 60","Pic-Clor 60","Pic-Clor 60","Pic-Clor 60","Pic-Clor 60","Pic-Clor 60","Pic-Clor 60","Pic-Clor 60","Pic-Clor 60","Pic-Clor 60","Pic-Clor 60","Pic-Clor 60","Pic-Clor 60","Pic-Clor 60","Pic-Clor 60","Pic-Clor 60","Pic-Clor 60","Pic-Clor 60","Pic-Clor 60","Pic-Clor 60","Pic-Clor 60","Pic-Clor 60","Pic-Clor 60","Pic-Clor 60","Pic-Clor 60","Pic-Clor 60","Pic-Clor 60","Pic-Clor 60","Pic-Clor 60","Pic-Clor 60","Pic-Clor 60","Pic-Clor 60","Pic-Clor 60","Pic-Clor 60","Pic-Clor 60","Pic-Clor 60","Pic-Clor 60","Pic-Clor 60","Pic-Clor 60","Pic-Clor 60","Pic-Clor 60","Pic-Clor 60","Pic-Clor 60","Pic-Clor 60","Pic-Clor 60","Pic-Clor 60","Pic-Clor 60","Pic-Clor 60","Pic-Clor 60","Pic-Clor 60","Pic-Clor 60","Pic-Clor 60","Pic-Clor 60","Pic-Clor 60","Pic-Clor 60","Pic-Clor 60","Pic-Clor 60","Pic-Clor 60","Pic-Clor 60","Pic-Clor 60","Pic-Clor 60","Pic-Clor 60","Pic-Clor 60","Pic-Clor 60","Pic-Clor 60","Pic-Clor 60","Pic-Clor 60","Pic-Clor 60","Pic-Clor 60","Pic-Clor 60","Pic-Clor 60","Pic-Clor 60","Pic-Clor 60","Pic-Clor 60","Pic-Clor 60","Pic-Clor 60","Pic-Clor 60","Pic-Clor 60","Pic-Clor 60","Pic-Clor 60","Pic-Clor 60","Pic-Clor 60","Pic-Clor 60","Pic-Clor 60","Pic-Clor 60","Pic-Clor 60","Pic-Clor 60","Pic-Clor 60","Pic-Clor 60","Pic-Clor 60","Pic-Clor 60","Pic-Clor 60","Pic-Clor 60","Pic-Clor 60","Pic-Clor 60","Pic-Clor 60","Pic-Clor 60","Pic-Clor 60","Pic-Clor 60","Pic-Clor 60","Pic-Clor 60","Pic-Clor 60","Pic-Clor 60","Pic-Clor 60","Pic-Clor 60","Pic-Clor 60","Pic-Clor 60","Pic-Clor 60","Pic-Clor 60","Pic-Clor 60","Pic-Clor 60","Pic-Clor 60","Pic-Clor 60","Pic-Clor 60","Pic-Clor 60","Pic-Clor 60","Pic-Clor 60","Pic-Clor 60","Pic-Clor 60","Pic-Clor 60","Pic-Clor 60","Pic-Clor 60","Pic-Clor 60","Pic-Clor 60","Pic-Clor 60","Pic-Clor 60","Pic-Clor 60","Pic-Clor 60","Pic-Clor 60","Pic-Clor 60","Pic-Clor 60","Pic-Clor 60","Pic-Clor 60","Pic-Clor 60","Pic-Clor 60","Pic-Clor 60","Pic-Clor 60","Pic-Clor 60","Pic-Clor 60","Pic-Clor 60","Pic-Clor 60","Pic-Clor 60","Pic-Clor 60","Pic-Clor 60","Pic-Clor 60","Pic-Clor 60","Pic-Clor 60","Pic-Clor 60","Pic-Clor 60","Pic-Clor 60","Pic-Clor 60","Pic-Clor 60","Pic-Clor 60","Pic-Clor 60","Pic-Clor 60","Pic-Clor 60","Pic-Clor 60","Pic-Clor 60","Pic-Clor 60","Pic-Clor 60","Pic-Clor 60","Pic-Clor 60","Pic-Clor 60","Pic-Clor 60","Pic-Clor 60","Pic-Clor 60","Pic-Clor 60","Pic-Clor 60","Pic-Clor 60","Pic-Clor 60","Pic-Clor 60","Pic-Clor 60","Pic-Clor 60","Pic-Clor 60","Pic-Clor 60","Pic-Clor 60","Pic-Clor 60","Pic-Clor 60","Pic-Clor 60","Pic-Clor 60","Pic-Clor 60","Pic-Clor 60","Pic-Clor 60","Pic-Clor 60","Pic-Clor 60","Pic-Clor 60","Pic-Clor 60","Pic-Clor 60","Pic-Clor 60","Pic-Clor 60","Pic-Clor 60","Pic-Clor 60","Pic-Clor 60","Pic-Clor 60","Pic-Clor 60","Pic-Clor 60","Pic-Clor 60","Pic-Clor 60","Pic-Clor 60","Pic-Clor 60","Pic-Clor 60","Pic-Clor 60","Pic-Clor 60","Pic-Clor 60","Pic-Clor 60","Pic-Clor 60","Pic-Clor 60","Pic-Clor 60","Pic-Clor 60","Pic-Clor 60","Pic-Clor 60","Pic-Clor 60","Pic-Clor 60","Pic-Clor 60","Pic-Clor 60","Pic-Clor 60","Pic-Clor 60","Pic-Clor 60","Pic-Clor 60","Pic-Clor 60","Pic-Clor 60","Pic-Clor 60","Pic-Clor 60","Pic-Clor 60","Pic-Clor 60","Pic-Clor 60","Pic-Clor 60","Pic-Clor 60","Pic-Clor 60","Pic-Clor 60","Pic-Clor 60","Pic-Clor 60","Pic-Clor 60","Pic-Clor 60","Pic-Clor 60","Pic-Clor 60","Pic-Clor 60","Pic-Clor 60","Pic-Clor 60","Pic-Clor 60","Pic-Clor 60","Pic-Clor 60","Pic-Clor 60","Pic-Clor 60","Pic-Clor 60","Pic-Clor 60","Pic-Clor 60","Pic-Clor 60","Pic-Clor 60","Pic-Clor 60","Pic-Clor 60","Pic-Clor 60","Pic-Clor 60","Pic-Clor 60","Pic-Clor 60","Pic-Clor 60","Pic-Clor 60","Pic-Clor 60","Pic-Clor 60","Pic-Clor 60","Pic-Clor 60","Pic-Clor 60","Pic-Clor 60","Pic-Clor 60","Pic-Clor 60","Pic-Clor 60","Pic-Clor 60","Pic-Clor 60","Pic-Clor 60","Pic-Clor 60","Pic-Clor 60","Pic-Clor 60","Pic-Clor 60","Pic-Clor 60","Pic-Clor 60","Pic-Clor 60","Pic-Clor 60","Pic-Clor 60","Pic-Clor 60","Pic-Clor 60","Pic-Clor 60","Pic-Clor 60","Pic-Clor 60","Pic-Clor 60","Pic-Clor 60","Pic-Clor 60","Pic-Clor 60","Pic-Clor 60","Pic-Clor 60","Pic-Clor 60","Pic-Clor 60","Pic-Clor 60","Pic-Clor 60","Pic-Clor 60","Pic-Clor 60","Pic-Clor 60","Pic-Clor 60","Pic-Clor 60","Pic-Clor 60","Pic-Clor 60","Pic-Clor 60","Pic-Clor 60","Pic-Clor 60","Pic-Clor 60","Pic-Clor 60","Pic-Clor 60","Pic-Clor 60","Pic-Clor 60","Pic-Clor 60","Pic-Clor 60","Pic-Clor 60","Pic-Clor 60","Pic-Clor 60","Pic-Clor 60","Pic-Clor 60","Pic-Clor 60","Pic-Clor 60","Pic-Clor 60","Pic-Clor 60","Pic-Clor 60","Pic-Clor 60","Pic-Clor 60","Pic-Clor 60","Pic-Clor 60","Pic-Clor 60","Pic-Clor 60","Pic-Clor 60","Pic-Clor 60","Pic-Clor 60","Pic-Clor 60","Pic-Clor 60","Pic-Clor 60","Pic-Clor 60","Pic-Clor 60","Pic-Clor 60","Pic-Clor 60","Pic-Clor 60","Pic-Clor 60","Pic-Clor 60","Pic-Clor 60","Pic-Clor 60","Pic-Clor 60","Pic-Clor 60","Pic-Clor 60","Pic-Clor 60","Pic-Clor 60","Pic-Clor 60","Pic-Clor 60","Pic-Clor 60","Pic-Clor 60","Pic-Clor 60","Pic-Clor 60","Pic-Clor 60","Pic-Clor 60","Pic-Clor 60","Pic-Clor 60","Pic-Clor 60","Pic-Clor 60","Pic-Clor 60","Pic-Clor 60","Pic-Clor 60","Pic-Clor 60","Pic-Clor 60","Pic-Clor 60","Pic-Clor 60","Pic-Clor 60","Pic-Clor 60","Pic-Clor 60","Pic-Clor 60","Pic-Clor 60","Pic-Clor 60","Pic-Clor 60","Pic-Clor 60","Pic-Clor 60","Pic-Clor 60","Pic-Clor 60","Pic-Clor 60","Pic-Clor 60","Pic-Clor 60","Pic-Clor 60","Pic-Clor 60","Pic-Clor 60","Pic-Clor 60","Pic-Clor 60","Pic-Clor 60","Pic-Clor 60","Pic-Clor 60","Pic-Clor 60","Pic-Clor 60","Pic-Clor 60","Pic-Clor 60","Pic-Clor 60","Pic-Clor 60","Pic-Clor 60","Pic-Clor 60","Pic-Clor 60","Pic-Clor 60","Pic-Clor 60","Pic-Clor 60","Pic-Clor 60","Pic-Clor 60","Pic-Clor 60","Pic-Clor 60","Pic-Clor 60","Pic-Clor 60","Pic-Clor 60","Pic-Clor 60","Pic-Clor 60","Pic-Clor 60","Pic-Clor 60","Pic-Clor 60","Pic-Clor 60","Pic-Clor 60","Pic-Clor 60","Pic-Clor 60","Pic-Clor 60","Pic-Clor 60","Pic-Clor 60","Pic-Clor 60","Pic-Clor 60","Pic-Clor 60","Pic-Clor 60","Pic-Clor 60","Pic-Clor 60","Pic-Clor 60","Pic-Clor 60","Pic-Clor 60","Pic-Clor 60","Pic-Clor 60","Pic-Clor 60","Pic-Clor 60","Pic-Clor 60","Pic-Clor 60","Pic-Clor 60","Pic-Clor 60","Pic-Clor 60","Pic-Clor 60","Pic-Clor 60","Pic-Clor 60","Pic-Clor 60","Pic-Clor 60","Pic-Clor 60","Pic-Clor 60","Pic-Clor 60","Pic-Clor 60","Pic-Clor 60","Pic-Clor 60","Pic-Clor 60","Pic-Clor 60","Pic-Clor 60","Pic-Clor 60","Pic-Clor 60","Pic-Clor 60","Pic-Clor 60","Pic-Clor 60","Pic-Clor 60","Pic-Clor 60","Pic-Clor 60","Pic-Clor 60","Pic-Clor 60","Pic-Clor 60","Pic-Clor 60","Pic-Clor 60","Pic-Clor 60","Pic-Clor 60","Pic-Clor 60","Pic-Clor 60","Pic-Clor 60","Pic-Clor 60","Pic-Clor 60","Pic-Clor 60","Pic-Clor 60","Pic-Clor 60","Pic-Clor 60","Pic-Clor 60","Pic-Clor 60","Pic-Clor 60","Pic-Clor 60","Pic-Clor 60","Pic-Clor 60","Pic-Clor 60","Pic-Clor 60","Pic-Clor 60","Pic-Clor 60","Pic-Clor 60","Pic-Clor 60","Pic-Clor 60","Pic-Clor 60","Pic-Clor 60","Pic-Clor 60","Pic-Clor 60","Pic-Clor 60","Pic-Clor 60","Pic-Clor 60","Pic-Clor 60","Pic-Clor 60","Pic-Clor 60","Pic-Clor 60","Pic-Clor 60","Pic-Clor 60","Pic-Clor 60","Pic-Clor 60","Pic-Clor 60","Pic-Clor 60","Pic-Clor 60","Pic-Clor 60","Pic-Clor 60","Pic-Clor 60","Pic-Clor 60","Pic-Clor 60","Pic-Clor 60","Pic-Clor 60","Pic-Clor 60","Pic-Clor 60","Pic-Clor 60","Pic-Clor 60","Pic-Clor 60","Pic-Clor 60","Pic-Clor 60","Pic-Clor 60","Pic-Clor 60","Pic-Clor 60","Pic-Clor 60","Pic-Clor 60","Pic-Clor 60","Pic-Clor 60","Pic-Clor 60","Pic-Clor 60","Pic-Clor 60","Pic-Clor 60","Pic-Clor 60","Pic-Clor 60","Pic-Clor 60","Pic-Clor 60","Pic-Clor 60","Pic-Clor 60","Pic-Clor 60","Pic-Clor 60","Pic-Clor 60","Pic-Clor 60","Pic-Clor 60","Pic-Clor 60","Pic-Clor 60","Pic-Clor 60","Pic-Clor 60","Pic-Clor 60","Pic-Clor 60","Pic-Clor 60","Pic-Clor 60","Pic-Clor 60","Pic-Clor 60","Pic-Clor 60","Pic-Clor 60","Pic-Clor 60","Pic-Clor 60","Pic-Clor 60","Pic-Clor 60","Pic-Clor 60","Pic-Clor 60","Pic-Clor 60","Pic-Clor 60","Pic-Clor 60","Pic-Clor 60","Pic-Clor 60","Pic-Clor 60","Pic-Clor 60","Pic-Clor 60","Pic-Clor 60","Pic-Clor 60","Pic-Clor 60","Pic-Clor 60","Pic-Clor 60","Pic-Clor 60","Pic-Clor 60","Pic-Clor 60","Pic-Clor 60","Pic-Clor 60","Pic-Clor 60","Pic-Clor 60","Pic-Clor 60","Pic-Clor 60","Pic-Clor 60","Pic-Clor 60","Pic-Clor 60","Pic-Clor 60","Pic-Clor 60","Pic-Clor 60","Pic-Clor 60","Pic-Clor 60","Pic-Clor 60","Pic-Clor 60","Pic-Clor 60","Pic-Clor 60","Pic-Clor 60","Pic-Clor 60","Pic-Clor 60","Pic-Clor 60","Pic-Clor 60","Pic-Clor 60","Pic-Clor 60","Pic-Clor 60","Pic-Clor 60","Pic-Clor 60","Pic-Clor 60","Pic-Clor 60","Pic-Clor 60","Pic-Clor 60","Pic-Clor 60","Pic-Clor 60","Pic-Clor 60","Pic-Clor 60","Pic-Clor 60","Pic-Clor 60","Pic-Clor 60","Pic-Clor 60","Pic-Clor 60","Pic-Clor 60","Pic-Clor 60","Pic-Clor 60","Pic-Clor 60","Pic-Clor 60","Pic-Clor 60","Pic-Clor 60","Pic-Clor 60","Pic-Clor 60","Pic-Clor 60","Pic-Clor 60","Pic-Clor 60","Pic-Clor 60","Pic-Clor 60","Pic-Clor 60","Pic-Clor 60","Pic-Clor 60","Pic-Clor 60","Pic-Clor 60","Pic-Clor 60","Pic-Clor 60","Pic-Clor 60","Pic-Clor 60","Pic-Clor 60","Pic-Clor 60","Pic-Clor 60","Pic-Clor 60","Pic-Clor 60","Pic-Clor 60","Pic-Clor 60","Pic-Clor 60","Pic-Clor 60","Pic-Clor 60","Pic-Clor 60","Pic-Clor 60","Pic-Clor 60","Pic-Clor 60","Pic-Clor 60","Pic-Clor 60","Pic-Clor 60","Pic-Clor 60","Pic-Clor 60","Pic-Clor 60","Pic-Clor 60","Pic-Clor 60","Pic-Clor 60","Pic-Clor 60","Pic-Clor 60","Pic-Clor 60","Pic-Clor 60","Pic-Clor 60","Pic-Clor 60","Pic-Clor 60","Pic-Clor 60","Pic-Clor 60","Pic-Clor 60","Pic-Clor 60","Pic-Clor 60","Pic-Clor 60","Pic-Clor 60","Pic-Clor 60","Pic-Clor 60","Pic-Clor 60","Pic-Clor 60","Pic-Clor 60","Pic-Clor 60","Pic-Clor 60","Pic-Clor 60","Pic-Clor 60","Pic-Clor 60","Pic-Clor 60","Pic-Clor 60","Pic-Clor 60","Pic-Clor 60","Pic-Clor 60","Pic-Clor 60","Pic-Clor 60","Pic-Clor 60","Pic-Clor 60","Pic-Clor 60","Pic-Clor 60","Pic-Clor 60","Pic-Clor 60","Pic-Clor 60","Pic-Clor 60","Pic-Clor 60","Pic-Clor 60","Pic-Clor 60","Pic-Clor 60","Pic-Clor 60","Pic-Clor 60","Pic-Clor 60","Pic-Clor 60","Pic-Clor 60","Pic-Clor 60","Pic-Clor 60","Pic-Clor 60","Pic-Clor 60","Pic-Clor 60","Pic-Clor 60","Pic-Clor 60","Pic-Clor 60","Pic-Clor 60","Pic-Clor 60","Pic-Clor 60","Pic-Clor 60","Pic-Clor 60","Pic-Clor 60","Pic-Clor 60","Pic-Clor 60","Pic-Clor 60","Pic-Clor 60","Pic-Clor 60","Pic-Clor 60","Pic-Clor 60","Pic-Clor 60","Pic-Clor 60","Pic-Clor 60","Pic-Clor 60","Pic-Clor 60","Pic-Clor 60","Pic-Clor 60","Pic-Clor 60","Pic-Clor 60","Pic-Clor 60","Pic-Clor 60","Pic-Clor 60","Pic-Clor 60","Pic-Clor 60","Pic-Clor 60","Pic-Clor 60","Pic-Clor 60","Pic-Clor 60","Pic-Clor 60","Pic-Clor 60","Pic-Clor 60","Pic-Clor 60","Pic-Clor 60","Pic-Clor 60","Pic-Clor 60","Pic-Clor 60","Pic-Clor 60","Pic-Clor 60","Pic-Clor 60","Pic-Clor 60","Pic-Clor 60","Pic-Clor 60","Pic-Clor 60","Pic-Clor 60","Pic-Clor 60","Pic-Clor 60","Pic-Clor 60","Pic-Clor 60","Pic-Clor 60","Pic-Clor 60","Pic-Clor 60","Pic-Clor 60","Pic-Clor 60","Pic-Clor 60","Pic-Clor 60","Pic-Clor 60","Pic-Clor 60","Pic-Clor 60","Pic-Clor 60","Pic-Clor 60","Pic-Clor 60","Pic-Clor 60","Pic-Clor 60","Pic-Clor 60","Pic-Clor 60","Pic-Clor 60","Pic-Clor 60","Pic-Clor 60","Pic-Clor 60","Pic-Clor 60","Pic-Clor 60","Pic-Clor 60","Pic-Clor 60","Pic-Clor 60","Pic-Clor 60","Pic-Clor 60","Pic-Clor 60","Pic-Clor 60","Pic-Clor 60","Pic-Clor 60","Pic-Clor 60","Pic-Clor 60","Pic-Clor 60","Pic-Clor 60","Pic-Clor 60","Pic-Clor 60","Pic-Clor 60","Pic-Clor 60","Pic-Clor 60","Pic-Clor 60","Pic-Clor 60","Pic-Clor 60","Pic-Clor 60","Pic-Clor 60","Pic-Clor 60","Pic-Clor 60","Pic-Clor 60","Pic-Clor 60","Pic-Clor 60","Pic-Clor 60","Pic-Clor 60","Pic-Clor 60","Pic-Clor 60","Pic-Clor 60","Pic-Clor 60","Pic-Clor 60","Pic-Clor 60","Pic-Clor 60","Pic-Clor 60","Pic-Clor 60","Pic-Clor 60","Pic-Clor 60","Pic-Clor 60","Pic-Clor 60","Pic-Clor 60","Pic-Clor 60","Pic-Clor 60","Pic-Clor 60","Pic-Clor 60","Pic-Clor 60","Pic-Clor 60","Pic-Clor 60","Pic-Clor 60","Pic-Clor 60","Pic-Clor 60","Pic-Clor 60","Pic-Clor 60","Pic-Clor 60","Pic-Clor 60","Pic-Clor 60","Pic-Clor 60","Pic-Clor 60","Pic-Clor 60","Pic-Clor 60","Pic-Clor 60","Pic-Clor 60","Pic-Clor 60","Pic-Clor 60","Pic-Clor 60","Pic-Clor 60","Pic-Clor 60","Pic-Clor 60","Pic-Clor 60","Pic-Clor 60","Pic-Clor 60","Pic-Clor 60","Pic-Clor 60","Pic-Clor 60","Pic-Clor 60","Pic-Clor 60","Pic-Clor 60","Pic-Clor 60","Pic-Clor 60","Pic-Clor 60","Pic-Clor 60","Pic-Clor 60","Pic-Clor 60","Pic-Clor 60","Pic-Clor 60","Pic-Clor 60","Pic-Clor 60","Pic-Clor 60","Pic-Clor 60","Pic-Clor 60","Pic-Clor 60","Pic-Clor 60","Pic-Clor 60","Pic-Clor 60","Pic-Clor 60","Pic-Clor 60","Pic-Clor 60","Pic-Clor 60","Pic-Clor 60","Pic-Clor 60","Pic-Clor 60","Pic-Clor 60","Pic-Clor 60","Pic-Clor 60","Pic-Clor 60","Pic-Clor 60","Pic-Clor 60","Pic-Clor 60","Pic-Clor 60","Pic-Clor 60","Pic-Clor 60","Pic-Clor 60","Pic-Clor 60","Pic-Clor 60","Pic-Clor 60","Pic-Clor 60","Pic-Clor 60","Pic-Clor 60","Pic-Clor 60","Pic-Clor 60","Pic-Clor 60","Pic-Clor 60","Pic-Clor 60","Pic-Clor 60","Pic-Clor 60","Pic-Clor 60","Pic-Clor 60","Pic-Clor 60","Pic-Clor 60","Pic-Clor 60","Pic-Clor 60","Pic-Clor 60","Pic-Clor 60","Pic-Clor 60","Pic-Clor 60","Pic-Clor 60","Pic-Clor 60","Pic-Clor 60","Pic-Clor 60","Pic-Clor 60","Pic-Clor 60","Pic-Clor 60","Pic-Clor 60","Pic-Clor 60","Pic-Clor 60","Pic-Clor 60","Pic-Clor 60","Pic-Clor 60","Pic-Clor 60","Pic-Clor 60","Pic-Clor 60","Pic-Clor 60","Pic-Clor 60","Pic-Clor 60","Pic-Clor 60","Pic-Clor 60","Pic-Clor 60","Pic-Clor 60","Pic-Clor 60","Pic-Clor 60","Pic-Clor 60","Pic-Clor 60","Pic-Clor 60","Pic-Clor 60","Pic-Clor 60","Pic-Clor 60","Pic-Clor 60","Pic-Clor 60","Pic-Clor 60","Pic-Clor 60","Pic-Clor 60","Pic-Clor 60","Pic-Clor 60","Pic-Clor 60","Pic-Clor 60","Pic-Clor 60","Pic-Clor 60","Pic-Clor 60","Pic-Clor 60","Pic-Clor 60","Pic-Clor 60","Pic-Clor 60","Pic-Clor 60","Pic-Clor 60","Pic-Clor 60","Pic-Clor 60","Pic-Clor 60","Pic-Clor 60","Pic-Clor 60","Pic-Clor 60","Pic-Clor 60","Pic-Clor 60","Pic-Clor 60","Pic-Clor 60","Pic-Clor 60","Pic-Clor 60","Pic-Clor 60","Pic-Clor 60","Pic-Clor 60","Pic-Clor 60","Pic-Clor 60","Pic-Clor 60","Pic-Clor 60","Pic-Clor 60","Pic-Clor 60","Pic-Clor 60","Pic-Clor 60","Pic-Clor 60","Pic-Clor 60","Pic-Clor 60","Pic-Clor 60","Pic-Clor 60","Pic-Clor 60","Pic-Clor 60","Pic-Clor 60","Pic-Clor 60","Pic-Clor 60","Pic-Clor 60","Pic-Clor 60","Pic-Clor 60","Pic-Clor 60","Pic-Clor 60","Pic-Clor 60","Pic-Clor 60","Pic-Clor 60","Pic-Clor 60","Pic-Clor 60","Pic-Clor 60","Pic-Clor 60","Pic-Clor 60","Pic-Clor 60","Pic-Clor 60","Pic-Clor 60","Pic-Clor 60","Pic-Clor 60","Pic-Clor 60","Pic-Clor 60","Pic-Clor 60","Pic-Clor 60","Pic-Clor 60","Pic-Clor 60","Pic-Clor 60","Pic-Clor 60","Pic-Clor 60","Pic-Clor 60","Pic-Clor 60","Pic-Clor 60","Pic-Clor 60","Pic-Clor 60","Pic-Clor 60","Pic-Clor 60","Pic-Clor 60","Pic-Clor 60","Pic-Clor 60","Pic-Clor 60","Pic-Clor 60","Pic-Clor 60","Pic-Clor 60","Pic-Clor 60","Pic-Clor 60","Pic-Clor 60","Pic-Clor 60","Pic-Clor 60","Pic-Clor 60","Pic-Clor 60","Pic-Clor 60","Pic-Clor 60","Pic-Clor 60","Pic-Clor 60","Pic-Clor 60","Pic-Clor 60","Pic-Clor 60","Pic-Clor 60","Pic-Clor 60","Pic-Clor 60","Pic-Clor 60","Pic-Clor 60","Pic-Clor 60","Pic-Clor 60","Pic-Clor 60","Pic-Clor 60","Pic-Clor 60","Pic-Clor 60","Pic-Clor 60","Pic-Clor 60","Pic-Clor 60","Pic-Clor 60","Pic-Clor 60","Pic-Clor 60","Pic-Clor 60","Pic-Clor 60","Pic-Clor 60","Pic-Clor 60","Pic-Clor 60","Pic-Clor 60","Pic-Clor 60","Pic-Clor 60","Pic-Clor 60","Pic-Clor 60","Pic-Clor 60","Pic-Clor 60","Pic-Clor 60","Pic-Clor 60","Pic-Clor 60","Pic-Clor 60","Pic-Clor 60","Pic-Clor 60","Pic-Clor 60","Pic-Clor 60","Pic-Clor 60","Pic-Clor 60","Pic-Clor 60","Pic-Clor 60","Pic-Clor 60","Pic-Clor 60","Pic-Clor 60","Pic-Clor 60","Pic-Clor 60","Pic-Clor 60","Pic-Clor 60","Pic-Clor 60","Pic-Clor 60","Pic-Clor 60","Pic-Clor 60","Pic-Clor 60","Pic-Clor 60","Pic-Clor 60","Pic-Clor 60","Pic-Clor 60","Pic-Clor 60","Pic-Clor 60","Pic-Clor 60","Pic-Clor 60","Pic-Clor 60","Pic-Clor 60","Pic-Clor 60","Pic-Clor 60","Pic-Clor 60","Pic-Clor 60","Pic-Clor 60","Pic-Clor 60","Pic-Clor 60","Pic-Clor 60","Pic-Clor 60","Pic-Clor 60","Pic-Clor 60","Pic-Clor 60","Pic-Clor 60","Pic-Clor 60","Pic-Clor 60","Pic-Clor 60","Pic-Clor 60","Pic-Clor 60","Pic-Clor 60","Pic-Clor 60","Pic-Clor 60","Pic-Clor 60","Pic-Clor 60","Pic-Clor 60","Pic-Clor 60","Pic-Clor 60","Pic-Clor 60","Pic-Clor 60","Pic-Clor 60","Pic-Clor 60","Pic-Clor 60","Pic-Clor 60","Pic-Clor 60","Pic-Clor 60","Pic-Clor 60","Pic-Clor 60","Pic-Clor 60","Pic-Clor 60","Pic-Clor 60","Pic-Clor 60","Pic-Clor 60","Pic-Clor 60","Pic-Clor 60","Pic-Clor 60","Pic-Clor 60","Pic-Clor 60","Pic-Clor 60","Pic-Clor 60","Pic-Clor 60","Pic-Clor 60","Pic-Clor 60","Pic-Clor 60","Pic-Clor 60","Pic-Clor 60","Pic-Clor 60","Pic-Clor 60","Pic-Clor 60","Pic-Clor 60","Pic-Clor 60","Pic-Clor 60","Pic-Clor 60","Pic-Clor 60","Pic-Clor 60","Pic-Clor 60","Pic-Clor 60","Pic-Clor 60","Pic-Clor 60","Pic-Clor 60","Pic-Clor 60","Pic-Clor 60","Pic-Clor 60","Pic-Clor 60","Pic-Clor 60","Pic-Clor 60","Pic-Clor 60","Pic-Clor 60","Pic-Clor 60","Pic-Clor 60","Pic-Clor 60","Pic-Clor 60","Pic-Clor 60","Pic-Clor 60","Pic-Clor 60","Pic-Clor 60","Pic-Clor 60","Pic-Clor 60","Pic-Clor 60","Pic-Clor 60","Pic-Clor 60","Pic-Clor 60","Pic-Clor 60","Pic-Clor 60","Pic-Clor 60","Pic-Clor 60","Pic-Clor 60","Pic-Clor 60","Pic-Clor 60","Pic-Clor 60","Pic-Clor 60","Pic-Clor 60","Pic-Clor 60","Pic-Clor 60","Pic-Clor 60","Pic-Clor 60","Pic-Clor 60","Pic-Clor 60","Pic-Clor 60","Pic-Clor 60","Pic-Clor 60","Pic-Clor 60","Pic-Clor 60","Pic-Clor 60","Pic-Clor 60","Pic-Clor 60","Pic-Clor 60","Pic-Clor 60","Pic-Clor 60","Pic-Clor 60","Pic-Clor 60","Pic-Clor 60","Pic-Clor 60","Pic-Clor 60","Pic-Clor 60","Pic-Clor 60","Pic-Clor 60","Pic-Clor 60","Pic-Clor 60","Pic-Clor 60","Pic-Clor 60","Pic-Clor 60","Pic-Clor 60","Pic-Clor 60","Pic-Clor 60","Pic-Clor 60","Pic-Clor 60","Pic-Clor 60","Pic-Clor 60","Pic-Clor 60","Pic-Clor 60","Pic-Clor 60","Pic-Clor 60","Pic-Clor 60","Pic-Clor 60","Pic-Clor 60","Pic-Clor 60","Pic-Clor 60","Pic-Clor 60","Pic-Clor 60","Pic-Clor 60","Pic-Clor 60","Pic-Clor 60","Pic-Clor 60","Pic-Clor 60","Pic-Clor 60","Pic-Clor 60","Pic-Clor 60","Pic-Clor 60","Pic-Clor 60","Pic-Clor 60","Pic-Clor 60","Pic-Clor 60","Pic-Clor 60","Pic-Clor 60","Pic-Clor 60","Pic-Clor 60","Pic-Clor 60","Pic-Clor 60","Pic-Clor 60","Pic-Clor 60","Pic-Clor 60","Pic-Clor 60","Pic-Clor 60","Pic-Clor 60","Pic-Clor 60","Pic-Clor 60","Pic-Clor 60","Pic-Clor 60","Pic-Clor 60","Pic-Clor 60","Pic-Clor 60","Pic-Clor 60","Pic-Clor 60","Pic-Clor 60","Pic-Clor 60","Pic-Clor 60","Pic-Clor 60","Pic-Clor 60","Pic-Clor 60","Pic-Clor 60","Pic-Clor 60","Pic-Clor 60","Pic-Clor 60","Pic-Clor 60","Pic-Clor 60","Pic-Clor 60","Pic-Clor 60","Pic-Clor 60","Pic-Clor 60","Pic-Clor 60","Pic-Clor 60","Pic-Clor 60","Pic-Clor 60","Pic-Clor 60","Pic-Clor 60","Pic-Clor 60","Pic-Clor 60","Pic-Clor 60","Pic-Clor 60","Pic-Clor 60","Pic-Clor 60","Pic-Clor 60","Pic-Clor 60","Pic-Clor 60","Pic-Clor 60","Pic-Clor 60","Pic-Clor 60","Pic-Clor 60","Pic-Clor 60","Pic-Clor 60","Pic-Clor 60","Pic-Clor 60","Pic-Clor 60","Pic-Clor 60","Pic-Clor 60","Pic-Clor 60","Pic-Clor 60","Pic-Clor 60","Pic-Clor 60","Pic-Clor 60","Pic-Clor 60","Pic-Clor 60","Pic-Clor 60","Pic-Clor 60","Pic-Clor 60","Pic-Clor 60","Pic-Clor 60","Pic-Clor 60","Pic-Clor 60","Pic-Clor 60","Pic-Clor 60","Pic-Clor 60","Pic-Clor 60","Pic-Clor 60","Pic-Clor 60","Pic-Clor 60","Pic-Clor 60","Pic-Clor 60","Pic-Clor 60","Pic-Clor 60","Pic-Clor 60","Pic-Clor 60","Pic-Clor 60","Pic-Clor 60","Pic-Clor 60","Pic-Clor 60","Pic-Clor 60","Pic-Clor 60","Pic-Clor 60","Pic-Clor 60","Pic-Clor 60","Pic-Clor 60","Pic-Clor 60","Pic-Clor 60","Pic-Clor 60","Pic-Clor 60","Pic-Clor 60","Pic-Clor 60","Pic-Clor 60","Pic-Clor 60","Pic-Clor 60","Pic-Clor 60","Pic-Clor 60","Pic-Clor 60","Pic-Clor 60","Pic-Clor 60","Pic-Clor 60","Pic-Clor 60","Pic-Clor 60","Pic-Clor 60","Pic-Clor 60","Pic-Clor 60","Pic-Clor 60","Pic-Clor 60","Pic-Clor 60","Pic-Clor 60","Pic-Clor 60","Pic-Clor 60","Pic-Clor 60","Pic-Clor 60","Pic-Clor 60","Pic-Clor 60","Pic-Clor 60","Pic-Clor 60","Pic-Clor 60","Pic-Clor 60","Pic-Clor 60","Pic-Clor 60","Pic-Clor 60","Pic-Clor 60","Pic-Clor 60","Pic-Clor 60","Pic-Clor 60","Pic-Clor 60","Pic-Clor 60","Pic-Clor 60","Pic-Clor 60","Pic-Clor 60","Pic-Clor 60","Pic-Clor 60","Pic-Clor 60","Pic-Clor 60","Pic-Clor 60","Pic-Clor 60","Pic-Clor 60","Pic-Clor 60","Pic-Clor 60","Pic-Clor 60","Pic-Clor 60","Pic-Clor 60","Pic-Clor 60","Pic-Clor 60","Pic-Clor 60","Pic-Clor 60","Pic-Clor 60","Pic-Clor 60","Pic-Clor 60","Pic-Clor 60","Pic-Clor 60","Pic-Clor 60","Pic-Clor 60","Pic-Clor 60","Pic-Clor 60","Pic-Clor 60","Pic-Clor 60","Pic-Clor 60","Pic-Clor 60","Pic-Clor 60","Pic-Clor 60","Pic-Clor 60","Pic-Clor 60","Pic-Clor 60","Pic-Clor 60","Pic-Clor 60","Pic-Clor 60","Pic-Clor 60","Pic-Clor 60","Pic-Clor 60","Pic-Clor 60","Pic-Clor 60","Pic-Clor 60","Pic-Clor 60","Pic-Clor 60","Pic-Clor 60","Pic-Clor 60","Pic-Clor 60","Pic-Clor 60","Pic-Clor 60","Pic-Clor 60","Pic-Clor 60","Pic-Clor 60","Pic-Clor 60","Pic-Clor 60","Pic-Clor 60","Pic-Clor 60","Pic-Clor 60","Pic-Clor 60","Pic-Clor 60","Pic-Clor 60","Pic-Clor 60","Pic-Clor 60","Pic-Clor 60","Pic-Clor 60","Pic-Clor 60","Pic-Clor 60","Pic-Clor 60","Pic-Clor 60","Pic-Clor 60","Pic-Clor 60","Pic-Clor 60","Pic-Clor 60","Pic-Clor 60","Pic-Clor 60","Pic-Clor 60","Pic-Clor 60","Pic-Clor 60","Pic-Clor 60","Pic-Clor 60","Pic-Clor 60","Pic-Clor 60","Pic-Clor 60","Pic-Clor 60","Pic-Clor 60","Pic-Clor 60","Pic-Clor 60","Pic-Clor 60","Pic-Clor 60","Pic-Clor 60","Pic-Clor 60","Pic-Clor 60","Pic-Clor 60","Pic-Clor 60","Pic-Clor 60","Pic-Clor 60","Pic-Clor 60","Pic-Clor 60","Pic-Clor 60","Pic-Clor 60","Pic-Clor 60","Pic-Clor 60","Pic-Clor 60","Pic-Clor 60","Pic-Clor 60","Pic-Clor 60","Pic-Clor 60","Pic-Clor 60","Pic-Clor 60","Pic-Clor 60","Pic-Clor 60","Pic-Clor 60","Pic-Clor 60","Pic-Clor 60","Pic-Clor 60","Pic-Clor 60","Pic-Clor 60","Pic-Clor 60","Pic-Clor 60","Pic-Clor 60","Pic-Clor 60","Pic-Clor 60","Pic-Clor 60","Pic-Clor 60","Pic-Clor 60","Pic-Clor 60","Pic-Clor 60","Pic-Clor 60","Pic-Clor 60","Pic-Clor 60","Pic-Clor 60","Pic-Clor 60","Pic-Clor 60","Pic-Clor 60","Pic-Clor 60","Pic-Clor 60","Pic-Clor 60","Pic-Clor 60","Pic-Clor 60","Pic-Clor 60","Pic-Clor 60","Pic-Clor 60","Pic-Clor 60","Pic-Clor 60","Pic-Clor 60","Pic-Clor 60","Pic-Clor 60","Pic-Clor 60","Pic-Clor 60","Pic-Clor 60","Pic-Clor 60","Pic-Clor 60","Pic-Clor 60","Pic-Clor 60","Pic-Clor 60","Pic-Clor 60","Pic-Clor 60","Pic-Clor 60","Pic-Clor 60","Pic-Clor 60","Pic-Clor 60","Pic-Clor 60","Pic-Clor 60","Pic-Clor 60","Pic-Clor 60","Pic-Clor 60","Pic-Clor 60","Pic-Clor 60","Pic-Clor 60","Pic-Clor 60","Pic-Clor 60","Pic-Clor 60","Pic-Clor 60","Pic-Clor 60","Pic-Clor 60","Pic-Clor 60","Pic-Clor 60","Pic-Clor 60","Pic-Clor 60","Pic-Clor 60","Pic-Clor 60","Pic-Clor 60","Pic-Clor 60","Pic-Clor 60","Pic-Clor 60","Pic-Clor 60","Pic-Clor 60","Pic-Clor 60","Pic-Clor 60","Pic-Clor 60","Pic-Clor 60","Pic-Clor 60","Pic-Clor 60","Pic-Clor 60","Pic-Clor 60","Pic-Clor 60","Pic-Clor 60","Pic-Clor 60","Pic-Clor 60","Pic-Clor 60","Pic-Clor 60","Pic-Clor 60","Pic-Clor 60","Pic-Clor 60","Pic-Clor 60","Pic-Clor 60","Pic-Clor 60","Pic-Clor 60","Pic-Clor 60","Pic-Clor 60","Pic-Clor 60","Pic-Clor 60","Pic-Clor 60","Pic-Clor 60","Pic-Clor 60","Pic-Clor 60","Pic-Clor 60","Pic-Clor 60","Pic-Clor 60","Pic-Clor 60","Pic-Clor 60","Pic-Clor 60","Pic-Clor 60","Pic-Clor 60","Pic-Clor 60","Pic-Clor 60","Pic-Clor 60","Pic-Clor 60","Pic-Clor 60","Pic-Clor 60","Pic-Clor 60","Pic-Clor 60","Pic-Clor 60","Pic-Clor 60","Pic-Clor 60","Pic-Clor 60","Pic-Clor 60","Pic-Clor 60","Pic-Clor 60","Pic-Clor 60","Pic-Clor 60","Pic-Clor 60","Pic-Clor 60","Pic-Clor 60","Pic-Clor 60","Pic-Clor 60","Pic-Clor 60","Pic-Clor 60","Pic-Clor 60","Pic-Clor 60","Pic-Clor 60","Pic-Clor 60","Pic-Clor 60","Pic-Clor 60","Pic-Clor 60","Pic-Clor 60","Pic-Clor 60","Pic-Clor 60","Pic-Clor 60","Pic-Clor 60","Pic-Clor 60","Pic-Clor 60","Pic-Clor 60","Pic-Clor 60","Pic-Clor 60","Pic-Clor 60","Pic-Clor 60","Pic-Clor 60","Pic-Clor 60","Pic-Clor 60","Pic-Clor 60","Pic-Clor 60","Pic-Clor 60","Pic-Clor 60","Pic-Clor 60","Pic-Clor 60","Pic-Clor 60","Pic-Clor 60","Pic-Clor 60","Pic-Clor 60","Pic-Clor 60","Pic-Clor 60","Pic-Clor 60","Pic-Clor 60","Pic-Clor 60","Pic-Clor 60","Pic-Clor 60","Pic-Clor 60","Pic-Clor 60","Pic-Clor 60","Pic-Clor 60","Pic-Clor 60","Pic-Clor 60","Pic-Clor 60","Pic-Clor 60","Pic-Clor 60","Pic-Clor 60","Pic-Clor 60","Pic-Clor 60","Pic-Clor 60","Pic-Clor 60","Pic-Clor 60","Pic-Clor 60","Pic-Clor 60","Pic-Clor 60","Pic-Clor 60","Pic-Clor 60","Pic-Clor 60","Pic-Clor 60","Pic-Clor 60","Pic-Clor 60","Pic-Clor 60","Pic-Clor 60","Pic-Clor 60","Pic-Clor 60","Pic-Clor 60","Pic-Clor 60","Pic-Clor 60","Pic-Clor 60","Pic-Clor 60","Pic-Clor 60","Pic-Clor 60","Pic-Clor 60","Pic-Clor 60","Pic-Clor 60","Pic-Clor 60","Pic-Clor 60","Pic-Clor 60","Pic-Clor 60","Pic-Clor 60","Pic-Clor 60","Pic-Clor 60","Pic-Clor 60","Pic-Clor 60","Pic-Clor 60","Pic-Clor 60","Pic-Clor 60","Pic-Clor 60","Pic-Clor 60","Pic-Clor 60","Pic-Clor 60","Pic-Clor 60","Pic-Clor 60","Pic-Clor 60","Pic-Clor 60","Pic-Clor 60","Pic-Clor 60","Pic-Clor 60","Pic-Clor 60","Pic-Clor 60","Pic-Clor 60","Pic-Clor 60","Pic-Clor 60","Pic-Clor 60","Pic-Clor 60","Pic-Clor 60","Pic-Clor 60","Pic-Clor 60","Pic-Clor 60","Pic-Clor 60","Pic-Clor 60","Pic-Clor 60","Pic-Clor 60","Pic-Clor 60","Pic-Clor 60","Pic-Clor 60","Pic-Clor 60","Pic-Clor 60","Pic-Clor 60","Pic-Clor 60","Pic-Clor 60","Pic-Clor 60","Pic-Clor 60","Pic-Clor 60","Pic-Clor 60","Pic-Clor 60","Pic-Clor 60","Pic-Clor 60","Pic-Clor 60","Pic-Clor 60","Pic-Clor 60","Pic-Clor 60","Pic-Clor 60","Pic-Clor 60","Pic-Clor 60","Pic-Clor 60","Pic-Clor 60","Pic-Clor 60","Pic-Clor 60","Pic-Clor 60","Pic-Clor 60","Pic-Clor 60","Pic-Clor 60","Pic-Clor 60","Pic-Clor 60","Pic-Clor 60","Pic-Clor 60","Pic-Clor 60","Pic-Clor 60","Pic-Clor 60","Pic-Clor 60","Pic-Clor 60","Pic-Clor 60","Pic-Clor 60","Pic-Clor 60","Pic-Clor 60","Pic-Clor 60","Pic-Clor 60","Pic-Clor 60","Pic-Clor 60","Pic-Clor 60","Pic-Clor 60","Pic-Clor 60","Pic-Clor 60","Pic-Clor 60","Pic-Clor 60","Pic-Clor 60","Pic-Clor 60","Pic-Clor 60","Pic-Clor 60","Pic-Clor 60","Pic-Clor 60","Pic-Clor 60","Pic-Clor 60","Pic-Clor 60","Pic-Clor 60","Pic-Clor 60","Pic-Clor 60","Pic-Clor 60","Pic-Clor 60","Pic-Clor 60","Pic-Clor 60","Pic-Clor 60","Pic-Clor 60","Pic-Clor 60","Pic-Clor 60","Pic-Clor 60","Pic-Clor 60","Pic-Clor 60","Pic-Clor 60","Pic-Clor 60","Pic-Clor 60","Pic-Clor 60","Pic-Clor 60","Pic-Clor 60","Pic-Clor 60","Pic-Clor 60","Pic-Clor 60","Pic-Clor 60","Pic-Clor 60","Pic-Clor 60","Pic-Clor 60","Pic-Clor 60","Pic-Clor 60","Pic-Clor 60","Pic-Clor 60","Pic-Clor 60","Pic-Clor 60","Pic-Clor 60","Pic-Clor 60","Pic-Clor 60","Pic-Clor 60","Pic-Clor 60","Pic-Clor 60","Pic-Clor 60","Pic-Clor 60","Pic-Clor 60","Pic-Clor 60","Pic-Clor 60","Pic-Clor 60","Pic-Clor 60","Pic-Clor 60","Pic-Clor 60","Pic-Clor 60","Pic-Clor 60","Pic-Clor 60","Pic-Clor 60","Pic-Clor 60","Pic-Clor 60","Pic-Clor 60","Pic-Clor 60","Pic-Clor 60","Pic-Clor 60","Pic-Clor 60","Pic-Clor 60","Pic-Clor 60","Pic-Clor 60","Pic-Clor 60","Pic-Clor 60","Pic-Clor 60","Pic-Clor 60","Pic-Clor 60","Pic-Clor 60","Pic-Clor 60","Pic-Clor 60","Pic-Clor 60","Pic-Clor 60","Pic-Clor 60","Pic-Clor 60","Pic-Clor 60","Pic-Clor 60","Pic-Clor 60","Pic-Clor 60","Pic-Clor 60","Pic-Clor 60","Pic-Clor 60","Pic-Clor 60","Pic-Clor 60","Pic-Clor 60","Pic-Clor 60","Pic-Clor 60","Pic-Clor 60","Pic-Clor 60","Pic-Clor 60","Pic-Clor 60","Pic-Clor 60","Pic-Clor 60","Pic-Clor 60","Pic-Clor 60","Pic-Clor 60","Pic-Clor 60","Pic-Clor 60","Pic-Clor 60","Pic-Clor 60","Pic-Clor 60","Pic-Clor 60","Pic-Clor 60","Pic-Clor 60","Pic-Clor 60","Pic-Clor 60","Pic-Clor 60","Pic-Clor 60","Pic-Clor 60","Pic-Clor 60","Pic-Clor 60","Pic-Clor 60","Pic-Clor 60","Pic-Clor 60","Pic-Clor 60","Pic-Clor 60","Pic-Clor 60","Pic-Clor 60","Pic-Clor 60","Pic-Clor 60","Pic-Clor 60","Pic-Clor 60","Pic-Clor 60","Pic-Clor 60","Pic-Clor 60","Pic-Clor 60","Pic-Clor 60","Pic-Clor 60","Pic-Clor 60","Pic-Clor 60","Pic-Clor 60","Pic-Clor 60","Pic-Clor 60","Pic-Clor 60","Pic-Clor 60","Pic-Clor 60","Pic-Clor 60","Pic-Clor 60","Pic-Clor 60","Pic-Clor 60","Pic-Clor 60","Pic-Clor 60","Pic-Clor 60","Pic-Clor 60","Pic-Clor 60","Pic-Clor 60","Pic-Clor 60","Pic-Clor 60","Pic-Clor 60","Pic-Clor 60","Pic-Clor 60","Pic-Clor 60","Pic-Clor 60","Pic-Clor 60","Pic-Clor 60","Pic-Clor 60","Pic-Clor 60","Pic-Clor 60","Pic-Clor 60","Pic-Clor 60","Pic-Clor 60","Pic-Clor 60","Pic-Clor 60","Pic-Clor 60","Pic-Clor 60","Pic-Clor 60","Pic-Clor 60","Pic-Clor 60","Pic-Clor 60","Pic-Clor 60","Pic-Clor 60","Pic-Clor 60","Pic-Clor 60","Pic-Clor 60","Pic-Clor 60","Pic-Clor 60","Pic-Clor 60","Pic-Clor 60","Pic-Clor 60","Pic-Clor 60","Pic-Clor 60","Pic-Clor 60","Pic-Clor 60","Pic-Clor 60","Pic-Clor 60","Pic-Clor 60","Pic-Clor 60","Pic-Clor 60","Pic-Clor 60","Pic-Clor 60","Pic-Clor 60","Pic-Clor 60","Pic-Clor 60","Pic-Clor 60","Pic-Clor 60","Pic-Clor 60","Pic-Clor 60","Pic-Clor 60","Pic-Clor 60","Pic-Clor 60","Pic-Clor 60","Pic-Clor 60","Pic-Clor 60","Pic-Clor 60","Pic-Clor 60","Pic-Clor 60","Pic-Clor 60","Pic-Clor 60","Pic-Clor 60","Pic-Clor 60","Pic-Clor 60","Pic-Clor 60","Pic-Clor 60","Pic-Clor 60","Pic-Clor 60","Pic-Clor 60","Pic-Clor 60","Pic-Clor 60","Pic-Clor 60","Pic-Clor 60","Pic-Clor 60","Pic-Clor 60","Pic-Clor 60","Pic-Clor 60","Pic-Clor 60","Pic-Clor 60","Pic-Clor 60","Pic-Clor 60","Pic-Clor 60","Pic-Clor 60","Pic-Clor 60","Pic-Clor 60","Pic-Clor 60","Pic-Clor 60","Pic-Clor 60","Pic-Clor 60","Pic-Clor 60","Pic-Clor 60","Pic-Clor 60","Pic-Clor 60","Pic-Clor 60","Pic-Clor 60","Pic-Clor 60","Pic-Clor 60","Pic-Clor 60","Pic-Clor 60","Pic-Clor 60","Pic-Clor 60","Pic-Clor 60","Pic-Clor 60","Pic-Clor 60","Pic-Clor 60","Pic-Clor 60","Pic-Clor 60","Pic-Clor 60","Pic-Clor 60","Pic-Clor 60","Pic-Clor 60","Pic-Clor 60","Pic-Clor 60","Pic-Clor 60","Pic-Clor 60","Pic-Clor 60","Pic-Clor 60","Pic-Clor 60","Pic-Clor 60","Pic-Clor 60","Pic-Clor 60","Pic-Clor 60","Pic-Clor 60","Pic-Clor 60","Pic-Clor 60","Pic-Clor 60","Pic-Clor 60","Pic-Clor 60","Pic-Clor 60","Pic-Clor 60","Pic-Clor 60","Pic-Clor 60","Pic-Clor 60","Pic-Clor 60","Pic-Clor 60","Pic-Clor 60","Pic-Clor 60","Pic-Clor 60","Pic-Clor 60","Pic-Clor 60","Pic-Clor 60","Pic-Clor 60","Pic-Clor 60","Pic-Clor 60","Pic-Clor 60","Pic-Clor 60","Pic-Clor 60","Pic-Clor 60","Pic-Clor 60","Pic-Clor 60","Pic-Clor 60","Pic-Clor 60","Pic-Clor 60","Pic-Clor 60","Pic-Clor 60","Pic-Clor 60","Pic-Clor 60","Pic-Clor 60","Pic-Clor 60","Pic-Clor 60","Pic-Clor 60","Pic-Clor 60","Pic-Clor 60","Pic-Clor 60","Pic-Clor 60","Pic-Clor 60","Pic-Clor 60","Pic-Clor 60","Pic-Clor 60","Pic-Clor 60","Pic-Clor 60","Pic-Clor 60","Pic-Clor 60","Pic-Clor 60","Pic-Clor 60","Pic-Clor 60","Pic-Clor 60","Pic-Clor 60","Pic-Clor 60","Pic-Clor 60","Pic-Clor 60","Pic-Clor 60","Pic-Clor 60","Pic-Clor 60","Pic-Clor 60","Pic-Clor 60","Pic-Clor 60","Pic-Clor 60","Pic-Clor 60","Pic-Clor 60","Pic-Clor 60","Pic-Clor 60","Pic-Clor 60","Pic-Clor 60","Pic-Clor 60","Pic-Clor 60","Pic-Clor 60","Pic-Clor 60","Pic-Clor 60","Pic-Clor 60","Pic-Clor 60","Pic-Clor 60","Pic-Clor 60","Pic-Clor 60","Pic-Clor 60","Pic-Clor 60","Pic-Clor 60","Pic-Clor 60","Pic-Clor 60","Pic-Clor 60","Pic-Clor 60","Pic-Clor 60","Pic-Clor 60","Pic-Clor 60","Pic-Clor 60","Pic-Clor 60","Pic-Clor 60","Pic-Clor 60","Pic-Clor 60","Pic-Clor 60","Pic-Clor 60","Pic-Clor 60","Pic-Clor 60","Pic-Clor 60","Pic-Clor 60","Pic-Clor 60","Pic-Clor 60","Pic-Clor 60","Pic-Clor 60","Pic-Clor 60","Pic-Clor 60","Pic-Clor 60","Pic-Clor 60","Pic-Clor 60","Pic-Clor 60","Pic-Clor 60","Pic-Clor 60","Pic-Clor 60","Pic-Clor 60","Pic-Clor 60","Pic-Clor 60","Pic-Clor 60","Pic-Clor 60","Pic-Clor 60","Pic-Clor 60","Pic-Clor 60","Pic-Clor 60","Pic-Clor 60","Pic-Clor 60","Pic-Clor 60","Pic-Clor 60","Pic-Clor 60","Pic-Clor 60","Pic-Clor 60","Pic-Clor 60","Pic-Clor 60","Pic-Clor 60","Pic-Clor 60","Pic-Clor 60","Pic-Clor 60","Pic-Clor 60","Pic-Clor 60","Pic-Clor 60","Pic-Clor 60","Pic-Clor 60","Pic-Clor 60","Pic-Clor 60","Pic-Clor 60","Pic-Clor 60","Pic-Clor 60","Pic-Clor 60","Pic-Clor 60","Pic-Clor 60","Pic-Clor 60","Pic-Clor 60","Pic-Clor 60","Pic-Clor 60","Pic-Clor 60","Pic-Clor 60","Pic-Clor 60","Pic-Clor 60","Pic-Clor 60","Pic-Clor 60","Pic-Clor 60","Pic-Clor 60","Pic-Clor 60","Pic-Clor 60","Pic-Clor 60","Pic-Clor 60","Pic-Clor 60","Pic-Clor 60","Pic-Clor 60","Pic-Clor 60","Pic-Clor 60","Pic-Clor 60","Pic-Clor 60","Pic-Clor 60","Pic-Clor 60","Pic-Clor 60","Pic-Clor 60","Pic-Clor 60","Pic-Clor 60","Pic-Clor 60","Pic-Clor 60","Pic-Clor 60","Pic-Clor 60","Pic-Clor 60","Pic-Clor 60","Pic-Clor 60","Pic-Clor 60","Pic-Clor 60","Pic-Clor 60","Pic-Clor 60","Pic-Clor 60","Pic-Clor 60","Pic-Clor 60","Pic-Clor 60","Pic-Clor 60","Pic-Clor 60","Pic-Clor 60","Pic-Clor 60","Pic-Clor 60","Pic-Clor 60","Pic-Clor 60","Pic-Clor 60","Pic-Clor 60","Pic-Clor 60","Pic-Clor 60","Pic-Clor 60","Pic-Clor 60","Pic-Clor 60","Pic-Clor 60","Pic-Clor 60","Pic-Clor 60","Pic-Clor 60","Pic-Clor 60","Pic-Clor 60","Pic-Clor 60","Pic-Clor 60","Pic-Clor 60","Pic-Clor 60","Pic-Clor 60","Pic-Clor 60","Pic-Clor 60","Pic-Clor 60","Pic-Clor 60","Pic-Clor 60","Pic-Clor 60","Pic-Clor 60","Pic-Clor 60","Pic-Clor 60","Pic-Clor 60","Pic-Clor 60","Pic-Clor 60","Pic-Clor 60","Pic-Clor 60","Pic-Clor 60","Pic-Clor 60","Pic-Clor 60","Pic-Clor 60","Pic-Clor 60","Pic-Clor 60","Pic-Clor 60","Pic-Clor 60","Pic-Clor 60","Pic-Clor 60","Pic-Clor 60","Pic-Clor 60","Pic-Clor 60","Pic-Clor 60","Pic-Clor 60","Pic-Clor 60","Pic-Clor 60","Pic-Clor 60","Pic-Clor 60","Pic-Clor 60","Pic-Clor 60","Pic-Clor 60","Pic-Clor 60","Pic-Clor 60","Pic-Clor 60","Pic-Clor 60","Pic-Clor 60","Pic-Clor 60","Pic-Clor 60","Pic-Clor 60","Pic-Clor 60","Pic-Clor 60","Pic-Clor 60","Pic-Clor 60","Pic-Clor 60","Pic-Clor 60","Pic-Clor 60","Pic-Clor 60","Pic-Clor 60","Pic-Clor 60","Pic-Clor 60","Pic-Clor 60","Pic-Clor 60","Pic-Clor 60","Pic-Clor 60","Pic-Clor 60","Pic-Clor 60","Pic-Clor 60","Pic-Clor 60","Pic-Clor 60","Pic-Clor 60","Pic-Clor 60","Pic-Clor 60","Pic-Clor 60","Pic-Clor 60","Pic-Clor 60","Pic-Clor 60","Pic-Clor 60","Pic-Clor 60","Pic-Clor 60","Pic-Clor 60","Pic-Clor 60","Pic-Clor 60","Pic-Clor 60","Pic-Clor 60","Pic-Clor 60","Pic-Clor 60","Pic-Clor 60","Pic-Clor 60","Pic-Clor 60","Pic-Clor 60","Pic-Clor 60","Pic-Clor 60","Pic-Clor 60","Pic-Clor 60","Pic-Clor 60","Pic-Clor 60","Pic-Clor 60","Pic-Clor 60","Pic-Clor 60","Pic-Clor 60","Pic-Clor 60","Pic-Clor 60","Pic-Clor 60","Pic-Clor 60","Pic-Clor 60","Pic-Clor 60","Pic-Clor 60","Pic-Clor 60","Pic-Clor 60","Pic-Clor 60","Pic-Clor 60","Pic-Clor 60","Pic-Clor 60","Pic-Clor 60","Pic-Clor 60","Pic-Clor 60","Pic-Clor 60","Pic-Clor 60","Pic-Clor 60","Pic-Clor 60","Pic-Clor 60","Pic-Clor 60","Pic-Clor 60","Pic-Clor 60","Pic-Clor 60","Pic-Clor 60","Pic-Clor 60","Pic-Clor 60","Pic-Clor 60","Pic-Clor 60","Pic-Clor 60","Pic-Clor 60","Pic-Clor 60","Pic-Clor 60","Pic-Clor 60","Pic-Clor 60","Pic-Clor 60","Pic-Clor 60","Pic-Clor 60","Pic-Clor 60","Pic-Clor 60","Pic-Clor 60","Pic-Clor 60","Pic-Clor 60","Pic-Clor 60","Pic-Clor 60","Pic-Clor 60","Pic-Clor 60","Pic-Clor 60","Pic-Clor 60","Pic-Clor 60","Pic-Clor 60","Pic-Clor 60","Pic-Clor 60","Pic-Clor 60","Pic-Clor 60","Pic-Clor 60","Pic-Clor 60","Pic-Clor 60","Pic-Clor 60","Pic-Clor 60","Pic-Clor 60","Pic-Clor 60","Pic-Clor 60","Pic-Clor 60","Pic-Clor 60","Pic-Clor 60","Pic-Clor 60","Pic-Clor 60","Pic-Clor 60","Pic-Clor 60","Pic-Clor 60","Pic-Clor 60","Pic-Clor 60","Pic-Clor 60","Pic-Clor 60","Pic-Clor 60","Pic-Clor 60","Pic-Clor 60","Pic-Clor 60","Pic-Clor 60","Pic-Clor 60","Pic-Clor 60","Pic-Clor 60","Pic-Clor 60","Pic-Clor 60","Pic-Clor 60","Pic-Clor 60","Pic-Clor 60","Pic-Clor 60","Pic-Clor 60","Pic-Clor 60","Pic-Clor 60","Pic-Clor 60","Pic-Clor 60","Pic-Clor 60","Pic-Clor 60","Pic-Clor 60","Pic-Clor 60","Pic-Clor 60","Pic-Clor 60","Pic-Clor 60","Pic-Clor 60","Pic-Clor 60","Pic-Clor 60","Pic-Clor 60","Pic-Clor 60","Pic-Clor 60","Pic-Clor 60","Pic-Clor 60","Pic-Clor 60","Pic-Clor 60","Pic-Clor 60","Pic-Clor 60","Pic-Clor 60","Pic-Clor 60","Pic-Clor 60","Pic-Clor 60","Pic-Clor 60","Pic-Clor 60","Pic-Clor 60","Pic-Clor 60","Pic-Clor 60","Pic-Clor 60","Pic-Clor 60","Pic-Clor 60","Pic-Clor 60","Pic-Clor 60","Pic-Clor 60","Pic-Clor 60","Pic-Clor 60","Pic-Clor 60","Pic-Clor 60","Pic-Clor 60","Pic-Clor 60","Pic-Clor 60","Pic-Clor 60","Pic-Clor 60","Pic-Clor 60","Pic-Clor 60","Pic-Clor 60","Pic-Clor 60","Pic-Clor 60","Pic-Clor 60","Pic-Clor 60","Pic-Clor 60","Pic-Clor 60","Pic-Clor 60","Pic-Clor 60","Pic-Clor 60","Pic-Clor 60","Pic-Clor 60","Pic-Clor 60","Pic-Clor 60","Pic-Clor 60","Pic-Clor 60","Pic-Clor 60","Pic-Clor 60","Pic-Clor 60","Pic-Clor 60","Pic-Clor 60","Pic-Clor 60","Pic-Clor 60","Pic-Clor 60","Pic-Clor 60","Pic-Clor 60","Pic-Clor 60","Pic-Clor 60","Pic-Clor 60","Pic-Clor 60","Pic-Clor 60","Pic-Clor 60","Pic-Clor 60","Pic-Clor 60","Pic-Clor 60","Pic-Clor 60","Pic-Clor 60","Pic-Clor 60","Pic-Clor 60","Pic-Clor 60","Pic-Clor 60","Pic-Clor 60","Pic-Clor 60","Pic-Clor 60","Pic-Clor 60","Pic-Clor 60","Pic-Clor 60","Pic-Clor 60","Pic-Clor 60","Pic-Clor 60","Pic-Clor 60","Pic-Clor 60","Pic-Clor 60","Pic-Clor 60","Pic-Clor 60","Pic-Clor 60","Pic-Clor 60","Pic-Clor 60","Pic-Clor 60","Pic-Clor 60","Pic-Clor 60","Pic-Clor 60","Pic-Clor 60","Pic-Clor 60","Pic-Clor 60","Pic-Clor 60","Pic-Clor 60","Pic-Clor 60","Pic-Clor 60","Pic-Clor 60","Pic-Clor 60","Pic-Clor 60","Pic-Clor 60","Pic-Clor 60","Pic-Clor 60","Pic-Clor 60","Pic-Clor 60","Pic-Clor 60","Pic-Clor 60","Pic-Clor 60","Pic-Clor 60","Pic-Clor 60","Pic-Clor 60","Pic-Clor 60","Pic-Clor 60","Pic-Clor 60","Pic-Clor 60","Pic-Clor 60","Pic-Clor 60","Pic-Clor 60","Pic-Clor 60","Pic-Clor 60","Pic-Clor 60","Pic-Clor 60","Pic-Clor 60","Pic-Clor 60","Pic-Clor 60","Pic-Clor 60","Pic-Clor 60","Pic-Clor 60","Pic-Clor 60","Pic-Clor 60","Pic-Clor 60","Pic-Clor 60","Pic-Clor 60","Pic-Clor 60","Pic-Clor 60","Pic-Clor 60","Pic-Clor 60","Pic-Clor 60","Pic-Clor 60","Pic-Clor 60","Pic-Clor 60","Pic-Clor 60","Pic-Clor 60","Pic-Clor 60","Pic-Clor 60","Pic-Clor 60","Pic-Clor 60","Pic-Clor 60","Pic-Clor 60","Pic-Clor 60","Pic-Clor 60","Pic-Clor 60","Pic-Clor 60","Pic-Clor 60","Pic-Clor 60","Pic-Clor 60","Pic-Clor 60","Pic-Clor 60","Pic-Clor 60","Pic-Clor 60","Pic-Clor 60","Pic-Clor 60","Pic-Clor 60","Pic-Clor 60","Pic-Clor 60","Pic-Clor 60","Pic-Clor 60","Pic-Clor 60","Pic-Clor 60","Pic-Clor 60","Pic-Clor 60","Pic-Clor 60","Pic-Clor 60","Pic-Clor 60","Pic-Clor 60","Pic-Clor 60","Pic-Clor 60","Pic-Clor 60","Pic-Clor 60","Pic-Clor 60","Pic-Clor 60","Pic-Clor 60","Pic-Clor 60","Pic-Clor 60","Pic-Clor 60","Pic-Clor 60","Pic-Clor 60","Pic-Clor 60","Pic-Clor 60","Pic-Clor 60","Pic-Clor 60","Pic-Clor 60","Pic-Clor 60","Pic-Clor 60","Pic-Clor 60","Pic-Clor 60","Pic-Clor 60","Pic-Clor 60","Pic-Clor 60","Pic-Clor 60","Pic-Clor 60","Pic-Clor 60","Pic-Clor 60","Pic-Clor 60","Pic-Clor 60","Pic-Clor 60","Pic-Clor 60","Pic-Clor 60","Pic-Clor 60","Pic-Clor 60","Pic-Clor 60","Pic-Clor 60","Pic-Clor 60","Pic-Clor 60","Pic-Clor 60","Pic-Clor 60","Pic-Clor 60","Pic-Clor 60","Pic-Clor 60","Pic-Clor 60","Pic-Clor 60","Pic-Clor 60","Pic-Clor 60","Pic-Clor 60","Pic-Clor 60","Pic-Clor 60","Pic-Clor 60","Pic-Clor 60","Pic-Clor 60","Pic-Clor 60","Pic-Clor 60","Pic-Clor 60","Pic-Clor 60","Pic-Clor 60","Pic-Clor 60","Pic-Clor 60","Pic-Clor 60","Pic-Clor 60","Pic-Clor 60","Pic-Clor 60","Pic-Clor 60","Pic-Clor 60","Pic-Clor 60","Pic-Clor 60","Pic-Clor 60","Pic-Clor 60","Pic-Clor 60","Pic-Clor 60","Pic-Clor 60","Pic-Clor 60","Pic-Clor 60","Pic-Clor 60","Pic-Clor 60","Pic-Clor 60","Pic-Clor 60","Pic-Clor 60","Pic-Clor 60","Pic-Clor 60","Pic-Clor 60","Pic-Clor 60","Pic-Clor 60","Pic-Clor 60","Pic-Clor 60","Pic-Clor 60","Pic-Clor 60","Pic-Clor 60","Pic-Clor 60","Pic-Clor 60","Pic-Clor 60","Pic-Clor 60","Pic-Clor 60","Pic-Clor 60","Pic-Clor 60","Pic-Clor 60","Pic-Clor 60","Pic-Clor 60","Pic-Clor 60","Pic-Clor 60","Pic-Clor 60","Pic-Clor 60","Pic-Clor 60","Pic-Clor 60","Pic-Clor 60","Pic-Clor 60","Pic-Clor 60","Pic-Clor 60","Pic-Clor 60","Pic-Clor 60","Pic-Clor 60","Pic-Clor 60","Pic-Clor 60","Pic-Clor 60","Pic-Clor 60","Pic-Clor 60","Pic-Clor 60","Pic-Clor 60","Pic-Clor 60","Pic-Clor 60","Pic-Clor 60","Pic-Clor 60","Pic-Clor 60","Pic-Clor 60","Pic-Clor 60","Pic-Clor 60","Pic-Clor 60","Pic-Clor 60","Pic-Clor 60","Pic-Clor 60","Pic-Clor 60","Pic-Clor 60","Pic-Clor 60","Pic-Clor 60","Pic-Clor 60","Pic-Clor 60","Pic-Clor 60","Pic-Clor 60","Pic-Clor 60","Pic-Clor 60","Pic-Clor 60","Pic-Clor 60","Pic-Clor 60","Pic-Clor 60","Pic-Clor 60","Pic-Clor 60","Pic-Clor 60","Pic-Clor 60","Pic-Clor 60","Pic-Clor 60","Pic-Clor 60","Pic-Clor 60","Pic-Clor 60","Pic-Clor 60","Pic-Clor 60","Pic-Clor 60","Pic-Clor 60","Pic-Clor 60","Pic-Clor 60","Pic-Clor 60","Pic-Clor 60","Pic-Clor 60","Pic-Clor 60","Pic-Clor 60","Pic-Clor 60","Pic-Clor 60","Pic-Clor 60","Pic-Clor 60","Pic-Clor 60","Pic-Clor 60","Pic-Clor 60","Pic-Clor 60","Pic-Clor 60","Pic-Clor 60","Pic-Clor 60","Pic-Clor 60","Pic-Clor 60","Pic-Clor 60","Pic-Clor 60","Pic-Clor 60","Pic-Clor 60","Pic-Clor 60","Pic-Clor 60","Pic-Clor 60","Pic-Clor 60","Pic-Clor 60","Pic-Clor 60","Pic-Clor 60","Pic-Clor 60","Pic-Clor 60","Pic-Clor 60","Pic-Clor 60","Pic-Clor 60","Pic-Clor 60","Pic-Clor 60","Pic-Clor 60","Pic-Clor 60","Pic-Clor 60","Pic-Clor 60","Pic-Clor 60","Pic-Clor 60","Pic-Clor 60","Pic-Clor 60","Pic-Clor 60","Pic-Clor 60","Pic-Clor 60","Pic-Clor 60","Pic-Clor 60","Pic-Clor 60","Pic-Clor 60","Pic-Clor 60","Pic-Clor 60","Pic-Clor 60","Pic-Clor 60","Pic-Clor 60","Pic-Clor 60","Pic-Clor 60","Pic-Clor 60","Pic-Clor 60","Pic-Clor 60","Pic-Clor 60","Pic-Clor 60","Pic-Clor 60","Pic-Clor 60","Pic-Clor 60","Pic-Clor 60","Pic-Clor 60","Pic-Clor 60","Pic-Clor 60","Pic-Clor 60","Pic-Clor 60","Pic-Clor 60","Pic-Clor 60","Pic-Clor 60","Pic-Clor 60","Pic-Clor 60","Pic-Clor 60","Pic-Clor 60","Pic-Clor 60","Pic-Clor 60","Pic-Clor 60","Pic-Clor 60","Pic-Clor 60","Pic-Clor 60","Pic-Clor 60","Pic-Clor 60","Pic-Clor 60","Pic-Clor 60","Pic-Clor 60","Pic-Clor 60","Pic-Clor 60","Pic-Clor 60","Pic-Clor 60","Pic-Clor 60","Pic-Clor 60","Pic-Clor 60","Pic-Clor 60","Pic-Clor 60","Pic-Clor 60","Pic-Clor 60","Pic-Clor 60","Pic-Clor 60","Pic-Clor 60","Pic-Clor 60","Pic-Clor 60","Pic-Clor 60","Pic-Clor 60","Pic-Clor 60","Pic-Clor 60","Pic-Clor 60","Pic-Clor 60","Pic-Clor 60","Pic-Clor 60","Pic-Clor 60","Pic-Clor 60","Pic-Clor 60","Pic-Clor 60","Pic-Clor 60","Pic-Clor 60","Pic-Clor 60","Pic-Clor 60","Pic-Clor 60","Pic-Clor 60","Pic-Clor 60","Pic-Clor 60","Pic-Clor 60","Pic-Clor 60","Pic-Clor 60","Pic-Clor 60","Pic-Clor 60","Pic-Clor 60","Pic-Clor 60","Pic-Clor 60","Pic-Clor 60","Pic-Clor 60","Pic-Clor 60","Pic-Clor 60","Pic-Clor 60","Pic-Clor 60","Pic-Clor 60","Pic-Clor 60","Pic-Clor 60","Pic-Clor 60","Pic-Clor 60","Pic-Clor 60","Pic-Clor 60","Pic-Clor 60","Pic-Clor 60","Pic-Clor 60","Pic-Clor 60","Pic-Clor 60","Pic-Clor 60","Pic-Clor 60","Pic-Clor 60","Pic-Clor 60","Pic-Clor 60","Pic-Clor 60","Pic-Clor 60","Pic-Clor 60","Pic-Clor 60","Pic-Clor 60","Pic-Clor 60","Pic-Clor 60","Pic-Clor 60","Pic-Clor 60","Pic-Clor 60","Pic-Clor 60","Pic-Clor 60","Pic-Clor 60","Pic-Clor 60","Pic-Clor 60","Pic-Clor 60","Pic-Clor 60","Pic-Clor 60","Pic-Clor 60","Pic-Clor 60","Pic-Clor 60","Pic-Clor 60","Pic-Clor 60","Pic-Clor 60","Pic-Clor 60","Pic-Clor 60","Pic-Clor 60","Pic-Clor 60","Pic-Clor 60","Pic-Clor 60","Pic-Clor 60","Pic-Clor 60","Pic-Clor 60","Pic-Clor 60","Pic-Clor 60","Pic-Clor 60","Pic-Clor 60","Pic-Clor 60","Pic-Clor 60","Pic-Clor 60","Pic-Clor 60","Pic-Clor 60","Pic-Clor 60","Pic-Clor 60","Pic-Clor 60","Pic-Clor 60","Pic-Clor 60","Pic-Clor 60","Pic-Clor 60","Pic-Clor 60","Pic-Clor 60","Pic-Clor 60","Pic-Clor 60","Pic-Clor 60","Pic-Clor 60","Pic-Clor 60","Pic-Clor 60","Pic-Clor 60","Pic-Clor 60","Pic-Clor 60","Pic-Clor 60","Pic-Clor 60","Pic-Clor 60","Pic-Clor 60","Pic-Clor 60","Pic-Clor 60","Pic-Clor 60","Pic-Clor 60","Pic-Clor 60","Pic-Clor 60","Pic-Clor 60","Pic-Clor 60","Pic-Clor 60","Pic-Clor 60","Pic-Clor 60","Pic-Clor 60","Pic-Clor 60","Pic-Clor 60","Pic-Clor 60","Pic-Clor 60","Pic-Clor 60","Pic-Clor 60","Pic-Clor 60","Pic-Clor 60","Pic-Clor 60","Pic-Clor 60","Pic-Clor 60","Pic-Clor 60","Pic-Clor 60","Pic-Clor 60","Pic-Clor 60","Pic-Clor 60","Pic-Clor 60","Pic-Clor 60","Pic-Clor 60","Pic-Clor 60","Pic-Clor 60","Pic-Clor 60","Pic-Clor 60","Pic-Clor 60","Pic-Clor 60","Pic-Clor 60","Pic-Clor 60","Pic-Clor 60","Pic-Clor 60","Pic-Clor 60","Pic-Clor 60","Pic-Clor 60","Pic-Clor 60","Pic-Clor 60","Pic-Clor 60","Pic-Clor 60","Pic-Clor 60","Pic-Clor 60","Pic-Clor 60","Pic-Clor 60","Pic-Clor 60","Pic-Clor 60","Pic-Clor 60","Pic-Clor 60","Pic-Clor 60","Pic-Clor 60","Pic-Clor 60","Pic-Clor 60","Pic-Clor 60","Pic-Clor 60","Pic-Clor 60","Pic-Clor 60","Pic-Clor 60","Pic-Clor 60","Pic-Clor 60","Pic-Clor 60","Pic-Clor 60","Pic-Clor 60","Pic-Clor 60","Pic-Clor 60","Pic-Clor 60","Pic-Clor 60","Pic-Clor 60","Pic-Clor 60","Pic-Clor 60","Pic-Clor 60","Pic-Clor 60","Pic-Clor 60","Pic-Clor 60","Pic-Clor 60","Pic-Clor 60","Pic-Clor 60","Pic-Clor 60","Pic-Clor 60","Pic-Clor 60","Pic-Clor 60","Pic-Clor 60","Pic-Clor 60","Pic-Clor 60","Pic-Clor 60","Pic-Clor 60","Pic-Clor 60","Pic-Clor 60","Pic-Clor 60","Pic-Clor 60","Pic-Clor 60","Pic-Clor 60","Pic-Clor 60","Pic-Clor 60","Pic-Clor 60","Pic-Clor 60","Pic-Clor 60","Pic-Clor 60","Pic-Clor 60","Pic-Clor 60","Pic-Clor 60","Pic-Clor 60","Pic-Clor 60","Pic-Clor 60","Pic-Clor 60","Pic-Clor 60","Pic-Clor 60","Pic-Clor 60","Pic-Clor 60","Pic-Clor 60","Pic-Clor 60","Pic-Clor 60","Pic-Clor 60","Pic-Clor 60","Pic-Clor 60","Pic-Clor 60","Pic-Clor 60","Pic-Clor 60","Pic-Clor 60","Pic-Clor 60","Pic-Clor 60","Pic-Clor 60","Pic-Clor 60","Pic-Clor 60","Pic-Clor 60","Pic-Clor 60","Pic-Clor 60","Pic-Clor 60","Pic-Clor 60","Pic-Clor 60","Pic-Clor 60","Pic-Clor 60","Pic-Clor 60","Pic-Clor 60","Pic-Clor 60","Pic-Clor 60","Pic-Clor 60","Pic-Clor 60","Pic-Clor 60","Pic-Clor 60","Pic-Clor 60","Pic-Clor 60","Pic-Clor 60","Pic-Clor 60","Pic-Clor 60","Pic-Clor 60","Pic-Clor 60","Pic-Clor 60","Pic-Clor 60","Pic-Clor 60","Pic-Clor 60","Pic-Clor 60","Pic-Clor 60","Pic-Clor 60","Pic-Clor 60","Pic-Clor 60","Pic-Clor 60","Pic-Clor 60","Pic-Clor 60","Pic-Clor 60","Pic-Clor 60","Pic-Clor 60","Pic-Clor 60","Pic-Clor 60","Pic-Clor 60","Pic-Clor 60","Pic-Clor 60","Pic-Clor 60","Pic-Clor 60","Pic-Clor 60","Pic-Clor 60","Pic-Clor 60","Pic-Clor 60","Pic-Clor 60","Pic-Clor 60","Pic-Clor 60","Pic-Clor 60","Pic-Clor 60","Pic-Clor 60","Pic-Clor 60","Pic-Clor 60","Pic-Clor 60","Pic-Clor 60","Pic-Clor 60","Pic-Clor 60","Pic-Clor 60","Pic-Clor 60","Pic-Clor 60","Pic-Clor 60","Pic-Clor 60","Pic-Clor 60","Pic-Clor 60","Pic-Clor 60","Pic-Clor 60","Pic-Clor 60","Pic-Clor 60","Pic-Clor 60","Pic-Clor 60","Pic-Clor 60","Pic-Clor 60","Pic-Clor 60","Pic-Clor 60","Pic-Clor 60","Pic-Clor 60","Pic-Clor 60","Pic-Clor 60","Pic-Clor 60","Pic-Clor 60","Pic-Clor 60","Pic-Clor 60","Pic-Clor 60","Pic-Clor 60","Pic-Clor 60","Pic-Clor 60","Pic-Clor 60","Pic-Clor 60","Pic-Clor 60","Pic-Clor 60","Pic-Clor 60","Pic-Clor 60","Pic-Clor 60","Pic-Clor 60","Pic-Clor 60","Pic-Clor 60","Pic-Clor 60","Pic-Clor 60","Pic-Clor 60","Pic-Clor 60","Pic-Clor 60","Pic-Clor 60","Pic-Clor 60","Pic-Clor 60","Pic-Clor 60","Pic-Clor 60","Pic-Clor 60","Pic-Clor 60","Pic-Clor 60","Pic-Clor 60","Pic-Clor 60","Pic-Clor 60","Pic-Clor 60","Pic-Clor 60","Pic-Clor 60","Pic-Clor 60","Pic-Clor 60","Pic-Clor 60","Pic-Clor 60","Pic-Clor 60","Pic-Clor 60","Pic-Clor 60","Pic-Clor 60","Pic-Clor 60","Pic-Clor 60","Pic-Clor 60","Pic-Clor 60","Pic-Clor 60","Pic-Clor 60","Pic-Clor 60","Pic-Clor 60","Pic-Clor 60","Pic-Clor 60","Pic-Clor 60","Pic-Clor 60","Pic-Clor 60","Pic-Clor 60","Pic-Clor 60","Pic-Clor 60","Pic-Clor 60","Pic-Clor 60","Pic-Clor 60","Pic-Clor 60","Pic-Clor 60","Pic-Clor 60","Pic-Clor 60","Pic-Clor 60","Pic-Clor 60","Pic-Clor 60","Pic-Clor 60","Pic-Clor 60","Pic-Clor 60","Pic-Clor 60","Pic-Clor 60","Pic-Clor 60","Pic-Clor 60","Pic-Clor 60","Pic-Clor 60","Pic-Clor 60","Pic-Clor 60","Pic-Clor 60","Pic-Clor 60","Pic-Clor 60","Pic-Clor 60","Pic-Clor 60","Pic-Clor 60","Pic-Clor 60","Pic-Clor 60","Pic-Clor 60","Pic-Clor 60","Pic-Clor 60","Pic-Clor 60","Pic-Clor 60","Pic-Clor 60","Pic-Clor 60","Pic-Clor 60","Pic-Clor 60","Pic-Clor 60","Pic-Clor 60","Pic-Clor 60","Pic-Clor 60","Pic-Clor 60","Pic-Clor 60","Pic-Clor 60","Pic-Clor 60","Pic-Clor 60","Pic-Clor 60","Pic-Clor 60","Pic-Clor 60","Pic-Clor 60","Pic-Clor 60","Pic-Clor 60","Pic-Clor 60","Pic-Clor 60","Pic-Clor 60","Pic-Clor 60","Pic-Clor 60","Pic-Clor 60","Pic-Clor 60","Pic-Clor 60","Pic-Clor 60","Pic-Clor 60","Pic-Clor 60","Pic-Clor 60","Pic-Clor 60","Pic-Clor 60","Pic-Clor 60","Pic-Clor 60","Pic-Clor 60","Pic-Clor 60","Pic-Clor 60","Pic-Clor 60","Pic-Clor 60","Pic-Clor 60","Pic-Clor 60","Pic-Clor 60","Pic-Clor 60","Pic-Clor 60","Pic-Clor 60","Pic-Clor 60","Pic-Clor 60","Pic-Clor 60","Pic-Clor 60","Pic-Clor 60","Pic-Clor 60","Pic-Clor 60","Pic-Clor 60","Pic-Clor 60","Pic-Clor 60","Pic-Clor 60","Pic-Clor 60","Pic-Clor 60","Pic-Clor 60","Pic-Clor 60","Pic-Clor 60","Pic-Clor 60","Pic-Clor 60","Pic-Clor 60","Pic-Clor 60","Pic-Clor 60","Pic-Clor 60","Pic-Clor 60","Pic-Clor 60","Pic-Clor 60","Pic-Clor 60","Pic-Clor 60","Pic-Clor 60","Pic-Clor 60","Pic-Clor 60","Pic-Clor 60","Pic-Clor 60","Pic-Clor 60","Pic-Clor 60","Pic-Clor 60","Pic-Clor 60","Pic-Clor 60","Pic-Clor 60","Pic-Clor 60","Pic-Clor 60","Pic-Clor 60","Pic-Clor 60","Pic-Clor 60","Pic-Clor 60","Pic-Clor 60","Pic-Clor 60","Pic-Clor 60","Pic-Clor 60","Pic-Clor 60","Pic-Clor 60","Pic-Clor 60","Pic-Clor 60","Pic-Clor 60","Pic-Clor 60","Pic-Clor 60","Pic-Clor 60","Pic-Clor 60","Pic-Clor 60","Pic-Clor 60","Pic-Clor 60","Pic-Clor 60","Pic-Clor 60","Pic-Clor 60","Pic-Clor 60","Pic-Clor 60","Pic-Clor 60","Pic-Clor 60","Pic-Clor 60","Pic-Clor 60","Pic-Clor 60","Pic-Clor 60","Pic-Clor 60","Pic-Clor 60","Pic-Clor 60","Pic-Clor 60","Pic-Clor 60","Pic-Clor 60","Pic-Clor 60","Pic-Clor 60","Pic-Clor 60","Pic-Clor 60","Pic-Clor 60","Pic-Clor 60","Pic-Clor 60","Pic-Clor 60","Pic-Clor 60","Pic-Clor 60","Pic-Clor 60","Pic-Clor 60","Pic-Clor 60","Pic-Clor 60","Pic-Clor 60","Pic-Clor 60","Pic-Clor 60","Pic-Clor 60","Pic-Clor 60","Pic-Clor 60","Pic-Clor 60","Pic-Clor 60","Pic-Clor 60","Pic-Clor 60","Pic-Clor 60","Pic-Clor 60","Pic-Clor 60","Pic-Clor 60","Pic-Clor 60","Pic-Clor 60","Pic-Clor 60","Pic-Clor 60","Pic-Clor 60","Pic-Clor 60","Pic-Clor 60","Pic-Clor 60","Pic-Clor 60","Pic-Clor 60","Pic-Clor 60","Pic-Clor 60","Pic-Clor 60","Pic-Clor 60","Pic-Clor 60","Pic-Clor 60","Pic-Clor 60","Pic-Clor 60","Pic-Clor 60","Pic-Clor 60","Pic-Clor 60","Pic-Clor 60","Pic-Clor 60","Pic-Clor 60","Pic-Clor 60","Pic-Clor 60","Pic-Clor 60","Pic-Clor 60","Pic-Clor 60","Pic-Clor 60","Pic-Clor 60","Pic-Clor 60","Pic-Clor 60","Pic-Clor 60","Pic-Clor 60","Pic-Clor 60","Pic-Clor 60","Pic-Clor 60","Pic-Clor 60","Pic-Clor 60","Pic-Clor 60","Pic-Clor 60","Pic-Clor 60","Pic-Clor 60","Pic-Clor 60","Pic-Clor 60","Pic-Clor 60","Pic-Clor 60","Pic-Clor 60","Pic-Clor 60","Pic-Clor 60","Pic-Clor 60","Pic-Clor 60","Pic-Clor 60","Pic-Clor 60","Pic-Clor 60","Pic-Clor 60","Pic-Clor 60","Pic-Clor 60","Pic-Clor 60","Pic-Clor 60","Pic-Clor 60","Pic-Clor 60","Pic-Clor 60","Pic-Clor 60","Pic-Clor 60","Pic-Clor 60","Pic-Clor 60","Pic-Clor 60","Pic-Clor 60","Pic-Clor 60","Pic-Clor 60","Pic-Clor 60","Pic-Clor 60","Pic-Clor 60","Pic-Clor 60","Pic-Clor 60","Pic-Clor 60","Pic-Clor 60","Pic-Clor 60","Pic-Clor 60","Pic-Clor 60","Pic-Clor 60","Pic-Clor 60","Pic-Clor 60","Pic-Clor 60","Pic-Clor 60","Pic-Clor 60","Pic-Clor 60","Pic-Clor 60","Pic-Clor 60","Pic-Clor 60","Pic-Clor 60","Pic-Clor 60","Pic-Clor 60","Pic-Clor 60","Pic-Clor 60","Pic-Clor 60","Pic-Clor 60","Pic-Clor 60","Pic-Clor 60","Pic-Clor 60","Pic-Clor 60","Pic-Clor 60","Pic-Clor 60","Pic-Clor 60","Pic-Clor 60","Pic-Clor 60","Pic-Clor 60","Pic-Clor 60","Pic-Clor 60","Pic-Clor 60","Pic-Clor 60","Pic-Clor 60","Pic-Clor 60","Pic-Clor 60","Pic-Clor 60","Pic-Clor 60","Pic-Clor 60","Pic-Clor 60","Pic-Clor 60","Pic-Clor 60","Pic-Clor 60","Pic-Clor 60","Pic-Clor 60","Pic-Clor 60","Pic-Clor 60","Pic-Clor 60","Pic-Clor 60","Pic-Clor 60","Pic-Clor 60","Pic-Clor 60","Pic-Clor 60","Pic-Clor 60","Pic-Clor 60","Pic-Clor 60","Pic-Clor 60","Pic-Clor 60","Pic-Clor 60","Pic-Clor 60","Pic-Clor 60","Pic-Clor 60","Pic-Clor 60","Pic-Clor 60","Pic-Clor 60","Pic-Clor 60","Pic-Clor 60","Pic-Clor 60","Pic-Clor 60","Pic-Clor 60","Pic-Clor 60","Pic-Clor 60","Pic-Clor 60","Pic-Clor 60","Pic-Clor 60","Pic-Clor 60","Pic-Clor 60","Pic-Clor 60","Pic-Clor 60","Pic-Clor 60","Pic-Clor 60","Pic-Clor 60","Pic-Clor 60","Pic-Clor 60","Pic-Clor 60","Pic-Clor 60","Pic-Clor 60","Pic-Clor 60","Pic-Clor 60","Pic-Clor 60","Pic-Clor 60","Pic-Clor 60","Pic-Clor 60","Pic-Clor 60","Pic-Clor 60","Pic-Clor 60","Pic-Clor 60","Pic-Clor 60","Pic-Clor 60","Pic-Clor 60","Pic-Clor 60","Pic-Clor 60","Pic-Clor 60","Pic-Clor 60","Pic-Clor 60","Pic-Clor 60","Pic-Clor 60","Pic-Clor 60","Pic-Clor 60","Pic-Clor 60","Pic-Clor 60","Pic-Clor 60","Pic-Clor 60","Pic-Clor 60","Pic-Clor 60","Pic-Clor 60","Pic-Clor 60","Pic-Clor 60","Pic-Clor 60","Pic-Clor 60","Pic-Clor 60","Pic-Clor 60","Pic-Clor 60","Pic-Clor 60","Pic-Clor 60","Pic-Clor 60","Pic-Clor 60","Pic-Clor 60","Pic-Clor 60","Pic-Clor 60","Pic-Clor 60","Pic-Clor 60","Pic-Clor 60","Pic-Clor 60","Pic-Clor 60","Pic-Clor 60","Pic-Clor 60","Pic-Clor 60","Pic-Clor 60","Pic-Clor 60","Pic-Clor 60","Pic-Clor 60","Pic-Clor 60","Pic-Clor 60","Pic-Clor 60","Pic-Clor 60","Pic-Clor 60","Pic-Clor 60","Pic-Clor 60","Pic-Clor 60","Pic-Clor 60","Pic-Clor 60","Pic-Clor 60","Pic-Clor 60","Pic-Clor 60","Pic-Clor 60","Pic-Clor 60","Pic-Clor 60","Pic-Clor 60","Pic-Clor 60","Pic-Clor 60","Pic-Clor 60","Pic-Clor 60","Pic-Clor 60","Pic-Clor 60","Pic-Clor 60","Pic-Clor 60","Pic-Clor 60","Pic-Clor 60","Pic-Clor 60","Pic-Clor 60","Pic-Clor 60","Pic-Clor 60","Pic-Clor 60","Pic-Clor 60","Pic-Clor 60","Pic-Clor 60","Pic-Clor 60","Pic-Clor 60","Pic-Clor 60","Pic-Clor 60","Pic-Clor 60","Pic-Clor 60","Pic-Clor 60","Pic-Clor 60","Pic-Clor 60","Pic-Clor 60","Pic-Clor 60","Pic-Clor 60","Pic-Clor 60","Pic-Clor 60","Pic-Clor 60","Pic-Clor 60","Pic-Clor 60","Pic-Clor 60","Pic-Clor 60","Pic-Clor 60","Pic-Clor 60","Pic-Clor 60","Pic-Clor 60","Pic-Clor 60","Pic-Clor 60","Pic-Clor 60","Pic-Clor 60","Pic-Clor 60","Pic-Clor 60","Pic-Clor 60","Pic-Clor 60","Pic-Clor 60","Pic-Clor 60","Pic-Clor 60","Pic-Clor 60","Pic-Clor 60","Pic-Clor 60","Pic-Clor 60","Pic-Clor 60","Pic-Clor 60","Pic-Clor 60","Pic-Clor 60","Pic-Clor 60","Pic-Clor 60","Pic-Clor 60","Pic-Clor 60","Pic-Clor 60","Pic-Clor 60","Pic-Clor 60","Pic-Clor 60","Pic-Clor 60","Pic-Clor 60","Pic-Clor 60","Pic-Clor 60","Pic-Clor 60","Pic-Clor 60","Pic-Clor 60","Pic-Clor 60","Pic-Clor 60","Pic-Clor 60","Pic-Clor 60","Pic-Clor 60","Pic-Clor 60","Pic-Clor 60","Pic-Clor 60","Pic-Clor 60","Pic-Clor 60","Pic-Clor 60","Pic-Clor 60","Pic-Clor 60","Pic-Clor 60","Pic-Clor 60","Pic-Clor 60","Pic-Clor 60","Pic-Clor 60","Pic-Clor 60","Pic-Clor 60","Pic-Clor 60","Pic-Clor 60","Pic-Clor 60","Pic-Clor 60","Pic-Clor 60","Pic-Clor 60","Pic-Clor 60","Pic-Clor 60","Pic-Clor 60","Pic-Clor 60","Pic-Clor 60","Pic-Clor 60","Pic-Clor 60","Pic-Clor 60","Pic-Clor 60","Pic-Clor 60","Pic-Clor 60","Pic-Clor 60","Pic-Clor 60","Pic-Clor 60","Pic-Clor 60","Pic-Clor 60","Pic-Clor 60","Pic-Clor 60","Pic-Clor 60","Pic-Clor 60","Pic-Clor 60","Pic-Clor 60","Pic-Clor 60","Pic-Clor 60","Pic-Clor 60","Pic-Clor 60","Pic-Clor 60","Pic-Clor 60","Pic-Clor 60","Pic-Clor 60","Pic-Clor 60","Pic-Clor 60","Pic-Clor 60","Pic-Clor 60","Pic-Clor 60","Pic-Clor 60","Pic-Clor 60","Pic-Clor 60","Pic-Clor 60","Pic-Clor 60","Pic-Clor 60","Pic-Clor 60","Pic-Clor 60","Pic-Clor 60","Pic-Clor 60","Pic-Clor 60","Pic-Clor 60","Pic-Clor 60","Pic-Clor 60","Pic-Clor 60","Pic-Clor 60","Pic-Clor 60","Pic-Clor 60","Pic-Clor 60","Pic-Clor 60","Pic-Clor 60","Pic-Clor 60","Pic-Clor 60","Pic-Clor 60","Pic-Clor 60","Pic-Clor 60","Pic-Clor 60","Pic-Clor 60","Pic-Clor 60","Pic-Clor 60","Pic-Clor 60","Pic-Clor 60","Pic-Clor 60","Pic-Clor 60","Pic-Clor 60","Pic-Clor 60","Pic-Clor 60","Pic-Clor 60","Pic-Clor 60","Pic-Clor 60","Pic-Clor 60","Pic-Clor 60","Pic-Clor 60","Pic-Clor 60","Pic-Clor 60","Pic-Clor 60","Pic-Clor 60","Pic-Clor 60","Pic-Clor 60","Pic-Clor 60","Pic-Clor 60","Pic-Clor 60","Pic-Clor 60","Pic-Clor 60","Pic-Clor 60","Pic-Clor 60","Pic-Clor 60","Pic-Clor 60","Pic-Clor 60","Pic-Clor 60","Pic-Clor 60","Pic-Clor 60","Pic-Clor 60","Pic-Clor 60","Pic-Clor 60","Pic-Clor 60","Pic-Clor 60","Pic-Clor 60","Pic-Clor 60","Pic-Clor 60","Pic-Clor 60","Pic-Clor 60","Pic-Clor 60","Pic-Clor 60","Pic-Clor 60","Pic-Clor 60","Pic-Clor 60","Pic-Clor 60","Pic-Clor 60","Pic-Clor 60","Pic-Clor 60","Pic-Clor 60","Pic-Clor 60","Pic-Clor 60","Pic-Clor 60","Pic-Clor 60","Pic-Clor 60","Pic-Clor 60","Pic-Clor 60","Pic-Clor 60","Pic-Clor 60","Pic-Clor 60","Pic-Clor 60","Pic-Clor 60","Pic-Clor 60","Pic-Clor 60","Pic-Clor 60","Pic-Clor 60","Pic-Clor 60","Pic-Clor 60","Pic-Clor 60","Pic-Clor 60","Pic-Clor 60","Pic-Clor 60","Pic-Clor 60","Pic-Clor 60","Pic-Clor 60","Pic-Clor 60","Pic-Clor 60","Pic-Clor 60","Pic-Clor 60","Pic-Clor 60","Pic-Clor 60","Pic-Clor 60","Pic-Clor 60","Pic-Clor 60","Pic-Clor 60","Pic-Clor 60","Pic-Clor 60","Pic-Clor 60","Pic-Clor 60","Pic-Clor 60","Pic-Clor 60","Pic-Clor 60","Pic-Clor 60","Pic-Clor 60","Pic-Clor 60","Pic-Clor 60","Pic-Clor 60","Pic-Clor 60","Pic-Clor 60","Pic-Clor 60","Pic-Clor 60","Pic-Clor 60","Pic-Clor 60","Pic-Clor 60","Pic-Clor 60","Pic-Clor 60","Pic-Clor 60","Pic-Clor 60","Pic-Clor 60","Pic-Clor 60","Pic-Clor 60","Pic-Clor 60","Pic-Clor 60","Pic-Clor 60","Pic-Clor 60","Pic-Clor 60","Pic-Clor 60","Pic-Clor 60","Pic-Clor 60","Pic-Clor 60","Pic-Clor 60","Pic-Clor 60","Pic-Clor 60","Pic-Clor 60","Pic-Clor 60","Pic-Clor 60","Pic-Clor 60","Pic-Clor 60","Pic-Clor 60","Pic-Clor 60","Pic-Clor 60","Pic-Clor 60","Pic-Clor 60","Pic-Clor 60","Pic-Clor 60","Pic-Clor 60","Pic-Clor 60","Pic-Clor 60","Pic-Clor 60","Pic-Clor 60","Pic-Clor 60","Pic-Clor 60","Pic-Clor 60","Pic-Clor 60","Pic-Clor 60","Pic-Clor 60","Pic-Clor 60","Pic-Clor 60","Pic-Clor 60","Pic-Clor 60","Pic-Clor 60","Pic-Clor 60","Pic-Clor 60","Pic-Clor 60","Pic-Clor 60","Pic-Clor 60","Pic-Clor 60","Pic-Clor 60","Pic-Clor 60","Pic-Clor 60","Pic-Clor 60","Pic-Clor 60","Pic-Clor 60","Pic-Clor 60","Pic-Clor 60","Pic-Clor 60","Pic-Clor 60","Pic-Clor 60","Pic-Clor 60","Pic-Clor 60","Pic-Clor 60","Pic-Clor 60","Pic-Clor 60","Pic-Clor 60","Pic-Clor 60","Pic-Clor 60","Pic-Clor 60","Pic-Clor 60","Pic-Clor 60","Pic-Clor 60","Pic-Clor 60","Pic-Clor 60","Pic-Clor 60","Pic-Clor 60","Pic-Clor 60","Pic-Clor 60","Pic-Clor 60","Pic-Clor 60","Pic-Clor 60","Pic-Clor 60","Pic-Clor 60","Pic-Clor 60","Pic-Clor 60","Pic-Clor 60","Pic-Clor 60","Pic-Clor 60","Pic-Clor 60","Pic-Clor 60","Pic-Clor 60","Pic-Clor 60","Pic-Clor 60","Pic-Clor 60","Pic-Clor 60","Pic-Clor 60","Pic-Clor 60","Pic-Clor 60","Pic-Clor 60","Pic-Clor 60","Pic-Clor 60","Pic-Clor 60","Pic-Clor 60","Pic-Clor 60","Pic-Clor 60","Pic-Clor 60","Pic-Clor 60","Pic-Clor 60","Pic-Clor 60","Pic-Clor 60","Pic-Clor 60","Pic-Clor 60","Pic-Clor 60","Pic-Clor 60","Pic-Clor 60","Pic-Clor 60","Pic-Clor 60","Pic-Clor 60","Pic-Clor 60","Pic-Clor 60","Pic-Clor 60","Pic-Clor 60","Pic-Clor 60","Pic-Clor 60","Pic-Clor 60","Pic-Clor 60","Pic-Clor 60","Pic-Clor 60","Pic-Clor 60","Pic-Clor 60","Pic-Clor 60","Pic-Clor 60","Pic-Clor 60","Pic-Clor 60","Pic-Clor 60","Pic-Clor 60","Pic-Clor 60","Pic-Clor 60","Pic-Clor 60","Pic-Clor 60","Pic-Clor 60","Pic-Clor 60","Pic-Clor 60","Pic-Clor 60","Pic-Clor 60","Pic-Clor 60","Pic-Clor 60","Pic-Clor 60","Pic-Clor 60","Pic-Clor 60","Pic-Clor 60","Pic-Clor 60","Pic-Clor 60","Pic-Clor 60","Pic-Clor 60","Pic-Clor 60","Pic-Clor 60","Pic-Clor 60","Pic-Clor 60","Pic-Clor 60","Pic-Clor 60","Pic-Clor 60","Pic-Clor 60","Pic-Clor 60","Pic-Clor 60","Pic-Clor 60","Pic-Clor 60","Pic-Clor 60","Pic-Clor 60","Pic-Clor 60","Pic-Clor 60","Pic-Clor 60","Pic-Clor 60","Pic-Clor 60","Pic-Clor 60","Pic-Clor 60","Pic-Clor 60","Pic-Clor 60","Pic-Clor 60","Pic-Clor 60","Pic-Clor 60","Pic-Clor 60","Pic-Clor 60","Pic-Clor 60","Pic-Clor 60","Pic-Clor 60","Pic-Clor 60","Pic-Clor 60","Pic-Clor 60","Pic-Clor 60","Pic-Clor 60","Pic-Clor 60","Pic-Clor 60","Pic-Clor 60","Pic-Clor 60","Pic-Clor 60","Pic-Clor 60","Pic-Clor 60","Pic-Clor 60","Pic-Clor 60","Pic-Clor 60","Pic-Clor 60","Pic-Clor 60","Pic-Clor 60","Pic-Clor 60","Pic-Clor 60","Pic-Clor 60","Pic-Clor 60","Pic-Clor 60","Pic-Clor 60","Pic-Clor 60","Pic-Clor 60","Pic-Clor 60","Pic-Clor 60","Pic-Clor 60","Pic-Clor 60","Pic-Clor 60","Pic-Clor 60","Pic-Clor 60","Pic-Clor 60","Pic-Clor 60","Pic-Clor 60","Pic-Clor 60","Pic-Clor 60","Pic-Clor 60","Pic-Clor 60","Pic-Clor 60","Pic-Clor 60","Pic-Clor 60","Pic-Clor 60","Pic-Clor 60","Pic-Clor 60","Pic-Clor 60","Pic-Clor 60","Pic-Clor 60","Pic-Clor 60","Pic-Clor 60","Pic-Clor 60","Pic-Clor 60","Pic-Clor 60","Pic-Clor 60","Pic-Clor 60","Pic-Clor 60","Pic-Clor 60","Pic-Clor 60","Pic-Clor 60","Pic-Clor 60","Pic-Clor 60","Pic-Clor 60","Pic-Clor 60","Pic-Clor 60","Pic-Clor 60","Pic-Clor 60","Pic-Clor 60","Pic-Clor 60","Pic-Clor 60","Pic-Clor 60","Pic-Clor 60","Pic-Clor 60","Pic-Clor 60","Pic-Clor 60","Pic-Clor 60","Pic-Clor 60","Pic-Clor 60","Pic-Clor 60","Pic-Clor 60","Pic-Clor 60","Pic-Clor 60","Pic-Clor 60","Pic-Clor 60","Pic-Clor 60","Pic-Clor 60","Pic-Clor 60","Pic-Clor 60","Pic-Clor 60","Pic-Clor 60","Pic-Clor 60","Pic-Clor 60","Pic-Clor 60","Pic-Clor 60","Pic-Clor 60","Pic-Clor 60","Pic-Clor 60","Pic-Clor 60","Pic-Clor 60","Pic-Clor 60","Pic-Clor 60","Pic-Clor 60","Pic-Clor 60","Pic-Clor 60","Pic-Clor 60","Pic-Clor 60","Pic-Clor 60","Pic-Clor 60","Pic-Clor 60","Pic-Clor 60","Pic-Clor 60","Pic-Clor 60","Pic-Clor 60","Pic-Clor 60","Pic-Clor 60","Pic-Clor 60","Pic-Clor 60","Pic-Clor 60","Pic-Clor 60","Pic-Clor 60","Pic-Clor 60","Pic-Clor 60","Pic-Clor 60","Pic-Clor 60","Pic-Clor 60","Pic-Clor 60","Pic-Clor 60","Pic-Clor 60","Pic-Clor 60","Pic-Clor 60","Pic-Clor 60","Pic-Clor 60","Pic-Clor 60","Pic-Clor 60","Pic-Clor 60","Pic-Clor 60","Pic-Clor 60","Pic-Clor 60","Pic-Clor 60","Pic-Clor 60","Pic-Clor 60","Pic-Clor 60","Pic-Clor 60","Pic-Clor 60","Pic-Clor 60","Pic-Clor 60","Pic-Clor 60","Pic-Clor 60","Pic-Clor 60","Pic-Clor 60","Pic-Clor 60","Pic-Clor 60","Pic-Clor 60","Pic-Clor 60","Pic-Clor 60","Pic-Clor 60","Pic-Clor 60","Pic-Clor 60","Pic-Clor 60","Pic-Clor 60","Pic-Clor 60","Pic-Clor 60","Pic-Clor 60","Pic-Clor 60","Pic-Clor 60","Pic-Clor 60","Pic-Clor 60","Pic-Clor 60","Pic-Clor 60","Pic-Clor 60","Pic-Clor 60","Pic-Clor 60","Pic-Clor 60","Pic-Clor 60","Pic-Clor 60","Pic-Clor 60","Pic-Clor 60","Pic-Clor 60","Pic-Clor 60","Pic-Clor 60","Pic-Clor 60","Pic-Clor 60","Pic-Clor 60","Pic-Clor 60","Pic-Clor 60","Pic-Clor 60","Pic-Clor 60","Pic-Clor 60","Pic-Clor 60","Pic-Clor 60","Pic-Clor 60","Pic-Clor 60","Pic-Clor 60","Pic-Clor 60","Pic-Clor 60","Pic-Clor 60","Pic-Clor 60","Pic-Clor 60","Pic-Clor 60","Pic-Clor 60","Pic-Clor 60","Pic-Clor 60","Pic-Clor 60","Pic-Clor 60","Pic-Clor 60","Pic-Clor 60","Pic-Clor 60","Pic-Clor 60","Pic-Clor 60","Pic-Clor 60","Pic-Clor 60","Pic-Clor 60","Pic-Clor 60","Pic-Clor 60","Pic-Clor 60","Pic-Clor 60","Pic-Clor 60","Pic-Clor 60","Pic-Clor 60","Pic-Clor 60","Pic-Clor 60","Pic-Clor 60","Pic-Clor 60","Pic-Clor 60","Pic-Clor 60","Pic-Clor 60","Pic-Clor 60","Pic-Clor 60","Pic-Clor 60","Pic-Clor 60","Pic-Clor 60","Pic-Clor 60","Pic-Clor 60","Pic-Clor 60","Pic-Clor 60","Pic-Clor 60","Pic-Clor 60","Pic-Clor 60","Pic-Clor 60","Pic-Clor 60","Pic-Clor 60","Pic-Clor 60","Pic-Clor 60","Pic-Clor 60","Pic-Clor 60","Pic-Clor 60","Pic-Clor 60","Pic-Clor 60","Pic-Clor 60","Pic-Clor 60","Pic-Clor 60","Pic-Clor 60","Pic-Clor 60","Pic-Clor 60","Pic-Clor 60","Pic-Clor 60","Pic-Clor 60","Pic-Clor 60","Pic-Clor 60","Pic-Clor 60","Pic-Clor 60","Pic-Clor 60","Pic-Clor 60","Pic-Clor 60","Pic-Clor 60","Pic-Clor 60","Pic-Clor 60","Pic-Clor 60","Pic-Clor 60","Pic-Clor 60","Pic-Clor 60","Pic-Clor 60","Pic-Clor 60","Pic-Clor 60","Pic-Clor 60","Pic-Clor 60","Pic-Clor 60","Pic-Clor 60","Pic-Clor 60","Pic-Clor 60","Pic-Clor 60","Pic-Clor 60","Pic-Clor 60","Pic-Clor 60","Pic-Clor 60","Pic-Clor 60","Pic-Clor 60","Pic-Clor 60","Pic-Clor 60","Pic-Clor 60","Pic-Clor 60","Pic-Clor 60","Pic-Clor 60","Pic-Clor 60","Pic-Clor 60","Pic-Clor 60","Pic-Clor 60","Pic-Clor 60","Pic-Clor 60","Pic-Clor 60","Pic-Clor 60","Pic-Clor 60","Pic-Clor 60","Pic-Clor 60","Pic-Clor 60","Pic-Clor 60","Pic-Clor 60","Pic-Clor 60","Pic-Clor 60","Pic-Clor 60","Pic-Clor 60","Pic-Clor 60","Pic-Clor 60","Pic-Clor 60","Pic-Clor 60","Pic-Clor 60","Pic-Clor 60","Pic-Clor 60","Pic-Clor 60","Pic-Clor 60","Pic-Clor 60","Pic-Clor 60","Pic-Clor 60","Pic-Clor 60","Pic-Clor 60","Pic-Clor 60","Pic-Clor 60","Pic-Clor 60","Pic-Clor 60","Pic-Clor 60","Pic-Clor 60","Pic-Clor 60","Pic-Clor 60","Pic-Clor 60","Pic-Clor 60","Pic-Clor 60","Pic-Clor 60","Pic-Clor 60","Pic-Clor 60","Pic-Clor 60","Pic-Clor 60","Pic-Clor 60","Pic-Clor 60","Pic-Clor 60","Pic-Clor 60","Pic-Clor 60","Pic-Clor 60","Pic-Clor 60","Pic-Clor 60","Pic-Clor 60","Pic-Clor 60","Pic-Clor 60","Pic-Clor 60","Pic-Clor 60","Pic-Clor 60","Pic-Clor 60","Pic-Clor 60","Pic-Clor 60","Pic-Clor 60","Pic-Clor 60","Pic-Clor 60","Pic-Clor 60","Pic-Clor 60","Pic-Clor 60","Pic-Clor 60","Pic-Clor 60","Pic-Clor 60","Pic-Clor 60","Pic-Clor 60","Pic-Clor 60","Pic-Clor 60","Pic-Clor 60","Pic-Clor 60","Pic-Clor 60","Pic-Clor 60","Pic-Clor 60","Pic-Clor 60","Pic-Clor 60","Pic-Clor 60","Pic-Clor 60","Pic-Clor 60","Pic-Clor 60","Pic-Clor 60","Pic-Clor 60","Pic-Clor 60","Pic-Clor 60","Pic-Clor 60","Pic-Clor 60","Pic-Clor 60","Pic-Clor 60","Pic-Clor 60","Pic-Clor 60","Pic-Clor 60","Pic-Clor 60","Pic-Clor 60","Pic-Clor 60","Pic-Clor 60","Pic-Clor 60","Pic-Clor 60","Pic-Clor 60","Pic-Clor 60","Pic-Clor 60","Pic-Clor 60","Pic-Clor 60","Pic-Clor 60","Pic-Clor 60","Pic-Clor 60","Pic-Clor 60","Pic-Clor 60","Pic-Clor 60","Pic-Clor 60","Pic-Clor 60","Pic-Clor 60","Pic-Clor 60","Pic-Clor 60","Pic-Clor 60","Pic-Clor 60","Pic-Clor 60","Pic-Clor 60","Pic-Clor 60","Pic-Clor 60","Pic-Clor 60","Pic-Clor 60","Pic-Clor 60","Pic-Clor 60","Pic-Clor 60","Pic-Clor 60","Pic-Clor 60","Pic-Clor 60","Pic-Clor 60","Pic-Clor 60","Pic-Clor 60","Pic-Clor 60","Pic-Clor 60","Pic-Clor 60","Pic-Clor 60","Pic-Clor 60","Pic-Clor 60","Pic-Clor 60","Pic-Clor 60","Pic-Clor 60","Pic-Clor 60","Pic-Clor 60","Pic-Clor 60","Pic-Clor 60","Pic-Clor 60","Pic-Clor 60","Pic-Clor 60","Pic-Clor 60","Pic-Clor 60","Pic-Clor 60","Pic-Clor 60","Pic-Clor 60","Pic-Clor 60","Pic-Clor 60","Pic-Clor 60","Pic-Clor 60","Pic-Clor 60","Pic-Clor 60","Pic-Clor 60","Pic-Clor 60","Pic-Clor 60","Pic-Clor 60","Pic-Clor 60","Pic-Clor 60","Pic-Clor 60","Pic-Clor 60","Pic-Clor 60","Pic-Clor 60","Pic-Clor 60","Pic-Clor 60","Pic-Clor 60","Pic-Clor 60","Pic-Clor 60","Pic-Clor 60","Pic-Clor 60","Pic-Clor 60","Pic-Clor 60","Pic-Clor 60","Pic-Clor 60","Pic-Clor 60","Pic-Clor 60","Pic-Clor 60","Pic-Clor 60","Pic-Clor 60","Pic-Clor 60","Pic-Clor 60","Pic-Clor 60","Pic-Clor 60","Pic-Clor 60","Pic-Clor 60","Pic-Clor 60","Pic-Clor 60","Pic-Clor 60","Pic-Clor 60","Pic-Clor 60","Pic-Clor 60","Pic-Clor 60","Pic-Clor 60","Pic-Clor 60","Pic-Clor 60","Pic-Clor 60","Pic-Clor 60","Pic-Clor 60","Pic-Clor 60","Pic-Clor 60","Pic-Clor 60","Pic-Clor 60","Pic-Clor 60","Pic-Clor 60","Pic-Clor 60","Pic-Clor 60","Pic-Clor 60","Pic-Clor 60","Pic-Clor 60","Pic-Clor 60","Pic-Clor 60","Pic-Clor 60","Pic-Clor 60","Pic-Clor 60","Pic-Clor 60","Pic-Clor 60","Pic-Clor 60","Pic-Clor 60","Pic-Clor 60","Pic-Clor 60","Pic-Clor 60","Pic-Clor 60","Pic-Clor 60","Pic-Clor 60","Pic-Clor 60","Pic-Clor 60","Pic-Clor 60","Pic-Clor 60","Pic-Clor 60","Pic-Clor 60","Pic-Clor 60","Pic-Clor 60","Pic-Clor 60","Pic-Clor 60","Pic-Clor 60","Pic-Clor 60","Pic-Clor 60","Pic-Clor 60","Pic-Clor 60","Pic-Clor 60","Pic-Clor 60","Pic-Clor 60","Pic-Clor 60","Pic-Clor 60","Pic-Clor 60","Pic-Clor 60","Pic-Clor 60","Pic-Clor 60","Pic-Clor 60","Pic-Clor 60","Pic-Clor 60","Pic-Clor 60","Pic-Clor 60","Pic-Clor 60","Pic-Clor 60","Pic-Clor 60","Pic-Clor 60","Pic-Clor 60","Pic-Clor 60","Pic-Clor 60","Pic-Clor 60","Pic-Clor 60","Pic-Clor 60","Pic-Clor 60","Pic-Clor 60","Pic-Clor 60","Pic-Clor 60","Pic-Clor 60","Pic-Clor 60","Pic-Clor 60","Pic-Clor 60","Pic-Clor 60","Pic-Clor 60","Pic-Clor 60","Pic-Clor 60","Pic-Clor 60","Pic-Clor 60","Pic-Clor 60","Pic-Clor 60","Pic-Clor 60","Pic-Clor 60","Pic-Clor 60","Pic-Clor 60","Pic-Clor 60","Pic-Clor 60","Pic-Clor 60","Pic-Clor 60","Pic-Clor 60","Pic-Clor 60","Pic-Clor 60","Pic-Clor 60","Pic-Clor 60","Pic-Clor 60","Pic-Clor 60","Pic-Clor 60","Pic-Clor 60","Pic-Clor 60","Pic-Clor 60","Pic-Clor 60","Pic-Clor 60","Pic-Clor 60","Pic-Clor 60","Pic-Clor 60","Pic-Clor 60","Pic-Clor 60","Pic-Clor 60","Pic-Clor 60","Pic-Clor 60","Pic-Clor 60","Pic-Clor 60","Pic-Clor 60","Pic-Clor 60","Pic-Clor 60","Pic-Clor 60","Pic-Clor 60","Pic-Clor 60","Pic-Clor 60","Pic-Clor 60","Pic-Clor 60","Pic-Clor 60","Pic-Clor 60","Pic-Clor 60","Pic-Clor 60","Pic-Clor 60","Pic-Clor 60","Pic-Clor 60","Pic-Clor 60","Pic-Clor 60","Pic-Clor 60","Pic-Clor 60","Pic-Clor 60","Pic-Clor 60","Pic-Clor 60","Pic-Clor 60","Pic-Clor 60","Pic-Clor 60","Pic-Clor 60","Pic-Clor 60","Pic-Clor 60","Pic-Clor 60","Pic-Clor 60","Pic-Clor 60","Pic-Clor 60","Pic-Clor 60","Pic-Clor 60","Pic-Clor 60","Pic-Clor 60","Pic-Clor 60","Pic-Clor 60","Pic-Clor 60","Pic-Clor 60","Pic-Clor 60","Pic-Clor 60","Pic-Clor 60","Pic-Clor 60","Pic-Clor 60","Pic-Clor 60","Pic-Clor 60","Pic-Clor 60","Pic-Clor 60","Pic-Clor 60","Pic-Clor 60","Pic-Clor 60","Pic-Clor 60","Pic-Clor 60","Pic-Clor 60","Pic-Clor 60","Pic-Clor 60","Pic-Clor 60","Pic-Clor 60","Pic-Clor 60","Pic-Clor 60","Pic-Clor 60","Pic-Clor 60","Pic-Clor 60","Pic-Clor 60","Pic-Clor 60","Pic-Clor 60","Pic-Clor 60","Pic-Clor 60","Pic-Clor 60","Pic-Clor 60","Pic-Clor 60","Pic-Clor 60","Pic-Clor 60","Pic-Clor 60","Pic-Clor 60","Pic-Clor 60","Pic-Clor 60","Pic-Clor 60","Pic-Clor 60","Pic-Clor 60","Pic-Clor 60","Pic-Clor 60","Pic-Clor 60","Pic-Clor 60","Pic-Clor 60","Pic-Clor 60","Pic-Clor 60","Pic-Clor 60","Pic-Clor 60","Pic-Clor 60","Pic-Clor 60","Pic-Clor 60","Pic-Clor 60","Pic-Clor 60","Pic-Clor 60","Pic-Clor 60","Pic-Clor 60","Pic-Clor 60","Pic-Clor 60","Pic-Clor 60","Pic-Clor 60","Pic-Clor 60","Pic-Clor 60","Pic-Clor 60","Pic-Clor 60","Pic-Clor 60","Pic-Clor 60","Pic-Clor 60","Pic-Clor 60","Pic-Clor 60","Pic-Clor 60","Pic-Clor 60","Pic-Clor 60","Pic-Clor 60","Pic-Clor 60","Pic-Clor 60","Pic-Clor 60","Pic-Clor 60","Pic-Clor 60","Pic-Clor 60","Pic-Clor 60","Pic-Clor 60","Pic-Clor 60","Pic-Clor 60","Pic-Clor 60","Pic-Clor 60","Pic-Clor 60","Pic-Clor 60","Pic-Clor 60","Pic-Clor 60","Pic-Clor 60","Pic-Clor 60","Pic-Clor 60","Pic-Clor 60","Pic-Clor 60","Pic-Clor 60","Pic-Clor 60","Pic-Clor 60","Pic-Clor 60","Pic-Clor 60","Pic-Clor 60","Pic-Clor 60","Pic-Clor 60","Pic-Clor 60","Pic-Clor 60","Pic-Clor 60","Pic-Clor 60","Pic-Clor 60","Pic-Clor 60","Pic-Clor 60","Pic-Clor 60","Pic-Clor 60","Pic-Clor 60","Pic-Clor 60","Pic-Clor 60","Pic-Clor 60","Pic-Clor 60","Pic-Clor 60","Pic-Clor 60","Pic-Clor 60","Pic-Clor 60","Pic-Clor 60","Pic-Clor 60","Pic-Clor 60","Pic-Clor 60","Pic-Clor 60","Pic-Clor 60","Pic-Clor 60","Pic-Clor 60","Pic-Clor 60","Pic-Clor 60","Pic-Clor 60","Pic-Clor 60","Pic-Clor 60","Pic-Clor 60","Pic-Clor 60","Pic-Clor 60","Pic-Clor 60","Pic-Clor 60","Pic-Clor 60","Pic-Clor 60","Pic-Clor 60","Pic-Clor 60","Pic-Clor 60","Pic-Clor 60","Pic-Clor 60","Pic-Clor 60","Pic-Clor 60","Pic-Clor 60","Pic-Clor 60","Pic-Clor 60","Pic-Clor 60","Pic-Clor 60","Pic-Clor 60","Pic-Clor 60","Pic-Clor 60","Pic-Clor 60","Pic-Clor 60","Pic-Clor 60","Pic-Clor 60","Pic-Clor 60","Pic-Clor 60","Pic-Clor 60","Pic-Clor 60","Pic-Clor 60","Pic-Clor 60","Pic-Clor 60","Pic-Clor 60","Pic-Clor 60","Pic-Clor 60","Pic-Clor 60","Pic-Clor 60","Pic-Clor 60","Pic-Clor 60","Pic-Clor 60","Pic-Clor 60","Pic-Clor 60","Pic-Clor 60","Pic-Clor 60","Pic-Clor 60","Pic-Clor 60","Pic-Clor 60","Pic-Clor 60","Pic-Clor 60","Pic-Clor 60","Pic-Clor 60","Pic-Clor 60","Pic-Clor 60","Pic-Clor 60","Pic-Clor 60","Pic-Clor 60","Pic-Clor 60","Pic-Clor 60","Pic-Clor 60","Pic-Clor 60","Pic-Clor 60","Pic-Clor 60","Pic-Clor 60","Pic-Clor 60","Pic-Clor 60","Pic-Clor 60","Pic-Clor 60","Pic-Clor 60","Pic-Clor 60","Pic-Clor 60","Pic-Clor 60","Pic-Clor 60","Pic-Clor 60","Pic-Clor 60","Pic-Clor 60","Pic-Clor 60","Pic-Clor 60","Pic-Clor 60","Pic-Clor 60","Pic-Clor 60","Pic-Clor 60","Pic-Clor 60","Pic-Clor 60","Pic-Clor 60","Pic-Clor 60","Pic-Clor 60","Pic-Clor 60","Pic-Clor 60","Pic-Clor 60","Pic-Clor 60","Pic-Clor 60","Pic-Clor 60","Pic-Clor 60","Pic-Clor 60","Pic-Clor 60","Pic-Clor 60","Pic-Clor 60","Pic-Clor 60","Pic-Clor 60","Pic-Clor 60","Pic-Clor 60","Pic-Clor 60","Pic-Clor 60","Pic-Clor 60","Pic-Clor 60","Pic-Clor 60","Pic-Clor 60","Pic-Clor 60","Pic-Clor 60","Pic-Clor 60","Pic-Clor 60","Pic-Clor 60","Pic-Clor 60","Pic-Clor 60","Pic-Clor 60","Pic-Clor 60","Pic-Clor 60","Pic-Clor 60","Pic-Clor 60","Pic-Clor 60","Pic-Clor 60","Pic-Clor 60","Pic-Clor 60","Pic-Clor 60","Pic-Clor 60","Pic-Clor 60","Pic-Clor 60","Pic-Clor 60","Pic-Clor 60","Pic-Clor 60","Pic-Clor 60","Pic-Clor 60","Pic-Clor 60","Pic-Clor 60","Pic-Clor 60","Pic-Clor 60","Pic-Clor 60","Pic-Clor 60","Pic-Clor 60","Pic-Clor 60","Pic-Clor 60","Pic-Clor 60","Pic-Clor 60","Pic-Clor 60","Pic-Clor 60","Pic-Clor 60","Pic-Clor 60","Pic-Clor 60","Pic-Clor 60","Pic-Clor 60","Pic-Clor 60","Pic-Clor 60","Pic-Clor 60","Pic-Clor 60","Pic-Clor 60","Pic-Clor 60","Pic-Clor 60","Pic-Clor 60","Pic-Clor 60","Pic-Clor 60","Pic-Clor 60","Pic-Clor 60","Pic-Clor 60","Pic-Clor 60","Pic-Clor 60","Pic-Clor 60","Pic-Clor 60","Pic-Clor 60","Pic-Clor 60","Pic-Clor 60","Pic-Clor 60","Pic-Clor 60","Pic-Clor 60","Pic-Clor 60","Pic-Clor 60","Pic-Clor 60","Pic-Clor 60","Pic-Clor 60","Pic-Clor 60","Pic-Clor 60","Pic-Clor 60","Pic-Clor 60","Pic-Clor 60","Pic-Clor 60","Pic-Clor 60","Pic-Clor 60","Pic-Clor 60","Pic-Clor 60","Pic-Clor 60","Pic-Clor 60","Pic-Clor 60","Pic-Clor 60","Pic-Clor 60","Pic-Clor 60","Pic-Clor 60","Pic-Clor 60","Pic-Clor 60","Pic-Clor 60","Pic-Clor 60","Pic-Clor 60","Pic-Clor 60","Pic-Clor 60","Pic-Clor 60","Pic-Clor 60","Pic-Clor 60","Pic-Clor 60","Pic-Clor 60","Pic-Clor 60","Pic-Clor 60","Pic-Clor 60","Pic-Clor 60","Pic-Clor 60","Pic-Clor 60","Pic-Clor 60","Pic-Clor 60","Pic-Clor 60","Pic-Clor 60","Pic-Clor 60","Pic-Clor 60","Pic-Clor 60","Pic-Clor 60","Pic-Clor 60","Pic-Clor 60","Pic-Clor 60","Pic-Clor 60","Pic-Clor 60","Pic-Clor 60","Pic-Clor 60","Pic-Clor 60","Pic-Clor 60","Pic-Clor 60","Pic-Clor 60","Pic-Clor 60","Pic-Clor 60","Pic-Clor 60","Pic-Clor 60","Pic-Clor 60","Pic-Clor 60","Pic-Clor 60","Pic-Clor 60","Pic-Clor 60","Pic-Clor 60","Pic-Clor 60","Pic-Clor 60","Pic-Clor 60","Pic-Clor 60","Pic-Clor 60","Pic-Clor 60","Pic-Clor 60","Pic-Clor 60","Pic-Clor 60","Pic-Clor 60","Pic-Clor 60","Pic-Clor 60","Pic-Clor 60","Pic-Clor 60","Pic-Clor 60","Pic-Clor 60","Pic-Clor 60","Pic-Clor 60","Pic-Clor 60","Pic-Clor 60","Pic-Clor 60","Pic-Clor 60","Pic-Clor 60","Pic-Clor 60","Pic-Clor 60","Pic-Clor 60","Pic-Clor 60","Pic-Clor 60","Pic-Clor 60","Pic-Clor 60","Pic-Clor 60","Pic-Clor 60","Pic-Clor 60","Pic-Clor 60","Pic-Clor 60","Pic-Clor 60","Pic-Clor 60","Pic-Clor 60","Pic-Clor 60","Pic-Clor 60","Pic-Clor 60","Pic-Clor 60","Pic-Clor 60","Pic-Clor 60","Pic-Clor 60","Pic-Clor 60","Pic-Clor 60","Pic-Clor 60","Pic-Clor 60","Pic-Clor 60","Pic-Clor 60","Pic-Clor 60","Pic-Clor 60","Pic-Clor 60","Pic-Clor 60","Pic-Clor 60","Pic-Clor 60","Pic-Clor 60","Pic-Clor 60","Pic-Clor 60","Pic-Clor 60","Pic-Clor 60","Pic-Clor 60","Pic-Clor 60","Pic-Clor 60","Pic-Clor 60","Pic-Clor 60","Pic-Clor 60","Pic-Clor 60","Pic-Clor 60","Pic-Clor 60","Pic-Clor 60","Pic-Clor 60","Pic-Clor 60","Pic-Clor 60","Pic-Clor 60","Pic-Clor 60","Pic-Clor 60","Pic-Clor 60","Pic-Clor 60","Pic-Clor 60","Pic-Clor 60","Pic-Clor 60","Pic-Clor 60","Pic-Clor 60","Pic-Clor 60","Pic-Clor 60","Pic-Clor 60","Pic-Clor 60","Pic-Clor 60","Pic-Clor 60","Pic-Clor 60","Pic-Clor 60","Pic-Clor 60","Pic-Clor 60","Pic-Clor 60","Pic-Clor 60","Pic-Clor 60","Pic-Clor 60","Pic-Clor 60","Pic-Clor 60","Pic-Clor 60","Pic-Clor 60","Pic-Clor 60","Pic-Clor 60","Pic-Clor 60","Pic-Clor 60","Pic-Clor 60","Pic-Clor 60","Pic-Clor 60","Pic-Clor 60","Pic-Clor 60","Pic-Clor 60","Pic-Clor 60","Pic-Clor 60","Pic-Clor 60","Pic-Clor 60","Pic-Clor 60","Pic-Clor 60","Pic-Clor 60","Pic-Clor 60","Pic-Clor 60","Pic-Clor 60","Pic-Clor 60","Pic-Clor 60","Pic-Clor 60","Pic-Clor 60","Pic-Clor 60","Pic-Clor 60","Pic-Clor 60","Pic-Clor 60","Pic-Clor 60","Pic-Clor 60","Pic-Clor 60","Pic-Clor 60","Pic-Clor 60","Pic-Clor 60","Pic-Clor 60","Pic-Clor 60","Pic-Clor 60","Pic-Clor 60","Pic-Clor 60","Pic-Clor 60","Pic-Clor 60","Pic-Clor 60","Pic-Clor 60","Pic-Clor 60","Pic-Clor 60","Pic-Clor 60","Pic-Clor 60","Pic-Clor 60","Pic-Clor 60","Pic-Clor 60","Pic-Clor 60","Pic-Clor 60","Pic-Clor 60","Pic-Clor 60","Pic-Clor 60","Pic-Clor 60","Pic-Clor 60","Pic-Clor 60","Pic-Clor 60","Pic-Clor 60","Pic-Clor 60","Pic-Clor 60","Pic-Clor 60","Pic-Clor 60","Pic-Clor 60","Pic-Clor 60","Pic-Clor 60","Pic-Clor 60","Pic-Clor 60","Pic-Clor 60","Pic-Clor 60","Pic-Clor 60","Pic-Clor 60","Pic-Clor 60","Pic-Clor 60","Pic-Clor 60","Pic-Clor 60","Pic-Clor 60","Pic-Clor 60","Pic-Clor 60","Pic-Clor 60","Pic-Clor 60","Pic-Clor 60","Pic-Clor 60","Pic-Clor 60","Pic-Clor 60","Pic-Clor 60","Pic-Clor 60","Pic-Clor 60","Pic-Clor 60","Pic-Clor 60","Pic-Clor 60","Pic-Clor 60","Pic-Clor 60","Pic-Clor 60","Pic-Clor 60","Pic-Clor 60","Pic-Clor 60","Pic-Clor 60","Pic-Clor 60","Pic-Clor 60","Pic-Clor 60","Pic-Clor 60","Pic-Clor 60","Pic-Clor 60","Pic-Clor 60","Pic-Clor 60","Pic-Clor 60","Pic-Clor 60","Pic-Clor 60","Pic-Clor 60","Pic-Clor 60","Pic-Clor 60","Pic-Clor 60","Pic-Clor 60","Pic-Clor 60","Pic-Clor 60","Pic-Clor 60","Pic-Clor 60","Pic-Clor 60","Pic-Clor 60","Pic-Clor 60","Pic-Clor 60","Pic-Clor 60","Pic-Clor 60","Pic-Clor 60","Pic-Clor 60","Pic-Clor 60","Pic-Clor 60","Pic-Clor 60","Pic-Clor 60","Pic-Clor 60","Pic-Clor 60","Pic-Clor 60","Pic-Clor 60","Pic-Clor 60","Pic-Clor 60","Pic-Clor 60","Pic-Clor 60","Pic-Clor 60","Pic-Clor 60","Pic-Clor 60","Pic-Clor 60","Pic-Clor 60","Pic-Clor 60","Pic-Clor 60","Pic-Clor 60","Pic-Clor 60","Pic-Clor 60","Pic-Clor 60","Pic-Clor 60","Pic-Clor 60","Pic-Clor 60","Pic-Clor 60","Pic-Clor 60","Pic-Clor 60","Pic-Clor 60","Pic-Clor 60","Pic-Clor 60","Pic-Clor 60","Pic-Clor 60","Pic-Clor 60","Pic-Clor 60","Pic-Clor 60","Pic-Clor 60","Pic-Clor 60","Pic-Clor 60","Pic-Clor 60","Pic-Clor 60","Pic-Clor 60","Pic-Clor 60","Pic-Clor 60","Pic-Clor 60","Pic-Clor 60","Pic-Clor 60","Pic-Clor 60","Pic-Clor 60","Pic-Clor 60","Pic-Clor 60","Pic-Clor 60","Pic-Clor 60","Pic-Clor 60","Pic-Clor 60","Pic-Clor 60","Pic-Clor 60","Pic-Clor 60","Pic-Clor 60","Pic-Clor 60","Pic-Clor 60","Pic-Clor 60","Pic-Clor 60","Pic-Clor 60","Pic-Clor 60","Pic-Clor 60","Pic-Clor 60","Pic-Clor 60","Pic-Clor 60","Pic-Clor 60","Pic-Clor 60","Pic-Clor 60","Pic-Clor 60","Pic-Clor 60","Pic-Clor 60","Pic-Clor 60","Pic-Clor 60","Pic-Clor 60","Pic-Clor 60","Pic-Clor 60","Pic-Clor 60","Pic-Clor 60","Pic-Clor 60","Pic-Clor 60","Pic-Clor 60","Pic-Clor 60","Pic-Clor 60","Pic-Clor 60","Pic-Clor 60","Pic-Clor 60","Pic-Clor 60","Pic-Clor 60","Pic-Clor 60","Pic-Clor 60","Pic-Clor 60","Pic-Clor 60","Pic-Clor 60","Pic-Clor 60","Pic-Clor 60","Pic-Clor 60","Pic-Clor 60","Pic-Clor 60","Pic-Clor 60","Pic-Clor 60","Pic-Clor 60","Pic-Clor 60","Pic-Clor 60","Pic-Clor 60","Pic-Clor 60","Pic-Clor 60","Pic-Clor 60","Pic-Clor 60","Pic-Clor 60","Pic-Clor 60","Pic-Clor 60","Pic-Clor 60","Pic-Clor 60","Pic-Clor 60","Pic-Clor 60","Pic-Clor 60","Pic-Clor 60","Pic-Clor 60","Pic-Clor 60","Pic-Clor 60","Pic-Clor 60","Pic-Clor 60","Pic-Clor 60","Pic-Clor 60","Pic-Clor 60","Pic-Clor 60","Pic-Clor 60","Pic-Clor 60","Pic-Clor 60","Pic-Clor 60","Pic-Clor 60","Pic-Clor 60","Pic-Clor 60","Pic-Clor 60","Pic-Clor 60","Pic-Clor 60","Pic-Clor 60","Pic-Clor 60","Pic-Clor 60","Pic-Clor 60","Pic-Clor 60","Pic-Clor 60","Pic-Clor 60","Pic-Clor 60","Pic-Clor 60","Pic-Clor 60","Pic-Clor 60","Pic-Clor 60","Pic-Clor 60","Pic-Clor 60","Pic-Clor 60","Pic-Clor 60","Pic-Clor 60","Pic-Clor 60","Pic-Clor 60","Pic-Clor 60","Pic-Clor 60","Pic-Clor 60","Pic-Clor 60","Pic-Clor 60","Pic-Clor 60","Pic-Clor 60","Pic-Clor 60","Pic-Clor 60","Pic-Clor 60","Pic-Clor 60","Pic-Clor 60","Pic-Clor 60","Pic-Clor 60","Pic-Clor 60","Pic-Clor 60","Pic-Clor 60","Pic-Clor 60","Pic-Clor 60","Pic-Clor 60","Pic-Clor 60","Pic-Clor 60","Pic-Clor 60","Pic-Clor 60","Pic-Clor 60","Pic-Clor 60","Pic-Clor 60","Pic-Clor 60","Pic-Clor 60","Pic-Clor 60","Pic-Clor 60","Pic-Clor 60","Pic-Clor 60","Pic-Clor 60","Pic-Clor 60","Pic-Clor 60","Pic-Clor 60","Pic-Clor 60","Pic-Clor 60","Pic-Clor 60","Pic-Clor 60","Pic-Clor 60","Pic-Clor 60","Pic-Clor 60","Pic-Clor 60","Pic-Clor 60","Pic-Clor 60","Pic-Clor 60","Pic-Clor 60","Pic-Clor 60","Pic-Clor 60","Pic-Clor 60","Pic-Clor 60","Pic-Clor 60","Pic-Clor 60","Pic-Clor 60","Pic-Clor 60","Pic-Clor 60","Pic-Clor 60","Pic-Clor 60","Pic-Clor 60","Pic-Clor 60","Pic-Clor 60","Pic-Clor 60","Pic-Clor 60","Pic-Clor 60","Pic-Clor 60","Pic-Clor 60","Pic-Clor 60","Pic-Clor 60","Pic-Clor 60","Pic-Clor 60","Pic-Clor 60","Pic-Clor 60","Pic-Clor 60","Pic-Clor 60","Pic-Clor 60","Pic-Clor 60","Pic-Clor 60","Pic-Clor 60","Pic-Clor 60","Pic-Clor 60","Pic-Clor 60","Pic-Clor 60","Pic-Clor 60","Pic-Clor 60","Pic-Clor 60","Pic-Clor 60","Pic-Clor 60","Pic-Clor 60","Pic-Clor 60","Pic-Clor 60","Pic-Clor 60","Pic-Clor 60","Pic-Clor 60","Pic-Clor 60","Pic-Clor 60","Pic-Clor 60","Pic-Clor 60","Pic-Clor 60","Pic-Clor 60","Pic-Clor 60","Pic-Clor 60","Pic-Clor 60","Pic-Clor 60","Pic-Clor 60","Pic-Clor 60","Pic-Clor 60","Pic-Clor 60","Pic-Clor 60","Pic-Clor 60","Pic-Clor 60","Pic-Clor 60","Pic-Clor 60","Pic-Clor 60","Pic-Clor 60","Pic-Clor 60","Pic-Clor 60","Pic-Clor 60","Pic-Clor 60","Pic-Clor 60","Pic-Clor 60","Pic-Clor 60","Pic-Clor 60","Pic-Clor 60","Pic-Clor 60","Pic-Clor 60","Pic-Clor 60","Pic-Clor 60","Pic-Clor 60","Pic-Clor 60","Pic-Clor 60","Pic-Clor 60","Pic-Clor 60","Pic-Clor 60","Pic-Clor 60","Pic-Clor 60","Pic-Clor 60","Pic-Clor 60","Pic-Clor 60","Pic-Clor 60","Pic-Clor 60","Pic-Clor 60","Pic-Clor 60","Pic-Clor 60","Pic-Clor 60","Pic-Clor 60","Pic-Clor 60","Pic-Clor 60","Pic-Clor 60","Pic-Clor 60","Pic-Clor 60","Pic-Clor 60","Pic-Clor 60","Pic-Clor 60","Pic-Clor 60","Pic-Clor 60","Pic-Clor 60","Pic-Clor 60","Pic-Clor 60","Pic-Clor 60","Pic-Clor 60","Pic-Clor 60","Pic-Clor 60","Pic-Clor 60","Pic-Clor 60","Pic-Clor 60","Pic-Clor 60","Pic-Clor 60","Pic-Clor 60","Pic-Clor 60","Pic-Clor 60","Pic-Clor 60","Pic-Clor 60","Pic-Clor 60","Pic-Clor 60","Pic-Clor 60","Pic-Clor 60","Pic-Clor 60","Pic-Clor 60","Pic-Clor 60","Pic-Clor 60","Pic-Clor 60","Pic-Clor 60","Pic-Clor 60","Pic-Clor 60","Pic-Clor 60","Pic-Clor 60","Pic-Clor 60","Pic-Clor 60","Pic-Clor 60","Pic-Clor 60","Pic-Clor 60","Pic-Clor 60","Pic-Clor 60","Pic-Clor 60","Pic-Clor 60","Pic-Clor 60","Pic-Clor 60","Pic-Clor 60","Pic-Clor 60","Pic-Clor 60","Pic-Clor 60","Pic-Clor 60","Pic-Clor 60","Pic-Clor 60","Pic-Clor 60","Pic-Clor 60","Pic-Clor 60","Pic-Clor 60","Pic-Clor 60","Pic-Clor 60","Pic-Clor 60","Pic-Clor 60","Pic-Clor 60","Pic-Clor 60","Pic-Clor 60","Pic-Clor 60","Pic-Clor 60","Pic-Clor 60","Pic-Clor 60","Pic-Clor 60","Pic-Clor 60","Pic-Clor 60","Pic-Clor 60","Pic-Clor 60","Pic-Clor 60","Pic-Clor 60","Pic-Clor 60","Pic-Clor 60","Pic-Clor 60","Pic-Clor 60","Pic-Clor 60","Pic-Clor 60","Pic-Clor 60","Pic-Clor 60","Pic-Clor 60","Pic-Clor 60","Pic-Clor 60","Pic-Clor 60","Pic-Clor 60","Pic-Clor 60","Pic-Clor 60","Pic-Clor 60","Pic-Clor 60","Pic-Clor 60","Pic-Clor 60","Pic-Clor 60","Pic-Clor 60","Pic-Clor 60","Pic-Clor 60","Pic-Clor 60","Pic-Clor 60","Pic-Clor 60","Pic-Clor 60","Pic-Clor 60","Pic-Clor 60","Pic-Clor 60","Pic-Clor 60","Pic-Clor 60","Pic-Clor 60","Pic-Clor 60","Pic-Clor 60","Pic-Clor 60","Pic-Clor 60","Pic-Clor 60","Pic-Clor 60","Pic-Clor 60","Pic-Clor 60","Pic-Clor 60","Pic-Clor 60","Pic-Clor 60","Pic-Clor 60","Pic-Clor 60","Pic-Clor 60","Pic-Clor 60","Pic-Clor 60","Pic-Clor 60","Pic-Clor 60","Pic-Clor 60","Pic-Clor 60","Pic-Clor 60","Pic-Clor 60","Pic-Clor 60","Pic-Clor 60","Pic-Clor 60","Pic-Clor 60","Pic-Clor 60","Pic-Clor 60","Pic-Clor 60","Pic-Clor 60","Pic-Clor 60","Pic-Clor 60","Pic-Clor 60","Pic-Clor 60","Pic-Clor 60","Pic-Clor 60","Pic-Clor 60","Pic-Clor 60","Pic-Clor 60","Pic-Clor 60","Pic-Clor 60","Pic-Clor 60","Pic-Clor 60","Pic-Clor 60","Pic-Clor 60","Pic-Clor 60","Pic-Clor 60","Pic-Clor 60","Pic-Clor 60","Pic-Clor 60","Pic-Clor 60","Pic-Clor 60","Pic-Clor 60","Pic-Clor 60","Pic-Clor 60","Pic-Clor 60","Pic-Clor 60","Pic-Clor 60","Pic-Clor 60","Pic-Clor 60","Pic-Clor 60","Pic-Clor 60","Pic-Clor 60","Pic-Clor 60","Pic-Clor 60","Pic-Clor 60","Pic-Clor 60","Pic-Clor 60","Pic-Clor 60","Pic-Clor 60","Pic-Clor 60","Pic-Clor 60","Pic-Clor 60","Pic-Clor 60","Pic-Clor 60","Pic-Clor 60","Pic-Clor 60","Pic-Clor 60","Pic-Clor 60","Pic-Clor 60","Pic-Clor 60","Pic-Clor 60","Pic-Clor 60","Pic-Clor 60","Pic-Clor 60","Pic-Clor 60","Pic-Clor 60","Pic-Clor 60","Pic-Clor 60","Pic-Clor 60","Pic-Clor 60","Pic-Clor 60","Pic-Clor 60","Pic-Clor 60","Pic-Clor 60","Pic-Clor 60","Pic-Clor 60","Pic-Clor 60","Pic-Clor 60","Pic-Clor 60","Pic-Clor 60","Pic-Clor 60","Pic-Clor 60","Pic-Clor 60","Pic-Clor 60","Pic-Clor 60","Pic-Clor 60","Pic-Clor 60","Pic-Clor 60","Pic-Clor 60","Pic-Clor 60","Pic-Clor 60","Pic-Clor 60","Pic-Clor 60","Pic-Clor 60","Pic-Clor 60","Pic-Clor 60","Pic-Clor 60","Pic-Clor 60","Pic-Clor 60","Pic-Clor 60","Pic-Clor 60","Pic-Clor 60","Pic-Clor 60","Pic-Clor 60","Pic-Clor 60","Pic-Clor 60","Pic-Clor 60","Pic-Clor 60","Pic-Clor 60","Pic-Clor 60","Pic-Clor 60","Pic-Clor 60","Pic-Clor 60","Pic-Clor 60","Pic-Clor 60","Pic-Clor 60","Pic-Clor 60","Pic-Clor 60","Pic-Clor 60","Pic-Clor 60","Pic-Clor 60","Pic-Clor 60","Pic-Clor 60","Pic-Clor 60","Pic-Clor 60","Pic-Clor 60","Pic-Clor 60","Pic-Clor 60","Pic-Clor 60","Pic-Clor 60","Pic-Clor 60","Pic-Clor 60","Pic-Clor 60","Pic-Clor 60","Pic-Clor 60","Pic-Clor 60","Pic-Clor 60","Pic-Clor 60","Pic-Clor 60","Pic-Clor 60","Pic-Clor 60","Pic-Clor 60","Pic-Clor 60","Pic-Clor 60","Pic-Clor 60","Pic-Clor 60","Pic-Clor 60","Pic-Clor 60","Pic-Clor 60","Pic-Clor 60","Pic-Clor 60","Pic-Clor 60","Pic-Clor 60","Pic-Clor 60","Pic-Clor 60","Pic-Clor 60","Pic-Clor 60","Pic-Clor 60","Pic-Clor 60","Pic-Clor 60","Pic-Clor 60","Pic-Clor 60","Pic-Clor 60","Pic-Clor 60","Pic-Clor 60","Pic-Clor 60","Pic-Clor 60","Pic-Clor 60","Pic-Clor 60","Pic-Clor 60","Pic-Clor 60","Pic-Clor 60","Pic-Clor 60","Pic-Clor 60","Pic-Clor 60","Pic-Clor 60","Pic-Clor 60","Pic-Clor 60","Pic-Clor 60","Pic-Clor 60","Pic-Clor 60","Pic-Clor 60","Pic-Clor 60","Pic-Clor 60","Pic-Clor 60","Pic-Clor 60","Pic-Clor 60","Pic-Clor 60","Pic-Clor 60","Pic-Clor 60","Pic-Clor 60","Pic-Clor 60","Pic-Clor 60","Pic-Clor 60","Pic-Clor 60","Pic-Clor 60","Pic-Clor 60","Pic-Clor 60","Pic-Clor 60","Pic-Clor 60","Pic-Clor 60","Pic-Clor 60","Pic-Clor 60","Pic-Clor 60","Pic-Clor 60","Pic-Clor 60","Pic-Clor 60","Pic-Clor 60","Pic-Clor 60","Pic-Clor 60","Pic-Clor 60","Pic-Clor 60","Pic-Clor 60","Pic-Clor 60","Pic-Clor 60","Pic-Clor 60","Pic-Clor 60","Pic-Clor 60","Pic-Clor 60","Pic-Clor 60","Pic-Clor 60","Pic-Clor 60","Pic-Clor 60","Pic-Clor 60","Pic-Clor 60","Pic-Clor 60","Pic-Clor 60","Pic-Clor 60","Pic-Clor 60","Pic-Clor 60","Pic-Clor 60","Pic-Clor 60","Pic-Clor 60","Pic-Clor 60","Pic-Clor 60","Pic-Clor 60","Pic-Clor 60","Pic-Clor 60","Pic-Clor 60","Pic-Clor 60","Pic-Clor 60","Pic-Clor 60","Pic-Clor 60","Pic-Clor 60","Pic-Clor 60","Pic-Clor 60","Pic-Clor 60","Pic-Clor 60","Pic-Clor 60","Pic-Clor 60","Pic-Clor 60","Pic-Clor 60","Pic-Clor 60","Pic-Clor 60","Pic-Clor 60","Pic-Clor 60","Pic-Clor 60","Pic-Clor 60","Pic-Clor 60","Pic-Clor 60","Pic-Clor 60","Pic-Clor 60","Pic-Clor 60","Pic-Clor 60","Pic-Clor 60","Pic-Clor 60","Pic-Clor 60","Pic-Clor 60","Pic-Clor 60","Pic-Clor 60","Pic-Clor 60","Pic-Clor 60","Pic-Clor 60","Pic-Clor 60","Pic-Clor 60","Pic-Clor 60","Pic-Clor 60","Pic-Clor 60","Pic-Clor 60","Pic-Clor 60","Pic-Clor 60","Pic-Clor 60","Pic-Clor 60","Pic-Clor 60","Pic-Clor 60","Pic-Clor 60","Pic-Clor 60","Pic-Clor 60","Pic-Clor 60","Pic-Clor 60","Pic-Clor 60","Pic-Clor 60","Pic-Clor 60","Pic-Clor 60","Pic-Clor 60","Pic-Clor 60","Pic-Clor 60","Pic-Clor 60","Pic-Clor 60","Pic-Clor 60","Pic-Clor 60","Pic-Clor 60","Pic-Clor 60","Pic-Clor 60","Pic-Clor 60","Pic-Clor 60","Pic-Clor 60","Pic-Clor 60","Pic-Clor 60","Pic-Clor 60","Pic-Clor 60","Pic-Clor 60","Pic-Clor 60","Pic-Clor 60","Pic-Clor 60","Pic-Clor 60","Pic-Clor 60","Pic-Clor 60","Pic-Clor 60","Pic-Clor 60","Pic-Clor 60","Pic-Clor 60","Pic-Clor 60","Pic-Clor 60","Pic-Clor 60","Pic-Clor 60","Pic-Clor 60","Pic-Clor 60","Pic-Clor 60","Pic-Clor 60","Pic-Clor 60","Pic-Clor 60","Pic-Clor 60","Pic-Clor 60","Pic-Clor 60","Pic-Clor 60","Pic-Clor 60","Pic-Clor 60","Pic-Clor 60","Pic-Clor 60","Pic-Clor 60","Pic-Clor 60","Pic-Clor 60","Pic-Clor 60","Pic-Clor 60","Pic-Clor 60","Pic-Clor 60","Pic-Clor 60","Pic-Clor 60","Pic-Clor 60","Pic-Clor 60","Pic-Clor 60","Pic-Clor 60","Pic-Clor 60","Pic-Clor 60","Pic-Clor 60","Pic-Clor 60","Pic-Clor 60","Pic-Clor 60","Pic-Clor 60","Pic-Clor 60","Pic-Clor 60","Pic-Clor 60","Pic-Clor 60","Pic-Clor 60","Pic-Clor 60","Pic-Clor 60","Pic-Clor 60","Pic-Clor 60","Pic-Clor 60","Pic-Clor 60","Pic-Clor 60","Pic-Clor 60","Pic-Clor 60","Pic-Clor 60","Pic-Clor 60","Pic-Clor 60","Pic-Clor 60","Pic-Clor 60","Pic-Clor 60","Pic-Clor 60","Pic-Clor 60","Pic-Clor 60","Pic-Clor 60","Pic-Clor 60","Pic-Clor 60","Pic-Clor 60","Pic-Clor 60","Pic-Clor 60","Pic-Clor 60","Pic-Clor 60","Pic-Clor 60","Pic-Clor 60","Pic-Clor 60","Pic-Clor 60","Pic-Clor 60","Pic-Clor 60","Pic-Clor 60","Pic-Clor 60","Pic-Clor 60","Pic-Clor 60","Pic-Clor 60","Pic-Clor 60","Pic-Clor 60","Pic-Clor 60","Pic-Clor 60","Pic-Clor 60","Pic-Clor 60","Pic-Clor 60","Pic-Clor 60","Pic-Clor 60","Pic-Clor 60","Pic-Clor 60","Pic-Clor 60","Pic-Clor 60","Pic-Clor 60","Pic-Clor 60","Pic-Clor 60","Pic-Clor 60","Pic-Clor 60","Pic-Clor 60","Pic-Clor 60","Pic-Clor 60","Pic-Clor 60","Pic-Clor 60","Pic-Clor 60","Pic-Clor 60","Pic-Clor 60","Pic-Clor 60","Pic-Clor 60","Pic-Clor 60","Pic-Clor 60","Pic-Clor 60","Pic-Clor 60","Pic-Clor 60","Pic-Clor 60","Pic-Clor 60","Pic-Clor 60","Pic-Clor 60","Pic-Clor 60","Pic-Clor 60","Pic-Clor 60","Pic-Clor 60","Pic-Clor 60","Pic-Clor 60","Pic-Clor 60","Pic-Clor 60","Pic-Clor 60","Pic-Clor 60","Pic-Clor 60","Pic-Clor 60","Pic-Clor 60","Pic-Clor 60","Pic-Clor 60","Pic-Clor 60","Pic-Clor 60","Pic-Clor 60","Pic-Clor 60","Pic-Clor 60","Pic-Clor 60","Pic-Clor 60","Pic-Clor 60","Pic-Clor 60","Pic-Clor 60","Pic-Clor 60","Pic-Clor 60","Pic-Clor 60","Pic-Clor 60","Pic-Clor 60","Pic-Clor 60","Pic-Clor 60","Pic-Clor 60","Pic-Clor 60","Pic-Clor 60","Pic-Clor 60","Pic-Clor 60","Pic-Clor 60","Pic-Clor 60","Pic-Clor 60","Pic-Clor 60","Pic-Clor 60","Pic-Clor 60","Pic-Clor 60","Pic-Clor 60","Pic-Clor 60","Pic-Clor 60","Pic-Clor 60","Pic-Clor 60","Pic-Clor 60","Pic-Clor 60","Pic-Clor 60","Pic-Clor 60","Pic-Clor 60","Pic-Clor 60","Pic-Clor 60","Pic-Clor 60","Pic-Clor 60","Pic-Clor 60","Pic-Clor 60","Pic-Clor 60","Pic-Clor 60","Pic-Clor 60","Pic-Clor 60","Pic-Clor 60","Pic-Clor 60","Pic-Clor 60","Pic-Clor 60","Pic-Clor 60","Pic-Clor 60","Pic-Clor 60","Pic-Clor 60","Pic-Clor 60","Pic-Clor 60","Pic-Clor 60","Pic-Clor 60","Pic-Clor 60","Pic-Clor 60","Pic-Clor 60","Pic-Clor 60","Pic-Clor 60","Pic-Clor 60","Pic-Clor 60","Pic-Clor 60","Pic-Clor 60","Pic-Clor 60","Pic-Clor 60","Pic-Clor 60","Pic-Clor 60","Pic-Clor 60","Pic-Clor 60","Pic-Clor 60","Pic-Clor 60","Pic-Clor 60","Pic-Clor 60","Pic-Clor 60","Pic-Clor 60","Pic-Clor 60","Pic-Clor 60","Pic-Clor 60","Pic-Clor 60","Pic-Clor 60","Pic-Clor 60","Pic-Clor 60","Pic-Clor 60","Pic-Clor 60","Pic-Clor 60","Pic-Clor 60","Pic-Clor 60","Pic-Clor 60","Pic-Clor 60","Pic-Clor 60","Pic-Clor 60","Pic-Clor 60","Pic-Clor 60","Pic-Clor 60","Pic-Clor 60","Pic-Clor 60","Pic-Clor 60","Pic-Clor 60","Pic-Clor 60","Pic-Clor 60","Pic-Clor 60","Pic-Clor 60","Pic-Clor 60","Pic-Clor 60","Pic-Clor 60","Pic-Clor 60","Pic-Clor 60","Pic-Clor 60","Pic-Clor 60","Pic-Clor 60","Pic-Clor 60","Pic-Clor 60","Pic-Clor 60","Pic-Clor 60","Pic-Clor 60","Pic-Clor 60","Pic-Clor 60","Pic-Clor 60","Pic-Clor 60","Pic-Clor 60","Pic-Clor 60","Pic-Clor 60","Pic-Clor 60","Pic-Clor 60","Pic-Clor 60","Pic-Clor 60","Pic-Clor 60","Pic-Clor 60","Pic-Clor 60","Pic-Clor 60","Pic-Clor 60","Pic-Clor 60","Pic-Clor 60","Pic-Clor 60","Pic-Clor 60","Pic-Clor 60","Pic-Clor 60","Pic-Clor 60","Pic-Clor 60","Pic-Clor 60","Pic-Clor 60","Pic-Clor 60","Pic-Clor 60","Pic-Clor 60","Pic-Clor 60","Pic-Clor 60","Pic-Clor 60","Pic-Clor 60","Pic-Clor 60","Pic-Clor 60","Pic-Clor 60","Pic-Clor 60","Pic-Clor 60","Pic-Clor 60","Pic-Clor 60","Pic-Clor 60","Pic-Clor 60","Pic-Clor 60","Pic-Clor 60","Pic-Clor 60","Pic-Clor 60","Pic-Clor 60","Pic-Clor 60","Pic-Clor 60","Pic-Clor 60","Pic-Clor 60","Pic-Clor 60","Pic-Clor 60","Pic-Clor 60","Pic-Clor 60","Pic-Clor 60","Pic-Clor 60","Pic-Clor 60","Pic-Clor 60","Pic-Clor 60","Pic-Clor 60","Pic-Clor 60","Pic-Clor 60","Pic-Clor 60","Pic-Clor 60","Pic-Clor 60","Pic-Clor 60","Pic-Clor 60","Pic-Clor 60","Pic-Clor 60","Pic-Clor 60","Pic-Clor 60","Pic-Clor 60","Pic-Clor 60","Pic-Clor 60","Pic-Clor 60","Pic-Clor 60","Pic-Clor 60","Pic-Clor 60","Pic-Clor 60","Pic-Clor 60","Pic-Clor 60","Pic-Clor 60","Pic-Clor 60","Pic-Clor 60","Pic-Clor 60","Pic-Clor 60","Pic-Clor 60","Pic-Clor 60","Pic-Clor 60","Pic-Clor 60","Pic-Clor 60","Pic-Clor 60","Pic-Clor 60","Pic-Clor 60","Pic-Clor 60","Pic-Clor 60","Pic-Clor 60","Pic-Clor 60","Pic-Clor 60","Pic-Clor 60","Pic-Clor 60","Pic-Clor 60","Pic-Clor 60","Pic-Clor 60","Pic-Clor 60","Pic-Clor 60","Pic-Clor 60","Pic-Clor 60","Pic-Clor 60","Pic-Clor 60","Pic-Clor 60","Pic-Clor 60","Pic-Clor 60","Pic-Clor 60","Pic-Clor 60","Pic-Clor 60","Pic-Clor 60","Pic-Clor 60","Pic-Clor 60","Pic-Clor 60","Pic-Clor 60","Pic-Clor 60","Pic-Clor 60","Pic-Clor 60","Pic-Clor 60","Pic-Clor 60","Pic-Clor 60","Pic-Clor 60","Pic-Clor 60","Pic-Clor 60","Pic-Clor 60","Pic-Clor 60","Pic-Clor 60","Pic-Clor 60","Pic-Clor 60","Pic-Clor 60","Pic-Clor 60","Pic-Clor 60","Pic-Clor 60","Pic-Clor 60","Pic-Clor 60","Pic-Clor 60","Pic-Clor 60","Pic-Clor 60","Pic-Clor 60","Pic-Clor 60","Pic-Clor 60","Pic-Clor 60","Pic-Clor 60","Pic-Clor 60","Pic-Clor 60","Pic-Clor 60","Pic-Clor 60","Pic-Clor 60","Pic-Clor 60","Pic-Clor 60","Pic-Clor 60","Pic-Clor 60","Pic-Clor 60","Pic-Clor 60","Pic-Clor 60","Pic-Clor 60","Pic-Clor 60","Pic-Clor 60","Pic-Clor 60","Pic-Clor 60","Pic-Clor 60","Pic-Clor 60","Pic-Clor 60","Pic-Clor 60","Pic-Clor 60","Pic-Clor 60","Pic-Clor 60","Pic-Clor 60","Pic-Clor 60","Pic-Clor 60","Pic-Clor 60","Pic-Clor 60","Pic-Clor 60","Pic-Clor 60","Pic-Clor 60","Pic-Clor 60","Pic-Clor 60","Pic-Clor 60","Pic-Clor 60","Pic-Clor 60","Pic-Clor 60","Pic-Clor 60","Pic-Clor 60","Pic-Clor 60","Pic-Clor 60","Pic-Clor 60","Pic-Clor 60","Pic-Clor 60","Pic-Clor 60","Pic-Clor 60","Pic-Clor 60","Pic-Clor 60","Pic-Clor 60","Pic-Clor 60","Pic-Clor 60","Pic-Clor 60","Pic-Clor 60","Pic-Clor 60","Pic-Clor 60","Pic-Clor 60","Pic-Clor 60","Pic-Clor 60","Pic-Clor 60","Pic-Clor 60","Pic-Clor 60","Pic-Clor 60","Pic-Clor 60","Pic-Clor 60","Pic-Clor 60","Pic-Clor 60","Pic-Clor 60","Pic-Clor 60","Pic-Clor 60","Pic-Clor 60","Pic-Clor 60","Pic-Clor 60","Pic-Clor 60","Pic-Clor 60","Pic-Clor 60","Pic-Clor 60","Pic-Clor 60","Pic-Clor 60","Pic-Clor 60","Pic-Clor 60","Pic-Clor 60","Pic-Clor 60","Pic-Clor 60","Pic-Clor 60","Pic-Clor 60","Pic-Clor 60","Pic-Clor 60","Pic-Clor 60","Pic-Clor 60","Pic-Clor 60","Pic-Clor 60","Pic-Clor 60","Pic-Clor 60","Pic-Clor 60","Pic-Clor 60","Pic-Clor 60","Pic-Clor 60","Pic-Clor 60","Pic-Clor 60","Pic-Clor 60","Pic-Clor 60","Pic-Clor 60","Pic-Clor 60","Pic-Clor 60","Pic-Clor 60","Pic-Clor 60","Pic-Clor 60","Pic-Clor 60","Pic-Clor 60","Pic-Clor 60","Pic-Clor 60","Pic-Clor 60","Pic-Clor 60","Pic-Clor 60","Pic-Clor 60","Pic-Clor 60","Pic-Clor 60","Pic-Clor 60","Pic-Clor 60","Pic-Clor 60","Pic-Clor 60","Pic-Clor 60","Pic-Clor 60","Pic-Clor 60","Pic-Clor 60","Pic-Clor 60","Pic-Clor 60","Pic-Clor 60","Pic-Clor 60","Pic-Clor 60","Pic-Clor 60","Pic-Clor 60","Pic-Clor 60","Pic-Clor 60","Pic-Clor 60","Pic-Clor 60","Pic-Clor 60","Pic-Clor 60","Pic-Clor 60","Pic-Clor 60","Pic-Clor 60","Pic-Clor 60","Pic-Clor 60","Pic-Clor 60","Pic-Clor 60","Pic-Clor 60","Pic-Clor 60","Pic-Clor 60","Pic-Clor 60","Pic-Clor 60","Pic-Clor 60","Pic-Clor 60","Pic-Clor 60","Pic-Clor 60","Pic-Clor 60","Pic-Clor 60","Pic-Clor 60","Pic-Clor 60","Pic-Clor 60","Pic-Clor 60","Pic-Clor 60","Pic-Clor 60","Pic-Clor 60","Pic-Clor 60","Pic-Clor 60","Pic-Clor 60","Pic-Clor 60","Pic-Clor 60","Pic-Clor 60","Pic-Clor 60","Pic-Clor 60","Pic-Clor 60","Pic-Clor 60","Pic-Clor 60","Pic-Clor 60","Pic-Clor 60","Pic-Clor 60","Pic-Clor 60","Pic-Clor 60","Pic-Clor 60","Pic-Clor 60","Pic-Clor 60","Pic-Clor 60","Pic-Clor 60","Pic-Clor 60","Pic-Clor 60","Pic-Clor 60","Pic-Clor 60","Pic-Clor 60","Pic-Clor 60","Pic-Clor 60","Pic-Clor 60","Pic-Clor 60","Pic-Clor 60","Pic-Clor 60","Pic-Clor 60","Pic-Clor 60","Pic-Clor 60","Pic-Clor 60","Pic-Clor 60","Pic-Clor 60","Pic-Clor 60","Pic-Clor 60","Pic-Clor 60","Pic-Clor 60","Pic-Clor 60","Pic-Clor 60","Pic-Clor 60","Pic-Clor 60","Pic-Clor 60","Pic-Clor 60","Pic-Clor 60","Pic-Clor 60","Pic-Clor 60","Pic-Clor 60","Pic-Clor 60","Pic-Clor 60","Pic-Clor 60","Pic-Clor 60","Pic-Clor 60","Pic-Clor 60","Pic-Clor 60","Pic-Clor 60","Pic-Clor 60","Pic-Clor 60","Pic-Clor 60","Pic-Clor 60","Pic-Clor 60","Pic-Clor 60","Pic-Clor 60","Pic-Clor 60","Pic-Clor 60","Pic-Clor 60","Pic-Clor 60","Pic-Clor 60","Pic-Clor 60","Pic-Clor 60","Pic-Clor 60","Pic-Clor 60","Pic-Clor 60","Pic-Clor 60","Pic-Clor 60","Pic-Clor 60","Pic-Clor 60","Pic-Clor 60","Pic-Clor 60","Pic-Clor 60","Pic-Clor 60","Pic-Clor 60","Pic-Clor 60","Pic-Clor 60","Pic-Clor 60","Pic-Clor 60","Pic-Clor 60","Pic-Clor 60","Pic-Clor 60","Pic-Clor 60","Pic-Clor 60","Pic-Clor 60","Pic-Clor 60","Pic-Clor 60","Pic-Clor 60","Pic-Clor 60","Pic-Clor 60","Pic-Clor 60","Pic-Clor 60","Pic-Clor 60","Pic-Clor 60","Pic-Clor 60","Pic-Clor 60","Pic-Clor 60","Pic-Clor 60","Pic-Clor 60","Pic-Clor 60","Pic-Clor 60","Pic-Clor 60","Pic-Clor 60","Pic-Clor 60","Pic-Clor 60","Pic-Clor 60","Pic-Clor 60","Pic-Clor 60","Pic-Clor 60","Pic-Clor 60","Pic-Clor 60","Pic-Clor 60","Pic-Clor 60","Pic-Clor 60","Pic-Clor 60","Pic-Clor 60","Pic-Clor 60","Pic-Clor 60","Pic-Clor 60","Pic-Clor 60","Pic-Clor 60","Pic-Clor 60","Pic-Clor 60","Pic-Clor 60","Pic-Clor 60","Pic-Clor 60","Pic-Clor 60","Pic-Clor 60","Pic-Clor 60","Pic-Clor 60","Pic-Clor 60","Pic-Clor 60","Pic-Clor 60","Pic-Clor 60","Pic-Clor 60","Pic-Clor 60","Pic-Clor 60","Pic-Clor 60","Pic-Clor 60","Pic-Clor 60","Pic-Clor 60","Pic-Clor 60","Pic-Clor 60","Pic-Clor 60","Pic-Clor 60","Pic-Clor 60","Pic-Clor 60","Pic-Clor 60","Pic-Clor 60","Pic-Clor 60","Pic-Clor 60","Pic-Clor 60","Pic-Clor 60","Pic-Clor 60","Pic-Clor 60","Pic-Clor 60","Pic-Clor 60","Pic-Clor 60","Pic-Clor 60","Pic-Clor 60","Pic-Clor 60","Pic-Clor 60","Pic-Clor 60","Pic-Clor 60","Pic-Clor 60","Pic-Clor 60","Pic-Clor 60","Pic-Clor 60","Pic-Clor 60","Pic-Clor 60","Pic-Clor 60","Pic-Clor 60","Pic-Clor 60","Pic-Clor 60","Pic-Clor 60","Pic-Clor 60","Pic-Clor 60","Pic-Clor 60","Pic-Clor 60","Pic-Clor 60","Pic-Clor 60","Pic-Clor 60","Pic-Clor 60","Pic-Clor 60","Pic-Clor 60","Pic-Clor 60","Pic-Clor 60","Pic-Clor 60","Pic-Clor 60","Pic-Clor 60","Pic-Clor 60","Pic-Clor 60","Pic-Clor 60","Pic-Clor 60","Pic-Clor 60","Pic-Clor 60","Pic-Clor 60","Pic-Clor 60","Pic-Clor 60","Pic-Clor 60","Pic-Clor 60","Pic-Clor 60","Pic-Clor 60","Pic-Clor 60","Pic-Clor 60","Pic-Clor 60","Pic-Clor 60","Pic-Clor 60","Pic-Clor 60","Pic-Clor 60","Pic-Clor 60","Pic-Clor 60","Pic-Clor 60","Pic-Clor 60","Pic-Clor 60","Pic-Clor 60","Pic-Clor 60","Pic-Clor 60","Pic-Clor 60","Pic-Clor 60","Pic-Clor 60","Pic-Clor 60","Pic-Clor 60","Pic-Clor 60","Pic-Clor 60","Pic-Clor 60","Pic-Clor 60","Pic-Clor 60","Pic-Clor 60","Pic-Clor 60","Pic-Clor 60","Pic-Clor 60","Pic-Clor 60","Pic-Clor 60","Pic-Clor 60","Pic-Clor 60","Pic-Clor 60","Pic-Clor 60","Pic-Clor 60","Pic-Clor 60","Pic-Clor 60","Pic-Clor 60","Pic-Clor 60","Pic-Clor 60","Pic-Clor 60","Pic-Clor 60","Pic-Clor 60","Pic-Clor 60","Pic-Clor 60","Pic-Clor 60","Pic-Clor 60","Pic-Clor 60","Pic-Clor 60","Pic-Clor 60","Pic-Clor 60","Pic-Clor 60","Pic-Clor 60","Pic-Clor 60","Pic-Clor 60","Pic-Clor 60","Pic-Clor 60","Pic-Clor 60","Pic-Clor 60","Pic-Clor 60","Pic-Clor 60","Pic-Clor 60","Pic-Clor 60","Pic-Clor 60","Pic-Clor 60","Pic-Clor 60","Pic-Clor 60","Pic-Clor 60","Pic-Clor 60","Pic-Clor 60","Pic-Clor 60","Pic-Clor 60","Pic-Clor 60","Pic-Clor 60","Pic-Clor 60","Pic-Clor 60","Pic-Clor 60","Pic-Clor 60","Pic-Clor 60","Pic-Clor 60","Pic-Clor 60","Pic-Clor 60","Pic-Clor 60","Pic-Clor 60","Pic-Clor 60","Pic-Clor 60","Pic-Clor 60","Pic-Clor 60","Pic-Clor 60","Pic-Clor 60","Pic-Clor 60","Pic-Clor 60","Pic-Clor 60","Pic-Clor 60","Pic-Clor 60","Pic-Clor 60","Pic-Clor 60","Pic-Clor 60","Pic-Clor 60","Pic-Clor 60","Pic-Clor 60","Pic-Clor 60","Pic-Clor 60","Pic-Clor 60","Pic-Clor 60","Pic-Clor 60","Pic-Clor 60","Pic-Clor 60","Pic-Clor 60","Pic-Clor 60","Pic-Clor 60","Pic-Clor 60","Pic-Clor 60","Pic-Clor 60","Pic-Clor 60","Pic-Clor 60","Pic-Clor 60","Pic-Clor 60","Pic-Clor 60","Pic-Clor 60","Pic-Clor 60","Pic-Clor 60","Pic-Clor 60","Pic-Clor 60","Pic-Clor 60","Pic-Clor 60","Pic-Clor 60","Pic-Clor 60","Pic-Clor 60","Pic-Clor 60","Pic-Clor 60","Pic-Clor 60","Pic-Clor 60","Pic-Clor 60","Pic-Clor 60","Pic-Clor 60","Pic-Clor 60","Pic-Clor 60","Pic-Clor 60","Pic-Clor 60","Pic-Clor 60","Pic-Clor 60","Pic-Clor 60","Pic-Clor 60","Pic-Clor 60","Pic-Clor 60","Pic-Clor 60","Pic-Clor 60","Pic-Clor 60","Pic-Clor 60","Pic-Clor 60","Pic-Clor 60","Pic-Clor 60","Pic-Clor 60","Pic-Clor 60","Pic-Clor 60","Pic-Clor 60","Pic-Clor 60","Pic-Clor 60","Pic-Clor 60","Pic-Clor 60","Pic-Clor 60","Pic-Clor 60","Pic-Clor 60","Pic-Clor 60","Pic-Clor 60","Pic-Clor 60","Pic-Clor 60","Pic-Clor 60","Pic-Clor 60","Pic-Clor 60","Pic-Clor 60","Pic-Clor 60","Pic-Clor 60","Pic-Clor 60","Pic-Clor 60","Pic-Clor 60","Pic-Clor 60","Pic-Clor 60","Pic-Clor 60","Pic-Clor 60","Pic-Clor 60","Pic-Clor 60","Pic-Clor 60","Pic-Clor 60","Pic-Clor 60","Pic-Clor 60","Pic-Clor 60","Pic-Clor 60","Pic-Clor 60","Pic-Clor 60","Pic-Clor 60","Pic-Clor 60","Pic-Clor 60","Pic-Clor 60","Pic-Clor 60","Pic-Clor 60","Pic-Clor 60","Pic-Clor 60","Pic-Clor 60","Pic-Clor 60","Pic-Clor 60","Pic-Clor 60","Pic-Clor 60","Pic-Clor 60","Pic-Clor 60","Pic-Clor 60","Pic-Clor 60","Pic-Clor 60","Pic-Clor 60","Pic-Clor 60","Pic-Clor 60","Pic-Clor 60","Pic-Clor 60","Pic-Clor 60","Pic-Clor 60","Pic-Clor 60","Pic-Clor 60","Pic-Clor 60","Pic-Clor 60","Pic-Clor 60","Pic-Clor 60","Pic-Clor 60","Pic-Clor 60","Pic-Clor 60","Pic-Clor 60","Pic-Clor 60","Pic-Clor 60","Pic-Clor 60","Pic-Clor 60","Pic-Clor 60","Pic-Clor 60","Pic-Clor 60","Pic-Clor 60","Pic-Clor 60","Pic-Clor 60","Pic-Clor 60","Pic-Clor 60","Pic-Clor 60","Pic-Clor 60","Pic-Clor 60","Pic-Clor 60","Pic-Clor 60","Pic-Clor 60","Pic-Clor 60","Pic-Clor 60","Pic-Clor 60","Pic-Clor 60","Pic-Clor 60","Pic-Clor 60","Pic-Clor 60","Pic-Clor 60","Pic-Clor 60","Pic-Clor 60","Pic-Clor 60","Pic-Clor 60","Pic-Clor 60","Pic-Clor 60","Pic-Clor 60","Pic-Clor 60","Pic-Clor 60","Pic-Clor 60","Pic-Clor 60","Pic-Clor 60","Pic-Clor 60","Pic-Clor 60","Pic-Clor 60","Pic-Clor 60","Pic-Clor 60","Pic-Clor 60","Pic-Clor 60","Pic-Clor 60","Pic-Clor 60","Pic-Clor 60","Pic-Clor 60","Pic-Clor 60","Pic-Clor 60","Pic-Clor 60","Pic-Clor 60","Pic-Clor 60","Pic-Clor 60","Pic-Clor 60","Pic-Clor 60","Pic-Clor 60","Pic-Clor 60","Pic-Clor 60","Pic-Clor 60","Pic-Clor 60","Pic-Clor 60","Pic-Clor 60","Pic-Clor 60","Pic-Clor 60","Pic-Clor 60","Pic-Clor 60","Pic-Clor 60","Pic-Clor 60","Pic-Clor 60","Pic-Clor 60","Pic-Clor 60","Pic-Clor 60","Pic-Clor 60","Pic-Clor 60","Pic-Clor 60","Pic-Clor 60","Pic-Clor 60","Pic-Clor 60","Pic-Clor 60","Pic-Clor 60","Pic-Clor 60","Pic-Clor 60","Pic-Clor 60","Pic-Clor 60","Pic-Clor 60","Pic-Clor 60","Pic-Clor 60","Pic-Clor 60","Pic-Clor 60","Pic-Clor 60","Pic-Clor 60","Pic-Clor 60","Pic-Clor 60","Pic-Clor 60","Pic-Clor 60","Pic-Clor 60","Pic-Clor 60","Pic-Clor 60","Pic-Clor 60","Pic-Clor 60","Pic-Clor 60","Pic-Clor 60","Pic-Clor 60","Pic-Clor 60","Pic-Clor 60","Pic-Clor 60","Pic-Clor 60","Pic-Clor 60","Pic-Clor 60","Pic-Clor 60","Pic-Clor 60","Pic-Clor 60","Pic-Clor 60","Pic-Clor 60","Pic-Clor 60","Pic-Clor 60","Pic-Clor 60","Pic-Clor 60","Pic-Clor 60","Pic-Clor 60","Pic-Clor 60","Pic-Clor 60","Pic-Clor 60","Pic-Clor 60","Pic-Clor 60","Pic-Clor 60","Pic-Clor 60","Pic-Clor 60","Pic-Clor 60","Pic-Clor 60","Pic-Clor 60","Pic-Clor 60","Pic-Clor 60","Pic-Clor 60","Pic-Clor 60","Pic-Clor 60","Pic-Clor 60","Pic-Clor 60","Pic-Clor 60","Pic-Clor 60","Pic-Clor 60","Pic-Clor 60","Pic-Clor 60","Pic-Clor 60","Pic-Clor 60","Pic-Clor 60","Pic-Clor 60","Pic-Clor 60","Pic-Clor 60","Pic-Clor 60","Pic-Clor 60","Pic-Clor 60","Pic-Clor 60","Pic-Clor 60","Pic-Clor 60","Pic-Clor 60","Pic-Clor 60","Pic-Clor 60","Pic-Clor 60","Pic-Clor 60","Pic-Clor 60","Pic-Clor 60","Pic-Clor 60","Pic-Clor 60","Pic-Clor 60","Pic-Clor 60","Pic-Clor 60","Pic-Clor 60","Pic-Clor 60","Pic-Clor 60","Pic-Clor 60","Pic-Clor 60","Pic-Clor 60","Pic-Clor 60","Pic-Clor 60","Pic-Clor 60","Pic-Clor 60","Pic-Clor 60","Pic-Clor 60","Pic-Clor 60","Pic-Clor 60","Pic-Clor 60","Pic-Clor 60","Pic-Clor 60","Pic-Clor 60","Pic-Clor 60","Pic-Clor 60","Pic-Clor 60","Pic-Clor 60","Pic-Clor 60","Pic-Clor 60","Pic-Clor 60","Pic-Clor 60","Pic-Clor 60","Pic-Clor 60","Pic-Clor 60","Pic-Clor 60","Pic-Clor 60","Pic-Clor 60","Pic-Clor 60","Pic-Clor 60","Pic-Clor 60","Pic-Clor 60","Pic-Clor 60","Pic-Clor 60","Pic-Clor 60","Pic-Clor 60","Pic-Clor 60","Pic-Clor 60","Pic-Clor 60","Pic-Clor 60","Pic-Clor 60","Pic-Clor 60","Pic-Clor 60","Pic-Clor 60","Pic-Clor 60","Pic-Clor 60","Pic-Clor 60","Pic-Clor 60","Pic-Clor 60","Pic-Clor 60","Pic-Clor 60","Pic-Clor 60","Pic-Clor 60","Pic-Clor 60","Pic-Clor 60","Pic-Clor 60","Pic-Clor 60","Pic-Clor 60","Pic-Clor 60","Pic-Clor 60","Pic-Clor 60","Pic-Clor 60","Pic-Clor 60","Pic-Clor 60","Pic-Clor 60","Pic-Clor 60","Pic-Clor 60","Pic-Clor 60","Pic-Clor 60","Pic-Clor 60","Pic-Clor 60","Pic-Clor 60","Pic-Clor 60","Pic-Clor 60","Pic-Clor 60","Pic-Clor 60","Pic-Clor 60","Pic-Clor 60","Pic-Clor 60","Pic-Clor 60","Pic-Clor 60","Pic-Clor 60","Pic-Clor 60","Pic-Clor 60","Pic-Clor 60","Pic-Clor 60","Pic-Clor 60","Pic-Clor 60","Pic-Clor 60","Pic-Clor 60","Pic-Clor 60","Pic-Clor 60","Pic-Clor 60","Pic-Clor 60","Pic-Clor 60","Pic-Clor 60","Pic-Clor 60","Pic-Clor 60","Pic-Clor 60","Pic-Clor 60","Pic-Clor 60","Pic-Clor 60","Pic-Clor 60","Pic-Clor 60","Pic-Clor 60","Pic-Clor 60","Pic-Clor 60","Pic-Clor 60","Pic-Clor 60","Pic-Clor 60","Pic-Clor 60","Pic-Clor 60","Pic-Clor 60","Pic-Clor 60","Pic-Clor 60","Pic-Clor 60","Pic-Clor 60","Pic-Clor 60","Pic-Clor 60","Pic-Clor 60","Pic-Clor 60","Pic-Clor 60","Pic-Clor 60","Pic-Clor 60","Pic-Clor 60","Pic-Clor 60","Pic-Clor 60","Pic-Clor 60","Pic-Clor 60","Pic-Clor 60","Pic-Clor 60","Pic-Clor 60","Pic-Clor 60","Pic-Clor 60","Pic-Clor 60","Pic-Clor 60","Pic-Clor 60","Pic-Clor 60","Pic-Clor 60","Pic-Clor 60","Pic-Clor 60","Pic-Clor 60","Pic-Clor 60","Pic-Clor 60","Pic-Clor 60","Pic-Clor 60","Pic-Clor 60","Pic-Clor 60","Pic-Clor 60","Pic-Clor 60","Pic-Clor 60","Pic-Clor 60","Pic-Clor 60","Pic-Clor 60","Pic-Clor 60","Pic-Clor 60","Pic-Clor 60","Pic-Clor 60","Pic-Clor 60","Pic-Clor 60","Pic-Clor 60","Pic-Clor 60","Pic-Clor 60","Pic-Clor 60","Pic-Clor 60","Pic-Clor 60","Pic-Clor 60","Pic-Clor 60","Pic-Clor 60","Pic-Clor 60","Pic-Clor 60","Pic-Clor 60","Pic-Clor 60","Pic-Clor 60","Pic-Clor 60","Pic-Clor 60","Pic-Clor 60","Pic-Clor 60","Pic-Clor 60","Pic-Clor 60","Pic-Clor 60","Pic-Clor 60","Pic-Clor 60","Pic-Clor 60","Pic-Clor 60","Pic-Clor 60","Pic-Clor 60","Pic-Clor 60","Pic-Clor 60","Pic-Clor 60","Pic-Clor 60","Pic-Clor 60","Pic-Clor 60","Pic-Clor 60","Pic-Clor 60","Pic-Clor 60","Pic-Clor 60","Pic-Clor 60","Pic-Clor 60","Pic-Clor 60","Pic-Clor 60","Pic-Clor 60","Pic-Clor 60","Pic-Clor 60","Pic-Clor 60","Pic-Clor 60","Pic-Clor 60","Pic-Clor 60","Pic-Clor 60","Pic-Clor 60","Pic-Clor 60","Pic-Clor 60","Pic-Clor 60","Pic-Clor 60","Pic-Clor 60","Pic-Clor 60","Pic-Clor 60","Pic-Clor 60","Pic-Clor 60","Pic-Clor 60","Pic-Clor 60","Pic-Clor 60","Pic-Clor 60","Pic-Clor 60","Pic-Clor 60","Pic-Clor 60","Pic-Clor 60","Pic-Clor 60","Pic-Clor 60","Pic-Clor 60","Pic-Clor 60","Pic-Clor 60","Pic-Clor 60","Pic-Clor 60","Pic-Clor 60","Pic-Clor 60","Pic-Clor 60","Pic-Clor 60","Pic-Clor 60","Pic-Clor 60","Pic-Clor 60","Pic-Clor 60","Pic-Clor 60","Pic-Clor 60","Pic-Clor 60","Pic-Clor 60","Pic-Clor 60","Pic-Clor 60","Pic-Clor 60","Pic-Clor 60","Pic-Clor 60","Pic-Clor 60","Pic-Clor 60","Pic-Clor 60","Pic-Clor 60","Pic-Clor 60","Pic-Clor 60","Pic-Clor 60","Pic-Clor 60","Pic-Clor 60","Pic-Clor 60","Pic-Clor 60","Pic-Clor 60","Pic-Clor 60","Pic-Clor 60","Pic-Clor 60","Pic-Clor 60","Pic-Clor 60","Pic-Clor 60","Pic-Clor 60","Pic-Clor 60","Pic-Clor 60","Pic-Clor 60","Pic-Clor 60","Pic-Clor 60","Pic-Clor 60","Pic-Clor 60","Pic-Clor 60","Pic-Clor 60","Pic-Clor 60","Pic-Clor 60","Pic-Clor 60","Pic-Clor 60","Pic-Clor 60","Pic-Clor 60","Pic-Clor 60","Pic-Clor 60","Pic-Clor 60","Pic-Clor 60","Pic-Clor 60","Pic-Clor 60","Pic-Clor 60","Pic-Clor 60","Pic-Clor 60","Pic-Clor 60","Pic-Clor 60","Pic-Clor 60","Pic-Clor 60","Pic-Clor 60","Pic-Clor 60","Pic-Clor 60","Pic-Clor 60","Pic-Clor 60","Pic-Clor 60","Pic-Clor 60","Pic-Clor 60","Pic-Clor 60","Pic-Clor 60","Pic-Clor 60","Pic-Clor 60","Pic-Clor 60","Pic-Clor 60","Pic-Clor 60","Pic-Clor 60","Pic-Clor 60","Pic-Clor 60","Pic-Clor 60","Pic-Clor 60","Pic-Clor 60","Pic-Clor 60","Pic-Clor 60","Pic-Clor 60","Pic-Clor 60","Pic-Clor 60","Pic-Clor 60","Pic-Clor 60","Pic-Clor 60","Pic-Clor 60","Pic-Clor 60","Pic-Clor 60","Pic-Clor 60","Pic-Clor 60","Pic-Clor 60","Pic-Clor 60","Pic-Clor 60","Pic-Clor 60","Pic-Clor 60","Pic-Clor 60","Pic-Clor 60","Pic-Clor 60","Pic-Clor 60","Pic-Clor 60","Pic-Clor 60","Pic-Clor 60","Pic-Clor 60","Pic-Clor 60","Pic-Clor 60","Pic-Clor 60","Pic-Clor 60","Pic-Clor 60","Pic-Clor 60","Pic-Clor 60","Pic-Clor 60","Pic-Clor 60","Pic-Clor 60","Pic-Clor 60","Pic-Clor 60","Pic-Clor 60","Pic-Clor 60","Pic-Clor 60","Pic-Clor 60","Pic-Clor 60","Pic-Clor 60","Pic-Clor 60","Pic-Clor 60","Pic-Clor 60","Pic-Clor 60","Pic-Clor 60","Pic-Clor 60","Pic-Clor 60","Pic-Clor 60","Pic-Clor 60","Pic-Clor 60","Pic-Clor 60","Pic-Clor 60","Pic-Clor 60","Pic-Clor 60","Pic-Clor 60","Pic-Clor 60","Pic-Clor 60","Pic-Clor 60","Pic-Clor 60","Pic-Clor 60","Pic-Clor 60","Pic-Clor 60","Pic-Clor 60","Pic-Clor 60","Pic-Clor 60","Pic-Clor 60","Pic-Clor 60","Pic-Clor 60","Pic-Clor 60","Pic-Clor 60","Pic-Clor 60","Pic-Clor 60","Pic-Clor 60","Pic-Clor 60","Pic-Clor 60","Pic-Clor 60","Pic-Clor 60","Pic-Clor 60","Pic-Clor 60","Pic-Clor 60","Pic-Clor 60","Pic-Clor 60","Pic-Clor 60","Pic-Clor 60","Pic-Clor 60","Pic-Clor 60","Pic-Clor 60","Pic-Clor 60","Pic-Clor 60","Pic-Clor 60","Pic-Clor 60","Pic-Clor 60","Pic-Clor 60","Pic-Clor 60","Pic-Clor 60","Pic-Clor 60","Pic-Clor 60","Pic-Clor 60","Pic-Clor 60","Pic-Clor 60","Pic-Clor 60","Pic-Clor 60","Pic-Clor 60","Pic-Clor 60","Pic-Clor 60","Pic-Clor 60","Pic-Clor 60","Pic-Clor 60","Pic-Clor 60","Pic-Clor 60","Pic-Clor 60","Pic-Clor 60","Pic-Clor 60","Pic-Clor 60","Pic-Clor 60","Pic-Clor 60","Pic-Clor 60","Pic-Clor 60","Pic-Clor 60","Pic-Clor 60","Pic-Clor 60","Pic-Clor 60","Pic-Clor 60","Pic-Clor 60","Pic-Clor 60","Pic-Clor 60","Pic-Clor 60","Pic-Clor 60","Pic-Clor 60","Pic-Clor 60","Pic-Clor 60","Pic-Clor 60","Pic-Clor 60","Pic-Clor 60","Pic-Clor 60","Pic-Clor 60","Pic-Clor 60","Pic-Clor 60","Pic-Clor 60","Pic-Clor 60","Pic-Clor 60"]
["Agri-Mycin 17, Firewall","GREENHOUSE",null,null,null,null,null,null,null,null,null,null,null,null,null,null,0,"The Agri-Mycin would be applied in the greenhouse and would not require the use of the tractor. "]
["Blocker","AT PLANTING",null,null,null,null,null,null,null,null,null,null,null,null,null,null,0,"Can I apply Blocker and Oronis Gold 200 at the same time in one pass, or do I need to apply them separately? Yes, these could be tank mixed and applied at the same time. Note, a common way of applying these products is in transplant water with a water-wheel planter, so you may be able to include this application and planting as a single pass with the tractor. "]
["Kocide","1,2,3,4,5,6,7,8,9,10",null,{"$f":"+D6*10","v":5.4},{"$f":"+E6*10","v":5.8},1.6,1.9,0.89999999999999991,13.26,{"$f":"+I11*H11","v":11.933999999999999},{"$f":"0.09*10","v":0.89999999999999991},{"$f":"+$M$2*O11*$P$2*10","v":5.8729127999999999},null,null,6.2E-2,null,{"$f":"+O11*$P$2*10","v":2.3931999999999998}]
["Manzate","3,4,5,6,7,8,9",null,null,null,null,null,null,null,null,null,null,null,null,null,null,0]
["Quadris",9,null,null,null,null,null,null,null,null,null,null,null,null,null,null,0]
["Bravo",10,null,null,null,null,null,null,null,null,null,null,null,null,null,null,0]
["Cabrio",5,null,null,null,null,null,null,null,null,null,null,null,null,null,null,0]
["Priaxor",7,null,null,null,null,null,null,null,null,null,null,null,null,null,null,0]
["Aprovia Top","3, 10",null,null,null,null,null,null,null,null,null,null,null,null,null,null,0]
["Phytophthora",null,null,null,null,null,null,null,null,null,null,null,null,null,null,null,0]
["Pic-Clor 60",0,null,0.54,0.57999999999999996,0.16,0.19,0.09,13.26,{"$f":"+I19*H19","v":1.1934},0.09,{"$f":"+$M$2*O19*$P$2","v":0.58729127999999997},null,null,6.2E-2,null,0.23931999999999998]
["Agri-Mycin 17, Firewall","GREENHOUSE",null,null,null,null,null,null,null,null,null,null,null,null,null,null,0,"The Agri-Mycin would be applied in the greenhouse and would not require the use of the tractor. "]
["Blocker","AT PLANTING",null,null,null,null,null,null,null,null,null,null,null,null,null,null,0,"Can I apply Blocker and Oronis Gold 200 at the same time in one pass, or do I need to apply them separately? Yes, these could be tank mixed and applied at the same time. Note, a common way of applying these products is in transplant water with a water-wheel planter, so you may be able to include this application and planting as a single pass with the tractor. "]
["Kocide","1,2,3,4,5,6,7,8,9,10",null,{"$f":"+D6*10","v":5.4},{"$f":"+E6*10","v":5.8},1.6,1.9,0.89999999999999991,13.26,{"$f":"+I22*H22","v":11.933999999999999},0.9,{"$f":"+$M$2*O22*$P$2*10","v":5.8729127999999999},null,null,6.2E-2,null,{"$f":"+O22*$P$2*10","v":2.3931999999999998}]
["Manzate","3,4,5,6,7,8,9",null,null,null,null,null,null,null,null,null,null,null,null,null,null,0]
["Quadris",9,null,null,null,null,null,null,null,null,null,null,null,null,null,null,0]
["Bravo",10,null,null,null,null,null,null,null,null,null,null,null,null,null,null,0]
["Cabrio",5,null,null,null,null,null,null,null,null,null,null,null,null,null,null,0]
["Priaxor",7,null,null,null,null,null,null,null,null,null,null,null,null,null,null,0]
["Aprovia Top","3, 10",null,null,null,null,null,null,null,{"$f":"+(2.826+2.89+3.003+3.017)/4","v":2.9340000000000002},null,null,null,null,null,null,0]
["Orondis Gold 200","AT PLANTING",null,null,null,null,null,null,null,null,null,null,null,null,null,null,0]
["Ridomil Gold SL ",1,null,null,null,null,null,null,null,null,null,null,null,null,null,null,0]
["Ranman",2,null,null,null,null,null,null,null,null,null,null,null,null,null,null,0]
["Revus",3,null,null,null,null,null,null,null,null,null,null,null,null,null,null,0]
["Presidio",4,null,null,null,null,null,null,null,null,null,null,null,null,null,null,0]
["Zampro",5,null,null,null,null,null,null,null,null,null,null,null,null,null,null,0]
["Orondis Ultra",6,null,null,null,null,null,null,null,null,null,null,null,null,null,null,0]
["Ranman",7,null,null,null,null,null,null,null,null,null,null,null,null,null,null,0]
["Revus",8,null,null,null,null,null,null,null,null,null,null,null,null,null,null,0]
["Presidio",9,null,null,null,null,null,null,null,null,null,null,null,null,null,null,0]
["Oronis Ultra",10,null,null,null,null,null,null,null,null,null,null,null,null,null,null,0]
[]
["Mustang Maxx",null,null,0.54,0.57999999999999996,0.16,0.19,0.09,13.26,{"$f":"+I41*H41","v":1.1934},0.09,{"$f":"+$M$2*O41*$P$2","v":0.58729127999999997},null,null,6.2E-2,null,{"$f":"+O41*$P$2","v":0.23931999999999998}]
["Movento",null,null,0.54,0.57999999999999996,0.16,0.19,0.09,13.26,{"$f":"+I42*H42","v":1.1934},0.09,{"$f":"+$M$2*O42*$P$2","v":0.58729127999999997},null,null,6.2E-2,null,0.23931999999999998]
["Trailer utility 10'","16' 2WD 75 HP",null,null,null,null,null,null,null,null,null,null,null,null,null,null,0]
["Planting",null,null,{"$f":"2.77+0.39","v":3.16},2.38,0.09,0.32,0.6,13.26,{"$f":"+I44*H44","v":7.9559999999999995},0.39,{"$f":"+$M$2*O44*$P$2","v":5.6834640000000007},null,null,0.6,null,2.3159999999999998]
["Stakes",null,null,{"$f":"2.77+0.39","v":3.16},2.38,0.09,0.32,0.6,13.26,{"$f":"+I45*H45","v":7.9559999999999995},0.39,{"$f":"+$M$2*O45*$P$2","v":5.6834640000000007},null,null,0.6,null,2.3159999999999998]
["Harvest",null,null,{"$f":"2.77+0.39","v":3.16},2.38,0.09,0.32,0.6,13.26,{"$f":"+I46*H46","v":7.9559999999999995},0.39,{"$f":"+$M$2*O46*$P$2","v":5.6834640000000007},null,null,0.6,null,2.3159999999999998]
[null,null,null,null,null,null,null,null,null,null,null,null,null,null,null,null,0]
["Mulch lifter","1-row 2WD 75 HP",null,4.7,3.67,0.15,2.67,0.57999999999999996,13.26,{"$f":"+H48*I48","v":7.6907999999999994},0.6,{"$f":"+$M$2*O48*$P$2","v":5.5792671599999997},null,null,0.58899999999999997,null,2.2735399999999997]
["Rotary Cutter","7' 2WD 75 HP",null,1.36,1.05,0.64,0.45,0.16,13.26,{"$f":"+I49*H49","v":2.1215999999999999},0.17,1.6008423600000001,null,null,0.16900000000000001,null,0.65234000000000003]
[null,null,null,null,null,null,null,null,null,null,null,null,null,null,null,null,0]
["Cultivate","4-row 2wd 75 hp",null,1.24,0.97,0.33,0.87,0.15,13.26,{"$f":"+I51*H51","v":1.9889999999999999},0.16,1.4682282000000002,null,null,0.155,null,0.59829999999999994]
["total",null,null,null,null,null,null,{"$f":"SUM(H3:H51)-H6","v":6.6},null,null,{"$f":"SUM(K3:K51)-K6","v":7.8699999999999983},{"$f":"SUM(L3:L51)-LL6","v":55.309577159999996},null,null,null,null,{"$f":"SUM(Q3:Q51)-Q6","v":22.299219999999995}]